Workbook

Sheet Calculate
A1: ディープ・ラーニング－ハードウエア化への道
A2: 5層目と6層目(Dense)の演算シート 畳み込み4層目の結果がx_in
A4: 番号 | B4: 1 | C4: 2 | D4: 3 | E4: 4 | F4: 5 | G4: 6 | H4: 7 | I4: 8 | J4: 9 | K4: 10 | L4: 11 | M4: 12 | N4: 13 | O4: 14 | P4: 15 | Q4: 16 | R4: 17 | S4: 18 | T4: 19 | U4: 20 | V4: 21 | W4: 22 | X4: 23 | Y4: 24 | Z4: 25 | AA4: 26 | AB4: 27 | AC4: 28 | AD4: 29 | AE4: 30 | AF4: 31 | AG4: 32 | AH4: 33 | AI4: 34 | AJ4: 35 | AK4: 36 | AL4: 37 | AM4: 38 | AN4: 39 | AO4: 40 | AP4: 41 | AQ4: 42 | AR4: 43 | AS4: 44 | AT4: 45 | AU4: 46 | AV4: 47 | AW4: 48 | AX4: 49 | AY4: 50 | AZ4: 51 | BA4: 52 | BB4: 53 | BC4: 54 | BD4: 55 | BE4: 56 | BF4: 57 | BG4: 58 | BH4: 59 | BI4: 60 | BJ4: 61 | BK4: 62 | BL4: 63 | BM4: 64 | BN4: 65 | BO4: 66 | BP4: 67 | BQ4: 68 | BR4: 69 | BS4: 70 | BT4: 71 | BU4: 72 | BV4: 73 | BW4: 74 | BX4: 75 | BY4: 76 | BZ4: 77 | CA4: 78 | CB4: 79 | CC4: 80 | CD4: 81 | CE4: 82 | CF4: 83 | CG4: 84 | CH4: 85 | CI4: 86 | CJ4: 87 | CK4: 88 | CL4: 89 | CM4: 90 | CN4: 91 | CO4: 92 | CP4: 93 | CQ4: 94 | CR4: 95 | CS4: 96 | CT4: 97 | CU4: 98 | CV4: 99 | CW4: 100 | CX4: 101 | CY4: 102 | CZ4: 103 | DA4: 104 | DB4: 105 | DC4: 106 | DD4: 107 | DE4: 108 | DF4: 109 | DG4: 110 | DH4: 111 | DI4: 112 | DJ4: 113 | DK4: 114 | DL4: 115 | DM4: 116 | DN4: 117 | DO4: 118 | DP4: 119 | DQ4: 120 | DR4: 121 | DS4: 122 | DT4: 123 | DU4: 124 | DV4: 125 | DW4: 126 | DX4: 127 | DY4: 128 | DZ4: 129 | EA4: 130 | EB4: 131 | EC4: 132 | ED4: 133 | EE4: 134 | EF4: 135 | EG4: 136 | EH4: 137 | EI4: 138 | EJ4: 139 | EK4: 140 | EL4: 141 | EM4: 142 | EN4: 143 | EO4: 144 | EP4: 145 | EQ4: 146 | ER4: 147 | ES4: 148 | ET4: 149 | EU4: 150 | EV4: 151 | EW4: 152 | EX4: 153 | EY4: 154 | EZ4: 155 | FA4: 156 | FB4: 157 | FC4: 158 | FD4: 159 | FE4: 160 | FF4: 161 | FG4: 162 | FH4: 163 | FI4: 164 | FJ4: 165 | FK4: 166 | FL4: 167 | FM4: 168 | FN4: 169 | FO4: 170 | FP4: 171 | FQ4: 172 | FR4: 173 | FS4: 174 | FT4: 175 | FU4: 176 | FV4: 177 | FW4: 178 | FX4: 179 | FY4: 180 | FZ4: 181 | GA4: 182 | GB4: 183 | GC4: 184 | GD4: 185 | GE4: 186 | GF4: 187 | GG4: 188 | GH4: 189 | GI4: 190 | GJ4: 191 | GK4: 192 | GL4: 193 | GM4: 194 | GN4: 195 | GO4: 196 | GP4: 197 | GQ4: 198 | GR4: 199 | GS4: 200 | GT4: 201 | GU4: 202 | GV4: 203 | GW4: 204 | GX4: 205 | GY4: 206 | GZ4: 207 | HA4: 208 | HB4: 209 | HC4: 210 | HD4: 211 | HE4: 212 | HF4: 213 | HG4: 214 | HH4: 215 | HI4: 216 | HJ4: 217 | HK4: 218 | HL4: 219 | HM4: 220 | HN4: 221 | HO4: 222 | HP4: 223 | HQ4: 224 | HR4: 225 | HS4: 226 | HT4: 227 | HU4: 228 | HV4: 229 | HW4: 230 | HX4: 231 | HY4: 232 | HZ4: 233 | IA4: 234 | IB4: 235 | IC4: 236 | ID4: 237 | IE4: 238 | IF4: 239 | IG4: 240 | IH4: 241 | II4: 242 | IJ4: 243 | IK4: 244 | IL4: 245 | IM4: 246 | IN4: 247 | IO4: 248 | IP4: 249 | IQ4: 250 | IR4: 251 | IS4: 252 | IT4: 253 | IU4: 254 | IV4: 255 | IW4: 256 | IX4: 257 | IY4: 258 | IZ4: 259 | JA4: 260 | JB4: 261 | JC4: 262 | JD4: 263 | JE4: 264 | JF4: 265 | JG4: 266 | JH4: 267 | JI4: 268 | JJ4: 269 | JK4: 270 | JL4: 271 | JM4: 272 | JN4: 273 | JO4: 274 | JP4: 275 | JQ4: 276 | JR4: 277 | JS4: 278 | JT4: 279 | JU4: 280 | JV4: 281 | JW4: 282 | JX4: 283 | JY4: 284 | JZ4: 285 | KA4: 286 | KB4: 287 | KC4: 288 | KD4: 289 | KE4: 290 | KF4: 291 | KG4: 292 | KH4: 293 | KI4: 294 | KJ4: 295 | KK4: 296 | KL4: 297 | KM4: 298 | KN4: 299 | KO4: 300 | KP4: 301 | KQ4: 302 | KR4: 303 | KS4: 304 | KT4: 305 | KU4: 306 | KV4: 307 | KW4: 308 | KX4: 309 | KY4: 310 | KZ4: 311 | LA4: 312 | LB4: 313 | LC4: 314 | LD4: 315 | LE4: 316 | LF4: 317 | LG4: 318 | LH4: 319 | LI4: 320 | LJ4: 321 | LK4: 322 | LL4: 323 | LM4: 324 | LN4: 325 | LO4: 326 | LP4: 327 | LQ4: 328 | LR4: 329 | LS4: 330 | LT4: 331 | LU4: 332 | LV4: 333 | LW4: 334 | LX4: 335 | LY4: 336 | LZ4: 337 | MA4: 338 | MB4: 339 | MC4: 340 | MD4: 341 | ME4: 342 | MF4: 343 | MG4: 344 | MH4: 345 | MI4: 346 | MJ4: 347 | MK4: 348 | ML4: 349 | MM4: 350 | MN4: 351 | MO4: 352 | MP4: 353 | MQ4: 354 | MR4: 355 | MS4: 356 | MT4: 357 | MU4: 358 | MV4: 359 | MW4: 360 | MX4: 361 | MY4: 362 | MZ4: 363 | NA4: 364 | NB4: 365 | NC4: 366 | ND4: 367 | NE4: 368 | NF4: 369 | NG4: 370 | NH4: 371 | NI4: 372 | NJ4: 373 | NK4: 374 | NL4: 375 | NM4: 376 | NN4: 377 | NO4: 378 | NP4: 379 | NQ4: 380 | NR4: 381 | NS4: 382 | NT4: 383 | NU4: 384 | NV4: 385 | NW4: 386 | NX4: 387 | NY4: 388 | NZ4: 389 | OA4: 390 | OB4: 391 | OC4: 392 | OD4: 393 | OE4: 394 | OF4: 395 | OG4: 396 | OH4: 397 | OI4: 398 | OJ4: 399 | OK4: 400 | OL4: 401 | OM4: 402 | ON4: 403 | OO4: 404 | OP4: 405 | OQ4: 406 | OR4: 407 | OS4: 408 | OT4: 409 | OU4: 410 | OV4: 411 | OW4: 412 | OX4: 413 | OY4: 414 | OZ4: 415 | PA4: 416 | PB4: 417 | PC4: 418 | PD4: 419 | PE4: 420 | PF4: 421 | PG4: 422 | PH4: 423 | PI4: 424 | PJ4: 425 | PK4: 426 | PL4: 427 | PM4: 428 | PN4: 429 | PO4: 430 | PP4: 431 | PQ4: 432 | PR4: 433 | PS4: 434 | PT4: 435 | PU4: 436 | PV4: 437 | PW4: 438 | PX4: 439 | PY4: 440 | PZ4: 441 | QA4: 442 | QB4: 443 | QC4: 444 | QD4: 445 | QE4: 446 | QF4: 447 | QG4: 448 | QH4: 449 | QI4: 450 | QJ4: 451 | QK4: 452 | QL4: 453 | QM4: 454 | QN4: 455 | QO4: 456 | QP4: 457 | QQ4: 458 | QR4: 459 | QS4: 460 | QT4: 461 | QU4: 462 | QV4: 463 | QW4: 464 | QX4: 465 | QY4: 466 | QZ4: 467 | RA4: 468 | RB4: 469 | RC4: 470 | RD4: 471 | RE4: 472 | RF4: 473 | RG4: 474 | RH4: 475 | RI4: 476 | RJ4: 477 | RK4: 478 | RL4: 479 | RM4: 480 | RN4: 481 | RO4: 482 | RP4: 483 | RQ4: 484 | RR4: 485 | RS4: 486 | RT4: 487 | RU4: 488 | RV4: 489 | RW4: 490 | RX4: 491 | RY4: 492 | RZ4: 493 | SA4: 494 | SB4: 495 | SC4: 496 | SD4: 497 | SE4: 498 | SF4: 499 | SG4: 500 | SH4: 501 | SI4: 502 | SJ4: 503 | SK4: 504 | SL4: 505 | SM4: 506 | SN4: 507 | SO4: 508 | SP4: 509 | SQ4: 510 | SR4: 511 | SS4: 512 | ST4: 513 | SU4: 514 | SV4: 515 | SW4: 516 | SX4: 517 | SY4: 518 | SZ4: 519 | TA4: 520 | TB4: 521 | TC4: 522 | TD4: 523 | TE4: 524 | TF4: 525 | TG4: 526 | TH4: 527 | TI4: 528 | TJ4: 529 | TK4: 530 | TL4: 531 | TM4: 532 | TN4: 533 | TO4: 534 | TP4: 535 | TQ4: 536 | TR4: 537 | TS4: 538 | TT4: 539 | TU4: 540 | TV4: 541 | TW4: 542 | TX4: 543 | TY4: 544 | TZ4: 545 | UA4: 546 | UB4: 547 | UC4: 548 | UD4: 549 | UE4: 550 | UF4: 551 | UG4: 552 | UH4: 553 | UI4: 554 | UJ4: 555 | UK4: 556 | UL4: 557 | UM4: 558 | UN4: 559 | UO4: 560 | UP4: 561 | UQ4: 562 | UR4: 563 | US4: 564 | UT4: 565 | UU4: 566 | UV4: 567 | UW4: 568 | UX4: 569 | UY4: 570 | UZ4: 571 | VA4: 572 | VB4: 573 | VC4: 574 | VD4: 575 | VE4: 576 | VF4: 577 | VG4: 578 | VH4: 579 | VI4: 580 | VJ4: 581 | VK4: 582 | VL4: 583 | VM4: 584 | VN4: 585 | VO4: 586 | VP4: 587 | VQ4: 588 | VR4: 589 | VS4: 590 | VT4: 591 | VU4: 592 | VV4: 593 | VW4: 594 | VX4: 595 | VY4: 596 | VZ4: 597 | WA4: 598 | WB4: 599 | WC4: 600 | WD4: 601 | WE4: 602 | WF4: 603 | WG4: 604 | WH4: 605 | WI4: 606 | WJ4: 607 | WK4: 608 | WL4: 609 | WM4: 610 | WN4: 611 | WO4: 612 | WP4: 613 | WQ4: 614 | WR4: 615 | WS4: 616 | WT4: 617 | WU4: 618 | WV4: 619 | WW4: 620 | WX4: 621 | WY4: 622 | WZ4: 623 | XA4: 624 | XB4: 625 | XC4: 626 | XD4: 627 | XE4: 628 | XF4: 629 | XG4: 630 | XH4: 631 | XI4: 632 | XJ4: 633 | XK4: 634 | XL4: 635 | XM4: 636 | XN4: 637 | XO4: 638 | XP4: 639 | XQ4: 640 | XR4: 641 | XS4: 642 | XT4: 643 | XU4: 644 | XV4: 645 | XW4: 646 | XX4: 647 | XY4: 648 | XZ4: 649 | YA4: 650 | YB4: 651 | YC4: 652 | YD4: 653 | YE4: 654 | YF4: 655 | YG4: 656 | YH4: 657 | YI4: 658 | YJ4: 659 | YK4: 660 | YL4: 661 | YM4: 662 | YN4: 663 | YO4: 664 | YP4: 665 | YQ4: 666 | YR4: 667 | YS4: 668 | YT4: 669 | YU4: 670 | YV4: 671 | YW4: 672 | YX4: 673 | YY4: 674 | YZ4: 675 | ZA4: 676 | ZB4: 677 | ZC4: 678 | ZD4: 679 | ZE4: 680 | ZF4: 681 | ZG4: 682 | ZH4: 683 | ZI4: 684 | ZJ4: 685 | ZK4: 686 | ZL4: 687 | ZM4: 688 | ZN4: 689 | ZO4: 690 | ZP4: 691 | ZQ4: 692 | ZR4: 693 | ZS4: 694 | ZT4: 695 | ZU4: 696 | ZV4: 697 | ZW4: 698 | ZX4: 699 | ZY4: 700 | ZZ4: 701 | AAA4: 702 | AAB4: 703 | AAC4: 704 | AAD4: 705 | AAE4: 706 | AAF4: 707 | AAG4: 708 | AAH4: 709 | AAI4: 710 | AAJ4: 711 | AAK4: 712 | AAL4: 713 | AAM4: 714 | AAN4: 715 | AAO4: 716 | AAP4: 717 | AAQ4: 718 | AAR4: 719 | AAS4: 720 | AAT4: 721 | AAU4: 722 | AAV4: 723 | AAW4: 724 | AAX4: 725 | AAY4: 726 | AAZ4: 727 | ABA4: 728 | ABB4: 729 | ABC4: 730 | ABD4: 731 | ABE4: 732 | ABF4: 733 | ABG4: 734 | ABH4: 735 | ABI4: 736 | ABJ4: 737 | ABK4: 738 | ABL4: 739 | ABM4: 740 | ABN4: 741 | ABO4: 742 | ABP4: 743 | ABQ4: 744 | ABR4: 745 | ABS4: 746 | ABT4: 747 | ABU4: 748 | ABV4: 749 | ABW4: 750 | ABX4: 751 | ABY4: 752 | ABZ4: 753 | ACA4: 754 | ACB4: 755 | ACC4: 756 | ACD4: 757 | ACE4: 758 | ACF4: 759 | ACG4: 760 | ACH4: 761 | ACI4: 762 | ACJ4: 763 | ACK4: 764 | ACL4: 765 | ACM4: 766 | ACN4: 767 | ACO4: 768 | ACP4: 769 | ACQ4: 770 | ACR4: 771 | ACS4: 772 | ACT4: 773 | ACU4: 774 | ACV4: 775 | ACW4: 776 | ACX4: 777 | ACY4: 778 | ACZ4: 779 | ADA4: 780 | ADB4: 781 | ADC4: 782 | ADD4: 783 | ADE4: 784 | ADF4: 785 | ADG4: 786 | ADH4: 787 | ADI4: 788 | ADJ4: 789 | ADK4: 790 | ADL4: 791 | ADM4: 792 | ADN4: 793 | ADO4: 794 | ADP4: 795 | ADQ4: 796 | ADR4: 797 | ADS4: 798 | ADT4: 799 | ADU4: 800 | ADV4: 801 | ADW4: 802 | ADX4: 803 | ADY4: 804 | ADZ4: 805 | AEA4: 806 | AEB4: 807 | AEC4: 808 | AED4: 809 | AEE4: 810 | AEF4: 811 | AEG4: 812 | AEH4: 813 | AEI4: 814 | AEJ4: 815 | AEK4: 816 | AEL4: 817 | AEM4: 818 | AEN4: 819 | AEO4: 820 | AEP4: 821 | AEQ4: 822 | AER4: 823 | AES4: 824 | AET4: 825 | AEU4: 826 | AEV4: 827 | AEW4: 828 | AEX4: 829 | AEY4: 830 | AEZ4: 831 | AFA4: 832 | AFB4: 833 | AFC4: 834 | AFD4: 835 | AFE4: 836 | AFF4: 837 | AFG4: 838 | AFH4: 839 | AFI4: 840 | AFJ4: 841 | AFK4: 842 | AFL4: 843 | AFM4: 844 | AFN4: 845 | AFO4: 846 | AFP4: 847 | AFQ4: 848 | AFR4: 849 | AFS4: 850 | AFT4: 851 | AFU4: 852 | AFV4: 853 | AFW4: 854 | AFX4: 855 | AFY4: 856 | AFZ4: 857 | AGA4: 858 | AGB4: 859 | AGC4: 860 | AGD4: 861 | AGE4: 862 | AGF4: 863 | AGG4: 864 | AGH4: 865 | AGI4: 866 | AGJ4: 867 | AGK4: 868 | AGL4: 869 | AGM4: 870 | AGN4: 871 | AGO4: 872 | AGP4: 873 | AGQ4: 874 | AGR4: 875 | AGS4: 876 | AGT4: 877 | AGU4: 878 | AGV4: 879 | AGW4: 880 | AGX4: 881 | AGY4: 882 | AGZ4: 883 | AHA4: 884 | AHB4: 885 | AHC4: 886 | AHD4: 887 | AHE4: 888 | AHF4: 889 | AHG4: 890 | AHH4: 891 | AHI4: 892 | AHJ4: 893 | AHK4: 894 | AHL4: 895 | AHM4: 896 | AHN4: 897 | AHO4: 898 | AHP4: 899 | AHQ4: 900 | AHR4: 901 | AHS4: 902 | AHT4: 903 | AHU4: 904 | AHV4: 905 | AHW4: 906 | AHX4: 907 | AHY4: 908 | AHZ4: 909 | AIA4: 910 | AIB4: 911 | AIC4: 912 | AID4: 913 | AIE4: 914 | AIF4: 915 | AIG4: 916 | AIH4: 917 | AII4: 918 | AIJ4: 919 | AIK4: 920 | AIL4: 921 | AIM4: 922 | AIN4: 923 | AIO4: 924 | AIP4: 925 | AIQ4: 926 | AIR4: 927 | AIS4: 928 | AIT4: 929 | AIU4: 930 | AIV4: 931 | AIW4: 932 | AIX4: 933 | AIY4: 934 | AIZ4: 935 | AJA4: 936 | AJB4: 937 | AJC4: 938 | AJD4: 939 | AJE4: 940 | AJF4: 941 | AJG4: 942 | AJH4: 943 | AJI4: 944 | AJJ4: 945 | AJK4: 946 | AJL4: 947 | AJM4: 948 | AJN4: 949 | AJO4: 950 | AJP4: 951 | AJQ4: 952 | AJR4: 953 | AJS4: 954 | AJT4: 955 | AJU4: 956 | AJV4: 957 | AJW4: 958 | AJX4: 959 | AJY4: 960 | AJZ4: 961 | AKA4: 962 | AKB4: 963 | AKC4: 964 | AKD4: 965 | AKE4: 966 | AKF4: 967 | AKG4: 968 | AKH4: 969 | AKI4: 970 | AKJ4: 971 | AKK4: 972 | AKL4: 973 | AKM4: 974 | AKN4: 975 | AKO4: 976 | AKP4: 977 | AKQ4: 978 | AKR4: 979 | AKS4: 980 | AKT4: 981 | AKU4: 982 | AKV4: 983 | AKW4: 984 | AKX4: 985 | AKY4: 986 | AKZ4: 987 | ALA4: 988 | ALB4: 989 | ALC4: 990 | ALD4: 991 | ALE4: 992 | ALF4: 993 | ALG4: 994 | ALH4: 995 | ALI4: 996 | ALJ4: 997 | ALK4: 998 | ALL4: 999 | ALM4: 1000 | ALN4: 1001 | ALO4: 1002 | ALP4: 1003 | ALQ4: 1004 | ALR4: 1005 | ALS4: 1006 | ALT4: 1007 | ALU4: 1008 | ALV4: 1009 | ALW4: 1010 | ALX4: 1011 | ALY4: 1012 | ALZ4: 1013 | AMA4: 1014 | AMB4: 1015 | AMC4: 1016 | AMD4: 1017 | AME4: 1018 | AMF4: 1019 | AMG4: 1020 | AMH4: 1021 | AMI4: 1022 | AMJ4: 1023 | AMK4: 1024 | AML4: 1025 | AMM4: 1026 | AMN4: 1027 | AMO4: 1028 | AMP4: 1029 | AMQ4: 1030 | AMR4: 1031 | AMS4: 1032 | AMT4: 1033 | AMU4: 1034 | AMV4: 1035 | AMW4: 1036 | AMX4: 1037 | AMY4: 1038 | AMZ4: 1039 | ANA4: 1040 | ANB4: 1041 | ANC4: 1042 | AND4: 1043 | ANE4: 1044 | ANF4: 1045 | ANG4: 1046 | ANH4: 1047 | ANI4: 1048 | ANJ4: 1049 | ANK4: 1050 | ANL4: 1051 | ANM4: 1052 | ANN4: 1053 | ANO4: 1054 | ANP4: 1055 | ANQ4: 1056 | ANR4: 1057 | ANS4: 1058 | ANT4: 1059 | ANU4: 1060 | ANV4: 1061 | ANW4: 1062 | ANX4: 1063 | ANY4: 1064 | ANZ4: 1065 | AOA4: 1066 | AOB4: 1067 | AOC4: 1068 | AOD4: 1069 | AOE4: 1070 | AOF4: 1071 | AOG4: 1072 | AOH4: 1073 | AOI4: 1074 | AOJ4: 1075 | AOK4: 1076 | AOL4: 1077 | AOM4: 1078 | AON4: 1079 | AOO4: 1080 | AOP4: 1081 | AOQ4: 1082 | AOR4: 1083 | AOS4: 1084 | AOT4: 1085 | AOU4: 1086 | AOV4: 1087 | AOW4: 1088 | AOX4: 1089 | AOY4: 1090 | AOZ4: 1091 | APA4: 1092 | APB4: 1093 | APC4: 1094 | APD4: 1095 | APE4: 1096 | APF4: 1097 | APG4: 1098 | APH4: 1099 | API4: 1100 | APJ4: 1101 | APK4: 1102 | APL4: 1103 | APM4: 1104 | APN4: 1105 | APO4: 1106 | APP4: 1107 | APQ4: 1108 | APR4: 1109 | APS4: 1110 | APT4: 1111 | APU4: 1112 | APV4: 1113 | APW4: 1114 | APX4: 1115 | APY4: 1116 | APZ4: 1117 | AQA4: 1118 | AQB4: 1119 | AQC4: 1120 | AQD4: 1121 | AQE4: 1122 | AQF4: 1123 | AQG4: 1124 | AQH4: 1125 | AQI4: 1126 | AQJ4: 1127 | AQK4: 1128 | AQL4: 1129 | AQM4: 1130 | AQN4: 1131 | AQO4: 1132 | AQP4: 1133 | AQQ4: 1134 | AQR4: 1135 | AQS4: 1136 | AQT4: 1137 | AQU4: 1138 | AQV4: 1139 | AQW4: 1140 | AQX4: 1141 | AQY4: 1142 | AQZ4: 1143 | ARA4: 1144 | ARB4: 1145 | ARC4: 1146 | ARD4: 1147 | ARE4: 1148 | ARF4: 1149 | ARG4: 1150 | ARH4: 1151 | ARI4: 1152 | ARJ4: 1153 | ARK4: 1154 | ARL4: 1155 | ARM4: 1156 | ARN4: 1157 | ARO4: 1158 | ARP4: 1159 | ARQ4: 1160 | ARR4: 1161 | ARS4: 1162 | ART4: 1163 | ARU4: 1164 | ARV4: 1165 | ARW4: 1166 | ARX4: 1167 | ARY4: 1168 | ARZ4: 1169 | ASA4: 1170 | ASB4: 1171 | ASC4: 1172 | ASD4: 1173 | ASE4: 1174 | ASF4: 1175 | ASG4: 1176 | ASH4: 1177 | ASI4: 1178 | ASJ4: 1179 | ASK4: 1180 | ASL4: 1181 | ASM4: 1182 | ASN4: 1183 | ASO4: 1184 | ASP4: 1185 | ASQ4: 1186 | ASR4: 1187 | ASS4: 1188 | AST4: 1189 | ASU4: 1190 | ASV4: 1191 | ASW4: 1192 | ASX4: 1193 | ASY4: 1194 | ASZ4: 1195 | ATA4: 1196 | ATB4: 1197 | ATC4: 1198 | ATD4: 1199 | ATE4: 1200 | ATF4: 1201 | ATG4: 1202 | ATH4: 1203 | ATI4: 1204 | ATJ4: 1205 | ATK4: 1206 | ATL4: 1207 | ATM4: 1208 | ATN4: 1209 | ATO4: 1210 | ATP4: 1211 | ATQ4: 1212 | ATR4: 1213 | ATS4: 1214 | ATT4: 1215 | ATU4: 1216 | ATV4: 1217 | ATW4: 1218 | ATX4: 1219 | ATY4: 1220 | ATZ4: 1221 | AUA4: 1222 | AUB4: 1223 | AUC4: 1224 | AUD4: 1225 | AUE4: 1226 | AUF4: 1227 | AUG4: 1228 | AUH4: 1229 | AUI4: 1230 | AUJ4: 1231 | AUK4: 1232 | AUL4: 1233 | AUM4: 1234 | AUN4: 1235 | AUO4: 1236 | AUP4: 1237 | AUQ4: 1238 | AUR4: 1239 | AUS4: 1240 | AUT4: 1241 | AUU4: 1242 | AUV4: 1243 | AUW4: 1244 | AUX4: 1245 | AUY4: 1246 | AUZ4: 1247 | AVA4: 1248 | AVB4: 1249 | AVC4: 1250 | AVD4: 1251 | AVE4: 1252 | AVF4: 1253 | AVG4: 1254 | AVH4: 1255 | AVI4: 1256 | AVJ4: 1257 | AVK4: 1258 | AVL4: 1259 | AVM4: 1260 | AVN4: 1261 | AVO4: 1262 | AVP4: 1263 | AVQ4: 1264 | AVR4: 1265 | AVS4: 1266 | AVT4: 1267 | AVU4: 1268 | AVV4: 1269 | AVW4: 1270 | AVX4: 1271 | AVY4: 1272 | AVZ4: 1273 | AWA4: 1274 | AWB4: 1275 | AWC4: 1276 | AWD4: 1277 | AWE4: 1278 | AWF4: 1279 | AWG4: 1280 | AWH4: 1281 | AWI4: 1282 | AWJ4: 1283 | AWK4: 1284 | AWL4: 1285 | AWM4: 1286 | AWN4: 1287 | AWO4: 1288 | AWP4: 1289 | AWQ4: 1290 | AWR4: 1291 | AWS4: 1292 | AWT4: 1293 | AWU4: 1294 | AWV4: 1295 | AWW4: 1296 | AWX4: 1297 | AWY4: 1298 | AWZ4: 1299 | AXA4: 1300 | AXB4: 1301 | AXC4: 1302 | AXD4: 1303 | AXE4: 1304 | AXF4: 1305 | AXG4: 1306 | AXH4: 1307 | AXI4: 1308 | AXJ4: 1309 | AXK4: 1310 | AXL4: 1311 | AXM4: 1312 | AXN4: 1313 | AXO4: 1314 | AXP4: 1315 | AXQ4: 1316 | AXR4: 1317 | AXS4: 1318 | AXT4: 1319 | AXU4: 1320 | AXV4: 1321 | AXW4: 1322 | AXX4: 1323 | AXY4: 1324 | AXZ4: 1325 | AYA4: 1326 | AYB4: 1327 | AYC4: 1328 | AYD4: 1329 | AYE4: 1330 | AYF4: 1331 | AYG4: 1332 | AYH4: 1333 | AYI4: 1334 | AYJ4: 1335 | AYK4: 1336 | AYL4: 1337 | AYM4: 1338 | AYN4: 1339 | AYO4: 1340 | AYP4: 1341 | AYQ4: 1342 | AYR4: 1343 | AYS4: 1344 | AYT4: 1345 | AYU4: 1346 | AYV4: 1347 | AYW4: 1348 | AYX4: 1349 | AYY4: 1350 | AYZ4: 1351 | AZA4: 1352 | AZB4: 1353 | AZC4: 1354 | AZD4: 1355 | AZE4: 1356 | AZF4: 1357 | AZG4: 1358 | AZH4: 1359 | AZI4: 1360 | AZJ4: 1361 | AZK4: 1362 | AZL4: 1363 | AZM4: 1364 | AZN4: 1365 | AZO4: 1366 | AZP4: 1367 | AZQ4: 1368 | AZR4: 1369 | AZS4: 1370 | AZT4: 1371 | AZU4: 1372 | AZV4: 1373 | AZW4: 1374 | AZX4: 1375 | AZY4: 1376 | AZZ4: 1377 | BAA4: 1378 | BAB4: 1379 | BAC4: 1380 | BAD4: 1381 | BAE4: 1382 | BAF4: 1383 | BAG4: 1384 | BAH4: 1385 | BAI4: 1386 | BAJ4: 1387 | BAK4: 1388 | BAL4: 1389 | BAM4: 1390 | BAN4: 1391 | BAO4: 1392 | BAP4: 1393 | BAQ4: 1394 | BAR4: 1395 | BAS4: 1396 | BAT4: 1397 | BAU4: 1398 | BAV4: 1399 | BAW4: 1400 | BAX4: 1401 | BAY4: 1402 | BAZ4: 1403 | BBA4: 1404 | BBB4: 1405 | BBC4: 1406 | BBD4: 1407 | BBE4: 1408 | BBF4: 1409 | BBG4: 1410 | BBH4: 1411 | BBI4: 1412 | BBJ4: 1413 | BBK4: 1414 | BBL4: 1415 | BBM4: 1416 | BBN4: 1417 | BBO4: 1418 | BBP4: 1419 | BBQ4: 1420 | BBR4: 1421 | BBS4: 1422 | BBT4: 1423 | BBU4: 1424 | BBV4: 1425 | BBW4: 1426 | BBX4: 1427 | BBY4: 1428 | BBZ4: 1429 | BCA4: 1430 | BCB4: 1431 | BCC4: 1432 | BCD4: 1433 | BCE4: 1434 | BCF4: 1435 | BCG4: 1436 | BCH4: 1437 | BCI4: 1438 | BCJ4: 1439 | BCK4: 1440 | BCL4: 1441 | BCM4: 1442 | BCN4: 1443 | BCO4: 1444 | BCP4: 1445 | BCQ4: 1446 | BCR4: 1447 | BCS4: 1448 | BCT4: 1449 | BCU4: 1450 | BCV4: 1451 | BCW4: 1452 | BCX4: 1453 | BCY4: 1454 | BCZ4: 1455 | BDA4: 1456 | BDB4: 1457 | BDC4: 1458 | BDD4: 1459 | BDE4: 1460 | BDF4: 1461 | BDG4: 1462 | BDH4: 1463 | BDI4: 1464 | BDJ4: 1465 | BDK4: 1466 | BDL4: 1467 | BDM4: 1468 | BDN4: 1469 | BDO4: 1470 | BDP4: 1471 | BDQ4: 1472 | BDR4: 1473 | BDS4: 1474 | BDT4: 1475 | BDU4: 1476 | BDV4: 1477 | BDW4: 1478 | BDX4: 1479 | BDY4: 1480 | BDZ4: 1481 | BEA4: 1482 | BEB4: 1483 | BEC4: 1484 | BED4: 1485 | BEE4: 1486 | BEF4: 1487 | BEG4: 1488 | BEH4: 1489 | BEI4: 1490 | BEJ4: 1491 | BEK4: 1492 | BEL4: 1493 | BEM4: 1494 | BEN4: 1495 | BEO4: 1496 | BEP4: 1497 | BEQ4: 1498 | BER4: 1499 | BES4: 1500 | BET4: 1501 | BEU4: 1502 | BEV4: 1503 | BEW4: 1504 | BEX4: 1505 | BEY4: 1506 | BEZ4: 1507 | BFA4: 1508 | BFB4: 1509 | BFC4: 1510 | BFD4: 1511 | BFE4: 1512 | BFF4: 1513 | BFG4: 1514 | BFH4: 1515 | BFI4: 1516 | BFJ4: 1517 | BFK4: 1518 | BFL4: 1519 | BFM4: 1520 | BFN4: 1521 | BFO4: 1522 | BFP4: 1523 | BFQ4: 1524 | BFR4: 1525 | BFS4: 1526 | BFT4: 1527 | BFU4: 1528 | BFV4: 1529 | BFW4: 1530 | BFX4: 1531 | BFY4: 1532 | BFZ4: 1533 | BGA4: 1534 | BGB4: 1535 | BGC4: 1536 | BGD4: 1537 | BGE4: 1538 | BGF4: 1539 | BGG4: 1540 | BGH4: 1541 | BGI4: 1542 | BGJ4: 1543 | BGK4: 1544 | BGL4: 1545 | BGM4: 1546 | BGN4: 1547 | BGO4: 1548 | BGP4: 1549 | BGQ4: 1550 | BGR4: 1551 | BGS4: 1552 | BGT4: 1553 | BGU4: 1554 | BGV4: 1555 | BGW4: 1556 | BGX4: 1557 | BGY4: 1558 | BGZ4: 1559 | BHA4: 1560 | BHB4: 1561 | BHC4: 1562 | BHD4: 1563 | BHE4: 1564 | BHF4: 1565 | BHG4: 1566 | BHH4: 1567 | BHI4: 1568 | BHJ4: 1569 | BHK4: 1570 | BHL4: 1571 | BHM4: 1572 | BHN4: 1573 | BHO4: 1574 | BHP4: 1575 | BHQ4: 1576 | BHR4: 1577 | BHS4: 1578 | BHT4: 1579 | BHU4: 1580 | BHV4: 1581 | BHW4: 1582 | BHX4: 1583 | BHY4: 1584 | BHZ4: 1585 | BIA4: 1586 | BIB4: 1587 | BIC4: 1588 | BID4: 1589 | BIE4: 1590 | BIF4: 1591 | BIG4: 1592 | BIH4: 1593 | BII4: 1594 | BIJ4: 1595 | BIK4: 1596 | BIL4: 1597 | BIM4: 1598 | BIN4: 1599 | BIO4: 1600 | BIP4: 1601 | BIQ4: 1602 | BIR4: 1603 | BIS4: 1604 | BIT4: 1605 | BIU4: 1606 | BIV4: 1607 | BIW4: 1608 | BIX4: 1609 | BIY4: 1610 | BIZ4: 1611 | BJA4: 1612 | BJB4: 1613 | BJC4: 1614 | BJD4: 1615 | BJE4: 1616 | BJF4: 1617 | BJG4: 1618 | BJH4: 1619 | BJI4: 1620 | BJJ4: 1621 | BJK4: 1622 | BJL4: 1623 | BJM4: 1624 | BJN4: 1625 | BJO4: 1626 | BJP4: 1627 | BJQ4: 1628 | BJR4: 1629 | BJS4: 1630 | BJT4: 1631 | BJU4: 1632 | BJV4: 1633 | BJW4: 1634 | BJX4: 1635 | BJY4: 1636 | BJZ4: 1637 | BKA4: 1638 | BKB4: 1639 | BKC4: 1640 | BKD4: 1641 | BKE4: 1642 | BKF4: 1643 | BKG4: 1644 | BKH4: 1645 | BKI4: 1646 | BKJ4: 1647 | BKK4: 1648 | BKL4: 1649 | BKM4: 1650 | BKN4: 1651 | BKO4: 1652 | BKP4: 1653 | BKQ4: 1654 | BKR4: 1655 | BKS4: 1656 | BKT4: 1657 | BKU4: 1658 | BKV4: 1659 | BKW4: 1660 | BKX4: 1661 | BKY4: 1662 | BKZ4: 1663 | BLA4: 1664 | BLB4: 1665 | BLC4: 1666 | BLD4: 1667 | BLE4: 1668 | BLF4: 1669 | BLG4: 1670 | BLH4: 1671 | BLI4: 1672 | BLJ4: 1673 | BLK4: 1674 | BLL4: 1675 | BLM4: 1676 | BLN4: 1677 | BLO4: 1678 | BLP4: 1679 | BLQ4: 1680 | BLR4: 1681 | BLS4: 1682 | BLT4: 1683 | BLU4: 1684 | BLV4: 1685 | BLW4: 1686 | BLX4: 1687 | BLY4: 1688 | BLZ4: 1689 | BMA4: 1690 | BMB4: 1691 | BMC4: 1692 | BMD4: 1693 | BME4: 1694 | BMF4: 1695 | BMG4: 1696 | BMH4: 1697 | BMI4: 1698 | BMJ4: 1699 | BMK4: 1700 | BML4: 1701 | BMM4: 1702 | BMN4: 1703 | BMO4: 1704 | BMP4: 1705 | BMQ4: 1706 | BMR4: 1707 | BMS4: 1708 | BMT4: 1709 | BMU4: 1710 | BMV4: 1711 | BMW4: 1712 | BMX4: 1713 | BMY4: 1714 | BMZ4: 1715 | BNA4: 1716 | BNB4: 1717 | BNC4: 1718 | BND4: 1719 | BNE4: 1720 | BNF4: 1721 | BNG4: 1722 | BNH4: 1723 | BNI4: 1724 | BNJ4: 1725 | BNK4: 1726 | BNL4: 1727 | BNM4: 1728 | BNN4: 1729 | BNO4: 1730 | BNP4: 1731 | BNQ4: 1732 | BNR4: 1733 | BNS4: 1734 | BNT4: 1735 | BNU4: 1736 | BNV4: 1737 | BNW4: 1738 | BNX4: 1739 | BNY4: 1740 | BNZ4: 1741 | BOA4: 1742 | BOB4: 1743 | BOC4: 1744 | BOD4: 1745 | BOE4: 1746 | BOF4: 1747 | BOG4: 1748 | BOH4: 1749 | BOI4: 1750 | BOJ4: 1751 | BOK4: 1752 | BOL4: 1753 | BOM4: 1754 | BON4: 1755 | BOO4: 1756 | BOP4: 1757 | BOQ4: 1758 | BOR4: 1759 | BOS4: 1760 | BOT4: 1761 | BOU4: 1762 | BOV4: 1763 | BOW4: 1764 | BOX4: 1765 | BOY4: 1766 | BOZ4: 1767 | BPA4: 1768 | BPB4: 1769 | BPC4: 1770 | BPD4: 1771 | BPE4: 1772 | BPF4: 1773 | BPG4: 1774 | BPH4: 1775 | BPI4: 1776 | BPJ4: 1777 | BPK4: 1778 | BPL4: 1779 | BPM4: 1780 | BPN4: 1781 | BPO4: 1782 | BPP4: 1783 | BPQ4: 1784 | BPR4: 1785 | BPS4: 1786 | BPT4: 1787 | BPU4: 1788 | BPV4: 1789 | BPW4: 1790 | BPX4: 1791 | BPY4: 1792 | BPZ4: 1793 | BQA4: 1794 | BQB4: 1795 | BQC4: 1796 | BQD4: 1797 | BQE4: 1798 | BQF4: 1799 | BQG4: 1800 | BQH4: 1801 | BQI4: 1802 | BQJ4: 1803 | BQK4: 1804 | BQL4: 1805 | BQM4: 1806 | BQN4: 1807 | BQO4: 1808 | BQP4: 1809 | BQQ4: 1810 | BQR4: 1811 | BQS4: 1812 | BQT4: 1813 | BQU4: 1814 | BQV4: 1815 | BQW4: 1816 | BQX4: 1817 | BQY4: 1818 | BQZ4: 1819 | BRA4: 1820 | BRB4: 1821 | BRC4: 1822 | BRD4: 1823 | BRE4: 1824 | BRF4: 1825 | BRG4: 1826 | BRH4: 1827 | BRI4: 1828 | BRJ4: 1829 | BRK4: 1830 | BRL4: 1831 | BRM4: 1832 | BRN4: 1833 | BRO4: 1834 | BRP4: 1835 | BRQ4: 1836 | BRR4: 1837 | BRS4: 1838 | BRT4: 1839 | BRU4: 1840 | BRV4: 1841 | BRW4: 1842 | BRX4: 1843 | BRY4: 1844 | BRZ4: 1845 | BSA4: 1846 | BSB4: 1847 | BSC4: 1848 | BSD4: 1849 | BSE4: 1850 | BSF4: 1851 | BSG4: 1852 | BSH4: 1853 | BSI4: 1854 | BSJ4: 1855 | BSK4: 1856 | BSL4: 1857 | BSM4: 1858 | BSN4: 1859 | BSO4: 1860 | BSP4: 1861 | BSQ4: 1862 | BSR4: 1863 | BSS4: 1864 | BST4: 1865 | BSU4: 1866 | BSV4: 1867 | BSW4: 1868 | BSX4: 1869 | BSY4: 1870 | BSZ4: 1871 | BTA4: 1872 | BTB4: 1873 | BTC4: 1874 | BTD4: 1875 | BTE4: 1876 | BTF4: 1877 | BTG4: 1878 | BTH4: 1879 | BTI4: 1880 | BTJ4: 1881 | BTK4: 1882 | BTL4: 1883 | BTM4: 1884 | BTN4: 1885 | BTO4: 1886 | BTP4: 1887 | BTQ4: 1888 | BTR4: 1889 | BTS4: 1890 | BTT4: 1891 | BTU4: 1892 | BTV4: 1893 | BTW4: 1894 | BTX4: 1895 | BTY4: 1896 | BTZ4: 1897 | BUA4: 1898 | BUB4: 1899 | BUC4: 1900 | BUD4: 1901 | BUE4: 1902 | BUF4: 1903 | BUG4: 1904 | BUH4: 1905 | BUI4: 1906 | BUJ4: 1907 | BUK4: 1908 | BUL4: 1909 | BUM4: 1910 | BUN4: 1911 | BUO4: 1912 | BUP4: 1913 | BUQ4: 1914 | BUR4: 1915 | BUS4: 1916 | BUT4: 1917 | BUU4: 1918 | BUV4: 1919 | BUW4: 1920 | BUX4: 1921 | BUY4: 1922 | BUZ4: 1923 | BVA4: 1924 | BVB4: 1925 | BVC4: 1926 | BVD4: 1927 | BVE4: 1928 | BVF4: 1929 | BVG4: 1930 | BVH4: 1931 | BVI4: 1932 | BVJ4: 1933 | BVK4: 1934 | BVL4: 1935 | BVM4: 1936 | BVN4: 1937 | BVO4: 1938 | BVP4: 1939 | BVQ4: 1940 | BVR4: 1941 | BVS4: 1942 | BVT4: 1943 | BVU4: 1944 | BVV4: 1945 | BVW4: 1946 | BVX4: 1947 | BVY4: 1948 | BVZ4: 1949 | BWA4: 1950 | BWB4: 1951 | BWC4: 1952 | BWD4: 1953 | BWE4: 1954 | BWF4: 1955 | BWG4: 1956 | BWH4: 1957 | BWI4: 1958 | BWJ4: 1959 | BWK4: 1960 | BWL4: 1961 | BWM4: 1962 | BWN4: 1963 | BWO4: 1964 | BWP4: 1965 | BWQ4: 1966 | BWR4: 1967 | BWS4: 1968 | BWT4: 1969 | BWU4: 1970 | BWV4: 1971 | BWW4: 1972 | BWX4: 1973 | BWY4: 1974 | BWZ4: 1975 | BXA4: 1976 | BXB4: 1977 | BXC4: 1978 | BXD4: 1979 | BXE4: 1980 | BXF4: 1981 | BXG4: 1982 | BXH4: 1983 | BXI4: 1984 | BXJ4: 1985 | BXK4: 1986 | BXL4: 1987 | BXM4: 1988 | BXN4: 1989 | BXO4: 1990 | BXP4: 1991 | BXQ4: 1992 | BXR4: 1993 | BXS4: 1994 | BXT4: 1995 | BXU4: 1996 | BXV4: 1997 | BXW4: 1998 | BXX4: 1999 | BXY4: 2000 | BXZ4: 2001 | BYA4: 2002 | BYB4: 2003 | BYC4: 2004 | BYD4: 2005 | BYE4: 2006 | BYF4: 2007 | BYG4: 2008 | BYH4: 2009 | BYI4: 2010 | BYJ4: 2011 | BYK4: 2012 | BYL4: 2013 | BYM4: 2014 | BYN4: 2015 | BYO4: 2016 | BYP4: 2017 | BYQ4: 2018 | BYR4: 2019 | BYS4: 2020 | BYT4: 2021 | BYU4: 2022 | BYV4: 2023 | BYW4: 2024 | BYX4: 2025 | BYY4: 2026 | BYZ4: 2027 | BZA4: 2028 | BZB4: 2029 | BZC4: 2030 | BZD4: 2031 | BZE4: 2032 | BZF4: 2033 | BZG4: 2034 | BZH4: 2035 | BZI4: 2036 | BZJ4: 2037 | BZK4: 2038 | BZL4: 2039 | BZM4: 2040 | BZN4: 2041 | BZO4: 2042 | BZP4: 2043 | BZQ4: 2044 | BZR4: 2045 | BZS4: 2046 | BZT4: 2047 | BZU4: 2048
A6: x_in | B6: 0 | C6: 5 | D6: 0 | E6: 0 | F6: 1 | G6: 0 | H6: 0 | I6: 0 | J6: 0 | K6: 0 | L6: 0 | M6: 0 | N6: 0 | O6: 0 | P6: 0 | Q6: 0 | R6: 1 | S6: 0 | T6: 0 | U6: 0 | V6: 0 | W6: 0 | X6: 2 | Y6: 0 | Z6: 0 | AA6: 3 | AB6: 0 | AC6: 0 | AD6: 0 | AE6: 0 | AF6: 0 | AG6: 6 | AH6: 0 | AI6: 0 | AJ6: 4 | AK6: 0 | AL6: 0 | AM6: 0 | AN6: 0 | AO6: 0 | AP6: 0 | AQ6: 0 | AR6: 0 | AS6: 1 | AT6: 0 | AU6: 4 | AV6: 0 | AW6: 0 | AX6: 0 | AY6: 0 | AZ6: 7 | BA6: 5 | BB6: 0 | BC6: 0 | BD6: 0 | BE6: 0 | BF6: 0 | BG6: 0 | BH6: 0 | BI6: 4 | BJ6: 0 | BK6: 0 | BL6: 0 | BM6: 10 | BN6: 0 | BO6: 0 | BP6: 0 | BQ6: 12 | BR6: 0 | BS6: 8 | BT6: 0 | BU6: 9 | BV6: 0 | BW6: 0 | BX6: 0 | BY6: 0 | BZ6: 0 | CA6: 0 | CB6: 0 | CC6: 7 | CD6: 0 | CE6: 0 | CF6: 0 | CG6: 0 | CH6: 0 | CI6: 0 | CJ6: 4 | CK6: 0 | CL6: 0 | CM6: 0 | CN6: 0 | CO6: 0 | CP6: 0 | CQ6: 0 | CR6: 0 | CS6: 0 | CT6: 5 | CU6: 0 | CV6: 0 | CW6: 0 | CX6: 0 | CY6: 0 | CZ6: 0 | DA6: 0 | DB6: 0 | DC6: 0 | DD6: 0 | DE6: 0 | DF6: 0 | DG6: 0 | DH6: 0 | DI6: 7 | DJ6: 0 | DK6: 4 | DL6: 11 | DM6: 1 | DN6: 0 | DO6: 0 | DP6: 0 | DQ6: 4 | DR6: 0 | DS6: 0 | DT6: 0 | DU6: 0 | DV6: 3 | DW6: 5 | DX6: 0 | DY6: 0 | DZ6: 0 | EA6: 3 | EB6: 0 | EC6: 0 | ED6: 0 | EE6: 0 | EF6: 0 | EG6: 0 | EH6: 0 | EI6: 0 | EJ6: 0 | EK6: 0 | EL6: 0 | EM6: 0 | EN6: 0 | EO6: 0 | EP6: 0 | EQ6: 0 | ER6: 0 | ES6: 0 | ET6: 3 | EU6: 0 | EV6: 8 | EW6: 0 | EX6: 0 | EY6: 15 | EZ6: 0 | FA6: 0 | FB6: 0 | FC6: 0 | FD6: 0 | FE6: 2 | FF6: 0 | FG6: 0 | FH6: 0 | FI6: 0 | FJ6: 0 | FK6: 0 | FL6: 0 | FM6: 0 | FN6: 0 | FO6: 0 | FP6: 0 | FQ6: 1 | FR6: 0 | FS6: 0 | FT6: 0 | FU6: 0 | FV6: 0 | FW6: 0 | FX6: 9 | FY6: 3 | FZ6: 0 | GA6: 0 | GB6: 0 | GC6: 0 | GD6: 0 | GE6: 0 | GF6: 0 | GG6: 1 | GH6: 0 | GI6: 0 | GJ6: 0 | GK6: 5 | GL6: 0 | GM6: 0 | GN6: 0 | GO6: 18 | GP6: 7 | GQ6: 9 | GR6: 0 | GS6: 6 | GT6: 0 | GU6: 0 | GV6: 0 | GW6: 0 | GX6: 0 | GY6: 0 | GZ6: 0 | HA6: 10 | HB6: 0 | HC6: 0 | HD6: 0 | HE6: 0 | HF6: 0 | HG6: 0 | HH6: 6 | HI6: 0 | HJ6: 0 | HK6: 0 | HL6: 0 | HM6: 0 | HN6: 0 | HO6: 0 | HP6: 0 | HQ6: 0 | HR6: 7 | HS6: 0 | HT6: 0 | HU6: 0 | HV6: 0 | HW6: 0 | HX6: 0 | HY6: 0 | HZ6: 0 | IA6: 0 | IB6: 0 | IC6: 0 | ID6: 1 | IE6: 0 | IF6: 0 | IG6: 3 | IH6: 0 | II6: 6 | IJ6: 6 | IK6: 0 | IL6: 0 | IM6: 0 | IN6: 0 | IO6: 8 | IP6: 0 | IQ6: 0 | IR6: 0 | IS6: 0 | IT6: 11 | IU6: 8 | IV6: 0 | IW6: 0 | IX6: 0 | IY6: 8 | IZ6: 0 | JA6: 0 | JB6: 0 | JC6: 0 | JD6: 0 | JE6: 0 | JF6: 0 | JG6: 0 | JH6: 0 | JI6: 0 | JJ6: 0 | JK6: 0 | JL6: 0 | JM6: 0 | JN6: 0 | JO6: 0 | JP6: 0 | JQ6: 0 | JR6: 0 | JS6: 0 | JT6: 3 | JU6: 0 | JV6: 0 | JW6: 6 | JX6: 0 | JY6: 0 | JZ6: 0 | KA6: 5 | KB6: 0 | KC6: 0 | KD6: 0 | KE6: 0 | KF6: 4 | KG6: 0 | KH6: 0 | KI6: 0 | KJ6: 0 | KK6: 0 | KL6: 0 | KM6: 0 | KN6: 0 | KO6: 1 | KP6: 0 | KQ6: 0 | KR6: 0 | KS6: 0 | KT6: 0 | KU6: 0 | KV6: 11 | KW6: 0 | KX6: 0 | KY6: 0 | KZ6: 0 | LA6: 0 | LB6: 0 | LC6: 0 | LD6: 0 | LE6: 5 | LF6: 0 | LG6: 0 | LH6: 0 | LI6: 6 | LJ6: 0 | LK6: 0 | LL6: 0 | LM6: 16 | LN6: 0 | LO6: 3 | LP6: 0 | LQ6: 8 | LR6: 0 | LS6: 0 | LT6: 0 | LU6: 0 | LV6: 0 | LW6: 0 | LX6: 0 | LY6: 11 | LZ6: 0 | MA6: 0 | MB6: 0 | MC6: 0 | MD6: 0 | ME6: 0 | MF6: 7 | MG6: 0 | MH6: 0 | MI6: 0 | MJ6: 0 | MK6: 0 | ML6: 0 | MM6: 0 | MN6: 0 | MO6: 0 | MP6: 1 | MQ6: 0 | MR6: 0 | MS6: 0 | MT6: 0 | MU6: 0 | MV6: 0 | MW6: 0 | MX6: 0 | MY6: 0 | MZ6: 0 | NA6: 0 | NB6: 0 | NC6: 0 | ND6: 0 | NE6: 5 | NF6: 0 | NG6: 0 | NH6: 4 | NI6: 0 | NJ6: 0 | NK6: 0 | NL6: 0 | NM6: 1 | NN6: 0 | NO6: 0 | NP6: 0 | NQ6: 0 | NR6: 0 | NS6: 0 | NT6: 0 | NU6: 0 | NV6: 0 | NW6: 0 | NX6: 0 | NY6: 0 | NZ6: 2 | OA6: 0 | OB6: 0 | OC6: 0 | OD6: 0 | OE6: 0 | OF6: 0 | OG6: 0 | OH6: 0 | OI6: 0 | OJ6: 0 | OK6: 0 | OL6: 0 | OM6: 0 | ON6: 0 | OO6: 0 | OP6: 0 | OQ6: 0 | OR6: 9 | OS6: 0 | OT6: 0 | OU6: 3 | OV6: 0 | OW6: 0 | OX6: 1 | OY6: 0 | OZ6: 0 | PA6: 3 | PB6: 0 | PC6: 0 | PD6: 0 | PE6: 0 | PF6: 0 | PG6: 0 | PH6: 0 | PI6: 0 | PJ6: 0 | PK6: 0 | PL6: 0 | PM6: 0 | PN6: 0 | PO6: 0 | PP6: 0 | PQ6: 0 | PR6: 0 | PS6: 0 | PT6: 6 | PU6: 7 | PV6: 0 | PW6: 0 | PX6: 0 | PY6: 0 | PZ6: 0 | QA6: 0 | QB6: 0 | QC6: 0 | QD6: 0 | QE6: 0 | QF6: 0 | QG6: 4 | QH6: 0 | QI6: 0 | QJ6: 0 | QK6: 7 | QL6: 0 | QM6: 0 | QN6: 0 | QO6: 11 | QP6: 0 | QQ6: 0 | QR6: 0 | QS6: 0 | QT6: 0 | QU6: 0 | QV6: 0 | QW6: 8 | QX6: 0 | QY6: 0 | QZ6: 2 | RA6: 0 | RB6: 0 | RC6: 0 | RD6: 6 | RE6: 0 | RF6: 0 | RG6: 0 | RH6: 0 | RI6: 0 | RJ6: 0 | RK6: 0 | RL6: 0 | RM6: 0 | RN6: 1 | RO6: 0 | RP6: 0 | RQ6: 0 | RR6: 0 | RS6: 0 | RT6: 0 | RU6: 0 | RV6: 0 | RW6: 0 | RX6: 0 | RY6: 0 | RZ6: 9 | SA6: 0 | SB6: 0 | SC6: 4 | SD6: 0 | SE6: 1 | SF6: 5 | SG6: 0 | SH6: 0 | SI6: 0 | SJ6: 0 | SK6: 0 | SL6: 0 | SM6: 0 | SN6: 0 | SO6: 0 | SP6: 0 | SQ6: 0 | SR6: 0 | SS6: 0 | ST6: 0 | SU6: 3 | SV6: 0 | SW6: 0 | SX6: 0 | SY6: 0 | SZ6: 0 | TA6: 0 | TB6: 0 | TC6: 0 | TD6: 0 | TE6: 0 | TF6: 0 | TG6: 0 | TH6: 0 | TI6: 0 | TJ6: 0 | TK6: 0 | TL6: 0 | TM6: 0 | TN6: 0 | TO6: 0 | TP6: 0 | TQ6: 0 | TR6: 0 | TS6: 3 | TT6: 0 | TU6: 0 | TV6: 0 | TW6: 0 | TX6: 0 | TY6: 1 | TZ6: 0 | UA6: 0 | UB6: 0 | UC6: 0 | UD6: 0 | UE6: 0 | UF6: 0 | UG6: 0 | UH6: 0 | UI6: 0 | UJ6: 0 | UK6: 0 | UL6: 0 | UM6: 0 | UN6: 0 | UO6: 0 | UP6: 4 | UQ6: 0 | UR6: 3 | US6: 0 | UT6: 0 | UU6: 0 | UV6: 0 | UW6: 0 | UX6: 0 | UY6: 0 | UZ6: 0 | VA6: 4 | VB6: 0 | VC6: 0 | VD6: 0 | VE6: 6 | VF6: 0 | VG6: 0 | VH6: 0 | VI6: 4 | VJ6: 0 | VK6: 0 | VL6: 0 | VM6: 0 | VN6: 0 | VO6: 0 | VP6: 0 | VQ6: 0 | VR6: 0 | VS6: 0 | VT6: 0 | VU6: 4 | VV6: 0 | VW6: 0 | VX6: 0 | VY6: 0 | VZ6: 0 | WA6: 0 | WB6: 11 | WC6: 0 | WD6: 0 | WE6: 0 | WF6: 0 | WG6: 0 | WH6: 0 | WI6: 0 | WJ6: 3 | WK6: 0 | WL6: 3 | WM6: 0 | WN6: 0 | WO6: 0 | WP6: 0 | WQ6: 0 | WR6: 0 | WS6: 0 | WT6: 0 | WU6: 0 | WV6: 0 | WW6: 0 | WX6: 3 | WY6: 0 | WZ6: 0 | XA6: 2 | XB6: 0 | XC6: 0 | XD6: 3 | XE6: 0 | XF6: 0 | XG6: 0 | XH6: 0 | XI6: 0 | XJ6: 0 | XK6: 0 | XL6: 0 | XM6: 0 | XN6: 0 | XO6: 0 | XP6: 0 | XQ6: 0 | XR6: 0 | XS6: 4 | XT6: 0 | XU6: 0 | XV6: 0 | XW6: 0 | XX6: 0 | XY6: 0 | XZ6: 0 | YA6: 0 | YB6: 0 | YC6: 0 | YD6: 0 | YE6: 0 | YF6: 0 | YG6: 0 | YH6: 0 | YI6: 0 | YJ6: 0 | YK6: 0 | YL6: 1 | YM6: 0 | YN6: 2 | YO6: 0 | YP6: 0 | YQ6: 6 | YR6: 0 | YS6: 0 | YT6: 0 | YU6: 0 | YV6: 0 | YW6: 1 | YX6: 0 | YY6: 0 | YZ6: 0 | ZA6: 0 | ZB6: 0 | ZC6: 0 | ZD6: 0 | ZE6: 0 | ZF6: 0 | ZG6: 0 | ZH6: 0 | ZI6: 2 | ZJ6: 0 | ZK6: 0 | ZL6: 0 | ZM6: 0 | ZN6: 0 | ZO6: 0 | ZP6: 7 | ZQ6: 3 | ZR6: 0 | ZS6: 0 | ZT6: 0 | ZU6: 0 | ZV6: 0 | ZW6: 0 | ZX6: 0 | ZY6: 0 | ZZ6: 0 | AAA6: 0 | AAB6: 0 | AAC6: 4 | AAD6: 0 | AAE6: 0 | AAF6: 0 | AAG6: 12 | AAH6: 0 | AAI6: 4 | AAJ6: 0 | AAK6: 2 | AAL6: 0 | AAM6: 0 | AAN6: 1 | AAO6: 0 | AAP6: 0 | AAQ6: 0 | AAR6: 0 | AAS6: 5 | AAT6: 0 | AAU6: 0 | AAV6: 0 | AAW6: 0 | AAX6: 0 | AAY6: 0 | AAZ6: 0 | ABA6: 0 | ABB6: 0 | ABC6: 0 | ABD6: 0 | ABE6: 0 | ABF6: 0 | ABG6: 0 | ABH6: 0 | ABI6: 0 | ABJ6: 9 | ABK6: 0 | ABL6: 0 | ABM6: 0 | ABN6: 0 | ABO6: 0 | ABP6: 0 | ABQ6: 0 | ABR6: 0 | ABS6: 0 | ABT6: 0 | ABU6: 0 | ABV6: 2 | ABW6: 0 | ABX6: 0 | ABY6: 0 | ABZ6: 0 | ACA6: 2 | ACB6: 4 | ACC6: 0 | ACD6: 0 | ACE6: 0 | ACF6: 0 | ACG6: 11 | ACH6: 0 | ACI6: 0 | ACJ6: 0 | ACK6: 0 | ACL6: 2 | ACM6: 4 | ACN6: 0 | ACO6: 0 | ACP6: 0 | ACQ6: 10 | ACR6: 0 | ACS6: 0 | ACT6: 0 | ACU6: 0 | ACV6: 0 | ACW6: 0 | ACX6: 0 | ACY6: 0 | ACZ6: 0 | ADA6: 0 | ADB6: 0 | ADC6: 0 | ADD6: 0 | ADE6: 0 | ADF6: 0 | ADG6: 0 | ADH6: 0 | ADI6: 0 | ADJ6: 0 | ADK6: 0 | ADL6: 4 | ADM6: 0 | ADN6: 0 | ADO6: 2 | ADP6: 0 | ADQ6: 0 | ADR6: 0 | ADS6: 0 | ADT6: 0 | ADU6: 1 | ADV6: 0 | ADW6: 0 | ADX6: 0 | ADY6: 0 | ADZ6: 0 | AEA6: 0 | AEB6: 0 | AEC6: 0 | AED6: 0 | AEE6: 0 | AEF6: 0 | AEG6: 0 | AEH6: 0 | AEI6: 0 | AEJ6: 0 | AEK6: 0 | AEL6: 0 | AEM6: 0 | AEN6: 3 | AEO6: 3 | AEP6: 0 | AEQ6: 0 | AER6: 0 | AES6: 0 | AET6: 0 | AEU6: 0 | AEV6: 0 | AEW6: 7 | AEX6: 0 | AEY6: 0 | AEZ6: 0 | AFA6: 11 | AFB6: 0 | AFC6: 0 | AFD6: 0 | AFE6: 16 | AFF6: 0 | AFG6: 0 | AFH6: 0 | AFI6: 3 | AFJ6: 0 | AFK6: 0 | AFL6: 0 | AFM6: 0 | AFN6: 0 | AFO6: 0 | AFP6: 0 | AFQ6: 7 | AFR6: 0 | AFS6: 0 | AFT6: 0 | AFU6: 0 | AFV6: 0 | AFW6: 0 | AFX6: 0 | AFY6: 0 | AFZ6: 0 | AGA6: 0 | AGB6: 0 | AGC6: 0 | AGD6: 0 | AGE6: 0 | AGF6: 0 | AGG6: 0 | AGH6: 6 | AGI6: 0 | AGJ6: 0 | AGK6: 0 | AGL6: 0 | AGM6: 0 | AGN6: 0 | AGO6: 0 | AGP6: 0 | AGQ6: 0 | AGR6: 0 | AGS6: 0 | AGT6: 0 | AGU6: 0 | AGV6: 0 | AGW6: 4 | AGX6: 0 | AGY6: 0 | AGZ6: 2 | AHA6: 0 | AHB6: 0 | AHC6: 0 | AHD6: 0 | AHE6: 4 | AHF6: 0 | AHG6: 0 | AHH6: 0 | AHI6: 0 | AHJ6: 0 | AHK6: 0 | AHL6: 0 | AHM6: 0 | AHN6: 0 | AHO6: 9 | AHP6: 0 | AHQ6: 0 | AHR6: 0 | AHS6: 0 | AHT6: 0 | AHU6: 0 | AHV6: 0 | AHW6: 0 | AHX6: 0 | AHY6: 0 | AHZ6: 0 | AIA6: 0 | AIB6: 0 | AIC6: 0 | AID6: 0 | AIE6: 1 | AIF6: 0 | AIG6: 0 | AIH6: 0 | AII6: 0 | AIJ6: 0 | AIK6: 0 | AIL6: 0 | AIM6: 5 | AIN6: 0 | AIO6: 0 | AIP6: 0 | AIQ6: 0 | AIR6: 0 | AIS6: 2 | AIT6: 0 | AIU6: 0 | AIV6: 1 | AIW6: 3 | AIX6: 0 | AIY6: 0 | AIZ6: 0 | AJA6: 0 | AJB6: 0 | AJC6: 0 | AJD6: 0 | AJE6: 3 | AJF6: 0 | AJG6: 0 | AJH6: 0 | AJI6: 0 | AJJ6: 5 | AJK6: 0 | AJL6: 18 | AJM6: 0 | AJN6: 0 | AJO6: 0 | AJP6: 0 | AJQ6: 0 | AJR6: 0 | AJS6: 0 | AJT6: 0 | AJU6: 4 | AJV6: 0 | AJW6: 0 | AJX6: 0 | AJY6: 6 | AJZ6: 0 | AKA6: 0 | AKB6: 0 | AKC6: 11 | AKD6: 2 | AKE6: 0 | AKF6: 0 | AKG6: 9 | AKH6: 0 | AKI6: 0 | AKJ6: 0 | AKK6: 0 | AKL6: 0 | AKM6: 0 | AKN6: 0 | AKO6: 0 | AKP6: 0 | AKQ6: 0 | AKR6: 6 | AKS6: 0 | AKT6: 0 | AKU6: 0 | AKV6: 0 | AKW6: 0 | AKX6: 0 | AKY6: 0 | AKZ6: 0 | ALA6: 0 | ALB6: 0 | ALC6: 0 | ALD6: 0 | ALE6: 0 | ALF6: 0 | ALG6: 0 | ALH6: 0 | ALI6: 0 | ALJ6: 0 | ALK6: 0 | ALL6: 0 | ALM6: 0 | ALN6: 0 | ALO6: 0 | ALP6: 0 | ALQ6: 0 | ALR6: 17 | ALS6: 0 | ALT6: 0 | ALU6: 0 | ALV6: 0 | ALW6: 0 | ALX6: 3 | ALY6: 0 | ALZ6: 0 | AMA6: 0 | AMB6: 0 | AMC6: 0 | AMD6: 0 | AME6: 0 | AMF6: 0 | AMG6: 8 | AMH6: 0 | AMI6: 6 | AMJ6: 0 | AMK6: 0 | AML6: 0 | AMM6: 12 | AMN6: 0 | AMO6: 0 | AMP6: 22 | AMQ6: 0 | AMR6: 0 | AMS6: 0 | AMT6: 0 | AMU6: 0 | AMV6: 0 | AMW6: 0 | AMX6: 9 | AMY6: 0 | AMZ6: 0 | ANA6: 0 | ANB6: 21 | ANC6: 0 | AND6: 0 | ANE6: 0 | ANF6: 0 | ANG6: 0 | ANH6: 31 | ANI6: 0 | ANJ6: 0 | ANK6: 11 | ANL6: 0 | ANM6: 0 | ANN6: 16 | ANO6: 6 | ANP6: 0 | ANQ6: 0 | ANR6: 0 | ANS6: 0 | ANT6: 0 | ANU6: 0 | ANV6: 0 | ANW6: 0 | ANX6: 0 | ANY6: 0 | ANZ6: 0 | AOA6: 0 | AOB6: 0 | AOC6: 5 | AOD6: 0 | AOE6: 1 | AOF6: 0 | AOG6: 0 | AOH6: 0 | AOI6: 0 | AOJ6: 12 | AOK6: 0 | AOL6: 0 | AOM6: 0 | AON6: 0 | AOO6: 0 | AOP6: 0 | AOQ6: 0 | AOR6: 0 | AOS6: 1 | AOT6: 0 | AOU6: 0 | AOV6: 0 | AOW6: 5 | AOX6: 0 | AOY6: 0 | AOZ6: 0 | APA6: 13 | APB6: 0 | APC6: 15 | APD6: 0 | APE6: 31 | APF6: 0 | APG6: 0 | APH6: 0 | API6: 0 | APJ6: 0 | APK6: 2 | APL6: 0 | APM6: 6 | APN6: 5 | APO6: 0 | APP6: 0 | APQ6: 0 | APR6: 0 | APS6: 0 | APT6: 7 | APU6: 0 | APV6: 0 | APW6: 0 | APX6: 0 | APY6: 0 | APZ6: 0 | AQA6: 0 | AQB6: 0 | AQC6: 0 | AQD6: 0 | AQE6: 0 | AQF6: 0 | AQG6: 0 | AQH6: 0 | AQI6: 0 | AQJ6: 0 | AQK6: 0 | AQL6: 0 | AQM6: 0 | AQN6: 0 | AQO6: 0 | AQP6: 10 | AQQ6: 0 | AQR6: 0 | AQS6: 7 | AQT6: 0 | AQU6: 0 | AQV6: 1 | AQW6: 0 | AQX6: 0 | AQY6: 0 | AQZ6: 0 | ARA6: 0 | ARB6: 0 | ARC6: 0 | ARD6: 0 | ARE6: 0 | ARF6: 0 | ARG6: 0 | ARH6: 0 | ARI6: 0 | ARJ6: 0 | ARK6: 9 | ARL6: 0 | ARM6: 0 | ARN6: 23 | ARO6: 0 | ARP6: 0 | ARQ6: 0 | ARR6: 0 | ARS6: 0 | ART6: 0 | ARU6: 0 | ARV6: 0 | ARW6: 0 | ARX6: 0 | ARY6: 0 | ARZ6: 11 | ASA6: 0 | ASB6: 0 | ASC6: 0 | ASD6: 1 | ASE6: 0 | ASF6: 31 | ASG6: 0 | ASH6: 0 | ASI6: 18 | ASJ6: 0 | ASK6: 0 | ASL6: 13 | ASM6: 0 | ASN6: 0 | ASO6: 3 | ASP6: 0 | ASQ6: 0 | ASR6: 0 | ASS6: 0 | AST6: 0 | ASU6: 0 | ASV6: 0 | ASW6: 0 | ASX6: 0 | ASY6: 0 | ASZ6: 0 | ATA6: 9 | ATB6: 0 | ATC6: 0 | ATD6: 0 | ATE6: 3 | ATF6: 0 | ATG6: 0 | ATH6: 15 | ATI6: 1 | ATJ6: 0 | ATK6: 0 | ATL6: 0 | ATM6: 0 | ATN6: 0 | ATO6: 0 | ATP6: 0 | ATQ6: 0 | ATR6: 0 | ATS6: 0 | ATT6: 0 | ATU6: 6 | ATV6: 0 | ATW6: 0 | ATX6: 0 | ATY6: 17 | ATZ6: 2 | AUA6: 21 | AUB6: 0 | AUC6: 31 | AUD6: 0 | AUE6: 0 | AUF6: 2 | AUG6: 0 | AUH6: 0 | AUI6: 0 | AUJ6: 0 | AUK6: 7 | AUL6: 8 | AUM6: 0 | AUN6: 0 | AUO6: 0 | AUP6: 0 | AUQ6: 0 | AUR6: 0 | AUS6: 0 | AUT6: 0 | AUU6: 0 | AUV6: 0 | AUW6: 0 | AUX6: 0 | AUY6: 0 | AUZ6: 0 | AVA6: 0 | AVB6: 13 | AVC6: 0 | AVD6: 0 | AVE6: 0 | AVF6: 0 | AVG6: 0 | AVH6: 0 | AVI6: 0 | AVJ6: 0 | AVK6: 0 | AVL6: 0 | AVM6: 0 | AVN6: 14 | AVO6: 0 | AVP6: 0 | AVQ6: 8 | AVR6: 0 | AVS6: 5 | AVT6: 5 | AVU6: 0 | AVV6: 0 | AVW6: 0 | AVX6: 0 | AVY6: 19 | AVZ6: 0 | AWA6: 0 | AWB6: 0 | AWC6: 0 | AWD6: 4 | AWE6: 2 | AWF6: 0 | AWG6: 0 | AWH6: 0 | AWI6: 12 | AWJ6: 0 | AWK6: 0 | AWL6: 16 | AWM6: 0 | AWN6: 0 | AWO6: 0 | AWP6: 0 | AWQ6: 0 | AWR6: 0 | AWS6: 0 | AWT6: 3 | AWU6: 0 | AWV6: 0 | AWW6: 0 | AWX6: 12 | AWY6: 0 | AWZ6: 0 | AXA6: 0 | AXB6: 0 | AXC6: 0 | AXD6: 31 | AXE6: 0 | AXF6: 0 | AXG6: 12 | AXH6: 0 | AXI6: 0 | AXJ6: 7 | AXK6: 0 | AXL6: 0 | AXM6: 0 | AXN6: 0 | AXO6: 0 | AXP6: 0 | AXQ6: 0 | AXR6: 0 | AXS6: 0 | AXT6: 0 | AXU6: 0 | AXV6: 0 | AXW6: 0 | AXX6: 0 | AXY6: 9 | AXZ6: 0 | AYA6: 2 | AYB6: 0 | AYC6: 0 | AYD6: 4 | AYE6: 0 | AYF6: 18 | AYG6: 0 | AYH6: 0 | AYI6: 0 | AYJ6: 0 | AYK6: 0 | AYL6: 0 | AYM6: 0 | AYN6: 0 | AYO6: 1 | AYP6: 0 | AYQ6: 0 | AYR6: 0 | AYS6: 10 | AYT6: 0 | AYU6: 0 | AYV6: 0 | AYW6: 10 | AYX6: 0 | AYY6: 20 | AYZ6: 0 | AZA6: 31 | AZB6: 0 | AZC6: 0 | AZD6: 0 | AZE6: 0 | AZF6: 0 | AZG6: 0 | AZH6: 0 | AZI6: 5 | AZJ6: 0 | AZK6: 0 | AZL6: 0 | AZM6: 0 | AZN6: 0 | AZO6: 0 | AZP6: 0 | AZQ6: 0 | AZR6: 0 | AZS6: 0 | AZT6: 0 | AZU6: 0 | AZV6: 0 | AZW6: 0 | AZX6: 0 | AZY6: 0 | AZZ6: 9 | BAA6: 0 | BAB6: 0 | BAC6: 0 | BAD6: 0 | BAE6: 0 | BAF6: 0 | BAG6: 0 | BAH6: 0 | BAI6: 0 | BAJ6: 0 | BAK6: 7 | BAL6: 6 | BAM6: 0 | BAN6: 0 | BAO6: 8 | BAP6: 0 | BAQ6: 0 | BAR6: 14 | BAS6: 0 | BAT6: 0 | BAU6: 0 | BAV6: 0 | BAW6: 13 | BAX6: 0 | BAY6: 0 | BAZ6: 0 | BBA6: 0 | BBB6: 0 | BBC6: 0 | BBD6: 0 | BBE6: 0 | BBF6: 0 | BBG6: 10 | BBH6: 0 | BBI6: 0 | BBJ6: 21 | BBK6: 0 | BBL6: 0 | BBM6: 0 | BBN6: 0 | BBO6: 10 | BBP6: 0 | BBQ6: 0 | BBR6: 10 | BBS6: 0 | BBT6: 0 | BBU6: 0 | BBV6: 17 | BBW6: 0 | BBX6: 0 | BBY6: 0 | BBZ6: 2 | BCA6: 0 | BCB6: 31 | BCC6: 0 | BCD6: 0 | BCE6: 11 | BCF6: 0 | BCG6: 0 | BCH6: 14 | BCI6: 3 | BCJ6: 0 | BCK6: 2 | BCL6: 0 | BCM6: 0 | BCN6: 0 | BCO6: 0 | BCP6: 0 | BCQ6: 0 | BCR6: 0 | BCS6: 0 | BCT6: 0 | BCU6: 0 | BCV6: 0 | BCW6: 0 | BCX6: 0 | BCY6: 5 | BCZ6: 0 | BDA6: 0 | BDB6: 8 | BDC6: 0 | BDD6: 13 | BDE6: 5 | BDF6: 0 | BDG6: 0 | BDH6: 0 | BDI6: 0 | BDJ6: 0 | BDK6: 0 | BDL6: 0 | BDM6: 0 | BDN6: 0 | BDO6: 0 | BDP6: 0 | BDQ6: 8 | BDR6: 0 | BDS6: 0 | BDT6: 0 | BDU6: 14 | BDV6: 3 | BDW6: 8 | BDX6: 0 | BDY6: 31 | BDZ6: 0 | BEA6: 0 | BEB6: 0 | BEC6: 0 | BED6: 0 | BEE6: 1 | BEF6: 0 | BEG6: 5 | BEH6: 0 | BEI6: 0 | BEJ6: 0 | BEK6: 0 | BEL6: 0 | BEM6: 0 | BEN6: 6 | BEO6: 0 | BEP6: 0 | BEQ6: 0 | BER6: 0 | BES6: 0 | BET6: 0 | BEU6: 0 | BEV6: 0 | BEW6: 0 | BEX6: 0 | BEY6: 0 | BEZ6: 0 | BFA6: 0 | BFB6: 0 | BFC6: 0 | BFD6: 0 | BFE6: 0 | BFF6: 0 | BFG6: 0 | BFH6: 0 | BFI6: 9 | BFJ6: 17 | BFK6: 0 | BFL6: 0 | BFM6: 9 | BFN6: 0 | BFO6: 0 | BFP6: 1 | BFQ6: 0 | BFR6: 0 | BFS6: 0 | BFT6: 0 | BFU6: 0 | BFV6: 0 | BFW6: 0 | BFX6: 0 | BFY6: 0 | BFZ6: 1 | BGA6: 3 | BGB6: 0 | BGC6: 0 | BGD6: 0 | BGE6: 5 | BGF6: 0 | BGG6: 0 | BGH6: 17 | BGI6: 0 | BGJ6: 0 | BGK6: 0 | BGL6: 0 | BGM6: 0 | BGN6: 0 | BGO6: 0 | BGP6: 20 | BGQ6: 0 | BGR6: 0 | BGS6: 0 | BGT6: 31 | BGU6: 0 | BGV6: 0 | BGW6: 0 | BGX6: 0 | BGY6: 0 | BGZ6: 31 | BHA6: 0 | BHB6: 0 | BHC6: 4 | BHD6: 0 | BHE6: 4 | BHF6: 31 | BHG6: 30 | BHH6: 0 | BHI6: 0 | BHJ6: 0 | BHK6: 0 | BHL6: 0 | BHM6: 0 | BHN6: 0 | BHO6: 0 | BHP6: 0 | BHQ6: 0 | BHR6: 0 | BHS6: 0 | BHT6: 0 | BHU6: 4 | BHV6: 0 | BHW6: 0 | BHX6: 0 | BHY6: 0 | BHZ6: 0 | BIA6: 0 | BIB6: 6 | BIC6: 0 | BID6: 0 | BIE6: 0 | BIF6: 0 | BIG6: 0 | BIH6: 0 | BII6: 5 | BIJ6: 0 | BIK6: 0 | BIL6: 7 | BIM6: 10 | BIN6: 0 | BIO6: 0 | BIP6: 0 | BIQ6: 0 | BIR6: 0 | BIS6: 11 | BIT6: 0 | BIU6: 0 | BIV6: 0 | BIW6: 31 | BIX6: 0 | BIY6: 0 | BIZ6: 0 | BJA6: 0 | BJB6: 0 | BJC6: 0 | BJD6: 0 | BJE6: 0 | BJF6: 10 | BJG6: 0 | BJH6: 31 | BJI6: 0 | BJJ6: 0 | BJK6: 0 | BJL6: 8 | BJM6: 0 | BJN6: 0 | BJO6: 0 | BJP6: 0 | BJQ6: 0 | BJR6: 0 | BJS6: 0 | BJT6: 0 | BJU6: 0 | BJV6: 0 | BJW6: 0 | BJX6: 0 | BJY6: 0 | BJZ6: 0 | BKA6: 1 | BKB6: 0 | BKC6: 0 | BKD6: 0 | BKE6: 0 | BKF6: 0 | BKG6: 0 | BKH6: 31 | BKI6: 0 | BKJ6: 0 | BKK6: 7 | BKL6: 0 | BKM6: 0 | BKN6: 10 | BKO6: 18 | BKP6: 0 | BKQ6: 0 | BKR6: 0 | BKS6: 0 | BKT6: 0 | BKU6: 0 | BKV6: 0 | BKW6: 20 | BKX6: 0 | BKY6: 0 | BKZ6: 0 | BLA6: 0 | BLB6: 0 | BLC6: 0 | BLD6: 0 | BLE6: 0 | BLF6: 14 | BLG6: 0 | BLH6: 0 | BLI6: 0 | BLJ6: 0 | BLK6: 0 | BLL6: 0 | BLM6: 0 | BLN6: 7 | BLO6: 0 | BLP6: 0 | BLQ6: 0 | BLR6: 31 | BLS6: 0 | BLT6: 0 | BLU6: 0 | BLV6: 0 | BLW6: 0 | BLX6: 31 | BLY6: 0 | BLZ6: 0 | BMA6: 1 | BMB6: 0 | BMC6: 0 | BMD6: 31 | BME6: 23 | BMF6: 0 | BMG6: 4 | BMH6: 0 | BMI6: 0 | BMJ6: 0 | BMK6: 0 | BML6: 0 | BMM6: 0 | BMN6: 0 | BMO6: 0 | BMP6: 0 | BMQ6: 0 | BMR6: 0 | BMS6: 0 | BMT6: 0 | BMU6: 0 | BMV6: 0 | BMW6: 0 | BMX6: 0 | BMY6: 0 | BMZ6: 0 | BNA6: 1 | BNB6: 0 | BNC6: 0 | BND6: 0 | BNE6: 0 | BNF6: 0 | BNG6: 0 | BNH6: 0 | BNI6: 0 | BNJ6: 8 | BNK6: 12 | BNL6: 0 | BNM6: 10 | BNN6: 0 | BNO6: 0 | BNP6: 0 | BNQ6: 1 | BNR6: 0 | BNS6: 0 | BNT6: 0 | BNU6: 29 | BNV6: 0 | BNW6: 0 | BNX6: 0 | BNY6: 0 | BNZ6: 0 | BOA6: 0 | BOB6: 0 | BOC6: 0 | BOD6: 7 | BOE6: 0 | BOF6: 31 | BOG6: 0 | BOH6: 0 | BOI6: 0 | BOJ6: 1 | BOK6: 0 | BOL6: 0 | BOM6: 0 | BON6: 0 | BOO6: 0 | BOP6: 0 | BOQ6: 0 | BOR6: 0 | BOS6: 0 | BOT6: 0 | BOU6: 0 | BOV6: 0 | BOW6: 0 | BOX6: 0 | BOY6: 0 | BOZ6: 0 | BPA6: 0 | BPB6: 0 | BPC6: 0 | BPD6: 0 | BPE6: 0 | BPF6: 31 | BPG6: 0 | BPH6: 0 | BPI6: 0 | BPJ6: 0 | BPK6: 0 | BPL6: 24 | BPM6: 12 | BPN6: 0 | BPO6: 0 | BPP6: 0 | BPQ6: 1 | BPR6: 0 | BPS6: 0 | BPT6: 0 | BPU6: 6 | BPV6: 0 | BPW6: 0 | BPX6: 0 | BPY6: 0 | BPZ6: 0 | BQA6: 5 | BQB6: 0 | BQC6: 0 | BQD6: 11 | BQE6: 0 | BQF6: 0 | BQG6: 0 | BQH6: 0 | BQI6: 0 | BQJ6: 0 | BQK6: 0 | BQL6: 7 | BQM6: 0 | BQN6: 0 | BQO6: 0 | BQP6: 31 | BQQ6: 0 | BQR6: 0 | BQS6: 0 | BQT6: 4 | BQU6: 0 | BQV6: 31 | BQW6: 0 | BQX6: 0 | BQY6: 0 | BQZ6: 0 | BRA6: 5 | BRB6: 31 | BRC6: 22 | BRD6: 0 | BRE6: 0 | BRF6: 0 | BRG6: 0 | BRH6: 0 | BRI6: 0 | BRJ6: 0 | BRK6: 0 | BRL6: 0 | BRM6: 0 | BRN6: 0 | BRO6: 0 | BRP6: 0 | BRQ6: 0 | BRR6: 0 | BRS6: 0 | BRT6: 0 | BRU6: 0 | BRV6: 0 | BRW6: 0 | BRX6: 0 | BRY6: 0 | BRZ6: 0 | BSA6: 0 | BSB6: 0 | BSC6: 0 | BSD6: 0 | BSE6: 0 | BSF6: 0 | BSG6: 0 | BSH6: 1 | BSI6: 7 | BSJ6: 0 | BSK6: 5 | BSL6: 0 | BSM6: 0 | BSN6: 0 | BSO6: 0 | BSP6: 0 | BSQ6: 0 | BSR6: 0 | BSS6: 31 | BST6: 0 | BSU6: 0 | BSV6: 0 | BSW6: 0 | BSX6: 0 | BSY6: 0 | BSZ6: 0 | BTA6: 0 | BTB6: 0 | BTC6: 0 | BTD6: 26 | BTE6: 0 | BTF6: 0 | BTG6: 0 | BTH6: 11 | BTI6: 0 | BTJ6: 0 | BTK6: 0 | BTL6: 0 | BTM6: 0 | BTN6: 0 | BTO6: 0 | BTP6: 0 | BTQ6: 0 | BTR6: 0 | BTS6: 0 | BTT6: 0 | BTU6: 0 | BTV6: 0 | BTW6: 0 | BTX6: 0 | BTY6: 0 | BTZ6: 0 | BUA6: 0 | BUB6: 0 | BUC6: 0 | BUD6: 31 | BUE6: 0 | BUF6: 0 | BUG6: 1 | BUH6: 0 | BUI6: 0 | BUJ6: 15 | BUK6: 23 | BUL6: 0 | BUM6: 0 | BUN6: 0 | BUO6: 0 | BUP6: 0 | BUQ6: 0 | BUR6: 0 | BUS6: 16 | BUT6: 0 | BUU6: 0 | BUV6: 0 | BUW6: 0 | BUX6: 0 | BUY6: 3 | BUZ6: 0 | BVA6: 0 | BVB6: 3 | BVC6: 0 | BVD6: 0 | BVE6: 0 | BVF6: 0 | BVG6: 0 | BVH6: 0 | BVI6: 0 | BVJ6: 11 | BVK6: 0 | BVL6: 0 | BVM6: 0 | BVN6: 31 | BVO6: 0 | BVP6: 0 | BVQ6: 0 | BVR6: 3 | BVS6: 0 | BVT6: 31 | BVU6: 0 | BVV6: 0 | BVW6: 0 | BVX6: 0 | BVY6: 0 | BVZ6: 31 | BWA6: 27 | BWB6: 0 | BWC6: 0 | BWD6: 0 | BWE6: 0 | BWF6: 0 | BWG6: 0 | BWH6: 0 | BWI6: 0 | BWJ6: 0 | BWK6: 0 | BWL6: 0 | BWM6: 0 | BWN6: 0 | BWO6: 1 | BWP6: 0 | BWQ6: 0 | BWR6: 0 | BWS6: 0 | BWT6: 0 | BWU6: 0 | BWV6: 0 | BWW6: 0 | BWX6: 0 | BWY6: 0 | BWZ6: 0 | BXA6: 0 | BXB6: 0 | BXC6: 10 | BXD6: 0 | BXE6: 0 | BXF6: 7 | BXG6: 7 | BXH6: 0 | BXI6: 0 | BXJ6: 0 | BXK6: 0 | BXL6: 0 | BXM6: 5 | BXN6: 0 | BXO6: 0 | BXP6: 0 | BXQ6: 26 | BXR6: 0 | BXS6: 0 | BXT6: 0 | BXU6: 0 | BXV6: 0 | BXW6: 0 | BXX6: 0 | BXY6: 0 | BXZ6: 0 | BYA6: 0 | BYB6: 31 | BYC6: 0 | BYD6: 0 | BYE6: 0 | BYF6: 18 | BYG6: 0 | BYH6: 0 | BYI6: 0 | BYJ6: 0 | BYK6: 0 | BYL6: 0 | BYM6: 0 | BYN6: 0 | BYO6: 0 | BYP6: 0 | BYQ6: 0 | BYR6: 0 | BYS6: 0 | BYT6: 0 | BYU6: 0 | BYV6: 0 | BYW6: 0 | BYX6: 0 | BYY6: 0 | BYZ6: 0 | BZA6: 0 | BZB6: 31 | BZC6: 0 | BZD6: 0 | BZE6: 7 | BZF6: 0 | BZG6: 0 | BZH6: 5 | BZI6: 11 | BZJ6: 0 | BZK6: 0 | BZL6: 0 | BZM6: 0 | BZN6: 0 | BZO6: 0 | BZP6: 0 | BZQ6: 24 | BZR6: 0 | BZS6: 0 | BZT6: 0 | BZU6: 0
A8: x_in * W5 | B8: =MMULT(B6:BZU6,'W5'!A1:DX2048) -> -11920 | C8: -14272 | D8: -26640 | E8: -26960 | F8: -30656 | G8: 13504 | H8: 9776 | I8: -12064 | J8: -6176 | K8: -2512 | L8: -4032 | M8: 18032 | N8: 10144 | O8: 15584 | P8: 9008 | Q8: -1280 | R8: -21760 | S8: 4144 | T8: 20240 | U8: 6768 | V8: -18288 | W8: 10112 | X8: 9232 | Y8: -5760 | Z8: -18336 | AA8: 4256 | AB8: -8304 | AC8: -48304 | AD8: -11232 | AE8: -28112 | AF8: -34400 | AG8: 7808 | AH8: -12944 | AI8: -12384 | AJ8: -10624 | AK8: -3840 | AL8: -24320 | AM8: 13568 | AN8: -25280 | AO8: -16736 | AP8: -10816 | AQ8: -8032 | AR8: -31680 | AS8: -23648 | AT8: -40224 | AU8: -3776 | AV8: -51040 | AW8: -33696 | AX8: -22752 | AY8: 8640 | AZ8: -15744 | BA8: -12224 | BB8: 15760 | BC8: -12448 | BD8: 3248 | BE8: 13216 | BF8: -21344 | BG8: -13152 | BH8: -4384 | BI8: -21104 | BJ8: -2976 | BK8: 22560 | BL8: -33120 | BM8: 22064 | BN8: -39104 | BO8: -48960 | BP8: 9456 | BQ8: -5120 | BR8: -12736 | BS8: -22576 | BT8: -7440 | BU8: -26240 | BV8: 10864 | BW8: -12160 | BX8: 22592 | BY8: -4608 | BZ8: -29376 | CA8: -19936 | CB8: -15760 | CC8: -16544 | CD8: 1072 | CE8: -6912 | CF8: 35024 | CG8: -7376 | CH8: -27744 | CI8: -39072 | CJ8: -41296 | CK8: -5648 | CL8: -28432 | CM8: 9472 | CN8: -16896 | CO8: -10912 | CP8: -16032 | CQ8: 22240 | CR8: -18768 | CS8: -5968 | CT8: 14848 | CU8: -4080 | CV8: -21088 | CW8: -6784 | CX8: -7008 | CY8: 3424 | CZ8: -18080 | DA8: -22848 | DB8: -10080 | DC8: -37152 | DD8: -26272 | DE8: -10912 | DF8: -16928 | DG8: -4256 | DH8: 4528 | DI8: -39536 | DJ8: 19264 | DK8: -6080 | DL8: -46240 | DM8: -18800 | DN8: 16768 | DO8: -3008 | DP8: -27968 | DQ8: -15392 | DR8: 20560 | DS8: -10416 | DT8: -27664 | DU8: 4496 | DV8: 29696 | DW8: -16672 | DX8: -7904 | DY8: -18672
A10: b5 | B10: -5378 | C10: -1875 | D10: 9625 | E10: 1553 | F10: 9538 | G10: -2125 | H10: 5409 | I10: -1079 | J10: -920 | K10: -10472 | L10: 4375 | M10: -4448 | N10: 6093 | O10: -10091 | P10: -5448 | Q10: -897 | R10: 11661 | S10: 2229 | T10: -10210 | U10: -4684 | V10: -9129 | W10: -1883 | X10: -11357 | Y10: 193 | Z10: 1323 | AA10: -7607 | AB10: -9217 | AC10: 11048 | AD10: -2788 | AE10: 5967 | AF10: 5247 | AG10: -9871 | AH10: -4728 | AI10: 7958 | AJ10: -1788 | AK10: -787 | AL10: 2297 | AM10: -6687 | AN10: 10588 | AO10: -1588 | AP10: -3256 | AQ10: -3709 | AR10: -7462 | AS10: -9200 | AT10: 10930 | AU10: -2404 | AV10: 8508 | AW10: 12136 | AX10: -518 | AY10: 6766 | AZ10: -2558 | BA10: -1864 | BB10: -9265 | BC10: -1626 | BD10: -8378 | BE10: -7974 | BF10: -6182 | BG10: -441 | BH10: 629 | BI10: 772 | BJ10: -6891 | BK10: -8481 | BL10: 10532 | BM10: -6961 | BN10: 432 | BO10: 8806 | BP10: -9892 | BQ10: -436 | BR10: -924 | BS10: 8854 | BT10: 3335 | BU10: -5033 | BV10: -2651 | BW10: -2305 | BX10: -8659 | BY10: -2763 | BZ10: 8765 | CA10: -2618 | CB10: 12576 | CC10: -217 | CD10: -6693 | CE10: -1296 | CF10: -9863 | CG10: -10584 | CH10: 8432 | CI10: -5746 | CJ10: 11303 | CK10: 4504 | CL10: 14219 | CM10: -5840 | CN10: 12569 | CO10: -1271 | CP10: 6221 | CQ10: -3408 | CR10: 10371 | CS10: 3427 | CT10: -12920 | CU10: -61 | CV10: -7722 | CW10: -1400 | CX10: -3095 | CY10: 2798 | CZ10: -2604 | DA10: 7917 | DB10: -2539 | DC10: 11604 | DD10: 11804 | DE10: -1856 | DF10: -2517 | DG10: -612 | DH10: 4084 | DI10: 10683 | DJ10: -14168 | DK10: -662 | DL10: 13585 | DM10: 1259 | DN10: -9467 | DO10: -2177 | DP10: -5929 | DQ10: -745 | DR10: -10661 | DS10: 5353 | DT10: -10110 | DU10: -11971 | DV10: -9665 | DW10: 4102 | DX10: -8828 | DY10: 12100
A11: b5/8 | B11: =+ROUNDDOWN(B10/8, 0) -> -672 | C11: =+ROUNDDOWN(C10/8, 0) -> -234 | D11: 1203 | E11: 194 | F11: 1192 | G11: -265 | H11: 676 | I11: -134 | J11: -115 | K11: -1309 | L11: 546 | M11: -556 | N11: 761 | O11: -1261 | P11: -681 | Q11: -112 | R11: 1457 | S11: 278 | T11: -1276 | U11: -585 | V11: -1141 | W11: -235 | X11: -1419 | Y11: 24 | Z11: 165 | AA11: -950 | AB11: -1152 | AC11: 1381 | AD11: -348 | AE11: 745 | AF11: 655 | AG11: -1233 | AH11: -591 | AI11: 994 | AJ11: -223 | AK11: -98 | AL11: 287 | AM11: -835 | AN11: 1323 | AO11: -198 | AP11: -407 | AQ11: -463 | AR11: -932 | AS11: -1150 | AT11: 1366 | AU11: -300 | AV11: 1063 | AW11: 1517 | AX11: -64 | AY11: 845 | AZ11: -319 | BA11: -233 | BB11: -1158 | BC11: -203 | BD11: -1047 | BE11: -996 | BF11: -772 | BG11: -55 | BH11: 78 | BI11: 96 | BJ11: -861 | BK11: -1060 | BL11: 1316 | BM11: -870 | BN11: 54 | BO11: =+ROUNDDOWN(BO10/8, 0) -> 1100 | BP11: -1236 | BQ11: -54 | BR11: -115 | BS11: 1106 | BT11: 416 | BU11: -629 | BV11: -331 | BW11: -288 | BX11: -1082 | BY11: -345 | BZ11: 1095 | CA11: -327 | CB11: 1572 | CC11: -27 | CD11: -836 | CE11: -162 | CF11: -1232 | CG11: -1323 | CH11: 1054 | CI11: -718 | CJ11: 1412 | CK11: 563 | CL11: 1777 | CM11: -730 | CN11: 1571 | CO11: -158 | CP11: 777 | CQ11: -426 | CR11: 1296 | CS11: 428 | CT11: -1615 | CU11: -7 | CV11: -965 | CW11: -175 | CX11: -386 | CY11: 349 | CZ11: -325 | DA11: 989 | DB11: -317 | DC11: 1450 | DD11: 1475 | DE11: -232 | DF11: -314 | DG11: -76 | DH11: 510 | DI11: 1335 | DJ11: -1771 | DK11: -82 | DL11: 1698 | DM11: 157 | DN11: -1183 | DO11: -272 | DP11: -741 | DQ11: -93 | DR11: -1332 | DS11: 669 | DT11: -1263 | DU11: -1496 | DV11: -1208 | DW11: 512 | DX11: -1103 | DY11: 1512
A13: plusBias5 | B13: =B8+B11 -> -12592 | C13: =C8+C11 -> -14506 | D13: -25437 | E13: -26766 | F13: -29464 | G13: 13239 | H13: 10452 | I13: -12198 | J13: -6291 | K13: -3821 | L13: -3486 | M13: 17476 | N13: 10905 | O13: 14323 | P13: 8327 | Q13: -1392 | R13: -20303 | S13: 4422 | T13: 18964 | U13: 6183 | V13: -19429 | W13: 9877 | X13: 7813 | Y13: -5736 | Z13: -18171 | AA13: 3306 | AB13: -9456 | AC13: -46923 | AD13: -11580 | AE13: -27367 | AF13: -33745 | AG13: 6575 | AH13: -13535 | AI13: -11390 | AJ13: -10847 | AK13: -3938 | AL13: -24033 | AM13: 12733 | AN13: -23957 | AO13: -16934 | AP13: -11223 | AQ13: -8495 | AR13: -32612 | AS13: -24798 | AT13: -38858 | AU13: -4076 | AV13: -49977 | AW13: -32179 | AX13: -22816 | AY13: 9485 | AZ13: -16063 | BA13: -12457 | BB13: 14602 | BC13: -12651 | BD13: 2201 | BE13: 12220 | BF13: -22116 | BG13: -13207 | BH13: -4306 | BI13: -21008 | BJ13: -3837 | BK13: 21500 | BL13: -31804 | BM13: 21194 | BN13: -39050 | BO13: =BO8+BO11 -> -47860 | BP13: 8220 | BQ13: -5174 | BR13: -12851 | BS13: -21470 | BT13: -7024 | BU13: -26869 | BV13: 10533 | BW13: -12448 | BX13: 21510 | BY13: -4953 | BZ13: -28281 | CA13: -20263 | CB13: -14188 | CC13: -16571 | CD13: 236 | CE13: -7074 | CF13: 33792 | CG13: -8699 | CH13: -26690 | CI13: -39790 | CJ13: -39884 | CK13: -5085 | CL13: -26655 | CM13: 8742 | CN13: -15325 | CO13: -11070 | CP13: -15255 | CQ13: 21814 | CR13: -17472 | CS13: -5540 | CT13: 13233 | CU13: -4087 | CV13: -22053 | CW13: -6959 | CX13: -7394 | CY13: 3773 | CZ13: -18405 | DA13: -21859 | DB13: -10397 | DC13: -35702 | DD13: -24797 | DE13: -11144 | DF13: -17242 | DG13: -4332 | DH13: 5038 | DI13: -38201 | DJ13: 17493 | DK13: -6162 | DL13: -44542 | DM13: -18643 | DN13: 15585 | DO13: -3280 | DP13: -28709 | DQ13: -15485 | DR13: 19228 | DS13: -9747 | DT13: -28927 | DU13: 3000 | DV13: 28488 | DW13: -16160 | DX13: -9007 | DY13: -17160
A15: Relu5 | B15: =IF(B13:DY13 > 0, IF(B13:DY13 > 100000000, 100000000, B13:DY13), 0) -> 0 | C15: =IF(C13:DZ13 > 0, IF(C13:DZ13 > 100000000, 100000000, C13:DZ13), 0) -> 0 | D15: 0 | E15: 0 | F15: 0 | G15: 13239 | H15: 10452 | I15: 0 | J15: 0 | K15: 0 | L15: 0 | M15: 17476 | N15: 10905 | O15: 14323 | P15: 8327 | Q15: 0 | R15: 0 | S15: 4422 | T15: 18964 | U15: 6183 | V15: 0 | W15: 9877 | X15: 7813 | Y15: 0 | Z15: 0 | AA15: 3306 | AB15: 0 | AC15: 0 | AD15: 0 | AE15: 0 | AF15: 0 | AG15: 6575 | AH15: 0 | AI15: 0 | AJ15: 0 | AK15: 0 | AL15: 0 | AM15: 12733 | AN15: 0 | AO15: 0 | AP15: 0 | AQ15: 0 | AR15: 0 | AS15: 0 | AT15: 0 | AU15: 0 | AV15: 0 | AW15: 0 | AX15: 0 | AY15: 9485 | AZ15: 0 | BA15: 0 | BB15: 14602 | BC15: 0 | BD15: 2201 | BE15: 12220 | BF15: 0 | BG15: 0 | BH15: 0 | BI15: 0 | BJ15: 0 | BK15: 21500 | BL15: 0 | BM15: 21194 | BN15: 0 | BO15: =IF(BO13:GL13 > 0, IF(BO13:GL13 > 100000000, 100000000, BO13:GL13), 0) -> 0 | BP15: 8220 | BQ15: 0 | BR15: 0 | BS15: 0 | BT15: 0 | BU15: 0 | BV15: 10533 | BW15: 0 | BX15: 21510 | BY15: 0 | BZ15: 0 | CA15: 0 | CB15: 0 | CC15: 0 | CD15: 236 | CE15: 0 | CF15: 33792 | CG15: 0 | CH15: 0 | CI15: 0 | CJ15: 0 | CK15: 0 | CL15: 0 | CM15: 8742 | CN15: 0 | CO15: 0 | CP15: 0 | CQ15: 21814 | CR15: 0 | CS15: 0 | CT15: 13233 | CU15: 0 | CV15: 0 | CW15: 0 | CX15: 0 | CY15: 3773 | CZ15: 0 | DA15: 0 | DB15: 0 | DC15: 0 | DD15: 0 | DE15: 0 | DF15: 0 | DG15: 0 | DH15: 5038 | DI15: 0 | DJ15: 17493 | DK15: 0 | DL15: 0 | DM15: 0 | DN15: 15585 | DO15: 0 | DP15: 0 | DQ15: 0 | DR15: 19228 | DS15: 0 | DT15: 0 | DU15: 3000 | DV15: 28488 | DW15: 0 | DX15: 0 | DY15: 0
A17: truncate | B17: =IF(ROUNDDOWN(B15:DY15/2^8, 0) > 31, 31, ROUNDDOWN(B15:DY15/2^8, 0)) -> 0 | C17: =IF(ROUNDDOWN(C15:DZ15/2^8, 0) > 31, 31, ROUNDDOWN(C15:DZ15/2^8, 0)) -> 0 | D17: 0 | E17: 0 | F17: 0 | G17: 31 | H17: 31 | I17: 0 | J17: 0 | K17: 0 | L17: 0 | M17: 31 | N17: 31 | O17: 31 | P17: 31 | Q17: 0 | R17: 0 | S17: 17 | T17: 31 | U17: 24 | V17: 0 | W17: 31 | X17: 30 | Y17: 0 | Z17: 0 | AA17: 12 | AB17: 0 | AC17: 0 | AD17: 0 | AE17: 0 | AF17: 0 | AG17: 25 | AH17: 0 | AI17: 0 | AJ17: 0 | AK17: 0 | AL17: 0 | AM17: 31 | AN17: 0 | AO17: 0 | AP17: 0 | AQ17: 0 | AR17: 0 | AS17: 0 | AT17: 0 | AU17: 0 | AV17: 0 | AW17: 0 | AX17: 0 | AY17: 31 | AZ17: 0 | BA17: 0 | BB17: 31 | BC17: 0 | BD17: 8 | BE17: 31 | BF17: 0 | BG17: 0 | BH17: 0 | BI17: 0 | BJ17: 0 | BK17: 31 | BL17: 0 | BM17: 31 | BN17: 0 | BO17: =IF(ROUNDDOWN(BO15:GL15/2^8, 0) > 31, 31, ROUNDDOWN(BO15:GL15/2^8, 0)) -> 0 | BP17: 31 | BQ17: 0 | BR17: 0 | BS17: 0 | BT17: 0 | BU17: 0 | BV17: 31 | BW17: 0 | BX17: 31 | BY17: 0 | BZ17: 0 | CA17: 0 | CB17: 0 | CC17: 0 | CD17: 0 | CE17: 0 | CF17: 31 | CG17: 0 | CH17: 0 | CI17: 0 | CJ17: 0 | CK17: 0 | CL17: 0 | CM17: 31 | CN17: 0 | CO17: 0 | CP17: 0 | CQ17: 31 | CR17: 0 | CS17: 0 | CT17: 31 | CU17: 0 | CV17: 0 | CW17: 0 | CX17: 0 | CY17: 14 | CZ17: 0 | DA17: 0 | DB17: 0 | DC17: 0 | DD17: 0 | DE17: 0 | DF17: 0 | DG17: 0 | DH17: 19 | DI17: 0 | DJ17: 31 | DK17: 0 | DL17: 0 | DM17: 0 | DN17: 31 | DO17: 0 | DP17: 0 | DQ17: 0 | DR17: 31 | DS17: 0 | DT17: 0 | DU17: 11 | DV17: 31 | DW17: 0 | DX17: 0 | DY17: 0
A19: Drop5 | B19: =B17 -> 0 | C19: =C17 -> 0 | D19: 0 | E19: 0 | F19: 0 | G19: 31 | H19: 31 | I19: 0 | J19: 0 | K19: 0 | L19: 0 | M19: 31 | N19: 31 | O19: 31 | P19: 31 | Q19: 0 | R19: 0 | S19: 17 | T19: 31 | U19: 24 | V19: 0 | W19: 31 | X19: 30 | Y19: 0 | Z19: 0 | AA19: 12 | AB19: 0 | AC19: 0 | AD19: 0 | AE19: 0 | AF19: 0 | AG19: 25 | AH19: 0 | AI19: 0 | AJ19: 0 | AK19: 0 | AL19: 0 | AM19: 31 | AN19: 0 | AO19: 0 | AP19: 0 | AQ19: 0 | AR19: 0 | AS19: 0 | AT19: 0 | AU19: 0 | AV19: 0 | AW19: 0 | AX19: 0 | AY19: 31 | AZ19: 0 | BA19: 0 | BB19: 31 | BC19: 0 | BD19: 8 | BE19: 31 | BF19: 0 | BG19: 0 | BH19: 0 | BI19: 0 | BJ19: 0 | BK19: 31 | BL19: 0 | BM19: 31 | BN19: 0 | BO19: =BO17 -> 0 | BP19: 31 | BQ19: 0 | BR19: 0 | BS19: 0 | BT19: 0 | BU19: 0 | BV19: 31 | BW19: 0 | BX19: 31 | BY19: 0 | BZ19: 0 | CA19: 0 | CB19: 0 | CC19: 0 | CD19: 0 | CE19: 0 | CF19: 31 | CG19: 0 | CH19: 0 | CI19: 0 | CJ19: 0 | CK19: 0 | CL19: 0 | CM19: 31 | CN19: 0 | CO19: 0 | CP19: 0 | CQ19: 31 | CR19: 0 | CS19: 0 | CT19: 31 | CU19: 0 | CV19: 0 | CW19: 0 | CX19: 0 | CY19: 14 | CZ19: 0 | DA19: 0 | DB19: 0 | DC19: 0 | DD19: 0 | DE19: 0 | DF19: 0 | DG19: 0 | DH19: 19 | DI19: 0 | DJ19: 31 | DK19: 0 | DL19: 0 | DM19: 0 | DN19: 31 | DO19: 0 | DP19: 0 | DQ19: 0 | DR19: 31 | DS19: 0 | DT19: 0 | DU19: 11 | DV19: 31 | DW19: 0 | DX19: 0 | DY19: 0
A21: Drop5*W6 | B21: =MMULT(B19:DY19, W6_limit!A1:J128) -> 22009 | C21: -20726 | D21: -139534 | E21: -101305 | F21: -103465 | G21: -64863 | H21: -47507 | I21: -53111 | J21: -55530 | K21: -3054
A23: b6 | B23: -34321 | C23: 35910 | D23: -2448 | E23: 8887 | F23: -11934 | G23: -24436 | H23: -27689 | I23: -30611 | J23: -30584 | K23: 14673
A24: b6/8 | B24: =ROUNDDOWN(B23/8, 0) -> -4290 | C24: =ROUNDDOWN(C23/8, 0) -> 4488 | D24: -306 | E24: 1110 | F24: -1491 | G24: -3054 | H24: -3461 | I24: -3826 | J24: -3823 | K24: 1834 | L24: 0 | M24: 0 | N24: 0 | O24: 0 | P24: 0 | Q24: 0 | R24: 0 | S24: 0 | T24: 0 | U24: 0 | V24: 0 | W24: 0 | X24: 0 | Y24: 0 | Z24: 0 | AA24: 0 | AB24: 0 | AC24: 0 | AD24: 0 | AE24: 0 | AF24: 0 | AG24: 0 | AH24: 0 | AI24: 0 | AJ24: 0 | AK24: 0 | AL24: 0 | AM24: 0 | AN24: 0 | AO24: 0 | AP24: 0 | AQ24: 0 | AR24: 0
A26: plusBias6 | B26: =B21+B24 -> 17719 | C26: =C21+C24 -> -16238 | D26: -139840 | E26: -100195 | F26: -104956 | G26: -67917 | H26: -50968 | I26: -56937 | J26: -59353 | K26: -1220
A27: plusBias6/64 | B27: =IF(B26 > 0, ROUNDDOWN(B26/2^6, 0), ROUNDUP(B26/2^6, 0)) -> 276 | C27: =IF(C26 > 0, ROUNDDOWN(C26/2^6, 0), ROUNDUP(C26/2^6, 0)) -> -254 | D27: -2185 | E27: -1566 | F27: -1640 | G27: -1062 | H27: -797 | I27: -890 | J27: -928 | K27: -20
A29: ranking | B29: =RANK(B26, $B$26:$AR$26) -> 1 | C29: =RANK(C26, $B$26:$AR$26) -> 3 | D29: 10 | E29: 8 | F29: 9 | G29: 7 | H29: 4 | I29: 5 | J29: 6 | K29: 2
A30: answer | B30: =MATCH(1, B29:AR29, 0)-1 -> 0

Sheet W5
A1: 16 | B1: 16 | C1: 16 | D1: 16 | E1: 16 | F1: -16 | G1: 16 | H1: -16 | I1: -16 | J1: 16 | K1: 16 | L1: 16 | M1: 16 | N1: -16 | O1: -16 | P1: 16 | Q1: -16 | R1: -16 | S1: 16 | T1: 16 | U1: 16 | V1: 16 | W1: -16 | X1: -16 | Y1: -16 | Z1: 16 | AA1: -16 | AB1: 16 | AC1: 16 | AD1: -16 | AE1: 16 | AF1: 16 | AG1: -16 | AH1: 16 | AI1: -16 | AJ1: -16 | AK1: 16 | AL1: -16 | AM1: 16 | AN1: -16 | AO1: -16 | AP1: -16 | AQ1: -16 | AR1: 16 | AS1: 16 | AT1: -16 | AU1: -16 | AV1: 16 | AW1: 16 | AX1: 16 | AY1: -16 | AZ1: 16 | BA1: 16 | BB1: -16 | BC1: -16 | BD1: -16 | BE1: -16 | BF1: 16 | BG1: 16 | BH1: 16 | BI1: 16 | BJ1: 16 | BK1: -16 | BL1: -16 | BM1: -16 | BN1: 64 | BO1: 16 | BP1: 16 | BQ1: -16 | BR1: 16 | BS1: 16 | BT1: 16 | BU1: 16 | BV1: -16 | BW1: 16 | BX1: -16 | BY1: 16 | BZ1: 16 | CA1: 16 | CB1: 16 | CC1: 16 | CD1: -16 | CE1: 16 | CF1: 16 | CG1: 16 | CH1: -16 | CI1: 16 | CJ1: 16 | CK1: 16 | CL1: -16 | CM1: -16 | CN1: -16 | CO1: 16 | CP1: -16 | CQ1: -16 | CR1: 16 | CS1: 16 | CT1: 16 | CU1: -16 | CV1: -16 | CW1: -16 | CX1: 16 | CY1: -16 | CZ1: 16 | DA1: 16 | DB1: 16 | DC1: 16 | DD1: -16 | DE1: -16 | DF1: -16 | DG1: -16 | DH1: 16 | DI1: -16 | DJ1: 16 | DK1: 16 | DL1: -16 | DM1: 16 | DN1: -16 | DO1: 16 | DP1: -16 | DQ1: 16 | DR1: 16 | DS1: -16 | DT1: 16 | DU1: 16 | DV1: 16 | DW1: 16 | DX1: 16
A2: -16 | B2: 16 | C2: -16 | D2: -16 | E2: 16 | F2: -16 | G2: -16 | H2: -16 | I2: 16 | J2: 16 | K2: 16 | L2: 16 | M2: 16 | N2: 16 | O2: -16 | P2: -16 | Q2: -16 | R2: 16 | S2: 16 | T2: -16 | U2: 16 | V2: -16 | W2: 16 | X2: -16 | Y2: 16 | Z2: 16 | AA2: -16 | AB2: -16 | AC2: -16 | AD2: -64 | AE2: -16 | AF2: 16 | AG2: 16 | AH2: 16 | AI2: -16 | AJ2: 16 | AK2: 16 | AL2: 16 | AM2: -16 | AN2: -64 | AO2: -16 | AP2: 16 | AQ2: -64 | AR2: 16 | AS2: -16 | AT2: -16 | AU2: -16 | AV2: -16 | AW2: 16 | AX2: 16 | AY2: 16 | AZ2: 16 | BA2: 16 | BB2: 16 | BC2: 16 | BD2: -16 | BE2: 16 | BF2: -16 | BG2: 16 | BH2: -16 | BI2: -16 | BJ2: 16 | BK2: 16 | BL2: 16 | BM2: -16 | BN2: -16 | BO2: 16 | BP2: 16 | BQ2: -16 | BR2: 16 | BS2: -16 | BT2: -16 | BU2: 16 | BV2: -16 | BW2: 64 | BX2: -16 | BY2: -16 | BZ2: -64 | CA2: 16 | CB2: -16 | CC2: 16 | CD2: 16 | CE2: 16 | CF2: -16 | CG2: -16 | CH2: 16 | CI2: -16 | CJ2: 16 | CK2: 16 | CL2: -16 | CM2: 16 | CN2: 16 | CO2: -16 | CP2: -16 | CQ2: 16 | CR2: 16 | CS2: 16 | CT2: 16 | CU2: -16 | CV2: 16 | CW2: -16 | CX2: -16 | CY2: -16 | CZ2: 16 | DA2: -16 | DB2: 16 | DC2: -16 | DD2: -16 | DE2: -16 | DF2: -16 | DG2: -16 | DH2: 16 | DI2: 16 | DJ2: 16 | DK2: -16 | DL2: 16 | DM2: 16 | DN2: 16 | DO2: -64 | DP2: 16 | DQ2: 16 | DR2: 16 | DS2: -16 | DT2: 16 | DU2: 16 | DV2: -16 | DW2: -16 | DX2: -16
A3: 16 | B3: 16 | C3: 16 | D3: 16 | E3: -16 | F3: 16 | G3: 64 | H3: -16 | I3: -16 | J3: -16 | K3: 64 | L3: -16 | M3: 16 | N3: 16 | O3: 16 | P3: 16 | Q3: 16 | R3: -16 | S3: -16 | T3: 16 | U3: 16 | V3: 64 | W3: -16 | X3: -64 | Y3: 16 | Z3: -16 | AA3: 16 | AB3: 16 | AC3: -16 | AD3: 16 | AE3: -16 | AF3: -16 | AG3: 64 | AH3: -16 | AI3: 16 | AJ3: 64 | AK3: -16 | AL3: -16 | AM3: 16 | AN3: -16 | AO3: -16 | AP3: 16 | AQ3: -16 | AR3: 16 | AS3: -16 | AT3: 16 | AU3: 16 | AV3: 16 | AW3: -16 | AX3: 16 | AY3: 16 | AZ3: -16 | BA3: -16 | BB3: 16 | BC3: 16 | BD3: 16 | BE3: -16 | BF3: 16 | BG3: 16 | BH3: -16 | BI3: 16 | BJ3: 16 | BK3: 16 | BL3: -16 | BM3: -16 | BN3: 16 | BO3: -16 | BP3: 16 | BQ3: -16 | BR3: -64 | BS3: 16 | BT3: -16 | BU3: 16 | BV3: -16 | BW3: -16 | BX3: 16 | BY3: -16 | BZ3: -16 | CA3: -16 | CB3: 16 | CC3: 16 | CD3: -16 | CE3: -16 | CF3: 16 | CG3: 16 | CH3: -16 | CI3: 16 | CJ3: 16 | CK3: -16 | CL3: -16 | CM3: -16 | CN3: 16 | CO3: -64 | CP3: 16 | CQ3: -16 | CR3: -16 | CS3: -16 | CT3: 64 | CU3: 16 | CV3: -16 | CW3: 16 | CX3: 16 | CY3: -16 | CZ3: -16 | DA3: -16 | DB3: -16 | DC3: 16 | DD3: 16 | DE3: -16 | DF3: -16 | DG3: 16 | DH3: 16 | DI3: -16 | DJ3: 16 | DK3: 16 | DL3: 16 | DM3: -16 | DN3: 16 | DO3: -16 | DP3: 16 | DQ3: -16 | DR3: 16 | DS3: 16 | DT3: 16 | DU3: -16 | DV3: -16 | DW3: 16 | DX3: -64
A4: 16 | B4: 16 | C4: -16 | D4: -16 | E4: -16 | F4: -16 | G4: -16 | H4: -16 | I4: -16 | J4: 16 | K4: 16 | L4: -16 | M4: 16 | N4: 16 | O4: -16 | P4: 16 | Q4: -16 | R4: -16 | S4: 16 | T4: -16 | U4: 64 | V4: 16 | W4: 16 | X4: -16 | Y4: 16 | Z4: -16 | AA4: 16 | AB4: 16 | AC4: -16 | AD4: -16 | AE4: -16 | AF4: 16 | AG4: 16 | AH4: -16 | AI4: 16 | AJ4: 16 | AK4: -16 | AL4: 16 | AM4: 16 | AN4: 16 | AO4: -16 | AP4: -16 | AQ4: -16 | AR4: 16 | AS4: -16 | AT4: -16 | AU4: -16 | AV4: -16 | AW4: 16 | AX4: 16 | AY4: -16 | AZ4: 16 | BA4: 16 | BB4: -16 | BC4: 64 | BD4: -16 | BE4: 16 | BF4: 16 | BG4: 16 | BH4: -16 | BI4: 16 | BJ4: 16 | BK4: 16 | BL4: 16 | BM4: -16 | BN4: -16 | BO4: -16 | BP4: 16 | BQ4: -16 | BR4: -16 | BS4: 16 | BT4: -16 | BU4: 16 | BV4: -16 | BW4: -16 | BX4: 16 | BY4: -16 | BZ4: 16 | CA4: -16 | CB4: 16 | CC4: 16 | CD4: 16 | CE4: 16 | CF4: -16 | CG4: -16 | CH4: 16 | CI4: -16 | CJ4: 16 | CK4: -16 | CL4: 16 | CM4: -16 | CN4: -16 | CO4: -16 | CP4: 16 | CQ4: -16 | CR4: -16 | CS4: 16 | CT4: 16 | CU4: -16 | CV4: 16 | CW4: 16 | CX4: -16 | CY4: 16 | CZ4: 16 | DA4: -16 | DB4: -16 | DC4: -16 | DD4: -16 | DE4: -16 | DF4: 16 | DG4: 16 | DH4: 16 | DI4: 16 | DJ4: -16 | DK4: 16 | DL4: -16 | DM4: 16 | DN4: -16 | DO4: -16 | DP4: 16 | DQ4: -16 | DR4: 16 | DS4: -16 | DT4: 16 | DU4: -16 | DV4: -16 | DW4: 16 | DX4: -16
A5: 16 | B5: 16 | C5: 16 | D5: 16 | E5: 16 | F5: 16 | G5: -16 | H5: 16 | I5: 16 | J5: -16 | K5: 16 | L5: 16 | M5: 16 | N5: 16 | O5: 16 | P5: 16 | Q5: -16 | R5: 16 | S5: 16 | T5: -16 | U5: -16 | V5: -16 | W5: 16 | X5: 16 | Y5: -16 | Z5: -16 | AA5: 16 | AB5: 16 | AC5: -16 | AD5: -16 | AE5: -16 | AF5: -16 | AG5: -16 | AH5: -16 | AI5: 16 | AJ5: 16 | AK5: 16 | AL5: 16 | AM5: -16 | AN5: -16 | AO5: 16 | AP5: 16 | AQ5: -64 | AR5: -16 | AS5: 16 | AT5: -16 | AU5: 16 | AV5: -16 | AW5: 16 | AX5: -16 | AY5: -16 | AZ5: -16 | BA5: 16 | BB5: -16 | BC5: 16 | BD5: 16 | BE5: -16 | BF5: -16 | BG5: 16 | BH5: 16 | BI5: -16 | BJ5: -16 | BK5: -16 | BL5: -16 | BM5: -16 | BN5: 16 | BO5: 16 | BP5: 16 | BQ5: -16 | BR5: -16 | BS5: 16 | BT5: -16 | BU5: 16 | BV5: -16 | BW5: 16 | BX5: 16 | BY5: -16 | BZ5: -16 | CA5: -16 | CB5: 16 | CC5: 16 | CD5: 16 | CE5: 16 | CF5: 16 | CG5: 16 | CH5: -16 | CI5: -16 | CJ5: 16 | CK5: -16 | CL5: -16 | CM5: 16 | CN5: 16 | CO5: -16 | CP5: -16 | CQ5: 16 | CR5: 16 | CS5: -16 | CT5: 16 | CU5: -16 | CV5: -16 | CW5: 16 | CX5: -16 | CY5: 16 | CZ5: -16 | DA5: -16 | DB5: 16 | DC5: 16 | DD5: -16 | DE5: 16 | DF5: 16 | DG5: 16 | DH5: -16 | DI5: 16 | DJ5: 16 | DK5: 16 | DL5: 16 | DM5: 16 | DN5: -16 | DO5: -16 | DP5: 16 | DQ5: 16 | DR5: -16 | DS5: -16 | DT5: 16 | DU5: 16 | DV5: -16 | DW5: -16 | DX5: -16
A6: 64 | B6: 16 | C6: -16 | D6: 16 | E6: -16 | F6: 64 | G6: -16 | H6: -16 | I6: -16 | J6: 64 | K6: 64 | L6: 64 | M6: 16 | N6: 16 | O6: 16 | P6: 16 | Q6: -64 | R6: -16 | S6: 64 | T6: 16 | U6: -16 | V6: 16 | W6: 16 | X6: 16 | Y6: 16 | Z6: 64 | AA6: 16 | AB6: -16 | AC6: 16 | AD6: -64 | AE6: -16 | AF6: 16 | AG6: 16 | AH6: -16 | AI6: -16 | AJ6: -16 | AK6: 16 | AL6: 64 | AM6: -16 | AN6: -16 | AO6: 16 | AP6: -16 | AQ6: -16 | AR6: 16 | AS6: -16 | AT6: -16 | AU6: -16 | AV6: -64 | AW6: -16 | AX6: 16 | AY6: -16 | AZ6: 16 | BA6: 16 | BB6: -16 | BC6: 16 | BD6: 16 | BE6: 16 | BF6: -16 | BG6: 64 | BH6: -16 | BI6: 16 | BJ6: 16 | BK6: -16 | BL6: 64 | BM6: -16 | BN6: -16 | BO6: 16 | BP6: 16 | BQ6: -16 | BR6: 16 | BS6: -16 | BT6: -16 | BU6: 16 | BV6: 16 | BW6: 16 | BX6: -16 | BY6: -16 | BZ6: -16 | CA6: -16 | CB6: -16 | CC6: 16 | CD6: 16 | CE6: 16 | CF6: 64 | CG6: -16 | CH6: -16 | CI6: -64 | CJ6: -16 | CK6: -16 | CL6: 16 | CM6: -16 | CN6: 16 | CO6: 16 | CP6: 16 | CQ6: 16 | CR6: -16 | CS6: 16 | CT6: 16 | CU6: -16 | CV6: 16 | CW6: -16 | CX6: 16 | CY6: 16 | CZ6: -16 | DA6: -16 | DB6: -16 | DC6: -16 | DD6: -16 | DE6: 16 | DF6: 16 | DG6: 16 | DH6: -64 | DI6: 16 | DJ6: -16 | DK6: -16 | DL6: -16 | DM6: 16 | DN6: -16 | DO6: -16 | DP6: -16 | DQ6: 16 | DR6: -64 | DS6: -16 | DT6: 16 | DU6: 64 | DV6: 16 | DW6: 16 | DX6: 16
A7: -16 | B7: 16 | C7: 16 | D7: -16 | E7: 16 | F7: -16 | G7: 16 | H7: -16 | I7: -16 | J7: -16 | K7: 16 | L7: -16 | M7: 16 | N7: -16 | O7: -16 | P7: -16 | Q7: 16 | R7: 16 | S7: -16 | T7: -16 | U7: -16 | V7: 16 | W7: 16 | X7: 16 | Y7: -16 | Z7: -16 | AA7: -16 | AB7: 16 | AC7: -16 | AD7: 16 | AE7: 64 | AF7: -16 | AG7: 16 | AH7: 16 | AI7: 16 | AJ7: -16 | AK7: -16 | AL7: 16 | AM7: 16 | AN7: -16 | AO7: 16 | AP7: -16 | AQ7: -16 | AR7: -16 | AS7: 16 | AT7: -16 | AU7: -16 | AV7: 16 | AW7: 16 | AX7: 16 | AY7: 16 | AZ7: 16 | BA7: 16 | BB7: 16 | BC7: 16 | BD7: 16 | BE7: 16 | BF7: -16 | BG7: -16 | BH7: -16 | BI7: -16 | BJ7: 16 | BK7: -16 | BL7: 16 | BM7: -16 | BN7: 16 | BO7: 16 | BP7: -16 | BQ7: -16 | BR7: -16 | BS7: 16 | BT7: -16 | BU7: -16 | BV7: -16 | BW7: 16 | BX7: 16 | BY7: 16 | BZ7: 16 | CA7: 16 | CB7: 16 | CC7: -16 | CD7: 16 | CE7: -16 | CF7: -16 | CG7: 16 | CH7: 16 | CI7: 16 | CJ7: 16 | CK7: 16 | CL7: 16 | CM7: 16 | CN7: -16 | CO7: -16 | CP7: 16 | CQ7: -16 | CR7: -16 | CS7: 16 | CT7: 16 | CU7: -16 | CV7: 16 | CW7: -16 | CX7: 16 | CY7: 16 | CZ7: -16 | DA7: 16 | DB7: 16 | DC7: 16 | DD7: -16 | DE7: -16 | DF7: -16 | DG7: -16 | DH7: 16 | DI7: 16 | DJ7: 16 | DK7: 16 | DL7: 16 | DM7: -16 | DN7: -16 | DO7: -16 | DP7: 16 | DQ7: -16 | DR7: 16 | DS7: 16 | DT7: -16 | DU7: 16 | DV7: 16 | DW7: -16 | DX7: 16
A8: 16 | B8: 16 | C8: -16 | D8: -16 | E8: -16 | F8: -16 | G8: 16 | H8: 16 | I8: -16 | J8: -16 | K8: -16 | L8: 16 | M8: 16 | N8: -16 | O8: -16 | P8: 16 | Q8: 16 | R8: 16 | S8: -16 | T8: 16 | U8: -16 | V8: 16 | W8: -16 | X8: 16 | Y8: -16 | Z8: 16 | AA8: 16 | AB8: 16 | AC8: 16 | AD8: 16 | AE8: -16 | AF8: -16 | AG8: -16 | AH8: 16 | AI8: -16 | AJ8: -16 | AK8: 16 | AL8: -16 | AM8: 16 | AN8: 16 | AO8: -16 | AP8: 16 | AQ8: -16 | AR8: -16 | AS8: 16 | AT8: 16 | AU8: 16 | AV8: -16 | AW8: -16 | AX8: -16 | AY8: 16 | AZ8: 16 | BA8: -16 | BB8: 16 | BC8: -16 | BD8: 16 | BE8: 16 | BF8: -16 | BG8: -16 | BH8: 16 | BI8: 16 | BJ8: 16 | BK8: -16 | BL8: -16 | BM8: 16 | BN8: 16 | BO8: 16 | BP8: -16 | BQ8: 16 | BR8: -16 | BS8: -16 | BT8: 16 | BU8: -16 | BV8: -16 | BW8: -16 | BX8: -16 | BY8: -16 | BZ8: -16 | CA8: -16 | CB8: 16 | CC8: -16 | CD8: -16 | CE8: -16 | CF8: -16 | CG8: 16 | CH8: -16 | CI8: 16 | CJ8: 16 | CK8: 16 | CL8: -16 | CM8: 16 | CN8: -16 | CO8: 16 | CP8: 16 | CQ8: 16 | CR8: -16 | CS8: -16 | CT8: -16 | CU8: -16 | CV8: -16 | CW8: 16 | CX8: -16 | CY8: -16 | CZ8: -16 | DA8: 16 | DB8: -16 | DC8: -16 | DD8: -16 | DE8: -16 | DF8: 16 | DG8: 16 | DH8: -16 | DI8: 16 | DJ8: -16 | DK8: -16 | DL8: 16 | DM8: 16 | DN8: -16 | DO8: 16 | DP8: 16 | DQ8: -16 | DR8: -16 | DS8: -16 | DT8: -16 | DU8: 16 | DV8: -16 | DW8: 16 | DX8: 16
A9: -16 | B9: -16 | C9: -16 | D9: 16 | E9: 16 | F9: 16 | G9: 16 | H9: -16 | I9: -16 | J9: 16 | K9: 16 | L9: -16 | M9: 16 | N9: 16 | O9: 16 | P9: 16 | Q9: -16 | R9: 16 | S9: -16 | T9: -16 | U9: 16 | V9: 16 | W9: 16 | X9: -16 | Y9: -16 | Z9: -16 | AA9: -16 | AB9: 16 | AC9: -16 | AD9: -16 | AE9: -16 | AF9: 16 | AG9: 16 | AH9: -16 | AI9: -16 | AJ9: 16 | AK9: 16 | AL9: 16 | AM9: 16 | AN9: 16 | AO9: 16 | AP9: 16 | AQ9: -16 | AR9: -16 | AS9: 16 | AT9: 16 | AU9: 64 | AV9: 16 | AW9: 16 | AX9: 16 | AY9: -16 | AZ9: -16 | BA9: -16 | BB9: -16 | BC9: -16 | BD9: 16 | BE9: -16 | BF9: 16 | BG9: 16 | BH9: -16 | BI9: -16 | BJ9: 16 | BK9: 16 | BL9: 16 | BM9: 16 | BN9: 16 | BO9: -16 | BP9: 16 | BQ9: -16 | BR9: -16 | BS9: 16 | BT9: -16 | BU9: 16 | BV9: -16 | BW9: -16 | BX9: 16 | BY9: 16 | BZ9: 16 | CA9: -16 | CB9: 16 | CC9: -16 | CD9: 16 | CE9: 16 | CF9: -16 | CG9: 16 | CH9: -16 | CI9: 16 | CJ9: 64 | CK9: 16 | CL9: 16 | CM9: -16 | CN9: -16 | CO9: -16 | CP9: -16 | CQ9: 16 | CR9: 16 | CS9: 16 | CT9: 16 | CU9: 16 | CV9: 16 | CW9: -16 | CX9: 16 | CY9: 16 | CZ9: 16 | DA9: -16 | DB9: -16 | DC9: 16 | DD9: -16 | DE9: -16 | DF9: 16 | DG9: 16 | DH9: 16 | DI9: -16 | DJ9: -16 | DK9: -16 | DL9: 16 | DM9: 64 | DN9: 16 | DO9: -16 | DP9: 16 | DQ9: 16 | DR9: 64 | DS9: -16 | DT9: -16 | DU9: -16 | DV9: 16 | DW9: -16 | DX9: -16
A10: -16 | B10: 16 | C10: 16 | D10: 16 | E10: -16 | F10: -16 | G10: 16 | H10: -16 | I10: -16 | J10: 16 | K10: 16 | L10: -16 | M10: -16 | N10: -16 | O10: -16 | P10: -16 | Q10: -16 | R10: -16 | S10: -16 | T10: -16 | U10: -16 | V10: 16 | W10: -16 | X10: -16 | Y10: -16 | Z10: 16 | AA10: 16 | AB10: 64 | AC10: 16 | AD10: 16 | AE10: 16 | AF10: 16 | AG10: -64 | AH10: -16 | AI10: 16 | AJ10: -16 | AK10: 16 | AL10: -16 | AM10: 16 | AN10: 16 | AO10: -16 | AP10: -16 | AQ10: 16 | AR10: 16 | AS10: 16 | AT10: -16 | AU10: 16 | AV10: 16 | AW10: -16 | AX10: -16 | AY10: 16 | AZ10: -16 | BA10: -16 | BB10: -16 | BC10: -16 | BD10: -16 | BE10: -16 | BF10: 16 | BG10: -16 | BH10: 16 | BI10: 16 | BJ10: -64 | BK10: -16 | BL10: -16 | BM10: 16 | BN10: 16 | BO10: -16 | BP10: 16 | BQ10: -16 | BR10: 16 | BS10: -16 | BT10: 16 | BU10: 16 | BV10: -16 | BW10: -16 | BX10: -16 | BY10: 16 | BZ10: 16 | CA10: -16 | CB10: 16 | CC10: 16 | CD10: -16 | CE10: -64 | CF10: 16 | CG10: 16 | CH10: -16 | CI10: 16 | CJ10: -16 | CK10: 16 | CL10: -16 | CM10: 16 | CN10: -16 | CO10: 16 | CP10: -16 | CQ10: 16 | CR10: 16 | CS10: -16 | CT10: 16 | CU10: 16 | CV10: 16 | CW10: 16 | CX10: 16 | CY10: 16 | CZ10: 16 | DA10: -16 | DB10: 16 | DC10: 16 | DD10: -16 | DE10: 16 | DF10: 16 | DG10: 16 | DH10: -16 | DI10: -16 | DJ10: -16 | DK10: 16 | DL10: 16 | DM10: 16 | DN10: -16 | DO10: 16 | DP10: 16 | DQ10: -16 | DR10: 16 | DS10: 16 | DT10: -16 | DU10: -16 | DV10: 16 | DW10: -16 | DX10: 16
A11: 16 | B11: 16 | C11: -16 | D11: -16 | E11: -16 | F11: 16 | G11: 16 | H11: -16 | I11: 16 | J11: 16 | K11: 16 | L11: 16 | M11: 16 | N11: 16 | O11: 16 | P11: 16 | Q11: -16 | R11: -16 | S11: 16 | T11: 16 | U11: 16 | V11: 16 | W11: 16 | X11: -16 | Y11: 16 | Z11: -16 | AA11: 16 | AB11: 16 | AC11: -16 | AD11: -16 | AE11: -16 | AF11: 16 | AG11: 64 | AH11: -16 | AI11: -16 | AJ11: 16 | AK11: -16 | AL11: 16 | AM11: -16 | AN11: -16 | AO11: -16 | AP11: -16 | AQ11: -16 | AR11: 16 | AS11: -16 | AT11: -16 | AU11: -16 | AV11: -16 | AW11: 16 | AX11: 64 | AY11: -16 | AZ11: 16 | BA11: 16 | BB11: 16 | BC11: 64 | BD11: 64 | BE11: -16 | BF11: -16 | BG11: 16 | BH11: -16 | BI11: 16 | BJ11: 16 | BK11: -16 | BL11: 16 | BM11: 16 | BN11: -16 | BO11: 16 | BP11: -16 | BQ11: -16 | BR11: -16 | BS11: 64 | BT11: 16 | BU11: -16 | BV11: -16 | BW11: 16 | BX11: -16 | BY11: -16 | BZ11: -16 | CA11: -16 | CB11: -16 | CC11: 16 | CD11: -16 | CE11: 16 | CF11: 16 | CG11: -16 | CH11: 16 | CI11: 16 | CJ11: 16 | CK11: -16 | CL11: 16 | CM11: -16 | CN11: -16 | CO11: -16 | CP11: -16 | CQ11: -64 | CR11: -16 | CS11: 16 | CT11: 16 | CU11: -16 | CV11: -16 | CW11: 16 | CX11: 16 | CY11: 16 | CZ11: -16 | DA11: -16 | DB11: -16 | DC11: -16 | DD11: -16 | DE11: 16 | DF11: 16 | DG11: 16 | DH11: 16 | DI11: 16 | DJ11: 16 | DK11: 16 | DL11: 16 | DM11: 16 | DN11: 16 | DO11: 16 | DP11: -16 | DQ11: -16 | DR11: 16 | DS11: -16 | DT11: 64 | DU11: 16 | DV11: -16 | DW11: 16 | DX11: -16
A12: 64 | B12: -16 | C12: 16 | D12: -16 | E12: 16 | F12: -16 | G12: 16 | H12: 16 | I12: 16 | J12: 16 | K12: -16 | L12: 16 | M12: -16 | N12: 16 | O12: -16 | P12: -16 | Q12: 16 | R12: 16 | S12: -16 | T12: -16 | U12: -16 | V12: -16 | W12: -16 | X12: 16 | Y12: -16 | Z12: -16 | AA12: -16 | AB12: -16 | AC12: -16 | AD12: 16 | AE12: -16 | AF12: 16 | AG12: 16 | AH12: 16 | AI12: -16 | AJ12: 16 | AK12: 16 | AL12: -16 | AM12: 16 | AN12: 16 | AO12: -16 | AP12: -16 | AQ12: -16 | AR12: 16 | AS12: 16 | AT12: -16 | AU12: 16 | AV12: 16 | AW12: -16 | AX12: 16 | AY12: -16 | AZ12: 16 | BA12: 16 | BB12: -16 | BC12: 16 | BD12: 16 | BE12: -16 | BF12: 16 | BG12: 16 | BH12: 16 | BI12: 16 | BJ12: -16 | BK12: 16 | BL12: 16 | BM12: -16 | BN12: -16 | BO12: -16 | BP12: -16 | BQ12: -16 | BR12: 16 | BS12: 16 | BT12: -16 | BU12: 16 | BV12: -16 | BW12: -16 | BX12: -16 | BY12: 16 | BZ12: -16 | CA12: 16 | CB12: 16 | CC12: 16 | CD12: 16 | CE12: -16 | CF12: 16 | CG12: 16 | CH12: 16 | CI12: -16 | CJ12: -16 | CK12: 16 | CL12: -16 | CM12: 16 | CN12: -16 | CO12: -16 | CP12: -16 | CQ12: -16 | CR12: 16 | CS12: -16 | CT12: 16 | CU12: -16 | CV12: 16 | CW12: -16 | CX12: 16 | CY12: 16 | CZ12: 16 | DA12: -16 | DB12: 16 | DC12: -16 | DD12: -16 | DE12: -16 | DF12: -16 | DG12: -16 | DH12: 16 | DI12: 16 | DJ12: 16 | DK12: 16 | DL12: 16 | DM12: 16 | DN12: -16 | DO12: -16 | DP12: 16 | DQ12: -16 | DR12: 16 | DS12: 16 | DT12: 16 | DU12: -16 | DV12: 16 | DW12: -16 | DX12: -16
A13: -16 | B13: 16 | C13: 16 | D13: -16 | E13: 16 | F13: -16 | G13: 16 | H13: -16 | I13: -16 | J13: 16 | K13: -16 | L13: -16 | M13: 16 | N13: 16 | O13: 16 | P13: 16 | Q13: 16 | R13: -16 | S13: -16 | T13: -16 | U13: 16 | V13: 16 | W13: -16 | X13: -16 | Y13: -16 | Z13: -16 | AA13: 16 | AB13: -16 | AC13: -16 | AD13: -16 | AE13: 16 | AF13: 16 | AG13: 16 | AH13: -16 | AI13: 16 | AJ13: 16 | AK13: -64 | AL13: -16 | AM13: 64 | AN13: -16 | AO13: -16 | AP13: -16 | AQ13: -16 | AR13: 16 | AS13: 16 | AT13: -16 | AU13: 16 | AV13: 16 | AW13: 16 | AX13: 16 | AY13: -16 | AZ13: -16 | BA13: -16 | BB13: -16 | BC13: 16 | BD13: 16 | BE13: 16 | BF13: -16 | BG13: 16 | BH13: -16 | BI13: 16 | BJ13: -16 | BK13: 16 | BL13: -16 | BM13: -16 | BN13: 16 | BO13: -16 | BP13: 16 | BQ13: 16 | BR13: -16 | BS13: 16 | BT13: -16 | BU13: -16 | BV13: -16 | BW13: -16 | BX13: -16 | BY13: -16 | BZ13: -16 | CA13: -16 | CB13: -16 | CC13: -16 | CD13: 16 | CE13: -16 | CF13: -16 | CG13: 16 | CH13: -16 | CI13: -16 | CJ13: 16 | CK13: -16 | CL13: 16 | CM13: 16 | CN13: -16 | CO13: -16 | CP13: 16 | CQ13: -16 | CR13: -16 | CS13: -16 | CT13: 16 | CU13: -16 | CV13: -16 | CW13: 16 | CX13: 16 | CY13: -16 | CZ13: 16 | DA13: 16 | DB13: 16 | DC13: 16 | DD13: 16 | DE13: 16 | DF13: -16 | DG13: 16 | DH13: 16 | DI13: -16 | DJ13: -16 | DK13: 16 | DL13: 16 | DM13: -16 | DN13: -16 | DO13: -16 | DP13: -16 | DQ13: -16 | DR13: -16 | DS13: -16 | DT13: 64 | DU13: -16 | DV13: 16 | DW13: -16 | DX13: -16
A14: 16 | B14: -16 | C14: -16 | D14: 16 | E14: 16 | F14: -16 | G14: 16 | H14: 16 | I14: -16 | J14: -16 | K14: 16 | L14: -16 | M14: -16 | N14: 16 | O14: 16 | P14: -16 | Q14: -16 | R14: 16 | S14: -16 | T14: 16 | U14: 16 | V14: 16 | W14: -16 | X14: 16 | Y14: 16 | Z14: -16 | AA14: -16 | AB14: 16 | AC14: -16 | AD14: -16 | AE14: 16 | AF14: 16 | AG14: 16 | AH14: -16 | AI14: -16 | AJ14: -16 | AK14: 16 | AL14: 16 | AM14: 16 | AN14: 16 | AO14: 16 | AP14: -16 | AQ14: -16 | AR14: -16 | AS14: -16 | AT14: -16 | AU14: 16 | AV14: 16 | AW14: 16 | AX14: -16 | AY14: 16 | AZ14: 16 | BA14: 16 | BB14: 16 | BC14: 16 | BD14: 16 | BE14: 16 | BF14: 16 | BG14: 16 | BH14: 16 | BI14: 16 | BJ14: -16 | BK14: 16 | BL14: -16 | BM14: -16 | BN14: -16 | BO14: 16 | BP14: 16 | BQ14: -16 | BR14: -16 | BS14: -16 | BT14: 16 | BU14: 16 | BV14: -16 | BW14: 16 | BX14: 16 | BY14: -16 | BZ14: 16 | CA14: 16 | CB14: -16 | CC14: 16 | CD14: 16 | CE14: 16 | CF14: 16 | CG14: 16 | CH14: 16 | CI14: -16 | CJ14: 16 | CK14: 16 | CL14: -16 | CM14: -16 | CN14: 16 | CO14: -16 | CP14: 16 | CQ14: 16 | CR14: 16 | CS14: 16 | CT14: 16 | CU14: -16 | CV14: -16 | CW14: -16 | CX14: -16 | CY14: 16 | CZ14: 16 | DA14: -16 | DB14: 16 | DC14: 16 | DD14: 16 | DE14: 16 | DF14: -16 | DG14: -16 | DH14: 16 | DI14: 16 | DJ14: -16 | DK14: -16 | DL14: -16 | DM14: -16 | DN14: 16 | DO14: 16 | DP14: 16 | DQ14: -16 | DR14: 16 | DS14: -16 | DT14: -16 | DU14: 16 | DV14: 16 | DW14: -16 | DX14: -16
A15: 64 | B15: -16 | C15: -16 | D15: -64 | E15: -16 | F15: 16 | G15: 16 | H15: -16 | I15: -16 | J15: 64 | K15: 64 | L15: 16 | M15: 16 | N15: 16 | O15: 16 | P15: 16 | Q15: -64 | R15: -64 | S15: 16 | T15: 16 | U15: 16 | V15: 16 | W15: 64 | X15: -16 | Y15: 16 | Z15: 16 | AA15: 64 | AB15: 16 | AC15: -16 | AD15: -64 | AE15: -16 | AF15: 16 | AG15: 64 | AH15: -16 | AI15: 16 | AJ15: 16 | AK15: -16 | AL15: 16 | AM15: -16 | AN15: -16 | AO15: -16 | AP15: 16 | AQ15: -16 | AR15: 64 | AS15: -16 | AT15: 16 | AU15: -16 | AV15: -16 | AW15: -16 | AX15: 16 | AY15: 16 | AZ15: -16 | BA15: 16 | BB15: 16 | BC15: 64 | BD15: -16 | BE15: 16 | BF15: 16 | BG15: 64 | BH15: -16 | BI15: 16 | BJ15: 16 | BK15: -16 | BL15: 16 | BM15: -16 | BN15: 16 | BO15: 64 | BP15: -16 | BQ15: -16 | BR15: -64 | BS15: 16 | BT15: -16 | BU15: -16 | BV15: 16 | BW15: 16 | BX15: 16 | BY15: -16 | BZ15: 16 | CA15: -16 | CB15: -16 | CC15: 16 | CD15: -16 | CE15: 16 | CF15: 64 | CG15: 16 | CH15: 16 | CI15: -16 | CJ15: 16 | CK15: -64 | CL15: 16 | CM15: -16 | CN15: 16 | CO15: -16 | CP15: 16 | CQ15: -16 | CR15: -16 | CS15: 16 | CT15: 64 | CU15: -16 | CV15: -16 | CW15: -16 | CX15: 16 | CY15: -16 | CZ15: -16 | DA15: -16 | DB15: -16 | DC15: -16 | DD15: -16 | DE15: 16 | DF15: 16 | DG15: 16 | DH15: -16 | DI15: 64 | DJ15: 16 | DK15: -16 | DL15: 16 | DM15: 16 | DN15: 16 | DO15: -16 | DP15: -16 | DQ15: -16 | DR15: -16 | DS15: -16 | DT15: 64 | DU15: 16 | DV15: -16 | DW15: 16 | DX15: 16
A16: -16 | B16: -16 | C16: -16 | D16: 16 | E16: 16 | F16: -16 | G16: -16 | H16: -16 | I16: 16 | J16: -16 | K16: -16 | L16: 16 | M16: 16 | N16: 16 | O16: 16 | P16: -16 | Q16: -16 | R16: 16 | S16: 16 | T16: -16 | U16: 16 | V16: 16 | W16: 16 | X16: -16 | Y16: 16 | Z16: -16 | AA16: -16 | AB16: -16 | AC16: 16 | AD16: -16 | AE16: 16 | AF16: 16 | AG16: -16 | AH16: 16 | AI16: 16 | AJ16: 16 | AK16: -16 | AL16: -16 | AM16: 16 | AN16: -16 | AO16: 16 | AP16: 16 | AQ16: -16 | AR16: 16 | AS16: 16 | AT16: -16 | AU16: 16 | AV16: 16 | AW16: 16 | AX16: -16 | AY16: -16 | AZ16: -16 | BA16: -16 | BB16: -16 | BC16: -16 | BD16: -16 | BE16: 16 | BF16: 16 | BG16: -16 | BH16: 16 | BI16: -16 | BJ16: -16 | BK16: 16 | BL16: 16 | BM16: 16 | BN16: -16 | BO16: -16 | BP16: 16 | BQ16: -16 | BR16: -16 | BS16: -16 | BT16: -16 | BU16: -16 | BV16: 16 | BW16: -16 | BX16: 16 | BY16: 16 | BZ16: 16 | CA16: -16 | CB16: 16 | CC16: 16 | CD16: 16 | CE16: 16 | CF16: -16 | CG16: -16 | CH16: -16 | CI16: 16 | CJ16: 16 | CK16: -16 | CL16: 16 | CM16: 16 | CN16: -16 | CO16: 16 | CP16: -16 | CQ16: 16 | CR16: -16 | CS16: 16 | CT16: -16 | CU16: -16 | CV16: -16 | CW16: -16 | CX16: -16 | CY16: -16 | CZ16: -16 | DA16: 16 | DB16: -16 | DC16: 16 | DD16: 16 | DE16: -16 | DF16: 16 | DG16: -16 | DH16: -16 | DI16: -16 | DJ16: -16 | DK16: 16 | DL16: -16 | DM16: -16 | DN16: -16 | DO16: 16 | DP16: 16 | DQ16: 16 | DR16: 16 | DS16: 16 | DT16: 16 | DU16: 16 | DV16: 16 | DW16: 16 | DX16: 16
A17: 16 | B17: -16 | C17: 16 | D17: -16 | E17: 16 | F17: 16 | G17: -16 | H17: 16 | I17: -16 | J17: 16 | K17: 16 | L17: 16 | M17: 16 | N17: 64 | O17: 16 | P17: -16 | Q17: 16 | R17: 16 | S17: 16 | T17: 16 | U17: 16 | V17: 16 | W17: 16 | X17: -16 | Y17: 16 | Z17: 16 | AA17: 16 | AB17: -16 | AC17: 16 | AD17: -16 | AE17: 16 | AF17: 16 | AG17: 16 | AH17: -64 | AI17: -16 | AJ17: 64 | AK17: -16 | AL17: 16 | AM17: 16 | AN17: -64 | AO17: 16 | AP17: -16 | AQ17: -16 | AR17: 64 | AS17: -16 | AT17: -16 | AU17: 16 | AV17: -16 | AW17: -16 | AX17: 16 | AY17: 16 | AZ17: 16 | BA17: 16 | BB17: 16 | BC17: 16 | BD17: 16 | BE17: 16 | BF17: -16 | BG17: 16 | BH17: -16 | BI17: 16 | BJ17: 16 | BK17: 16 | BL17: 16 | BM17: -16 | BN17: 16 | BO17: 16 | BP17: -16 | BQ17: -16 | BR17: -16 | BS17: 16 | BT17: -16 | BU17: -16 | BV17: -16 | BW17: 16 | BX17: 16 | BY17: -16 | BZ17: -16 | CA17: -64 | CB17: -16 | CC17: 64 | CD17: -16 | CE17: 16 | CF17: 16 | CG17: 16 | CH17: 16 | CI17: 16 | CJ17: 16 | CK17: -16 | CL17: 16 | CM17: 16 | CN17: -16 | CO17: -16 | CP17: 16 | CQ17: 16 | CR17: -16 | CS17: 16 | CT17: 16 | CU17: -16 | CV17: -16 | CW17: -16 | CX17: 16 | CY17: -16 | CZ17: -16 | DA17: -16 | DB17: 16 | DC17: 16 | DD17: 16 | DE17: 16 | DF17: -16 | DG17: 16 | DH17: 16 | DI17: 16 | DJ17: -16 | DK17: 16 | DL17: 16 | DM17: -16 | DN17: -16 | DO17: -16 | DP17: -16 | DQ17: 16 | DR17: 16 | DS17: 16 | DT17: 16 | DU17: 16 | DV17: -16 | DW17: 16 | DX17: 16
A18: 16 | B18: -16 | C18: 16 | D18: -16 | E18: -16 | F18: -16 | G18: -16 | H18: 16 | I18: 16 | J18: 16 | K18: 64 | L18: 16 | M18: 16 | N18: 16 | O18: -16 | P18: -16 | Q18: -16 | R18: 16 | S18: 64 | T18: -16 | U18: 64 | V18: 16 | W18: 16 | X18: -16 | Y18: 64 | Z18: -16 | AA18: 16 | AB18: -16 | AC18: 16 | AD18: 16 | AE18: -16 | AF18: 16 | AG18: 16 | AH18: -16 | AI18: -16 | AJ18: -16 | AK18: -16 | AL18: 16 | AM18: 16 | AN18: -16 | AO18: -16 | AP18: -16 | AQ18: -16 | AR18: 16 | AS18: -16 | AT18: -16 | AU18: -16 | AV18: 16 | AW18: -16 | AX18: 64 | AY18: -16 | AZ18: 16 | BA18: 16 | BB18: 16 | BC18: 16 | BD18: -16 | BE18: -16 | BF18: 16 | BG18: 16 | BH18: 16 | BI18: 64 | BJ18: 16 | BK18: -16 | BL18: 16 | BM18: -16 | BN18: 16 | BO18: 16 | BP18: 16 | BQ18: 16 | BR18: -16 | BS18: 16 | BT18: 16 | BU18: -16 | BV18: 16 | BW18: 16 | BX18: -16 | BY18: -16 | BZ18: -16 | CA18: -16 | CB18: 16 | CC18: -16 | CD18: 16 | CE18: 64 | CF18: -16 | CG18: -16 | CH18: 16 | CI18: -16 | CJ18: -16 | CK18: 16 | CL18: 16 | CM18: -16 | CN18: -16 | CO18: -16 | CP18: -16 | CQ18: -16 | CR18: -16 | CS18: 16 | CT18: 16 | CU18: -16 | CV18: -16 | CW18: -16 | CX18: 16 | CY18: -16 | CZ18: -16 | DA18: 16 | DB18: -16 | DC18: -16 | DD18: 16 | DE18: -16 | DF18: -16 | DG18: 16 | DH18: -16 | DI18: 16 | DJ18: 16 | DK18: -16 | DL18: 64 | DM18: 16 | DN18: -16 | DO18: -16 | DP18: -16 | DQ18: 16 | DR18: 16 | DS18: 16 | DT18: 16 | DU18: 16 | DV18: -16 | DW18: 16 | DX18: 16
A19: 16 | B19: 16 | C19: -16 | D19: -16 | E19: -16 | F19: 16 | G19: 16 | H19: -16 | I19: 16 | J19: 16 | K19: 16 | L19: 16 | M19: 16 | N19: 16 | O19: 16 | P19: 16 | Q19: -16 | R19: -16 | S19: 16 | T19: 16 | U19: 16 | V19: 16 | W19: 16 | X19: -16 | Y19: -16 | Z19: 16 | AA19: 16 | AB19: -16 | AC19: -16 | AD19: 16 | AE19: -16 | AF19: 16 | AG19: 64 | AH19: -16 | AI19: 16 | AJ19: 16 | AK19: -16 | AL19: 16 | AM19: 16 | AN19: -16 | AO19: -16 | AP19: -16 | AQ19: 16 | AR19: -16 | AS19: -16 | AT19: -16 | AU19: 16 | AV19: 16 | AW19: -16 | AX19: 64 | AY19: 16 | AZ19: -16 | BA19: -16 | BB19: -16 | BC19: 16 | BD19: 16 | BE19: 16 | BF19: 16 | BG19: 16 | BH19: 16 | BI19: -16 | BJ19: 16 | BK19: -16 | BL19: 16 | BM19: -16 | BN19: -16 | BO19: -16 | BP19: -16 | BQ19: -16 | BR19: -64 | BS19: 16 | BT19: 16 | BU19: 16 | BV19: 16 | BW19: -16 | BX19: 16 | BY19: -16 | BZ19: -16 | CA19: -16 | CB19: -16 | CC19: 16 | CD19: -16 | CE19: 16 | CF19: -16 | CG19: -16 | CH19: -16 | CI19: 16 | CJ19: 16 | CK19: -16 | CL19: 16 | CM19: -16 | CN19: 16 | CO19: -16 | CP19: 16 | CQ19: -16 | CR19: 16 | CS19: -16 | CT19: 16 | CU19: 16 | CV19: -16 | CW19: 16 | CX19: 16 | CY19: -16 | CZ19: -16 | DA19: -16 | DB19: -16 | DC19: -16 | DD19: -16 | DE19: -16 | DF19: -16 | DG19: 16 | DH19: 16 | DI19: 16 | DJ19: 16 | DK19: 16 | DL19: 16 | DM19: -16 | DN19: 16 | DO19: -16 | DP19: 16 | DQ19: -16 | DR19: -16 | DS19: -16 | DT19: 16 | DU19: 16 | DV19: -16 | DW19: 16 | DX19: -16
A20: -16 | B20: -16 | C20: 16 | D20: 16 | E20: 16 | F20: 16 | G20: 16 | H20: 16 | I20: 16 | J20: -16 | K20: -16 | L20: 16 | M20: -16 | N20: -16 | O20: -16 | P20: 16 | Q20: -16 | R20: -16 | S20: 16 | T20: 16 | U20: 16 | V20: 16 | W20: 16 | X20: -16 | Y20: -16 | Z20: -16 | AA20: -16 | AB20: -16 | AC20: -16 | AD20: -16 | AE20: -16 | AF20: 16 | AG20: 16 | AH20: -16 | AI20: -16 | AJ20: -16 | AK20: -16 | AL20: -16 | AM20: 16 | AN20: -16 | AO20: -16 | AP20: 16 | AQ20: -16 | AR20: -16 | AS20: 16 | AT20: 16 | AU20: -16 | AV20: -16 | AW20: -16 | AX20: -16 | AY20: -16 | AZ20: 16 | BA20: 16 | BB20: -16 | BC20: -16 | BD20: 16 | BE20: 16 | BF20: 16 | BG20: 16 | BH20: -16 | BI20: 16 | BJ20: 16 | BK20: 16 | BL20: -16 | BM20: -16 | BN20: 16 | BO20: 16 | BP20: -16 | BQ20: -16 | BR20: -16 | BS20: 16 | BT20: 16 | BU20: -16 | BV20: 16 | BW20: -16 | BX20: 16 | BY20: -16 | BZ20: 16 | CA20: 16 | CB20: -16 | CC20: -16 | CD20: 16 | CE20: -16 | CF20: 16 | CG20: 16 | CH20: -16 | CI20: 16 | CJ20: 16 | CK20: -16 | CL20: 16 | CM20: 16 | CN20: 16 | CO20: 16 | CP20: -16 | CQ20: 16 | CR20: -16 | CS20: 16 | CT20: -16 | CU20: -16 | CV20: 16 | CW20: -16 | CX20: 16 | CY20: 16 | CZ20: 16 | DA20: 16 | DB20: -16 | DC20: -16 | DD20: -16 | DE20: -16 | DF20: 16 | DG20: 16 | DH20: -16 | DI20: -16 | DJ20: 16 | DK20: -16 | DL20: -16 | DM20: 16 | DN20: -16 | DO20: -16 | DP20: -16 | DQ20: -16 | DR20: -16 | DS20: -16 | DT20: 16 | DU20: 16 | DV20: -16 | DW20: -16 | DX20: 16
A21: 16 | B21: -16 | C21: -16 | D21: -16 | E21: 16 | F21: -64 | G21: -16 | H21: 16 | I21: 16 | J21: 16 | K21: 16 | L21: 16 | M21: -16 | N21: -16 | O21: -16 | P21: 16 | Q21: -16 | R21: -16 | S21: 16 | T21: -64 | U21: 16 | V21: 16 | W21: 16 | X21: -16 | Y21: 16 | Z21: -16 | AA21: 16 | AB21: -16 | AC21: -16 | AD21: -16 | AE21: -16 | AF21: 16 | AG21: 16 | AH21: 16 | AI21: 16 | AJ21: -16 | AK21: 16 | AL21: 16 | AM21: -16 | AN21: -16 | AO21: -16 | AP21: 16 | AQ21: -16 | AR21: 16 | AS21: -16 | AT21: -16 | AU21: -64 | AV21: -16 | AW21: 16 | AX21: 16 | AY21: -16 | AZ21: -16 | BA21: 16 | BB21: 16 | BC21: 16 | BD21: -16 | BE21: 16 | BF21: -16 | BG21: 16 | BH21: -16 | BI21: 16 | BJ21: 16 | BK21: -16 | BL21: 16 | BM21: -16 | BN21: -16 | BO21: 16 | BP21: -16 | BQ21: 16 | BR21: 16 | BS21: -16 | BT21: -16 | BU21: -16 | BV21: -16 | BW21: 64 | BX21: 16 | BY21: -16 | BZ21: -16 | CA21: -16 | CB21: -16 | CC21: -16 | CD21: -16 | CE21: 64 | CF21: -16 | CG21: -64 | CH21: 16 | CI21: -16 | CJ21: -16 | CK21: 16 | CL21: -16 | CM21: -16 | CN21: 16 | CO21: -16 | CP21: -16 | CQ21: 16 | CR21: -16 | CS21: 64 | CT21: -16 | CU21: -16 | CV21: -16 | CW21: -16 | CX21: 16 | CY21: -16 | CZ21: -16 | DA21: -16 | DB21: -16 | DC21: -16 | DD21: 16 | DE21: 16 | DF21: -16 | DG21: 16 | DH21: -64 | DI21: 16 | DJ21: 16 | DK21: -64 | DL21: -16 | DM21: 64 | DN21: 16 | DO21: -64 | DP21: -16 | DQ21: 16 | DR21: 16 | DS21: -16 | DT21: 16 | DU21: 16 | DV21: -16 | DW21: -16 | DX21: -16
A22: 16 | B22: -16 | C22: -16 | D22: -16 | E22: -16 | F22: -16 | G22: 16 | H22: 16 | I22: 16 | J22: 16 | K22: 16 | L22: 16 | M22: 16 | N22: 16 | O22: 16 | P22: 16 | Q22: -16 | R22: 16 | S22: 16 | T22: -16 | U22: 16 | V22: 16 | W22: 16 | X22: -16 | Y22: 16 | Z22: 16 | AA22: 16 | AB22: 16 | AC22: -16 | AD22: -16 | AE22: 16 | AF22: 64 | AG22: 16 | AH22: -16 | AI22: -16 | AJ22: 16 | AK22: 16 | AL22: 16 | AM22: 16 | AN22: -16 | AO22: -16 | AP22: -16 | AQ22: 16 | AR22: 16 | AS22: -16 | AT22: 16 | AU22: 16 | AV22: -16 | AW22: -16 | AX22: 16 | AY22: -16 | AZ22: -16 | BA22: 16 | BB22: -16 | BC22: 16 | BD22: -16 | BE22: 16 | BF22: -16 | BG22: 16 | BH22: -16 | BI22: 64 | BJ22: 16 | BK22: 16 | BL22: 16 | BM22: -16 | BN22: 16 | BO22: 64 | BP22: 16 | BQ22: 16 | BR22: -16 | BS22: 16 | BT22: -16 | BU22: 16 | BV22: -16 | BW22: 16 | BX22: -16 | BY22: 16 | BZ22: -16 | CA22: 16 | CB22: 16 | CC22: 16 | CD22: 16 | CE22: 16 | CF22: -16 | CG22: 16 | CH22: 16 | CI22: -16 | CJ22: 16 | CK22: 16 | CL22: 16 | CM22: -16 | CN22: -16 | CO22: -16 | CP22: 16 | CQ22: 16 | CR22: -16 | CS22: 16 | CT22: 16 | CU22: -16 | CV22: 16 | CW22: 16 | CX22: 16 | CY22: -16 | CZ22: -16 | DA22: 16 | DB22: -16 | DC22: 16 | DD22: -16 | DE22: -16 | DF22: 16 | DG22: 16 | DH22: -16 | DI22: 64 | DJ22: 16 | DK22: 16 | DL22: 16 | DM22: 16 | DN22: 16 | DO22: -16 | DP22: 16 | DQ22: 16 | DR22: -16 | DS22: 16 | DT22: 16 | DU22: 16 | DV22: 16 | DW22: 16 | DX22: 16
A23: 16 | B23: -16 | C23: 16 | D23: -16 | E23: 16 | F23: -16 | G23: -16 | H23: 16 | I23: -16 | J23: -16 | K23: 16 | L23: -16 | M23: 16 | N23: 16 | O23: -16 | P23: 16 | Q23: -16 | R23: -16 | S23: 16 | T23: -16 | U23: -16 | V23: -16 | W23: -16 | X23: -16 | Y23: -16 | Z23: 16 | AA23: 16 | AB23: -16 | AC23: 16 | AD23: -16 | AE23: 16 | AF23: -16 | AG23: -16 | AH23: 16 | AI23: 16 | AJ23: -16 | AK23: 16 | AL23: -16 | AM23: -16 | AN23: 16 | AO23: 16 | AP23: 16 | AQ23: 16 | AR23: -16 | AS23: -16 | AT23: -16 | AU23: 16 | AV23: -16 | AW23: -16 | AX23: -16 | AY23: 16 | AZ23: -16 | BA23: 16 | BB23: -16 | BC23: 16 | BD23: 16 | BE23: -16 | BF23: 16 | BG23: 16 | BH23: -16 | BI23: -16 | BJ23: 16 | BK23: -16 | BL23: 16 | BM23: 16 | BN23: 16 | BO23: 16 | BP23: 16 | BQ23: -16 | BR23: -16 | BS23: -16 | BT23: -16 | BU23: 16 | BV23: -16 | BW23: -16 | BX23: -16 | BY23: -16 | BZ23: 16 | CA23: 16 | CB23: 16 | CC23: 16 | CD23: -16 | CE23: 16 | CF23: -16 | CG23: 16 | CH23: 16 | CI23: -16 | CJ23: -16 | CK23: 16 | CL23: 16 | CM23: 16 | CN23: 16 | CO23: -16 | CP23: -16 | CQ23: 16 | CR23: -16 | CS23: 16 | CT23: -16 | CU23: 16 | CV23: 16 | CW23: -16 | CX23: -16 | CY23: 16 | CZ23: -16 | DA23: 16 | DB23: 16 | DC23: 16 | DD23: -16 | DE23: 16 | DF23: 16 | DG23: 16 | DH23: -16 | DI23: -16 | DJ23: -16 | DK23: -16 | DL23: 16 | DM23: -16 | DN23: 16 | DO23: -16 | DP23: -16 | DQ23: -16 | DR23: 16 | DS23: 16 | DT23: -16 | DU23: 16 | DV23: -16 | DW23: -16 | DX23: 16
A24: 64 | B24: -16 | C24: 16 | D24: -16 | E24: -16 | F24: 16 | G24: 64 | H24: -16 | I24: -16 | J24: -16 | K24: 64 | L24: -16 | M24: 16 | N24: 16 | O24: 16 | P24: 16 | Q24: 16 | R24: 16 | S24: -16 | T24: 16 | U24: 16 | V24: 64 | W24: 16 | X24: -64 | Y24: 16 | Z24: -16 | AA24: -16 | AB24: 16 | AC24: -16 | AD24: 16 | AE24: 16 | AF24: 16 | AG24: 64 | AH24: -16 | AI24: 16 | AJ24: 64 | AK24: -64 | AL24: -16 | AM24: 16 | AN24: -16 | AO24: -16 | AP24: 16 | AQ24: -16 | AR24: 16 | AS24: 16 | AT24: -16 | AU24: 16 | AV24: 16 | AW24: -16 | AX24: 64 | AY24: -16 | AZ24: -16 | BA24: -16 | BB24: 16 | BC24: 16 | BD24: 16 | BE24: -16 | BF24: 16 | BG24: 64 | BH24: 16 | BI24: 16 | BJ24: -16 | BK24: 16 | BL24: -16 | BM24: -16 | BN24: 16 | BO24: -16 | BP24: -16 | BQ24: -16 | BR24: -64 | BS24: 64 | BT24: -16 | BU24: 16 | BV24: 16 | BW24: 16 | BX24: -16 | BY24: 16 | BZ24: -16 | CA24: -16 | CB24: 16 | CC24: 64 | CD24: 16 | CE24: -16 | CF24: 16 | CG24: 16 | CH24: -16 | CI24: 16 | CJ24: 16 | CK24: -16 | CL24: 16 | CM24: 16 | CN24: -16 | CO24: -16 | CP24: 16 | CQ24: -16 | CR24: -16 | CS24: -16 | CT24: 16 | CU24: -16 | CV24: 16 | CW24: 16 | CX24: 64 | CY24: -16 | CZ24: 16 | DA24: -16 | DB24: -16 | DC24: 16 | DD24: 16 | DE24: -16 | DF24: -16 | DG24: 16 | DH24: 16 | DI24: -16 | DJ24: -16 | DK24: 16 | DL24: 16 | DM24: -16 | DN24: -16 | DO24: -16 | DP24: 16 | DQ24: -16 | DR24: 64 | DS24: -16 | DT24: 16 | DU24: -16 | DV24: 16 | DW24: 16 | DX24: -16
A25: -16 | B25: -16 | C25: 16 | D25: -16 | E25: -16 | F25: 16 | G25: 16 | H25: -16 | I25: -16 | J25: 16 | K25: 16 | L25: -16 | M25: -16 | N25: 16 | O25: 16 | P25: 16 | Q25: -16 | R25: -16 | S25: 16 | T25: -16 | U25: 16 | V25: 16 | W25: 16 | X25: 16 | Y25: 16 | Z25: 16 | AA25: -16 | AB25: -16 | AC25: 16 | AD25: 16 | AE25: 16 | AF25: 64 | AG25: 16 | AH25: 16 | AI25: -16 | AJ25: 16 | AK25: 16 | AL25: 16 | AM25: 16 | AN25: -16 | AO25: -16 | AP25: -16 | AQ25: -16 | AR25: 16 | AS25: -16 | AT25: 16 | AU25: -16 | AV25: -16 | AW25: 16 | AX25: 16 | AY25: -16 | AZ25: -16 | BA25: 16 | BB25: 16 | BC25: 16 | BD25: 16 | BE25: 16 | BF25: -16 | BG25: 16 | BH25: -16 | BI25: 16 | BJ25: 16 | BK25: -16 | BL25: 16 | BM25: 16 | BN25: -16 | BO25: 16 | BP25: -16 | BQ25: -16 | BR25: 16 | BS25: 16 | BT25: 16 | BU25: 16 | BV25: 16 | BW25: 16 | BX25: -16 | BY25: 16 | BZ25: -16 | CA25: -16 | CB25: -16 | CC25: 16 | CD25: 16 | CE25: 16 | CF25: 16 | CG25: -16 | CH25: 16 | CI25: -16 | CJ25: 16 | CK25: 16 | CL25: 16 | CM25: -16 | CN25: 16 | CO25: 16 | CP25: 16 | CQ25: -16 | CR25: -16 | CS25: 16 | CT25: 64 | CU25: -16 | CV25: -16 | CW25: 16 | CX25: 16 | CY25: 16 | CZ25: -16 | DA25: 16 | DB25: -16 | DC25: 16 | DD25: 16 | DE25: -16 | DF25: 16 | DG25: 16 | DH25: 16 | DI25: 16 | DJ25: -16 | DK25: -16 | DL25: 16 | DM25: 16 | DN25: 16 | DO25: 16 | DP25: -16 | DQ25: 16 | DR25: 16 | DS25: 16 | DT25: 16 | DU25: 16 | DV25: -16 | DW25: 16 | DX25: 16
A26: -16 | B26: 16 | C26: -16 | D26: -16 | E26: 16 | F26: -16 | G26: -16 | H26: 16 | I26: -16 | J26: -16 | K26: -16 | L26: 16 | M26: -16 | N26: 16 | O26: -16 | P26: -16 | Q26: -16 | R26: 16 | S26: 16 | T26: -16 | U26: -16 | V26: -16 | W26: 16 | X26: 16 | Y26: 16 | Z26: -16 | AA26: -16 | AB26: -16 | AC26: -16 | AD26: -16 | AE26: 16 | AF26: -16 | AG26: -16 | AH26: 16 | AI26: 16 | AJ26: -16 | AK26: 16 | AL26: 16 | AM26: -16 | AN26: -16 | AO26: 16 | AP26: -16 | AQ26: -16 | AR26: -16 | AS26: 16 | AT26: 16 | AU26: -16 | AV26: -16 | AW26: -16 | AX26: -16 | AY26: -16 | AZ26: -16 | BA26: 16 | BB26: 16 | BC26: -16 | BD26: 16 | BE26: -16 | BF26: -16 | BG26: -16 | BH26: -16 | BI26: -16 | BJ26: 16 | BK26: 16 | BL26: 16 | BM26: -16 | BN26: -16 | BO26: 16 | BP26: 16 | BQ26: -16 | BR26: 16 | BS26: -16 | BT26: -16 | BU26: 16 | BV26: -16 | BW26: 16 | BX26: 16 | BY26: -16 | BZ26: -16 | CA26: 16 | CB26: -16 | CC26: -16 | CD26: -16 | CE26: 16 | CF26: -16 | CG26: 16 | CH26: -16 | CI26: -16 | CJ26: -16 | CK26: 16 | CL26: -16 | CM26: 16 | CN26: -16 | CO26: -16 | CP26: -16 | CQ26: 16 | CR26: 16 | CS26: 16 | CT26: -16 | CU26: -16 | CV26: 16 | CW26: 16 | CX26: -16 | CY26: -16 | CZ26: -16 | DA26: -16 | DB26: 16 | DC26: 16 | DD26: -16 | DE26: -16 | DF26: -16 | DG26: -16 | DH26: 16 | DI26: 16 | DJ26: 16 | DK26: -16 | DL26: -16 | DM26: 16 | DN26: -16 | DO26: -64 | DP26: -16 | DQ26: 16 | DR26: -16 | DS26: -16 | DT26: 16 | DU26: 16 | DV26: -16 | DW26: -16 | DX26: 16
A27: -16 | B27: -16 | C27: 16 | D27: 16 | E27: 16 | F27: -16 | G27: 16 | H27: -16 | I27: -16 | J27: 16 | K27: 16 | L27: 16 | M27: 16 | N27: -16 | O27: 16 | P27: 16 | Q27: -16 | R27: 16 | S27: 16 | T27: 16 | U27: -16 | V27: 16 | W27: -16 | X27: 16 | Y27: 16 | Z27: 16 | AA27: -16 | AB27: 16 | AC27: 16 | AD27: -16 | AE27: 16 | AF27: 64 | AG27: -16 | AH27: -16 | AI27: -16 | AJ27: -16 | AK27: 16 | AL27: 16 | AM27: 16 | AN27: 16 | AO27: -16 | AP27: -16 | AQ27: 16 | AR27: 16 | AS27: -16 | AT27: 16 | AU27: 16 | AV27: -16 | AW27: 16 | AX27: -16 | AY27: -16 | AZ27: 16 | BA27: 16 | BB27: -16 | BC27: -64 | BD27: -16 | BE27: -16 | BF27: -16 | BG27: 16 | BH27: 16 | BI27: 16 | BJ27: -16 | BK27: -16 | BL27: 16 | BM27: -16 | BN27: -16 | BO27: -16 | BP27: 16 | BQ27: -16 | BR27: 16 | BS27: -16 | BT27: 16 | BU27: 16 | BV27: -16 | BW27: 16 | BX27: -16 | BY27: 16 | BZ27: 16 | CA27: 16 | CB27: 16 | CC27: -16 | CD27: 16 | CE27: -16 | CF27: -16 | CG27: -16 | CH27: -16 | CI27: 16 | CJ27: -16 | CK27: 16 | CL27: 16 | CM27: -16 | CN27: 16 | CO27: 16 | CP27: -16 | CQ27: 16 | CR27: -16 | CS27: 16 | CT27: 16 | CU27: -16 | CV27: -16 | CW27: 16 | CX27: 16 | CY27: -16 | CZ27: -16 | DA27: 16 | DB27: 16 | DC27: 16 | DD27: 16 | DE27: -16 | DF27: 16 | DG27: 16 | DH27: -16 | DI27: -16 | DJ27: 16 | DK27: 16 | DL27: 16 | DM27: 16 | DN27: -16 | DO27: 16 | DP27: 16 | DQ27: 16 | DR27: 16 | DS27: 16 | DT27: -16 | DU27: -16 | DV27: 16 | DW27: -16 | DX27: 16
A28: 16 | B28: -16 | C28: -64 | D28: -16 | E28: -16 | F28: -16 | G28: -16 | H28: -16 | I28: -16 | J28: 16 | K28: 16 | L28: 16 | M28: -16 | N28: -16 | O28: -16 | P28: -16 | Q28: -64 | R28: -16 | S28: 64 | T28: -16 | U28: -16 | V28: 16 | W28: 16 | X28: 16 | Y28: 16 | Z28: 16 | AA28: 16 | AB28: -64 | AC28: -16 | AD28: -64 | AE28: -16 | AF28: -16 | AG28: 16 | AH28: -16 | AI28: -16 | AJ28: -16 | AK28: 16 | AL28: 16 | AM28: -64 | AN28: -16 | AO28: 16 | AP28: 16 | AQ28: -16 | AR28: 16 | AS28: -16 | AT28: 16 | AU28: -16 | AV28: -64 | AW28: -16 | AX28: 16 | AY28: -16 | AZ28: 16 | BA28: 16 | BB28: -16 | BC28: 16 | BD28: 16 | BE28: -16 | BF28: -16 | BG28: 16 | BH28: 16 | BI28: 16 | BJ28: 16 | BK28: -64 | BL28: 16 | BM28: -16 | BN28: -16 | BO28: 16 | BP28: 16 | BQ28: -16 | BR28: 16 | BS28: 16 | BT28: -16 | BU28: -16 | BV28: 16 | BW28: 64 | BX28: 16 | BY28: 16 | BZ28: -16 | CA28: -16 | CB28: 16 | CC28: 16 | CD28: -16 | CE28: 16 | CF28: 16 | CG28: -16 | CH28: -16 | CI28: -64 | CJ28: -16 | CK28: 16 | CL28: -16 | CM28: -16 | CN28: -16 | CO28: 16 | CP28: -16 | CQ28: 16 | CR28: -16 | CS28: 64 | CT28: 16 | CU28: 16 | CV28: 16 | CW28: -16 | CX28: 16 | CY28: -16 | CZ28: -64 | DA28: -16 | DB28: -16 | DC28: -16 | DD28: 16 | DE28: -16 | DF28: -16 | DG28: -16 | DH28: -16 | DI28: 16 | DJ28: -16 | DK28: -64 | DL28: 16 | DM28: 16 | DN28: -16 | DO28: -16 | DP28: -16 | DQ28: 16 | DR28: -16 | DS28: -16 | DT28: -16 | DU28: 16 | DV28: -16 | DW28: 16 | DX28: 16
A29: 16 | B29: 16 | C29: -16 | D29: -16 | E29: 16 | F29: 16 | G29: -16 | H29: 16 | I29: -16 | J29: 16 | K29: 16 | L29: 16 | M29: 16 | N29: 16 | O29: 16 | P29: 16 | Q29: -16 | R29: -16 | S29: 16 | T29: 16 | U29: 16 | V29: -16 | W29: 16 | X29: -16 | Y29: 16 | Z29: 16 | AA29: 16 | AB29: -64 | AC29: 16 | AD29: -64 | AE29: -16 | AF29: 16 | AG29: -16 | AH29: -16 | AI29: -16 | AJ29: 16 | AK29: -16 | AL29: 16 | AM29: -16 | AN29: -16 | AO29: 16 | AP29: -16 | AQ29: -16 | AR29: 16 | AS29: -16 | AT29: -16 | AU29: 16 | AV29: -64 | AW29: 16 | AX29: 16 | AY29: 16 | AZ29: 16 | BA29: 16 | BB29: -16 | BC29: 16 | BD29: 16 | BE29: -16 | BF29: 16 | BG29: 16 | BH29: -16 | BI29: 16 | BJ29: 16 | BK29: -16 | BL29: 16 | BM29: -16 | BN29: -16 | BO29: 16 | BP29: 16 | BQ29: 16 | BR29: -16 | BS29: 16 | BT29: -16 | BU29: 16 | BV29: 16 | BW29: 64 | BX29: 16 | BY29: -16 | BZ29: -16 | CA29: -16 | CB29: 16 | CC29: 64 | CD29: -16 | CE29: 16 | CF29: 16 | CG29: -16 | CH29: 16 | CI29: -16 | CJ29: 16 | CK29: -16 | CL29: -16 | CM29: -16 | CN29: 16 | CO29: -16 | CP29: 16 | CQ29: 16 | CR29: 16 | CS29: 16 | CT29: 16 | CU29: -16 | CV29: -16 | CW29: -16 | CX29: 16 | CY29: -16 | CZ29: -16 | DA29: -16 | DB29: -16 | DC29: -16 | DD29: 16 | DE29: -16 | DF29: 16 | DG29: 16 | DH29: -16 | DI29: 16 | DJ29: 16 | DK29: -64 | DL29: 16 | DM29: 16 | DN29: 16 | DO29: -16 | DP29: -16 | DQ29: 16 | DR29: 16 | DS29: -16 | DT29: 16 | DU29: 16 | DV29: -16 | DW29: -16 | DX29: -16
A30: 16 | B30: -16 | C30: 16 | D30: 16 | E30: 16 | F30: -16 | G30: -16 | H30: 16 | I30: -16 | J30: 16 | K30: 16 | L30: 16 | M30: -16 | N30: -16 | O30: -16 | P30: -16 | Q30: 16 | R30: -16 | S30: 16 | T30: -16 | U30: -16 | V30: 16 | W30: 16 | X30: -16 | Y30: 16 | Z30: 16 | AA30: -16 | AB30: -16 | AC30: 16 | AD30: -16 | AE30: 16 | AF30: 16 | AG30: 16 | AH30: -16 | AI30: -16 | AJ30: 16 | AK30: 16 | AL30: -16 | AM30: 64 | AN30: -64 | AO30: -16 | AP30: -16 | AQ30: -16 | AR30: 16 | AS30: -16 | AT30: 16 | AU30: -16 | AV30: 16 | AW30: -16 | AX30: 16 | AY30: 16 | AZ30: -16 | BA30: -16 | BB30: 16 | BC30: -16 | BD30: 16 | BE30: 16 | BF30: 16 | BG30: 16 | BH30: -16 | BI30: 16 | BJ30: -16 | BK30: 16 | BL30: -16 | BM30: 16 | BN30: 16 | BO30: -16 | BP30: -16 | BQ30: -16 | BR30: -16 | BS30: 16 | BT30: 16 | BU30: 16 | BV30: 16 | BW30: -16 | BX30: 16 | BY30: -16 | BZ30: -16 | CA30: -16 | CB30: 16 | CC30: 16 | CD30: -16 | CE30: 16 | CF30: 16 | CG30: -16 | CH30: 16 | CI30: 16 | CJ30: -16 | CK30: 16 | CL30: 16 | CM30: 16 | CN30: -16 | CO30: -16 | CP30: -16 | CQ30: 16 | CR30: -16 | CS30: 16 | CT30: 16 | CU30: -16 | CV30: -16 | CW30: -16 | CX30: 16 | CY30: -16 | CZ30: -16 | DA30: -16 | DB30: 16 | DC30: 16 | DD30: -16 | DE30: -16 | DF30: 16 | DG30: -16 | DH30: 16 | DI30: -16 | DJ30: -16 | DK30: 16 | DL30: 16 | DM30: -16 | DN30: -16 | DO30: -16 | DP30: -16 | DQ30: 16 | DR30: -16 | DS30: -16 | DT30: 16 | DU30: -16 | DV30: -16 | DW30: -16 | DX30: 16
A31: 16 | B31: 16 | C31: 16 | D31: -16 | E31: -16 | F31: 16 | G31: 16 | H31: 16 | I31: 16 | J31: 16 | K31: 16 | L31: 16 | M31: 16 | N31: -16 | O31: 16 | P31: -16 | Q31: 16 | R31: 16 | S31: -16 | T31: -16 | U31: 16 | V31: 16 | W31: 16 | X31: -16 | Y31: -16 | Z31: -16 | AA31: 16 | AB31: 16 | AC31: 16 | AD31: 16 | AE31: 16 | AF31: -16 | AG31: 64 | AH31: -16 | AI31: -16 | AJ31: 16 | AK31: -16 | AL31: 16 | AM31: 16 | AN31: -16 | AO31: -16 | AP31: -16 | AQ31: 16 | AR31: -16 | AS31: 16 | AT31: -16 | AU31: 16 | AV31: 16 | AW31: -16 | AX31: 16 | AY31: 16 | AZ31: -16 | BA31: 16 | BB31: -16 | BC31: 16 | BD31: 16 | BE31: -16 | BF31: -16 | BG31: 16 | BH31: 16 | BI31: 16 | BJ31: 16 | BK31: 16 | BL31: 16 | BM31: -16 | BN31: 16 | BO31: 16 | BP31: 16 | BQ31: -16 | BR31: -16 | BS31: 64 | BT31: -16 | BU31: 16 | BV31: 16 | BW31: 16 | BX31: 16 | BY31: 16 | BZ31: -16 | CA31: -16 | CB31: -16 | CC31: 16 | CD31: 16 | CE31: 16 | CF31: -16 | CG31: 16 | CH31: 16 | CI31: 16 | CJ31: 16 | CK31: -16 | CL31: -16 | CM31: -16 | CN31: -16 | CO31: 16 | CP31: 16 | CQ31: -16 | CR31: -16 | CS31: -16 | CT31: 16 | CU31: -16 | CV31: 16 | CW31: -16 | CX31: 16 | CY31: 16 | CZ31: 16 | DA31: -16 | DB31: 16 | DC31: -16 | DD31: 16 | DE31: -16 | DF31: 16 | DG31: 16 | DH31: 16 | DI31: 16 | DJ31: 16 | DK31: 16 | DL31: 16 | DM31: -16 | DN31: -16 | DO31: -16 | DP31: -16 | DQ31: -16 | DR31: 16 | DS31: -16 | DT31: 16 | DU31: -16 | DV31: 16 | DW31: 16 | DX31: -16
A32: -16 | B32: -16 | C32: 16 | D32: 16 | E32: 64 | F32: -16 | G32: 16 | H32: -16 | I32: -16 | J32: -16 | K32: -16 | L32: 16 | M32: -16 | N32: -16 | O32: -16 | P32: 16 | Q32: 16 | R32: 64 | S32: -16 | T32: -16 | U32: -16 | V32: -16 | W32: -16 | X32: 16 | Y32: -64 | Z32: -16 | AA32: -64 | AB32: 16 | AC32: 16 | AD32: 64 | AE32: 64 | AF32: -16 | AG32: -16 | AH32: 64 | AI32: -16 | AJ32: -16 | AK32: 16 | AL32: 16 | AM32: 16 | AN32: -16 | AO32: -16 | AP32: -16 | AQ32: -16 | AR32: -16 | AS32: 64 | AT32: 16 | AU32: -16 | AV32: -16 | AW32: -16 | AX32: -16 | AY32: -16 | AZ32: 16 | BA32: 16 | BB32: 16 | BC32: 16 | BD32: -16 | BE32: 16 | BF32: -16 | BG32: -16 | BH32: -16 | BI32: -16 | BJ32: -16 | BK32: 16 | BL32: 16 | BM32: -16 | BN32: 16 | BO32: -16 | BP32: -16 | BQ32: 16 | BR32: 16 | BS32: -16 | BT32: -16 | BU32: -16 | BV32: 16 | BW32: -16 | BX32: -16 | BY32: -16 | BZ32: -16 | CA32: 16 | CB32: 16 | CC32: -16 | CD32: -16 | CE32: -16 | CF32: -64 | CG32: 16 | CH32: -16 | CI32: -16 | CJ32: -16 | CK32: 64 | CL32: 16 | CM32: 16 | CN32: 16 | CO32: 16 | CP32: -16 | CQ32: 64 | CR32: 64 | CS32: -16 | CT32: -64 | CU32: -64 | CV32: -16 | CW32: -16 | CX32: -16 | CY32: -16 | CZ32: -16 | DA32: -16 | DB32: 64 | DC32: 16 | DD32: 16 | DE32: -16 | DF32: 16 | DG32: -16 | DH32: 16 | DI32: 16 | DJ32: -16 | DK32: 16 | DL32: 16 | DM32: 16 | DN32: -16 | DO32: -16 | DP32: 16 | DQ32: -16 | DR32: -16 | DS32: -16 | DT32: -16 | DU32: 16 | DV32: -16 | DW32: -64 | DX32: 16
A33: -16 | B33: 16 | C33: -16 | D33: -16 | E33: 16 | F33: -16 | G33: 16 | H33: 16 | I33: -16 | J33: 16 | K33: -16 | L33: 16 | M33: -16 | N33: -16 | O33: 16 | P33: -16 | Q33: 16 | R33: -16 | S33: -16 | T33: -16 | U33: -16 | V33: -16 | W33: -16 | X33: -16 | Y33: 16 | Z33: 16 | AA33: -16 | AB33: -16 | AC33: 16 | AD33: 16 | AE33: 16 | AF33: 16 | AG33: 16 | AH33: 16 | AI33: -16 | AJ33: 16 | AK33: 16 | AL33: -16 | AM33: -16 | AN33: 16 | AO33: -16 | AP33: 16 | AQ33: -16 | AR33: -16 | AS33: 16 | AT33: -16 | AU33: 16 | AV33: 16 | AW33: 16 | AX33: 16 | AY33: -16 | AZ33: -16 | BA33: -16 | BB33: -16 | BC33: -16 | BD33: -16 | BE33: 16 | BF33: 16 | BG33: -16 | BH33: -16 | BI33: 16 | BJ33: -16 | BK33: 16 | BL33: -16 | BM33: -16 | BN33: -16 | BO33: -16 | BP33: -16 | BQ33: -16 | BR33: 16 | BS33: 16 | BT33: 16 | BU33: 16 | BV33: 16 | BW33: -16 | BX33: -16 | BY33: -16 | BZ33: -16 | CA33: -16 | CB33: -16 | CC33: -16 | CD33: -16 | CE33: -16 | CF33: -16 | CG33: -16 | CH33: 16 | CI33: -16 | CJ33: -16 | CK33: 16 | CL33: -16 | CM33: -16 | CN33: 16 | CO33: 16 | CP33: 16 | CQ33: -16 | CR33: 16 | CS33: -16 | CT33: -16 | CU33: -16 | CV33: 16 | CW33: 16 | CX33: 16 | CY33: 16 | CZ33: -16 | DA33: 16 | DB33: 16 | DC33: -16 | DD33: -16 | DE33: 16 | DF33: -16 | DG33: 16 | DH33: -16 | DI33: 16 | DJ33: -16 | DK33: -16 | DL33: -16 | DM33: -16 | DN33: -16 | DO33: 16 | DP33: 16 | DQ33: -16 | DR33: -16 | DS33: -16 | DT33: 16 | DU33: 16 | DV33: -16 | DW33: -16 | DX33: -16
A34: 16 | B34: -16 | C34: 16 | D34: 16 | E34: -16 | F34: 16 | G34: 64 | H34: 16 | I34: -16 | J34: -16 | K34: 16 | L34: -16 | M34: 16 | N34: 16 | O34: 16 | P34: 16 | Q34: 16 | R34: 16 | S34: -16 | T34: -16 | U34: 16 | V34: 16 | W34: -16 | X34: -16 | Y34: 16 | Z34: -16 | AA34: -16 | AB34: 16 | AC34: -16 | AD34: 16 | AE34: 16 | AF34: 16 | AG34: 16 | AH34: -16 | AI34: -16 | AJ34: 64 | AK34: -16 | AL34: -16 | AM34: 16 | AN34: 16 | AO34: -16 | AP34: -16 | AQ34: -16 | AR34: -16 | AS34: 16 | AT34: 16 | AU34: 16 | AV34: 16 | AW34: -16 | AX34: 16 | AY34: 16 | AZ34: 16 | BA34: -16 | BB34: -16 | BC34: 16 | BD34: 16 | BE34: -16 | BF34: 16 | BG34: 16 | BH34: -16 | BI34: 16 | BJ34: -16 | BK34: 16 | BL34: -16 | BM34: -16 | BN34: 16 | BO34: -16 | BP34: -16 | BQ34: -16 | BR34: -16 | BS34: 16 | BT34: -16 | BU34: 16 | BV34: 16 | BW34: -16 | BX34: -16 | BY34: 16 | BZ34: -16 | CA34: 16 | CB34: 16 | CC34: 64 | CD34: 16 | CE34: -16 | CF34: 16 | CG34: 16 | CH34: -16 | CI34: 16 | CJ34: 16 | CK34: 16 | CL34: -16 | CM34: 16 | CN34: 16 | CO34: -16 | CP34: 16 | CQ34: -16 | CR34: -16 | CS34: -16 | CT34: 16 | CU34: 16 | CV34: 16 | CW34: 16 | CX34: 16 | CY34: 16 | CZ34: 16 | DA34: 16 | DB34: 16 | DC34: 16 | DD34: -16 | DE34: -16 | DF34: -16 | DG34: 16 | DH34: 16 | DI34: -16 | DJ34: -16 | DK34: 16 | DL34: 16 | DM34: -16 | DN34: 16 | DO34: -16 | DP34: 16 | DQ34: -16 | DR34: 16 | DS34: -16 | DT34: 16 | DU34: -16 | DV34: 16 | DW34: 16 | DX34: -16
A35: -16 | B35: -16 | C35: -64 | D35: 16 | E35: -16 | F35: -16 | G35: -64 | H35: -16 | I35: 16 | J35: 16 | K35: -16 | L35: 64 | M35: -64 | N35: -16 | O35: -64 | P35: 16 | Q35: -64 | R35: 16 | S35: 64 | T35: -16 | U35: -64 | V35: -64 | W35: -16 | X35: 16 | Y35: 16 | Z35: -16 | AA35: -16 | AB35: -64 | AC35: 16 | AD35: -64 | AE35: -64 | AF35: -16 | AG35: -16 | AH35: 16 | AI35: -16 | AJ35: -64 | AK35: 16 | AL35: 64 | AM35: -64 | AN35: -16 | AO35: -16 | AP35: 16 | AQ35: -64 | AR35: 16 | AS35: -16 | AT35: 16 | AU35: -64 | AV35: -64 | AW35: -16 | AX35: -64 | AY35: 16 | AZ35: -16 | BA35: 16 | BB35: 16 | BC35: -16 | BD35: 64 | BE35: 16 | BF35: -16 | BG35: -16 | BH35: -16 | BI35: 16 | BJ35: 16 | BK35: -64 | BL35: 64 | BM35: -16 | BN35: -64 | BO35: 16 | BP35: -16 | BQ35: 16 | BR35: 16 | BS35: -16 | BT35: 16 | BU35: -16 | BV35: 16 | BW35: 64 | BX35: 16 | BY35: -16 | BZ35: -16 | CA35: 16 | CB35: -16 | CC35: -16 | CD35: -16 | CE35: 64 | CF35: -16 | CG35: -16 | CH35: 16 | CI35: -64 | CJ35: -64 | CK35: 16 | CL35: 16 | CM35: -16 | CN35: 16 | CO35: 16 | CP35: -16 | CQ35: 16 | CR35: 16 | CS35: 64 | CT35: -64 | CU35: -16 | CV35: -16 | CW35: -16 | CX35: -16 | CY35: -16 | CZ35: -16 | DA35: -16 | DB35: -16 | DC35: -64 | DD35: 16 | DE35: -16 | DF35: 16 | DG35: -16 | DH35: -64 | DI35: 64 | DJ35: -16 | DK35: -64 | DL35: -64 | DM35: 64 | DN35: -16 | DO35: -16 | DP35: -16 | DQ35: 64 | DR35: -64 | DS35: 16 | DT35: -16 | DU35: 16 | DV35: -16 | DW35: -16 | DX35: 16
A36: -16 | B36: 16 | C36: 16 | D36: 16 | E36: 16 | F36: -16 | G36: 16 | H36: 16 | I36: 16 | J36: 16 | K36: 16 | L36: -16 | M36: 16 | N36: 16 | O36: -16 | P36: 16 | Q36: -16 | R36: -16 | S36: 16 | T36: 16 | U36: 16 | V36: 16 | W36: 16 | X36: 16 | Y36: 16 | Z36: 16 | AA36: 16 | AB36: 16 | AC36: 16 | AD36: 16 | AE36: 16 | AF36: 16 | AG36: 16 | AH36: -16 | AI36: 16 | AJ36: 16 | AK36: 16 | AL36: 64 | AM36: 16 | AN36: 16 | AO36: 16 | AP36: 16 | AQ36: -16 | AR36: 16 | AS36: -16 | AT36: -16 | AU36: 16 | AV36: -16 | AW36: 16 | AX36: 16 | AY36: 16 | AZ36: -16 | BA36: -16 | BB36: -16 | BC36: 16 | BD36: -16 | BE36: 16 | BF36: 16 | BG36: 16 | BH36: 16 | BI36: 16 | BJ36: 16 | BK36: 64 | BL36: 16 | BM36: 16 | BN36: 16 | BO36: 16 | BP36: 16 | BQ36: 16 | BR36: 16 | BS36: -16 | BT36: 16 | BU36: -16 | BV36: 16 | BW36: -16 | BX36: -16 | BY36: 16 | BZ36: -16 | CA36: 16 | CB36: -16 | CC36: 16 | CD36: 16 | CE36: -16 | CF36: 16 | CG36: 16 | CH36: 16 | CI36: 16 | CJ36: 16 | CK36: 16 | CL36: 16 | CM36: -16 | CN36: -16 | CO36: 16 | CP36: 16 | CQ36: -16 | CR36: -16 | CS36: 16 | CT36: 16 | CU36: -16 | CV36: 16 | CW36: -16 | CX36: 16 | CY36: -16 | CZ36: 16 | DA36: 16 | DB36: -16 | DC36: -16 | DD36: 16 | DE36: 16 | DF36: 16 | DG36: 16 | DH36: 16 | DI36: -16 | DJ36: -16 | DK36: 16 | DL36: -16 | DM36: 16 | DN36: -16 | DO36: 16 | DP36: -16 | DQ36: 16 | DR36: 16 | DS36: -16 | DT36: 16 | DU36: -16 | DV36: -16 | DW36: 16 | DX36: 16
A37: 16 | B37: 16 | C37: -64 | D37: -16 | E37: -64 | F37: -64 | G37: -16 | H37: -16 | I37: -16 | J37: 64 | K37: 16 | L37: 16 | M37: -16 | N37: 16 | O37: -16 | P37: 16 | Q37: -64 | R37: -16 | S37: 64 | T37: -16 | U37: 16 | V37: -16 | W37: 16 | X37: -16 | Y37: 16 | Z37: -16 | AA37: 16 | AB37: -16 | AC37: -16 | AD37: -16 | AE37: -16 | AF37: 16 | AG37: 16 | AH37: -16 | AI37: 16 | AJ37: -16 | AK37: -16 | AL37: 16 | AM37: -16 | AN37: -16 | AO37: -16 | AP37: 16 | AQ37: -16 | AR37: 16 | AS37: -16 | AT37: -16 | AU37: -16 | AV37: -16 | AW37: -16 | AX37: 16 | AY37: -16 | AZ37: 16 | BA37: 64 | BB37: -16 | BC37: 16 | BD37: 16 | BE37: 16 | BF37: 16 | BG37: 16 | BH37: 16 | BI37: 64 | BJ37: 64 | BK37: -16 | BL37: 16 | BM37: -16 | BN37: -16 | BO37: 64 | BP37: 16 | BQ37: 16 | BR37: -16 | BS37: 16 | BT37: -16 | BU37: -16 | BV37: -16 | BW37: 16 | BX37: 16 | BY37: -16 | BZ37: -16 | CA37: -16 | CB37: -16 | CC37: 16 | CD37: -16 | CE37: 64 | CF37: -16 | CG37: -16 | CH37: 16 | CI37: -16 | CJ37: -16 | CK37: 16 | CL37: 16 | CM37: -64 | CN37: 16 | CO37: -16 | CP37: -16 | CQ37: -16 | CR37: -16 | CS37: 16 | CT37: -16 | CU37: -16 | CV37: -16 | CW37: 16 | CX37: 16 | CY37: -16 | CZ37: -16 | DA37: -16 | DB37: -16 | DC37: -16 | DD37: 16 | DE37: -16 | DF37: -16 | DG37: -16 | DH37: -16 | DI37: 64 | DJ37: 16 | DK37: -16 | DL37: -16 | DM37: 64 | DN37: 16 | DO37: -16 | DP37: -16 | DQ37: 16 | DR37: 16 | DS37: 16 | DT37: 16 | DU37: 16 | DV37: -16 | DW37: 16 | DX37: -16
A38: 16 | B38: -16 | C38: -16 | D38: -16 | E38: -16 | F38: 16 | G38: 64 | H38: 16 | I38: -16 | J38: -16 | K38: 64 | L38: -16 | M38: 64 | N38: 16 | O38: 16 | P38: 16 | Q38: -16 | R38: 16 | S38: 16 | T38: 16 | U38: 16 | V38: 16 | W38: 16 | X38: -16 | Y38: 16 | Z38: 16 | AA38: 16 | AB38: 16 | AC38: 16 | AD38: 16 | AE38: -16 | AF38: 16 | AG38: 64 | AH38: -16 | AI38: 16 | AJ38: 64 | AK38: -64 | AL38: -16 | AM38: -16 | AN38: 16 | AO38: -16 | AP38: 16 | AQ38: 16 | AR38: 16 | AS38: -16 | AT38: -16 | AU38: 16 | AV38: 16 | AW38: 16 | AX38: 64 | AY38: -16 | AZ38: 16 | BA38: -16 | BB38: -16 | BC38: 16 | BD38: 16 | BE38: -16 | BF38: 16 | BG38: 64 | BH38: -16 | BI38: 16 | BJ38: 16 | BK38: 16 | BL38: -16 | BM38: -16 | BN38: 16 | BO38: 16 | BP38: -16 | BQ38: -16 | BR38: -16 | BS38: 64 | BT38: 16 | BU38: 16 | BV38: -16 | BW38: -16 | BX38: 16 | BY38: 16 | BZ38: -16 | CA38: -16 | CB38: -16 | CC38: 64 | CD38: 16 | CE38: 16 | CF38: 16 | CG38: -16 | CH38: 16 | CI38: 16 | CJ38: 16 | CK38: -16 | CL38: 16 | CM38: 16 | CN38: -16 | CO38: -16 | CP38: 16 | CQ38: -64 | CR38: -16 | CS38: -16 | CT38: 64 | CU38: -16 | CV38: -16 | CW38: 16 | CX38: 16 | CY38: 16 | CZ38: 16 | DA38: -16 | DB38: -16 | DC38: -16 | DD38: -16 | DE38: 16 | DF38: 16 | DG38: 16 | DH38: 16 | DI38: 16 | DJ38: -16 | DK38: 16 | DL38: 16 | DM38: 16 | DN38: -16 | DO38: -16 | DP38: -16 | DQ38: 16 | DR38: 16 | DS38: 16 | DT38: 16 | DU38: 16 | DV38: 16 | DW38: 16 | DX38: -64
A39: -16 | B39: 16 | C39: -16 | D39: 16 | E39: 16 | F39: -16 | G39: -16 | H39: 16 | I39: -16 | J39: 16 | K39: -64 | L39: -16 | M39: -16 | N39: -16 | O39: 16 | P39: 16 | Q39: -64 | R39: -16 | S39: 64 | T39: -16 | U39: -16 | V39: 16 | W39: 16 | X39: -16 | Y39: -16 | Z39: -16 | AA39: -16 | AB39: 64 | AC39: 16 | AD39: 16 | AE39: 16 | AF39: 16 | AG39: -64 | AH39: -16 | AI39: 16 | AJ39: -16 | AK39: 16 | AL39: -16 | AM39: 16 | AN39: 16 | AO39: 16 | AP39: -16 | AQ39: 16 | AR39: 64 | AS39: -16 | AT39: 16 | AU39: 16 | AV39: 16 | AW39: -16 | AX39: -64 | AY39: -16 | AZ39: -16 | BA39: -16 | BB39: 16 | BC39: -64 | BD39: -16 | BE39: -16 | BF39: 16 | BG39: 16 | BH39: 16 | BI39: 64 | BJ39: -64 | BK39: 16 | BL39: -16 | BM39: 16 | BN39: 16 | BO39: -16 | BP39: 16 | BQ39: -16 | BR39: 16 | BS39: -16 | BT39: 16 | BU39: 16 | BV39: 16 | BW39: -64 | BX39: -16 | BY39: 16 | BZ39: 16 | CA39: 16 | CB39: -16 | CC39: 16 | CD39: -16 | CE39: -64 | CF39: 64 | CG39: -16 | CH39: -16 | CI39: -16 | CJ39: -64 | CK39: 16 | CL39: -16 | CM39: 16 | CN39: -16 | CO39: -16 | CP39: -16 | CQ39: 16 | CR39: 16 | CS39: -16 | CT39: 16 | CU39: 16 | CV39: 16 | CW39: -16 | CX39: -64 | CY39: 16 | CZ39: -16 | DA39: -16 | DB39: -16 | DC39: 16 | DD39: -16 | DE39: -16 | DF39: 16 | DG39: -16 | DH39: -16 | DI39: -64 | DJ39: 16 | DK39: 16 | DL39: -16 | DM39: -16 | DN39: -16 | DO39: 16 | DP39: 16 | DQ39: -16 | DR39: 16 | DS39: 16 | DT39: -64 | DU39: -16 | DV39: 16 | DW39: -16 | DX39: 16
A40: 16 | B40: -16 | C40: 16 | D40: -16 | E40: -16 | F40: 16 | G40: 64 | H40: -16 | I40: 16 | J40: -16 | K40: 64 | L40: 16 | M40: 16 | N40: 16 | O40: 16 | P40: 16 | Q40: -16 | R40: 16 | S40: -16 | T40: 16 | U40: 16 | V40: 16 | W40: -16 | X40: -64 | Y40: 16 | Z40: 16 | AA40: 16 | AB40: 16 | AC40: -16 | AD40: 16 | AE40: -16 | AF40: -16 | AG40: 64 | AH40: -16 | AI40: -16 | AJ40: 64 | AK40: -16 | AL40: -16 | AM40: -16 | AN40: -16 | AO40: -16 | AP40: 16 | AQ40: 16 | AR40: -16 | AS40: 16 | AT40: 16 | AU40: 16 | AV40: 16 | AW40: -16 | AX40: 64 | AY40: 16 | AZ40: -16 | BA40: -16 | BB40: 16 | BC40: 16 | BD40: 16 | BE40: -16 | BF40: 16 | BG40: 16 | BH40: 16 | BI40: 16 | BJ40: -16 | BK40: 16 | BL40: -16 | BM40: -16 | BN40: 16 | BO40: -16 | BP40: 16 | BQ40: 16 | BR40: -64 | BS40: 64 | BT40: -16 | BU40: 16 | BV40: 16 | BW40: -16 | BX40: 16 | BY40: 16 | BZ40: -16 | CA40: -16 | CB40: 16 | CC40: 16 | CD40: 16 | CE40: -16 | CF40: -16 | CG40: -16 | CH40: -16 | CI40: 16 | CJ40: 16 | CK40: -16 | CL40: 16 | CM40: 16 | CN40: -16 | CO40: -16 | CP40: 16 | CQ40: -16 | CR40: 16 | CS40: -16 | CT40: 16 | CU40: -16 | CV40: -16 | CW40: 16 | CX40: 64 | CY40: 16 | CZ40: 16 | DA40: -16 | DB40: -16 | DC40: -16 | DD40: -16 | DE40: -16 | DF40: 16 | DG40: 16 | DH40: 16 | DI40: -16 | DJ40: -16 | DK40: 16 | DL40: 16 | DM40: -16 | DN40: -16 | DO40: 16 | DP40: -16 | DQ40: -16 | DR40: 16 | DS40: 16 | DT40: 16 | DU40: 16 | DV40: 16 | DW40: 16 | DX40: -16
A41: 16 | B41: -16 | C41: 16 | D41: -16 | E41: 16 | F41: 16 | G41: 16 | H41: 16 | I41: 16 | J41: 16 | K41: 16 | L41: -16 | M41: -16 | N41: 16 | O41: 16 | P41: 16 | Q41: -16 | R41: -16 | S41: 16 | T41: 16 | U41: 16 | V41: 16 | W41: 16 | X41: 16 | Y41: 16 | Z41: 16 | AA41: 16 | AB41: 16 | AC41: 16 | AD41: -16 | AE41: 16 | AF41: -16 | AG41: 16 | AH41: 16 | AI41: 16 | AJ41: 16 | AK41: -16 | AL41: 16 | AM41: 16 | AN41: 16 | AO41: -16 | AP41: -16 | AQ41: 16 | AR41: 16 | AS41: 16 | AT41: 16 | AU41: 16 | AV41: 16 | AW41: 16 | AX41: 16 | AY41: 16 | AZ41: 16 | BA41: 16 | BB41: 16 | BC41: 16 | BD41: -16 | BE41: 16 | BF41: -16 | BG41: -16 | BH41: -16 | BI41: -16 | BJ41: -16 | BK41: 16 | BL41: -16 | BM41: 16 | BN41: 16 | BO41: -16 | BP41: -16 | BQ41: 16 | BR41: 16 | BS41: -16 | BT41: -16 | BU41: -16 | BV41: -16 | BW41: -16 | BX41: 16 | BY41: 16 | BZ41: 16 | CA41: -16 | CB41: -16 | CC41: 16 | CD41: -16 | CE41: -16 | CF41: 16 | CG41: -16 | CH41: 16 | CI41: -16 | CJ41: 16 | CK41: 16 | CL41: 16 | CM41: -16 | CN41: -16 | CO41: -16 | CP41: 16 | CQ41: -16 | CR41: -16 | CS41: -16 | CT41: -16 | CU41: -16 | CV41: 16 | CW41: -16 | CX41: -16 | CY41: -16 | CZ41: 16 | DA41: 16 | DB41: 16 | DC41: -16 | DD41: 16 | DE41: -16 | DF41: -16 | DG41: 16 | DH41: 16 | DI41: -16 | DJ41: 16 | DK41: 16 | DL41: -16 | DM41: -16 | DN41: -16 | DO41: -16 | DP41: 16 | DQ41: 16 | DR41: 16 | DS41: -16 | DT41: -16 | DU41: -16 | DV41: 16 | DW41: -16 | DX41: 16
A42: -16 | B42: -16 | C42: -16 | D42: 16 | E42: -16 | F42: -16 | G42: -16 | H42: -16 | I42: 16 | J42: -16 | K42: -16 | L42: -16 | M42: -16 | N42: 16 | O42: 16 | P42: -16 | Q42: -16 | R42: -16 | S42: 16 | T42: -16 | U42: -16 | V42: 16 | W42: 16 | X42: -16 | Y42: -16 | Z42: -16 | AA42: 16 | AB42: 16 | AC42: 16 | AD42: 64 | AE42: 16 | AF42: -16 | AG42: -16 | AH42: -16 | AI42: -16 | AJ42: -16 | AK42: -16 | AL42: -16 | AM42: -16 | AN42: 16 | AO42: 16 | AP42: -16 | AQ42: 16 | AR42: -16 | AS42: -16 | AT42: -16 | AU42: -16 | AV42: 16 | AW42: -16 | AX42: -16 | AY42: -16 | AZ42: -16 | BA42: -16 | BB42: -16 | BC42: -16 | BD42: -16 | BE42: 16 | BF42: -16 | BG42: 16 | BH42: 16 | BI42: 16 | BJ42: -16 | BK42: -16 | BL42: -16 | BM42: 16 | BN42: -16 | BO42: -16 | BP42: -16 | BQ42: -16 | BR42: -16 | BS42: -16 | BT42: 16 | BU42: 16 | BV42: 16 | BW42: -16 | BX42: -16 | BY42: 16 | BZ42: 64 | CA42: 16 | CB42: 16 | CC42: -16 | CD42: -16 | CE42: -16 | CF42: 16 | CG42: -16 | CH42: -16 | CI42: -16 | CJ42: -16 | CK42: -16 | CL42: -16 | CM42: -16 | CN42: -16 | CO42: 16 | CP42: 16 | CQ42: 16 | CR42: -16 | CS42: -16 | CT42: -16 | CU42: -16 | CV42: -16 | CW42: -16 | CX42: -16 | CY42: 16 | CZ42: -16 | DA42: -16 | DB42: 16 | DC42: -16 | DD42: -16 | DE42: 16 | DF42: -16 | DG42: -16 | DH42: -16 | DI42: -16 | DJ42: 16 | DK42: -16 | DL42: -64 | DM42: -16 | DN42: -16 | DO42: 16 | DP42: -16 | DQ42: -16 | DR42: 16 | DS42: 16 | DT42: -16 | DU42: -16 | DV42: 16 | DW42: -16 | DX42: 16
A43: 16 | B43: -16 | C43: -16 | D43: -16 | E43: -16 | F43: -16 | G43: -16 | H43: -16 | I43: 16 | J43: 16 | K43: 16 | L43: 16 | M43: -16 | N43: -16 | O43: -64 | P43: -16 | Q43: -64 | R43: -16 | S43: 64 | T43: -64 | U43: -16 | V43: 16 | W43: 16 | X43: -16 | Y43: 16 | Z43: -16 | AA43: 16 | AB43: -16 | AC43: -16 | AD43: -64 | AE43: -16 | AF43: 16 | AG43: -16 | AH43: -16 | AI43: -16 | AJ43: -16 | AK43: 16 | AL43: 16 | AM43: -16 | AN43: -16 | AO43: -16 | AP43: -16 | AQ43: 16 | AR43: 64 | AS43: -64 | AT43: 16 | AU43: -16 | AV43: -64 | AW43: 16 | AX43: -16 | AY43: -16 | AZ43: 16 | BA43: 16 | BB43: -16 | BC43: 16 | BD43: 16 | BE43: -16 | BF43: -16 | BG43: 16 | BH43: -16 | BI43: 16 | BJ43: 64 | BK43: -64 | BL43: 64 | BM43: -16 | BN43: -64 | BO43: 64 | BP43: -16 | BQ43: -16 | BR43: -16 | BS43: 16 | BT43: -16 | BU43: -16 | BV43: 16 | BW43: 16 | BX43: 16 | BY43: -16 | BZ43: -64 | CA43: 16 | CB43: 16 | CC43: -16 | CD43: -16 | CE43: 16 | CF43: -16 | CG43: -16 | CH43: 16 | CI43: -64 | CJ43: -16 | CK43: 16 | CL43: 16 | CM43: -16 | CN43: -16 | CO43: -16 | CP43: -16 | CQ43: -16 | CR43: -16 | CS43: 16 | CT43: 16 | CU43: -16 | CV43: 16 | CW43: -16 | CX43: 16 | CY43: -16 | CZ43: -16 | DA43: -16 | DB43: -16 | DC43: -64 | DD43: -16 | DE43: 16 | DF43: 16 | DG43: -16 | DH43: -64 | DI43: 64 | DJ43: -16 | DK43: -64 | DL43: 16 | DM43: 64 | DN43: -16 | DO43: -16 | DP43: 16 | DQ43: 64 | DR43: 16 | DS43: -64 | DT43: 16 | DU43: 16 | DV43: 16 | DW43: -16 | DX43: 16
A44: -16 | B44: 16 | C44: -16 | D44: 16 | E44: 16 | F44: -16 | G44: -16 | H44: -16 | I44: -16 | J44: -16 | K44: 16 | L44: 64 | M44: -16 | N44: -16 | O44: -16 | P44: -16 | Q44: 16 | R44: 16 | S44: 16 | T44: -16 | U44: -16 | V44: -16 | W44: 16 | X44: -16 | Y44: 16 | Z44: 16 | AA44: -16 | AB44: -16 | AC44: -16 | AD44: -64 | AE44: 16 | AF44: -16 | AG44: -16 | AH44: 16 | AI44: -16 | AJ44: 16 | AK44: 16 | AL44: 16 | AM44: -16 | AN44: -64 | AO44: -16 | AP44: -16 | AQ44: -64 | AR44: 16 | AS44: 16 | AT44: -16 | AU44: -16 | AV44: -16 | AW44: -16 | AX44: 16 | AY44: -16 | AZ44: -16 | BA44: 16 | BB44: 16 | BC44: -16 | BD44: 16 | BE44: -16 | BF44: 16 | BG44: -16 | BH44: -16 | BI44: -16 | BJ44: 16 | BK44: 16 | BL44: 16 | BM44: -16 | BN44: -16 | BO44: 16 | BP44: 16 | BQ44: -16 | BR44: 16 | BS44: -16 | BT44: -16 | BU44: 16 | BV44: 16 | BW44: 16 | BX44: 16 | BY44: 16 | BZ44: -16 | CA44: -16 | CB44: -16 | CC44: -16 | CD44: -16 | CE44: 16 | CF44: -64 | CG44: 16 | CH44: -16 | CI44: -16 | CJ44: 16 | CK44: 16 | CL44: -16 | CM44: 16 | CN44: 16 | CO44: -16 | CP44: -16 | CQ44: 16 | CR44: 16 | CS44: 16 | CT44: -16 | CU44: -64 | CV44: -16 | CW44: 16 | CX44: -16 | CY44: -16 | CZ44: -16 | DA44: -16 | DB44: 16 | DC44: -16 | DD44: -16 | DE44: -16 | DF44: -16 | DG44: -16 | DH44: -16 | DI44: 16 | DJ44: -16 | DK44: -16 | DL44: -16 | DM44: 16 | DN44: -16 | DO44: -64 | DP44: -16 | DQ44: 16 | DR44: -16 | DS44: -16 | DT44: 16 | DU44: 16 | DV44: 16 | DW44: -16 | DX44: 16
A45: -16 | B45: -16 | C45: 16 | D45: 16 | E45: -16 | F45: -16 | G45: -16 | H45: 16 | I45: -16 | J45: -16 | K45: -16 | L45: -16 | M45: -16 | N45: -16 | O45: 16 | P45: 16 | Q45: -16 | R45: -16 | S45: -16 | T45: 16 | U45: -64 | V45: 16 | W45: 16 | X45: -16 | Y45: -16 | Z45: -16 | AA45: 16 | AB45: 16 | AC45: 16 | AD45: 16 | AE45: 64 | AF45: -16 | AG45: -64 | AH45: -16 | AI45: 16 | AJ45: -64 | AK45: 16 | AL45: -16 | AM45: -16 | AN45: 16 | AO45: -16 | AP45: 16 | AQ45: 16 | AR45: -16 | AS45: -16 | AT45: 16 | AU45: -16 | AV45: 16 | AW45: -16 | AX45: -64 | AY45: 16 | AZ45: 16 | BA45: -16 | BB45: -16 | BC45: -64 | BD45: -16 | BE45: -16 | BF45: -16 | BG45: -16 | BH45: 16 | BI45: 16 | BJ45: -64 | BK45: 16 | BL45: -16 | BM45: 16 | BN45: 16 | BO45: -16 | BP45: -16 | BQ45: -16 | BR45: 16 | BS45: -16 | BT45: 16 | BU45: 16 | BV45: 16 | BW45: -16 | BX45: -16 | BY45: 16 | BZ45: 16 | CA45: 64 | CB45: -16 | CC45: -16 | CD45: 16 | CE45: -16 | CF45: 16 | CG45: -16 | CH45: 16 | CI45: 16 | CJ45: -64 | CK45: -16 | CL45: -16 | CM45: 16 | CN45: -16 | CO45: 16 | CP45: -16 | CQ45: 16 | CR45: -16 | CS45: -16 | CT45: 16 | CU45: 16 | CV45: -16 | CW45: -16 | CX45: -16 | CY45: -16 | CZ45: 16 | DA45: -16 | DB45: 16 | DC45: 16 | DD45: 16 | DE45: 16 | DF45: 16 | DG45: -16 | DH45: -16 | DI45: -64 | DJ45: -16 | DK45: 16 | DL45: -16 | DM45: 16 | DN45: -16 | DO45: 16 | DP45: 16 | DQ45: -16 | DR45: 16 | DS45: 16 | DT45: -16 | DU45: -16 | DV45: -16 | DW45: -16 | DX45: -16
A46: 16 | B46: 16 | C46: 16 | D46: -16 | E46: -16 | F46: 16 | G46: 64 | H46: 16 | I46: 16 | J46: -16 | K46: 16 | L46: -16 | M46: 16 | N46: 16 | O46: 16 | P46: 16 | Q46: 16 | R46: 16 | S46: -16 | T46: 16 | U46: 16 | V46: 16 | W46: -16 | X46: -16 | Y46: -16 | Z46: 16 | AA46: 16 | AB46: 16 | AC46: -16 | AD46: 16 | AE46: 16 | AF46: 16 | AG46: 64 | AH46: -16 | AI46: -16 | AJ46: 16 | AK46: -64 | AL46: -16 | AM46: -16 | AN46: 16 | AO46: -16 | AP46: 16 | AQ46: -16 | AR46: 16 | AS46: 16 | AT46: 16 | AU46: 16 | AV46: 16 | AW46: -16 | AX46: 16 | AY46: -16 | AZ46: -16 | BA46: -16 | BB46: -16 | BC46: 16 | BD46: 16 | BE46: -16 | BF46: 16 | BG46: 64 | BH46: 16 | BI46: -16 | BJ46: -16 | BK46: 16 | BL46: -16 | BM46: -16 | BN46: 16 | BO46: -16 | BP46: -16 | BQ46: -16 | BR46: -64 | BS46: 64 | BT46: -16 | BU46: 16 | BV46: 16 | BW46: 16 | BX46: 16 | BY46: 16 | BZ46: -16 | CA46: -16 | CB46: 16 | CC46: 64 | CD46: -16 | CE46: -16 | CF46: 16 | CG46: 16 | CH46: -16 | CI46: -16 | CJ46: 16 | CK46: -16 | CL46: 16 | CM46: -16 | CN46: -16 | CO46: -16 | CP46: -16 | CQ46: -16 | CR46: 16 | CS46: -16 | CT46: 16 | CU46: -16 | CV46: -16 | CW46: -16 | CX46: 16 | CY46: -16 | CZ46: 16 | DA46: 16 | DB46: 16 | DC46: 16 | DD46: 16 | DE46: 16 | DF46: -16 | DG46: 16 | DH46: 16 | DI46: -16 | DJ46: 16 | DK46: 16 | DL46: 16 | DM46: -16 | DN46: -16 | DO46: -16 | DP46: -16 | DQ46: -16 | DR46: 16 | DS46: -16 | DT46: 16 | DU46: -16 | DV46: 16 | DW46: 16 | DX46: -16
A47: 16 | B47: 16 | C47: 16 | D47: 16 | E47: 16 | F47: -16 | G47: -16 | H47: -16 | I47: 16 | J47: 16 | K47: 16 | L47: -16 | M47: 16 | N47: -16 | O47: -16 | P47: 16 | Q47: 16 | R47: 16 | S47: 16 | T47: -16 | U47: 16 | V47: -16 | W47: -16 | X47: 16 | Y47: 16 | Z47: -16 | AA47: 16 | AB47: 16 | AC47: 16 | AD47: 16 | AE47: -16 | AF47: 16 | AG47: -16 | AH47: -16 | AI47: 16 | AJ47: 16 | AK47: 16 | AL47: -16 | AM47: 16 | AN47: -16 | AO47: -16 | AP47: -16 | AQ47: -16 | AR47: 16 | AS47: 16 | AT47: -16 | AU47: 16 | AV47: 16 | AW47: 16 | AX47: -16 | AY47: -16 | AZ47: -16 | BA47: 16 | BB47: 16 | BC47: 16 | BD47: -16 | BE47: -16 | BF47: -16 | BG47: 16 | BH47: 16 | BI47: -16 | BJ47: 16 | BK47: -16 | BL47: -16 | BM47: 16 | BN47: 16 | BO47: 16 | BP47: 16 | BQ47: 16 | BR47: -16 | BS47: -16 | BT47: -16 | BU47: -16 | BV47: -16 | BW47: 16 | BX47: -16 | BY47: -16 | BZ47: -16 | CA47: 16 | CB47: 16 | CC47: 16 | CD47: 16 | CE47: -16 | CF47: 16 | CG47: 16 | CH47: 16 | CI47: 16 | CJ47: 16 | CK47: 16 | CL47: -16 | CM47: -16 | CN47: -16 | CO47: 16 | CP47: -16 | CQ47: 16 | CR47: 16 | CS47: -16 | CT47: 16 | CU47: -16 | CV47: 16 | CW47: 16 | CX47: 16 | CY47: -16 | CZ47: 16 | DA47: -16 | DB47: -16 | DC47: -16 | DD47: -16 | DE47: -16 | DF47: -16 | DG47: -16 | DH47: 16 | DI47: 16 | DJ47: -16 | DK47: 16 | DL47: 16 | DM47: 16 | DN47: -16 | DO47: -16 | DP47: 16 | DQ47: 16 | DR47: 16 | DS47: -16 | DT47: -16 | DU47: -16 | DV47: 16 | DW47: -16 | DX47: 16
A48: 16 | B48: 16 | C48: -64 | D48: -16 | E48: -16 | F48: 16 | G48: -16 | H48: -16 | I48: 16 | J48: -16 | K48: 16 | L48: 16 | M48: 16 | N48: 16 | O48: -16 | P48: -16 | Q48: -64 | R48: -16 | S48: 16 | T48: 16 | U48: -16 | V48: -16 | W48: 16 | X48: 16 | Y48: 16 | Z48: 16 | AA48: 16 | AB48: -16 | AC48: 16 | AD48: -64 | AE48: -16 | AF48: 16 | AG48: -16 | AH48: -16 | AI48: -16 | AJ48: 16 | AK48: 16 | AL48: 16 | AM48: -16 | AN48: -16 | AO48: 16 | AP48: -16 | AQ48: -16 | AR48: -16 | AS48: -16 | AT48: -16 | AU48: -16 | AV48: -64 | AW48: -16 | AX48: 16 | AY48: 16 | AZ48: 16 | BA48: 16 | BB48: 16 | BC48: 16 | BD48: 16 | BE48: -16 | BF48: -16 | BG48: 16 | BH48: -16 | BI48: 16 | BJ48: 64 | BK48: -16 | BL48: 16 | BM48: -16 | BN48: -16 | BO48: 16 | BP48: -16 | BQ48: -16 | BR48: 16 | BS48: 16 | BT48: -16 | BU48: 16 | BV48: -16 | BW48: 16 | BX48: 16 | BY48: -16 | BZ48: 16 | CA48: 16 | CB48: -16 | CC48: 16 | CD48: -16 | CE48: 16 | CF48: 16 | CG48: 16 | CH48: 16 | CI48: -64 | CJ48: 16 | CK48: 16 | CL48: -16 | CM48: -16 | CN48: 16 | CO48: 16 | CP48: 16 | CQ48: 16 | CR48: -16 | CS48: 16 | CT48: 16 | CU48: 16 | CV48: -16 | CW48: -16 | CX48: 16 | CY48: -16 | CZ48: -16 | DA48: -16 | DB48: 16 | DC48: -16 | DD48: -16 | DE48: -16 | DF48: 16 | DG48: 16 | DH48: -16 | DI48: 64 | DJ48: -16 | DK48: -16 | DL48: 16 | DM48: 16 | DN48: 16 | DO48: -16 | DP48: 16 | DQ48: 64 | DR48: -16 | DS48: -16 | DT48: 16 | DU48: 64 | DV48: 16 | DW48: -16 | DX48: -16
A49: 16 | B49: -16 | C49: -64 | D49: -16 | E49: -16 | F49: -64 | G49: -16 | H49: 16 | I49: 16 | J49: 16 | K49: 16 | L49: 16 | M49: -64 | N49: -64 | O49: -64 | P49: -16 | Q49: -64 | R49: -16 | S49: 64 | T49: -64 | U49: 16 | V49: -16 | W49: -16 | X49: 16 | Y49: 16 | Z49: -16 | AA49: 16 | AB49: -64 | AC49: -16 | AD49: -64 | AE49: -64 | AF49: -16 | AG49: -16 | AH49: 16 | AI49: -16 | AJ49: -64 | AK49: -16 | AL49: 16 | AM49: -64 | AN49: -16 | AO49: 16 | AP49: -16 | AQ49: -16 | AR49: 16 | AS49: -16 | AT49: 16 | AU49: -64 | AV49: -16 | AW49: -16 | AX49: -16 | AY49: -16 | AZ49: 16 | BA49: 16 | BB49: -16 | BC49: 16 | BD49: 16 | BE49: 16 | BF49: -16 | BG49: -16 | BH49: -16 | BI49: 16 | BJ49: 64 | BK49: -16 | BL49: 64 | BM49: -16 | BN49: -16 | BO49: 64 | BP49: 16 | BQ49: -16 | BR49: 16 | BS49: -16 | BT49: -16 | BU49: -16 | BV49: -16 | BW49: 16 | BX49: -16 | BY49: -16 | BZ49: -16 | CA49: 16 | CB49: -16 | CC49: -16 | CD49: 16 | CE49: 64 | CF49: -16 | CG49: -16 | CH49: 16 | CI49: -64 | CJ49: -64 | CK49: -16 | CL49: -16 | CM49: -64 | CN49: -16 | CO49: -16 | CP49: -16 | CQ49: 16 | CR49: -16 | CS49: 64 | CT49: -16 | CU49: -16 | CV49: -16 | CW49: -16 | CX49: -16 | CY49: -16 | CZ49: -16 | DA49: -16 | DB49: -16 | DC49: -64 | DD49: 16 | DE49: 16 | DF49: -16 | DG49: -16 | DH49: -64 | DI49: 64 | DJ49: -16 | DK49: -64 | DL49: -16 | DM49: 16 | DN49: -16 | DO49: -16 | DP49: -16 | DQ49: 64 | DR49: -16 | DS49: -16 | DT49: 16 | DU49: 64 | DV49: 16 | DW49: -16 | DX49: -16
A50: -16 | B50: -16 | C50: 16 | D50: 16 | E50: 16 | F50: -16 | G50: 16 | H50: -16 | I50: -16 | J50: 16 | K50: 16 | L50: 16 | M50: 16 | N50: -16 | O50: -16 | P50: -16 | Q50: -16 | R50: 16 | S50: -16 | T50: 16 | U50: -16 | V50: 16 | W50: -16 | X50: -16 | Y50: -16 | Z50: 16 | AA50: -16 | AB50: 16 | AC50: 16 | AD50: -16 | AE50: 16 | AF50: 16 | AG50: -16 | AH50: 16 | AI50: 16 | AJ50: 16 | AK50: 16 | AL50: -16 | AM50: 16 | AN50: 16 | AO50: 16 | AP50: -16 | AQ50: 16 | AR50: 16 | AS50: -16 | AT50: -16 | AU50: 16 | AV50: 16 | AW50: -16 | AX50: -16 | AY50: 16 | AZ50: -16 | BA50: -16 | BB50: -16 | BC50: -16 | BD50: -16 | BE50: -16 | BF50: -16 | BG50: -16 | BH50: 16 | BI50: 16 | BJ50: -64 | BK50: -16 | BL50: -16 | BM50: 16 | BN50: 16 | BO50: -16 | BP50: -16 | BQ50: -16 | BR50: 64 | BS50: -16 | BT50: -16 | BU50: 16 | BV50: -16 | BW50: -16 | BX50: -16 | BY50: 16 | BZ50: 16 | CA50: 16 | CB50: 16 | CC50: 16 | CD50: -16 | CE50: -64 | CF50: -16 | CG50: -16 | CH50: -16 | CI50: 16 | CJ50: 16 | CK50: 16 | CL50: -16 | CM50: 16 | CN50: -16 | CO50: 16 | CP50: -16 | CQ50: 16 | CR50: -16 | CS50: -16 | CT50: 16 | CU50: 16 | CV50: -16 | CW50: 16 | CX50: -16 | CY50: 16 | CZ50: 16 | DA50: -16 | DB50: 16 | DC50: 16 | DD50: 16 | DE50: -16 | DF50: 16 | DG50: 16 | DH50: -16 | DI50: -16 | DJ50: 16 | DK50: 64 | DL50: -16 | DM50: 16 | DN50: -16 | DO50: 16 | DP50: 16 | DQ50: -16 | DR50: 16 | DS50: 16 | DT50: -64 | DU50: -16 | DV50: 16 | DW50: 16 | DX50: 16
A51: 16 | B51: -16 | C51: -16 | D51: -64 | E51: -16 | F51: -16 | G51: -16 | H51: 16 | I51: -16 | J51: 16 | K51: 16 | L51: 16 | M51: 16 | N51: 16 | O51: -16 | P51: -16 | Q51: -16 | R51: 16 | S51: 16 | T51: -16 | U51: 16 | V51: -16 | W51: 16 | X51: 16 | Y51: 16 | Z51: -16 | AA51: -16 | AB51: -16 | AC51: 16 | AD51: -64 | AE51: -16 | AF51: 16 | AG51: 16 | AH51: 16 | AI51: -16 | AJ51: -16 | AK51: -16 | AL51: 16 | AM51: -16 | AN51: -16 | AO51: 16 | AP51: 16 | AQ51: -16 | AR51: 16 | AS51: -16 | AT51: -16 | AU51: -16 | AV51: -16 | AW51: 16 | AX51: -16 | AY51: 16 | AZ51: 16 | BA51: 16 | BB51: 16 | BC51: 16 | BD51: 16 | BE51: 16 | BF51: -16 | BG51: 16 | BH51: -16 | BI51: -16 | BJ51: 16 | BK51: -16 | BL51: 16 | BM51: -64 | BN51: -64 | BO51: 64 | BP51: 16 | BQ51: -16 | BR51: 16 | BS51: 16 | BT51: -16 | BU51: 16 | BV51: -16 | BW51: 64 | BX51: 16 | BY51: -16 | BZ51: -16 | CA51: -16 | CB51: 16 | CC51: -16 | CD51: -16 | CE51: 16 | CF51: -16 | CG51: -16 | CH51: 16 | CI51: -16 | CJ51: -16 | CK51: 16 | CL51: -16 | CM51: -16 | CN51: -16 | CO51: -16 | CP51: -16 | CQ51: 16 | CR51: 16 | CS51: 16 | CT51: 16 | CU51: -16 | CV51: 16 | CW51: -16 | CX51: 16 | CY51: -16 | CZ51: -16 | DA51: -16 | DB51: -16 | DC51: -16 | DD51: 16 | DE51: 16 | DF51: -16 | DG51: -16 | DH51: -16 | DI51: 64 | DJ51: -16 | DK51: -16 | DL51: 16 | DM51: 16 | DN51: 16 | DO51: -16 | DP51: -16 | DQ51: 64 | DR51: 16 | DS51: -16 | DT51: -16 | DU51: 64 | DV51: 16 | DW51: -16 | DX51: 16
A52: -16 | B52: 16 | C52: -64 | D52: -64 | E52: -16 | F52: -16 | G52: -16 | H52: 16 | I52: -16 | J52: 64 | K52: -16 | L52: 64 | M52: -64 | N52: -64 | O52: -64 | P52: -16 | Q52: -64 | R52: 16 | S52: 64 | T52: -64 | U52: -16 | V52: -16 | W52: -16 | X52: -16 | Y52: 16 | Z52: -16 | AA52: -16 | AB52: -64 | AC52: 16 | AD52: -64 | AE52: -64 | AF52: 16 | AG52: -16 | AH52: 16 | AI52: 16 | AJ52: -64 | AK52: -16 | AL52: 64 | AM52: -64 | AN52: -16 | AO52: 16 | AP52: -16 | AQ52: -16 | AR52: 64 | AS52: -16 | AT52: -16 | AU52: -64 | AV52: -64 | AW52: -16 | AX52: -16 | AY52: -16 | AZ52: -16 | BA52: 64 | BB52: -16 | BC52: 16 | BD52: 16 | BE52: -16 | BF52: 16 | BG52: 16 | BH52: -16 | BI52: 16 | BJ52: 64 | BK52: -64 | BL52: 64 | BM52: -16 | BN52: -64 | BO52: 16 | BP52: -16 | BQ52: -16 | BR52: 16 | BS52: -16 | BT52: -16 | BU52: -16 | BV52: -16 | BW52: 64 | BX52: -16 | BY52: -16 | BZ52: -16 | CA52: 16 | CB52: -16 | CC52: -64 | CD52: 16 | CE52: 64 | CF52: -16 | CG52: -64 | CH52: 16 | CI52: -64 | CJ52: -64 | CK52: -16 | CL52: -16 | CM52: -16 | CN52: -16 | CO52: 16 | CP52: -16 | CQ52: -16 | CR52: 16 | CS52: 64 | CT52: -64 | CU52: -64 | CV52: 16 | CW52: -16 | CX52: -16 | CY52: 16 | CZ52: -16 | DA52: 16 | DB52: -16 | DC52: -16 | DD52: -16 | DE52: -16 | DF52: -16 | DG52: -16 | DH52: -64 | DI52: 64 | DJ52: -16 | DK52: -64 | DL52: -64 | DM52: 64 | DN52: 16 | DO52: -64 | DP52: -16 | DQ52: 64 | DR52: -64 | DS52: -16 | DT52: -16 | DU52: 16 | DV52: -16 | DW52: 16 | DX52: -16
A53: -16 | B53: -16 | C53: -16 | D53: 16 | E53: 16 | F53: -16 | G53: 16 | H53: 16 | I53: -16 | J53: -16 | K53: -16 | L53: 16 | M53: -16 | N53: 16 | O53: 16 | P53: 16 | Q53: -16 | R53: 16 | S53: 16 | T53: 16 | U53: -16 | V53: 16 | W53: -16 | X53: -16 | Y53: -16 | Z53: 16 | AA53: -16 | AB53: 16 | AC53: 16 | AD53: 16 | AE53: -16 | AF53: 16 | AG53: 16 | AH53: -16 | AI53: -16 | AJ53: -16 | AK53: -16 | AL53: 16 | AM53: -16 | AN53: 16 | AO53: 16 | AP53: -16 | AQ53: 16 | AR53: 16 | AS53: 16 | AT53: 16 | AU53: 16 | AV53: 16 | AW53: -16 | AX53: 16 | AY53: -16 | AZ53: -16 | BA53: -16 | BB53: 16 | BC53: 16 | BD53: -16 | BE53: -16 | BF53: -16 | BG53: 16 | BH53: -16 | BI53: 16 | BJ53: 16 | BK53: -16 | BL53: 16 | BM53: -16 | BN53: -16 | BO53: 16 | BP53: -16 | BQ53: 16 | BR53: -16 | BS53: -16 | BT53: 16 | BU53: 16 | BV53: -16 | BW53: 16 | BX53: -16 | BY53: -16 | BZ53: 16 | CA53: -16 | CB53: 16 | CC53: 16 | CD53: -16 | CE53: 16 | CF53: -16 | CG53: -16 | CH53: 16 | CI53: -16 | CJ53: -16 | CK53: -16 | CL53: -16 | CM53: -16 | CN53: -16 | CO53: -16 | CP53: -16 | CQ53: -16 | CR53: 16 | CS53: -16 | CT53: 16 | CU53: -16 | CV53: 16 | CW53: 16 | CX53: 16 | CY53: 16 | CZ53: 16 | DA53: 16 | DB53: -16 | DC53: -16 | DD53: -16 | DE53: 16 | DF53: -16 | DG53: -16 | DH53: -16 | DI53: 16 | DJ53: 16 | DK53: 16 | DL53: 16 | DM53: 16 | DN53: -16 | DO53: -16 | DP53: -16 | DQ53: 16 | DR53: 16 | DS53: -16 | DT53: 16 | DU53: 16 | DV53: 16 | DW53: -16 | DX53: 16
A54: 16 | B54: 16 | C54: -16 | D54: -16 | E54: 16 | F54: -16 | G54: -16 | H54: -16 | I54: 16 | J54: 16 | K54: 16 | L54: 64 | M54: -16 | N54: -16 | O54: -16 | P54: 16 | Q54: -16 | R54: -16 | S54: 64 | T54: -16 | U54: 16 | V54: -16 | W54: 16 | X54: -16 | Y54: 16 | Z54: -16 | AA54: 16 | AB54: -16 | AC54: 16 | AD54: -64 | AE54: -64 | AF54: 16 | AG54: 16 | AH54: -16 | AI54: 16 | AJ54: 16 | AK54: -16 | AL54: 16 | AM54: -16 | AN54: -16 | AO54: 16 | AP54: -16 | AQ54: -64 | AR54: 16 | AS54: -16 | AT54: -16 | AU54: -16 | AV54: -64 | AW54: -16 | AX54: 16 | AY54: -16 | AZ54: 16 | BA54: 16 | BB54: -16 | BC54: 16 | BD54: 16 | BE54: 16 | BF54: -16 | BG54: 16 | BH54: -16 | BI54: 16 | BJ54: 16 | BK54: -16 | BL54: 64 | BM54: -16 | BN54: -16 | BO54: 64 | BP54: -16 | BQ54: 16 | BR54: 16 | BS54: 16 | BT54: -16 | BU54: -16 | BV54: -16 | BW54: 64 | BX54: -16 | BY54: -64 | BZ54: -16 | CA54: -16 | CB54: -16 | CC54: -16 | CD54: -16 | CE54: 64 | CF54: -16 | CG54: -64 | CH54: 16 | CI54: -16 | CJ54: -16 | CK54: 16 | CL54: -16 | CM54: -16 | CN54: 16 | CO54: 16 | CP54: -16 | CQ54: -16 | CR54: 16 | CS54: 64 | CT54: 16 | CU54: -16 | CV54: -16 | CW54: 16 | CX54: 16 | CY54: -16 | CZ54: -16 | DA54: -16 | DB54: -16 | DC54: -16 | DD54: 16 | DE54: 16 | DF54: -16 | DG54: -16 | DH54: -64 | DI54: 64 | DJ54: -16 | DK54: -64 | DL54: 16 | DM54: 16 | DN54: 16 | DO54: -64 | DP54: -16 | DQ54: 64 | DR54: 16 | DS54: -16 | DT54: 16 | DU54: 64 | DV54: -16 | DW54: -16 | DX54: -16
A55: 16 | B55: -16 | C55: 16 | D55: -16 | E55: 16 | F55: -16 | G55: 64 | H55: 16 | I55: -16 | J55: -16 | K55: 16 | L55: -16 | M55: 64 | N55: -16 | O55: 16 | P55: -16 | Q55: -16 | R55: 16 | S55: -16 | T55: 16 | U55: 16 | V55: 16 | W55: 16 | X55: -16 | Y55: 16 | Z55: -16 | AA55: -16 | AB55: -16 | AC55: -16 | AD55: 16 | AE55: -16 | AF55: 16 | AG55: 16 | AH55: 16 | AI55: 16 | AJ55: 64 | AK55: -16 | AL55: -16 | AM55: -16 | AN55: 16 | AO55: 16 | AP55: -16 | AQ55: -16 | AR55: 16 | AS55: 16 | AT55: -16 | AU55: -16 | AV55: 16 | AW55: 16 | AX55: 16 | AY55: -16 | AZ55: -16 | BA55: -16 | BB55: -16 | BC55: 16 | BD55: 16 | BE55: -16 | BF55: -16 | BG55: 64 | BH55: -16 | BI55: -16 | BJ55: -16 | BK55: -16 | BL55: 16 | BM55: -16 | BN55: 16 | BO55: 16 | BP55: 16 | BQ55: 16 | BR55: -16 | BS55: 16 | BT55: -16 | BU55: 16 | BV55: -16 | BW55: -16 | BX55: 16 | BY55: 16 | BZ55: -16 | CA55: -16 | CB55: 16 | CC55: 16 | CD55: 16 | CE55: -16 | CF55: 16 | CG55: 16 | CH55: -16 | CI55: 16 | CJ55: 16 | CK55: -16 | CL55: 16 | CM55: 16 | CN55: -16 | CO55: -16 | CP55: 16 | CQ55: 16 | CR55: 16 | CS55: -16 | CT55: 16 | CU55: -16 | CV55: -16 | CW55: 16 | CX55: 16 | CY55: -16 | CZ55: 16 | DA55: -16 | DB55: 16 | DC55: 16 | DD55: -16 | DE55: -16 | DF55: 16 | DG55: 16 | DH55: 16 | DI55: -16 | DJ55: -16 | DK55: -16 | DL55: 16 | DM55: -16 | DN55: 16 | DO55: -16 | DP55: 16 | DQ55: -16 | DR55: 16 | DS55: 16 | DT55: 16 | DU55: -16 | DV55: 16 | DW55: -16 | DX55: -16
A56: -16 | B56: 16 | C56: -16 | D56: -16 | E56: -16 | F56: 16 | G56: 16 | H56: -16 | I56: -16 | J56: -16 | K56: -16 | L56: -16 | M56: 16 | N56: 16 | O56: -16 | P56: -16 | Q56: 16 | R56: -16 | S56: -16 | T56: -16 | U56: -16 | V56: -16 | W56: 16 | X56: 16 | Y56: 16 | Z56: -16 | AA56: 16 | AB56: 16 | AC56: 16 | AD56: 16 | AE56: 16 | AF56: 16 | AG56: -16 | AH56: -16 | AI56: -16 | AJ56: -16 | AK56: -16 | AL56: -16 | AM56: -16 | AN56: -16 | AO56: 16 | AP56: -16 | AQ56: 16 | AR56: 16 | AS56: 16 | AT56: 16 | AU56: -16 | AV56: -16 | AW56: -16 | AX56: 16 | AY56: -16 | AZ56: 16 | BA56: 16 | BB56: 16 | BC56: -16 | BD56: 16 | BE56: 16 | BF56: 16 | BG56: -16 | BH56: -16 | BI56: -16 | BJ56: 16 | BK56: -16 | BL56: 16 | BM56: 16 | BN56: 16 | BO56: -16 | BP56: -16 | BQ56: 16 | BR56: 16 | BS56: -16 | BT56: -16 | BU56: -16 | BV56: 16 | BW56: -16 | BX56: 16 | BY56: -16 | BZ56: -16 | CA56: -16 | CB56: 16 | CC56: -16 | CD56: 16 | CE56: 16 | CF56: -16 | CG56: 16 | CH56: -16 | CI56: -16 | CJ56: -16 | CK56: -16 | CL56: -16 | CM56: -16 | CN56: 16 | CO56: 16 | CP56: -16 | CQ56: -16 | CR56: 16 | CS56: -16 | CT56: 16 | CU56: 16 | CV56: 16 | CW56: -16 | CX56: -16 | CY56: 16 | CZ56: -16 | DA56: -16 | DB56: 16 | DC56: 16 | DD56: 16 | DE56: -16 | DF56: 16 | DG56: -16 | DH56: -16 | DI56: 16 | DJ56: 16 | DK56: -16 | DL56: 16 | DM56: 16 | DN56: 16 | DO56: -16 | DP56: 16 | DQ56: 16 | DR56: 16 | DS56: -16 | DT56: 16 | DU56: -16 | DV56: -16 | DW56: 16 | DX56: -16
A57: -16 | B57: 16 | C57: -16 | D57: -16 | E57: -16 | F57: 64 | G57: -16 | H57: -16 | I57: -16 | J57: 16 | K57: 16 | L57: 16 | M57: -16 | N57: -16 | O57: 16 | P57: 16 | Q57: 16 | R57: -16 | S57: -16 | T57: 16 | U57: 64 | V57: -16 | W57: -16 | X57: 16 | Y57: 16 | Z57: 16 | AA57: -16 | AB57: 16 | AC57: -16 | AD57: -16 | AE57: 16 | AF57: -16 | AG57: -16 | AH57: 16 | AI57: -16 | AJ57: -16 | AK57: 16 | AL57: -16 | AM57: -16 | AN57: -16 | AO57: 16 | AP57: 16 | AQ57: -16 | AR57: -16 | AS57: -16 | AT57: 16 | AU57: 16 | AV57: -16 | AW57: -16 | AX57: 16 | AY57: 16 | AZ57: 16 | BA57: -16 | BB57: 16 | BC57: 16 | BD57: 16 | BE57: 16 | BF57: -16 | BG57: -16 | BH57: -16 | BI57: 16 | BJ57: -16 | BK57: -16 | BL57: 16 | BM57: 16 | BN57: -16 | BO57: -16 | BP57: 16 | BQ57: 16 | BR57: 16 | BS57: 16 | BT57: 16 | BU57: -16 | BV57: -16 | BW57: 16 | BX57: -16 | BY57: 64 | BZ57: -16 | CA57: -16 | CB57: 16 | CC57: 16 | CD57: 16 | CE57: -16 | CF57: 16 | CG57: 64 | CH57: -16 | CI57: -16 | CJ57: -16 | CK57: -16 | CL57: 64 | CM57: 16 | CN57: -16 | CO57: 16 | CP57: 16 | CQ57: -16 | CR57: -16 | CS57: -16 | CT57: -16 | CU57: -16 | CV57: 16 | CW57: 16 | CX57: 16 | CY57: -16 | CZ57: 16 | DA57: -16 | DB57: -16 | DC57: -16 | DD57: 16 | DE57: -16 | DF57: -16 | DG57: -16 | DH57: 64 | DI57: 16 | DJ57: 16 | DK57: 16 | DL57: -16 | DM57: -16 | DN57: -16 | DO57: 64 | DP57: 16 | DQ57: 16 | DR57: 64 | DS57: -16 | DT57: 16 | DU57: -16 | DV57: 16 | DW57: -16 | DX57: 64
A58: 16 | B58: 16 | C58: -16 | D58: -16 | E58: -16 | F58: -16 | G58: 16 | H58: 16 | I58: -16 | J58: 16 | K58: -16 | L58: 16 | M58: 16 | N58: 16 | O58: 16 | P58: -16 | Q58: -16 | R58: -16 | S58: 16 | T58: -16 | U58: 16 | V58: 64 | W58: 16 | X58: -16 | Y58: 16 | Z58: 16 | AA58: -16 | AB58: -16 | AC58: 16 | AD58: -16 | AE58: -16 | AF58: 16 | AG58: 16 | AH58: -16 | AI58: -16 | AJ58: -16 | AK58: 16 | AL58: -16 | AM58: -16 | AN58: -16 | AO58: 16 | AP58: -16 | AQ58: -16 | AR58: 16 | AS58: -64 | AT58: 16 | AU58: 16 | AV58: -16 | AW58: -16 | AX58: 16 | AY58: -16 | AZ58: 16 | BA58: -16 | BB58: 16 | BC58: 16 | BD58: -16 | BE58: 16 | BF58: -16 | BG58: 16 | BH58: 16 | BI58: 16 | BJ58: 16 | BK58: -16 | BL58: -16 | BM58: 16 | BN58: 16 | BO58: -16 | BP58: -16 | BQ58: 16 | BR58: -16 | BS58: 16 | BT58: 16 | BU58: -16 | BV58: -16 | BW58: 16 | BX58: 16 | BY58: -16 | BZ58: -16 | CA58: -16 | CB58: 16 | CC58: -16 | CD58: -16 | CE58: -16 | CF58: -16 | CG58: -16 | CH58: 16 | CI58: 16 | CJ58: -16 | CK58: 16 | CL58: 16 | CM58: -16 | CN58: 16 | CO58: -16 | CP58: -16 | CQ58: -16 | CR58: -16 | CS58: 16 | CT58: 16 | CU58: 16 | CV58: -16 | CW58: 16 | CX58: 16 | CY58: -16 | CZ58: -16 | DA58: -16 | DB58: -16 | DC58: -16 | DD58: 16 | DE58: -16 | DF58: 16 | DG58: 16 | DH58: 16 | DI58: -16 | DJ58: -16 | DK58: 16 | DL58: 16 | DM58: -16 | DN58: -16 | DO58: -16 | DP58: -16 | DQ58: 16 | DR58: 16 | DS58: -16 | DT58: 16 | DU58: -16 | DV58: 16 | DW58: 16 | DX58: 16
A59: 16 | B59: 16 | C59: -16 | D59: 16 | E59: -16 | F59: 16 | G59: 16 | H59: -16 | I59: 16 | J59: 16 | K59: -16 | L59: -16 | M59: -16 | N59: 16 | O59: 16 | P59: -16 | Q59: -16 | R59: 16 | S59: 16 | T59: -16 | U59: -16 | V59: 16 | W59: -16 | X59: 16 | Y59: 16 | Z59: 16 | AA59: 16 | AB59: 16 | AC59: -16 | AD59: 16 | AE59: -16 | AF59: 16 | AG59: 16 | AH59: 16 | AI59: -16 | AJ59: 16 | AK59: -16 | AL59: -16 | AM59: 16 | AN59: 16 | AO59: 16 | AP59: 16 | AQ59: -16 | AR59: 16 | AS59: 16 | AT59: 16 | AU59: -16 | AV59: -16 | AW59: 16 | AX59: 16 | AY59: -16 | AZ59: 16 | BA59: 16 | BB59: 16 | BC59: 16 | BD59: 16 | BE59: -16 | BF59: 16 | BG59: 16 | BH59: 16 | BI59: 16 | BJ59: 16 | BK59: 16 | BL59: 16 | BM59: 16 | BN59: -16 | BO59: -16 | BP59: -16 | BQ59: 16 | BR59: -16 | BS59: 16 | BT59: 16 | BU59: -16 | BV59: -16 | BW59: 16 | BX59: 16 | BY59: 16 | BZ59: 16 | CA59: -16 | CB59: -16 | CC59: 16 | CD59: -16 | CE59: 16 | CF59: 16 | CG59: -16 | CH59: -16 | CI59: 16 | CJ59: 16 | CK59: 16 | CL59: 16 | CM59: -16 | CN59: -16 | CO59: 16 | CP59: -16 | CQ59: 16 | CR59: 16 | CS59: 16 | CT59: 16 | CU59: 16 | CV59: 16 | CW59: 16 | CX59: 16 | CY59: 16 | CZ59: 16 | DA59: 16 | DB59: 16 | DC59: -16 | DD59: 16 | DE59: 16 | DF59: 16 | DG59: -16 | DH59: -16 | DI59: 16 | DJ59: 16 | DK59: -16 | DL59: 16 | DM59: 16 | DN59: -16 | DO59: 16 | DP59: 16 | DQ59: 16 | DR59: 16 | DS59: 16 | DT59: 16 | DU59: 16 | DV59: 16 | DW59: -16 | DX59: 16
A60: 16 | B60: 16 | C60: 16 | D60: 16 | E60: 16 | F60: -16 | G60: 16 | H60: -16 | I60: 16 | J60: -16 | K60: -16 | L60: 16 | M60: -16 | N60: -16 | O60: -16 | P60: -16 | Q60: 16 | R60: 64 | S60: -16 | T60: 16 | U60: 16 | V60: 16 | W60: 16 | X60: -16 | Y60: -16 | Z60: -16 | AA60: -16 | AB60: 16 | AC60: -16 | AD60: 64 | AE60: 64 | AF60: 16 | AG60: 16 | AH60: 16 | AI60: 16 | AJ60: 16 | AK60: -16 | AL60: -16 | AM60: 16 | AN60: -16 | AO60: 16 | AP60: -16 | AQ60: -16 | AR60: -16 | AS60: 16 | AT60: -16 | AU60: 16 | AV60: 16 | AW60: 16 | AX60: 16 | AY60: -16 | AZ60: -16 | BA60: -16 | BB60: 16 | BC60: 16 | BD60: -16 | BE60: -16 | BF60: -16 | BG60: 16 | BH60: -16 | BI60: 16 | BJ60: -16 | BK60: 16 | BL60: -16 | BM60: -64 | BN60: 16 | BO60: -16 | BP60: 16 | BQ60: -16 | BR60: -64 | BS60: 16 | BT60: -16 | BU60: 16 | BV60: -16 | BW60: -16 | BX60: -16 | BY60: 16 | BZ60: -16 | CA60: -16 | CB60: 16 | CC60: 16 | CD60: 16 | CE60: -16 | CF60: -16 | CG60: 16 | CH60: -16 | CI60: 16 | CJ60: 16 | CK60: 16 | CL60: -16 | CM60: 16 | CN60: 16 | CO60: -16 | CP60: 16 | CQ60: -64 | CR60: 16 | CS60: -16 | CT60: 16 | CU60: -16 | CV60: -16 | CW60: 16 | CX60: 16 | CY60: -16 | CZ60: 16 | DA60: -16 | DB60: 16 | DC60: -16 | DD60: 16 | DE60: -16 | DF60: -16 | DG60: 16 | DH60: 64 | DI60: -16 | DJ60: 16 | DK60: 16 | DL60: 16 | DM60: -16 | DN60: 16 | DO60: -16 | DP60: 16 | DQ60: -16 | DR60: 16 | DS60: 16 | DT60: 16 | DU60: -16 | DV60: 16 | DW60: 16 | DX60: -16
A61: 16 | B61: -16 | C61: 16 | D61: 16 | E61: 16 | F61: 16 | G61: -16 | H61: -16 | I61: -16 | J61: 16 | K61: 16 | L61: -16 | M61: 16 | N61: 16 | O61: -16 | P61: 16 | Q61: 16 | R61: 16 | S61: -16 | T61: 16 | U61: -16 | V61: -16 | W61: 16 | X61: 16 | Y61: -16 | Z61: -16 | AA61: -16 | AB61: 16 | AC61: 16 | AD61: 16 | AE61: 16 | AF61: -16 | AG61: 16 | AH61: 16 | AI61: 16 | AJ61: 16 | AK61: 16 | AL61: 16 | AM61: 16 | AN61: 16 | AO61: -16 | AP61: 16 | AQ61: 16 | AR61: 16 | AS61: 16 | AT61: -16 | AU61: -16 | AV61: 16 | AW61: -16 | AX61: -16 | AY61: 16 | AZ61: -16 | BA61: 16 | BB61: -16 | BC61: 16 | BD61: 16 | BE61: 16 | BF61: 16 | BG61: 16 | BH61: -16 | BI61: -16 | BJ61: 16 | BK61: 16 | BL61: 16 | BM61: -16 | BN61: 16 | BO61: 16 | BP61: -16 | BQ61: 16 | BR61: 16 | BS61: 16 | BT61: -16 | BU61: -16 | BV61: 16 | BW61: -16 | BX61: -16 | BY61: 16 | BZ61: 16 | CA61: 16 | CB61: 16 | CC61: -16 | CD61: 16 | CE61: 16 | CF61: 16 | CG61: 16 | CH61: -16 | CI61: 16 | CJ61: 16 | CK61: 16 | CL61: 16 | CM61: 16 | CN61: 16 | CO61: 16 | CP61: -16 | CQ61: 16 | CR61: 16 | CS61: -16 | CT61: 16 | CU61: -16 | CV61: 16 | CW61: 16 | CX61: 16 | CY61: -16 | CZ61: 16 | DA61: -16 | DB61: 16 | DC61: 16 | DD61: -16 | DE61: -16 | DF61: 16 | DG61: 16 | DH61: 16 | DI61: -16 | DJ61: 16 | DK61: 16 | DL61: 16 | DM61: 16 | DN61: -16 | DO61: -16 | DP61: 16 | DQ61: -16 | DR61: -16 | DS61: -16 | DT61: 16 | DU61: 16 | DV61: 16 | DW61: -16 | DX61: 16
A62: 16 | B62: -16 | C62: -16 | D62: -16 | E62: 16 | F62: -16 | G62: 16 | H62: -16 | I62: -16 | J62: 16 | K62: 16 | L62: -16 | M62: 16 | N62: -16 | O62: 16 | P62: -16 | Q62: 16 | R62: 16 | S62: 16 | T62: -16 | U62: -16 | V62: 16 | W62: -16 | X62: -16 | Y62: -16 | Z62: 16 | AA62: 16 | AB62: 16 | AC62: -16 | AD62: 16 | AE62: 16 | AF62: 16 | AG62: 16 | AH62: 16 | AI62: -16 | AJ62: 16 | AK62: 16 | AL62: -16 | AM62: -16 | AN62: -16 | AO62: 16 | AP62: -16 | AQ62: -16 | AR62: 16 | AS62: 16 | AT62: -16 | AU62: -16 | AV62: 16 | AW62: -16 | AX62: 16 | AY62: -16 | AZ62: 16 | BA62: -16 | BB62: 16 | BC62: 16 | BD62: 16 | BE62: 16 | BF62: -16 | BG62: 16 | BH62: 16 | BI62: 16 | BJ62: 16 | BK62: -16 | BL62: 16 | BM62: 16 | BN62: 16 | BO62: -16 | BP62: 16 | BQ62: -16 | BR62: 16 | BS62: 16 | BT62: 16 | BU62: -16 | BV62: 16 | BW62: -16 | BX62: -16 | BY62: 16 | BZ62: -16 | CA62: 16 | CB62: 16 | CC62: 16 | CD62: -16 | CE62: 16 | CF62: 16 | CG62: -16 | CH62: -16 | CI62: -16 | CJ62: 16 | CK62: 16 | CL62: 16 | CM62: 16 | CN62: -16 | CO62: -16 | CP62: 16 | CQ62: 16 | CR62: 16 | CS62: -16 | CT62: 16 | CU62: -16 | CV62: 16 | CW62: 16 | CX62: 16 | CY62: 16 | CZ62: -16 | DA62: -16 | DB62: 16 | DC62: 16 | DD62: 16 | DE62: -16 | DF62: -16 | DG62: 16 | DH62: 16 | DI62: 16 | DJ62: 16 | DK62: 16 | DL62: 16 | DM62: 16 | DN62: -16 | DO62: 16 | DP62: -16 | DQ62: -16 | DR62: -16 | DS62: -16 | DT62: -16 | DU62: -16 | DV62: -16 | DW62: -16 | DX62: 16
A63: 16 | B63: -16 | C63: -16 | D63: -16 | E63: 16 | F63: 16 | G63: 16 | H63: -16 | I63: 16 | J63: 16 | K63: -16 | L63: -16 | M63: 16 | N63: 16 | O63: -16 | P63: 16 | Q63: 16 | R63: 16 | S63: -16 | T63: -16 | U63: -16 | V63: -16 | W63: -16 | X63: -16 | Y63: 16 | Z63: 16 | AA63: 16 | AB63: -16 | AC63: -16 | AD63: -16 | AE63: 16 | AF63: -16 | AG63: -16 | AH63: -16 | AI63: 16 | AJ63: -16 | AK63: -16 | AL63: -16 | AM63: -16 | AN63: 16 | AO63: -16 | AP63: 16 | AQ63: -16 | AR63: 16 | AS63: -16 | AT63: -16 | AU63: 16 | AV63: -16 | AW63: -16 | AX63: -16 | AY63: -16 | AZ63: -16 | BA63: -16 | BB63: -16 | BC63: 16 | BD63: 16 | BE63: -16 | BF63: -16 | BG63: 16 | BH63: -16 | BI63: 16 | BJ63: -16 | BK63: -16 | BL63: 16 | BM63: -16 | BN63: 16 | BO63: 16 | BP63: -16 | BQ63: 16 | BR63: -16 | BS63: -16 | BT63: -16 | BU63: 16 | BV63: 16 | BW63: 16 | BX63: -16 | BY63: 16 | BZ63: 16 | CA63: -16 | CB63: -16 | CC63: -16 | CD63: -16 | CE63: -16 | CF63: -16 | CG63: 16 | CH63: 16 | CI63: 16 | CJ63: 16 | CK63: 16 | CL63: 16 | CM63: 16 | CN63: 16 | CO63: -16 | CP63: -16 | CQ63: -16 | CR63: -16 | CS63: 16 | CT63: -16 | CU63: 16 | CV63: 16 | CW63: -16 | CX63: -16 | CY63: -16 | CZ63: -16 | DA63: -16 | DB63: 16 | DC63: -16 | DD63: 16 | DE63: 16 | DF63: -16 | DG63: -16 | DH63: 16 | DI63: 16 | DJ63: -16 | DK63: 16 | DL63: -16 | DM63: -16 | DN63: 16 | DO63: 16 | DP63: -16 | DQ63: 16 | DR63: 16 | DS63: 16 | DT63: 16 | DU63: -16 | DV63: -16 | DW63: -16 | DX63: 16
A64: -16 | B64: 16 | C64: 16 | D64: 64 | E64: 64 | F64: -16 | G64: -16 | H64: -16 | I64: -16 | J64: -16 | K64: -16 | L64: 16 | M64: -16 | N64: -16 | O64: -64 | P64: -16 | Q64: -16 | R64: 64 | S64: -16 | T64: -16 | U64: -16 | V64: -16 | W64: -64 | X64: 16 | Y64: -64 | Z64: -16 | AA64: -64 | AB64: -16 | AC64: -16 | AD64: 16 | AE64: 16 | AF64: -16 | AG64: -64 | AH64: 64 | AI64: 16 | AJ64: -16 | AK64: -16 | AL64: -16 | AM64: 16 | AN64: -16 | AO64: -16 | AP64: -16 | AQ64: -16 | AR64: -64 | AS64: 64 | AT64: 16 | AU64: -16 | AV64: 16 | AW64: 16 | AX64: -16 | AY64: -16 | AZ64: 16 | BA64: -16 | BB64: 16 | BC64: -16 | BD64: -16 | BE64: -16 | BF64: 16 | BG64: -16 | BH64: 16 | BI64: -16 | BJ64: -16 | BK64: -16 | BL64: 16 | BM64: -16 | BN64: -16 | BO64: -16 | BP64: -16 | BQ64: -16 | BR64: 16 | BS64: -16 | BT64: -16 | BU64: -16 | BV64: -16 | BW64: -16 | BX64: -16 | BY64: 16 | BZ64: 16 | CA64: 16 | CB64: 16 | CC64: -16 | CD64: -16 | CE64: -16 | CF64: -64 | CG64: 16 | CH64: -16 | CI64: 16 | CJ64: -16 | CK64: 16 | CL64: -16 | CM64: 16 | CN64: -16 | CO64: 16 | CP64: -16 | CQ64: 64 | CR64: 64 | CS64: -16 | CT64: -64 | CU64: -16 | CV64: 16 | CW64: -16 | CX64: -16 | CY64: 16 | CZ64: 16 | DA64: -16 | DB64: 64 | DC64: 16 | DD64: -16 | DE64: -16 | DF64: 16 | DG64: -16 | DH64: 16 | DI64: -16 | DJ64: 16 | DK64: 16 | DL64: -16 | DM64: -16 | DN64: 16 | DO64: -16 | DP64: 16 | DQ64: -16 | DR64: -16 | DS64: 16 | DT64: -16 | DU64: -16 | DV64: 16 | DW64: -64 | DX64: 16
A65: 16 | B65: -16 | C65: -16 | D65: -16 | E65: 16 | F65: 16 | G65: -16 | H65: -16 | I65: 16 | J65: 16 | K65: 16 | L65: 16 | M65: 16 | N65: 16 | O65: 16 | P65: -16 | Q65: 16 | R65: -16 | S65: -16 | T65: 16 | U65: 16 | V65: 16 | W65: 16 | X65: 16 | Y65: 16 | Z65: 16 | AA65: 16 | AB65: 16 | AC65: -16 | AD65: 16 | AE65: 16 | AF65: 16 | AG65: 16 | AH65: 16 | AI65: 16 | AJ65: 16 | AK65: 16 | AL65: 16 | AM65: -16 | AN65: 16 | AO65: -16 | AP65: 16 | AQ65: -16 | AR65: 16 | AS65: 16 | AT65: -16 | AU65: -16 | AV65: 16 | AW65: -16 | AX65: 16 | AY65: -16 | AZ65: 16 | BA65: 16 | BB65: -16 | BC65: 16 | BD65: 16 | BE65: -16 | BF65: 16 | BG65: 16 | BH65: -16 | BI65: 16 | BJ65: 16 | BK65: -16 | BL65: 16 | BM65: 16 | BN65: 16 | BO65: 16 | BP65: -16 | BQ65: -16 | BR65: 16 | BS65: 16 | BT65: -16 | BU65: -16 | BV65: 16 | BW65: 16 | BX65: 16 | BY65: -16 | BZ65: 16 | CA65: 16 | CB65: -16 | CC65: 16 | CD65: -16 | CE65: 16 | CF65: -16 | CG65: 16 | CH65: -16 | CI65: 16 | CJ65: 16 | CK65: 16 | CL65: 16 | CM65: 16 | CN65: -16 | CO65: 16 | CP65: -16 | CQ65: -16 | CR65: -16 | CS65: -16 | CT65: 16 | CU65: 16 | CV65: -16 | CW65: -16 | CX65: 16 | CY65: -16 | CZ65: -16 | DA65: -16 | DB65: 16 | DC65: 16 | DD65: 16 | DE65: -16 | DF65: 16 | DG65: -16 | DH65: 16 | DI65: -16 | DJ65: 16 | DK65: 16 | DL65: 16 | DM65: 16 | DN65: -16 | DO65: 16 | DP65: 16 | DQ65: 16 | DR65: 16 | DS65: 16 | DT65: 16 | DU65: -16 | DV65: 16 | DW65: 16 | DX65: 16
A66: 16 | B66: 16 | C66: 16 | D66: -16 | E66: -16 | F66: 16 | G66: 64 | H66: -16 | I66: -16 | J66: -16 | K66: 64 | L66: 16 | M66: 64 | N66: 16 | O66: 16 | P66: -16 | Q66: 16 | R66: -16 | S66: -16 | T66: 16 | U66: 16 | V66: 64 | W66: 16 | X66: -16 | Y66: 16 | Z66: -16 | AA66: 16 | AB66: 16 | AC66: -16 | AD66: 16 | AE66: -16 | AF66: 16 | AG66: 64 | AH66: -16 | AI66: 16 | AJ66: 16 | AK66: -64 | AL66: -16 | AM66: -16 | AN66: -16 | AO66: -16 | AP66: -16 | AQ66: 16 | AR66: 16 | AS66: -16 | AT66: -16 | AU66: 16 | AV66: -16 | AW66: 16 | AX66: 64 | AY66: -16 | AZ66: -16 | BA66: -16 | BB66: 16 | BC66: 64 | BD66: 16 | BE66: -16 | BF66: -16 | BG66: 64 | BH66: 16 | BI66: 16 | BJ66: 16 | BK66: 16 | BL66: -16 | BM66: 16 | BN66: 16 | BO66: 16 | BP66: 16 | BQ66: 16 | BR66: -64 | BS66: 16 | BT66: 16 | BU66: -16 | BV66: -16 | BW66: 16 | BX66: -16 | BY66: -16 | BZ66: -16 | CA66: -16 | CB66: -16 | CC66: 64 | CD66: 16 | CE66: 16 | CF66: 16 | CG66: -16 | CH66: -16 | CI66: 16 | CJ66: 64 | CK66: -16 | CL66: 16 | CM66: -16 | CN66: -16 | CO66: -16 | CP66: 16 | CQ66: -16 | CR66: -16 | CS66: 16 | CT66: 16 | CU66: -16 | CV66: 16 | CW66: 16 | CX66: 16 | CY66: 16 | CZ66: -16 | DA66: 16 | DB66: -16 | DC66: -16 | DD66: 16 | DE66: 16 | DF66: -16 | DG66: 16 | DH66: 16 | DI66: -16 | DJ66: -16 | DK66: 16 | DL66: -16 | DM66: 16 | DN66: 16 | DO66: -16 | DP66: -16 | DQ66: -16 | DR66: -16 | DS66: -16 | DT66: 16 | DU66: 16 | DV66: 16 | DW66: 64 | DX66: -64
A67: -16 | B67: 16 | C67: 16 | D67: -16 | E67: 16 | F67: 64 | G67: 16 | H67: -16 | I67: 16 | J67: 16 | K67: 16 | L67: 16 | M67: 16 | N67: 16 | O67: 16 | P67: 16 | Q67: -16 | R67: -16 | S67: 16 | T67: 16 | U67: 16 | V67: -16 | W67: 64 | X67: 16 | Y67: 16 | Z67: 16 | AA67: 16 | AB67: -16 | AC67: -16 | AD67: -16 | AE67: -16 | AF67: 16 | AG67: 16 | AH67: -16 | AI67: 16 | AJ67: 16 | AK67: 16 | AL67: 16 | AM67: 16 | AN67: -16 | AO67: 16 | AP67: -16 | AQ67: -16 | AR67: 64 | AS67: 16 | AT67: 16 | AU67: -16 | AV67: -16 | AW67: 16 | AX67: 16 | AY67: 16 | AZ67: -16 | BA67: 16 | BB67: 16 | BC67: 64 | BD67: 16 | BE67: 16 | BF67: -16 | BG67: 16 | BH67: -16 | BI67: 16 | BJ67: 16 | BK67: -16 | BL67: 16 | BM67: -64 | BN67: 16 | BO67: -16 | BP67: -16 | BQ67: 16 | BR67: 16 | BS67: 16 | BT67: 16 | BU67: 16 | BV67: -16 | BW67: 16 | BX67: -16 | BY67: -16 | BZ67: -16 | CA67: -16 | CB67: 16 | CC67: 16 | CD67: -16 | CE67: -16 | CF67: 16 | CG67: 16 | CH67: -16 | CI67: -16 | CJ67: -16 | CK67: -64 | CL67: 16 | CM67: 16 | CN67: 16 | CO67: 16 | CP67: 16 | CQ67: 16 | CR67: 16 | CS67: -16 | CT67: -16 | CU67: -16 | CV67: 16 | CW67: -16 | CX67: -16 | CY67: -16 | CZ67: -16 | DA67: -16 | DB67: -16 | DC67: 16 | DD67: 16 | DE67: -16 | DF67: -16 | DG67: 16 | DH67: -16 | DI67: 16 | DJ67: 16 | DK67: 16 | DL67: -16 | DM67: 16 | DN67: 16 | DO67: -16 | DP67: -16 | DQ67: 16 | DR67: 16 | DS67: -16 | DT67: 16 | DU67: 64 | DV67: 16 | DW67: 16 | DX67: 16
A68: -16 | B68: -16 | C68: 64 | D68: -16 | E68: 16 | F68: -16 | G68: 16 | H68: -16 | I68: -16 | J68: 16 | K68: -16 | L68: -16 | M68: -16 | N68: 16 | O68: 16 | P68: -16 | Q68: 16 | R68: 16 | S68: -16 | T68: -64 | U68: -16 | V68: 16 | W68: 16 | X68: -16 | Y68: 16 | Z68: -16 | AA68: -16 | AB68: 16 | AC68: 16 | AD68: 16 | AE68: 16 | AF68: -16 | AG68: -16 | AH68: 16 | AI68: -16 | AJ68: -16 | AK68: -16 | AL68: -16 | AM68: 16 | AN68: -16 | AO68: 16 | AP68: -16 | AQ68: -16 | AR68: -16 | AS68: 16 | AT68: -16 | AU68: 16 | AV68: 16 | AW68: 16 | AX68: 16 | AY68: -16 | AZ68: -16 | BA68: -16 | BB68: 16 | BC68: 16 | BD68: 16 | BE68: -16 | BF68: -16 | BG68: 16 | BH68: -16 | BI68: -16 | BJ68: -16 | BK68: 16 | BL68: -16 | BM68: -16 | BN68: 16 | BO68: 16 | BP68: -16 | BQ68: -16 | BR68: -16 | BS68: 16 | BT68: -16 | BU68: -16 | BV68: -16 | BW68: -16 | BX68: -16 | BY68: 16 | BZ68: -16 | CA68: -16 | CB68: -16 | CC68: -16 | CD68: -16 | CE68: 16 | CF68: -16 | CG68: 16 | CH68: 16 | CI68: 16 | CJ68: 16 | CK68: 16 | CL68: 16 | CM68: 16 | CN68: -16 | CO68: -16 | CP68: -16 | CQ68: 16 | CR68: -16 | CS68: -16 | CT68: -16 | CU68: -16 | CV68: -16 | CW68: 16 | CX68: 16 | CY68: -16 | CZ68: 16 | DA68: -16 | DB68: 16 | DC68: 16 | DD68: -16 | DE68: -16 | DF68: 16 | DG68: -16 | DH68: 16 | DI68: 16 | DJ68: -16 | DK68: 16 | DL68: 16 | DM68: -16 | DN68: 16 | DO68: -16 | DP68: 16 | DQ68: -16 | DR68: -16 | DS68: -16 | DT68: 16 | DU68: -16 | DV68: 16 | DW68: -16 | DX68: 16
A69: -16 | B69: 16 | C69: -16 | D69: -64 | E69: -16 | F69: 16 | G69: 16 | H69: -16 | I69: 16 | J69: 16 | K69: 16 | L69: 16 | M69: 16 | N69: 16 | O69: -16 | P69: -16 | Q69: -16 | R69: 16 | S69: 16 | T69: -16 | U69: 16 | V69: 16 | W69: 16 | X69: -16 | Y69: -16 | Z69: 16 | AA69: 16 | AB69: -16 | AC69: -16 | AD69: -16 | AE69: -16 | AF69: 16 | AG69: 16 | AH69: 16 | AI69: -16 | AJ69: -16 | AK69: -16 | AL69: 64 | AM69: -16 | AN69: -64 | AO69: -16 | AP69: -16 | AQ69: -16 | AR69: -16 | AS69: -16 | AT69: 16 | AU69: -64 | AV69: -16 | AW69: -16 | AX69: 16 | AY69: -16 | AZ69: -16 | BA69: 16 | BB69: 16 | BC69: -16 | BD69: 16 | BE69: 16 | BF69: 16 | BG69: -16 | BH69: -16 | BI69: 16 | BJ69: 16 | BK69: -16 | BL69: 64 | BM69: -64 | BN69: 16 | BO69: 64 | BP69: -16 | BQ69: 16 | BR69: 16 | BS69: -16 | BT69: -16 | BU69: 16 | BV69: 16 | BW69: 64 | BX69: 16 | BY69: -16 | BZ69: -16 | CA69: -16 | CB69: 16 | CC69: -16 | CD69: -16 | CE69: 16 | CF69: -16 | CG69: -16 | CH69: -16 | CI69: -16 | CJ69: 16 | CK69: 16 | CL69: 16 | CM69: -16 | CN69: -16 | CO69: -16 | CP69: 16 | CQ69: 16 | CR69: 16 | CS69: 16 | CT69: -16 | CU69: -64 | CV69: -16 | CW69: -16 | CX69: -16 | CY69: -16 | CZ69: -16 | DA69: 16 | DB69: -16 | DC69: 16 | DD69: -16 | DE69: -16 | DF69: -16 | DG69: -16 | DH69: -16 | DI69: 64 | DJ69: -16 | DK69: -16 | DL69: -16 | DM69: 64 | DN69: 16 | DO69: -64 | DP69: 16 | DQ69: 16 | DR69: -64 | DS69: -16 | DT69: 16 | DU69: 16 | DV69: -16 | DW69: 16 | DX69: -16
A70: -16 | B70: 16 | C70: 16 | D70: 16 | E70: 16 | F70: -16 | G70: 16 | H70: 16 | I70: 16 | J70: -16 | K70: -16 | L70: 16 | M70: 16 | N70: -16 | O70: 16 | P70: 16 | Q70: 16 | R70: 16 | S70: 16 | T70: 16 | U70: -16 | V70: -16 | W70: -16 | X70: 16 | Y70: -16 | Z70: 16 | AA70: -64 | AB70: -16 | AC70: 16 | AD70: 16 | AE70: 16 | AF70: -16 | AG70: -16 | AH70: 16 | AI70: -16 | AJ70: 16 | AK70: 16 | AL70: 16 | AM70: 16 | AN70: -16 | AO70: -16 | AP70: 16 | AQ70: -64 | AR70: -16 | AS70: 16 | AT70: 16 | AU70: -16 | AV70: 16 | AW70: -16 | AX70: -16 | AY70: -16 | AZ70: 16 | BA70: -16 | BB70: -16 | BC70: -16 | BD70: -16 | BE70: -16 | BF70: 16 | BG70: -16 | BH70: 16 | BI70: -16 | BJ70: -16 | BK70: 16 | BL70: -16 | BM70: -64 | BN70: 16 | BO70: -16 | BP70: -16 | BQ70: 16 | BR70: 16 | BS70: -16 | BT70: -16 | BU70: 16 | BV70: 16 | BW70: 16 | BX70: 16 | BY70: 16 | BZ70: -16 | CA70: 16 | CB70: 16 | CC70: -16 | CD70: -16 | CE70: 16 | CF70: -16 | CG70: 16 | CH70: -16 | CI70: 16 | CJ70: -16 | CK70: 16 | CL70: -16 | CM70: 16 | CN70: -16 | CO70: -16 | CP70: -16 | CQ70: 16 | CR70: 16 | CS70: 16 | CT70: -16 | CU70: -16 | CV70: 16 | CW70: 16 | CX70: -16 | CY70: -16 | CZ70: 16 | DA70: 16 | DB70: 16 | DC70: 64 | DD70: -16 | DE70: -16 | DF70: -16 | DG70: -16 | DH70: 16 | DI70: 16 | DJ70: 16 | DK70: 16 | DL70: -16 | DM70: -16 | DN70: 16 | DO70: -64 | DP70: 16 | DQ70: 16 | DR70: -16 | DS70: -16 | DT70: -16 | DU70: -16 | DV70: -16 | DW70: -16 | DX70: 16
A71: 16 | B71: -16 | C71: -16 | D71: -16 | E71: -16 | F71: -16 | G71: 16 | H71: 16 | I71: -16 | J71: 16 | K71: 16 | L71: 16 | M71: -16 | N71: 16 | O71: -16 | P71: 16 | Q71: -16 | R71: -16 | S71: 16 | T71: -16 | U71: 16 | V71: 16 | W71: 16 | X71: -16 | Y71: 16 | Z71: -16 | AA71: 16 | AB71: 16 | AC71: 16 | AD71: -16 | AE71: -16 | AF71: 16 | AG71: 16 | AH71: -16 | AI71: 16 | AJ71: -16 | AK71: -16 | AL71: 16 | AM71: -16 | AN71: 16 | AO71: -16 | AP71: -16 | AQ71: -16 | AR71: 16 | AS71: -16 | AT71: -16 | AU71: -16 | AV71: -16 | AW71: 16 | AX71: 16 | AY71: 16 | AZ71: -16 | BA71: 16 | BB71: 16 | BC71: 16 | BD71: 16 | BE71: -16 | BF71: 16 | BG71: 16 | BH71: -16 | BI71: 16 | BJ71: 16 | BK71: 16 | BL71: 16 | BM71: -16 | BN71: -16 | BO71: 16 | BP71: 16 | BQ71: 16 | BR71: -16 | BS71: 16 | BT71: -16 | BU71: -16 | BV71: -16 | BW71: 16 | BX71: 16 | BY71: -16 | BZ71: -16 | CA71: -16 | CB71: -16 | CC71: 16 | CD71: 16 | CE71: 16 | CF71: -16 | CG71: -16 | CH71: 16 | CI71: -16 | CJ71: 16 | CK71: -16 | CL71: 16 | CM71: 16 | CN71: 16 | CO71: -64 | CP71: -16 | CQ71: -16 | CR71: -16 | CS71: 16 | CT71: 16 | CU71: -16 | CV71: -16 | CW71: 16 | CX71: 16 | CY71: 16 | CZ71: 16 | DA71: -16 | DB71: -16 | DC71: -16 | DD71: 16 | DE71: -16 | DF71: -16 | DG71: 16 | DH71: -16 | DI71: 64 | DJ71: 16 | DK71: -16 | DL71: -16 | DM71: 16 | DN71: 16 | DO71: -16 | DP71: -16 | DQ71: 16 | DR71: -16 | DS71: -16 | DT71: 16 | DU71: 16 | DV71: -16 | DW71: 16 | DX71: -16
A72: 16 | B72: -16 | C72: -16 | D72: -16 | E72: 16 | F72: 16 | G72: -16 | H72: -16 | I72: -16 | J72: -16 | K72: 16 | L72: 16 | M72: 16 | N72: 16 | O72: 16 | P72: 16 | Q72: -16 | R72: -16 | S72: 16 | T72: -16 | U72: 16 | V72: -16 | W72: 16 | X72: 16 | Y72: 16 | Z72: 16 | AA72: 16 | AB72: -16 | AC72: -16 | AD72: -64 | AE72: 16 | AF72: -16 | AG72: 16 | AH72: -16 | AI72: 16 | AJ72: 16 | AK72: 16 | AL72: 16 | AM72: -16 | AN72: -16 | AO72: 16 | AP72: -16 | AQ72: -16 | AR72: 16 | AS72: 16 | AT72: -16 | AU72: 16 | AV72: -64 | AW72: -16 | AX72: 16 | AY72: 16 | AZ72: 16 | BA72: 16 | BB72: -16 | BC72: 16 | BD72: 64 | BE72: 16 | BF72: 16 | BG72: 16 | BH72: -16 | BI72: 16 | BJ72: 16 | BK72: -16 | BL72: 16 | BM72: -16 | BN72: 16 | BO72: 16 | BP72: -16 | BQ72: -16 | BR72: 16 | BS72: 16 | BT72: -16 | BU72: 16 | BV72: -16 | BW72: 16 | BX72: -16 | BY72: -16 | BZ72: -16 | CA72: -16 | CB72: 16 | CC72: 16 | CD72: 16 | CE72: -16 | CF72: -16 | CG72: 16 | CH72: 16 | CI72: -16 | CJ72: 16 | CK72: 16 | CL72: -16 | CM72: 16 | CN72: -16 | CO72: -16 | CP72: -16 | CQ72: 16 | CR72: -16 | CS72: 16 | CT72: 16 | CU72: -16 | CV72: -16 | CW72: 16 | CX72: -16 | CY72: 16 | CZ72: -16 | DA72: -16 | DB72: 16 | DC72: 16 | DD72: 16 | DE72: -16 | DF72: -16 | DG72: 16 | DH72: 16 | DI72: 16 | DJ72: 16 | DK72: -16 | DL72: 16 | DM72: 16 | DN72: 16 | DO72: -16 | DP72: 16 | DQ72: 16 | DR72: 16 | DS72: -16 | DT72: 16 | DU72: 16 | DV72: -16 | DW72: 16 | DX72: 16
A73: 16 | B73: -16 | C73: -16 | D73: -16 | E73: -16 | F73: 16 | G73: 16 | H73: -16 | I73: -16 | J73: 16 | K73: 16 | L73: -16 | M73: 16 | N73: 16 | O73: 16 | P73: 16 | Q73: -16 | R73: -16 | S73: 16 | T73: -16 | U73: 16 | V73: 16 | W73: 16 | X73: -16 | Y73: 16 | Z73: 16 | AA73: 16 | AB73: 16 | AC73: -16 | AD73: -16 | AE73: -64 | AF73: 16 | AG73: 16 | AH73: 16 | AI73: 16 | AJ73: 16 | AK73: -16 | AL73: -16 | AM73: -16 | AN73: 16 | AO73: 16 | AP73: 16 | AQ73: 16 | AR73: 16 | AS73: -16 | AT73: 16 | AU73: -16 | AV73: -16 | AW73: 16 | AX73: 16 | AY73: 16 | AZ73: -16 | BA73: -16 | BB73: 16 | BC73: 16 | BD73: 16 | BE73: -16 | BF73: 16 | BG73: 64 | BH73: -16 | BI73: -16 | BJ73: 16 | BK73: 16 | BL73: 16 | BM73: -16 | BN73: 16 | BO73: -16 | BP73: -16 | BQ73: 16 | BR73: -16 | BS73: 16 | BT73: -16 | BU73: -16 | BV73: -16 | BW73: -16 | BX73: -16 | BY73: -16 | BZ73: -16 | CA73: -16 | CB73: -16 | CC73: 16 | CD73: 16 | CE73: 16 | CF73: 16 | CG73: -16 | CH73: 16 | CI73: 16 | CJ73: 16 | CK73: -16 | CL73: 16 | CM73: -16 | CN73: 16 | CO73: -16 | CP73: 16 | CQ73: -16 | CR73: -16 | CS73: 16 | CT73: 16 | CU73: 16 | CV73: 16 | CW73: -16 | CX73: 16 | CY73: 16 | CZ73: -16 | DA73: 16 | DB73: -16 | DC73: -16 | DD73: -16 | DE73: 16 | DF73: 16 | DG73: -16 | DH73: 16 | DI73: 16 | DJ73: 16 | DK73: -16 | DL73: 16 | DM73: -16 | DN73: 16 | DO73: -16 | DP73: -16 | DQ73: -16 | DR73: 16 | DS73: -16 | DT73: 16 | DU73: 16 | DV73: -16 | DW73: 16 | DX73: -16
A74: 16 | B74: 16 | C74: 16 | D74: 16 | E74: 16 | F74: 16 | G74: 16 | H74: -16 | I74: 16 | J74: 16 | K74: 16 | L74: -16 | M74: 16 | N74: -16 | O74: -16 | P74: -16 | Q74: 16 | R74: 16 | S74: 16 | T74: 16 | U74: 16 | V74: -16 | W74: 16 | X74: 16 | Y74: 16 | Z74: 16 | AA74: 16 | AB74: 16 | AC74: 16 | AD74: 16 | AE74: 16 | AF74: 16 | AG74: -16 | AH74: 16 | AI74: -16 | AJ74: -16 | AK74: 16 | AL74: 16 | AM74: 16 | AN74: -16 | AO74: 16 | AP74: -16 | AQ74: -16 | AR74: -16 | AS74: 16 | AT74: 16 | AU74: 16 | AV74: 16 | AW74: -16 | AX74: -16 | AY74: 16 | AZ74: -16 | BA74: -16 | BB74: -16 | BC74: 16 | BD74: 16 | BE74: 16 | BF74: 16 | BG74: -16 | BH74: 16 | BI74: 16 | BJ74: 16 | BK74: 16 | BL74: 16 | BM74: 16 | BN74: 16 | BO74: 16 | BP74: 16 | BQ74: 16 | BR74: 16 | BS74: -16 | BT74: 16 | BU74: 16 | BV74: -16 | BW74: -16 | BX74: 16 | BY74: 16 | BZ74: 16 | CA74: 16 | CB74: 16 | CC74: -16 | CD74: 16 | CE74: 16 | CF74: 16 | CG74: 16 | CH74: 16 | CI74: 16 | CJ74: -16 | CK74: -16 | CL74: 16 | CM74: 16 | CN74: -16 | CO74: 16 | CP74: -16 | CQ74: 16 | CR74: -16 | CS74: -16 | CT74: -16 | CU74: 16 | CV74: 16 | CW74: -16 | CX74: 16 | CY74: 16 | CZ74: 16 | DA74: -16 | DB74: 16 | DC74: 16 | DD74: -16 | DE74: 16 | DF74: -16 | DG74: -16 | DH74: 16 | DI74: -16 | DJ74: 16 | DK74: 16 | DL74: -16 | DM74: 16 | DN74: -16 | DO74: 16 | DP74: -16 | DQ74: -16 | DR74: -16 | DS74: -16 | DT74: 16 | DU74: -16 | DV74: -16 | DW74: -16 | DX74: 16
A75: -16 | B75: -16 | C75: 16 | D75: 16 | E75: 64 | F75: 16 | G75: -16 | H75: 16 | I75: -16 | J75: -64 | K75: -64 | L75: 16 | M75: -16 | N75: -16 | O75: -16 | P75: -16 | Q75: 16 | R75: 64 | S75: -16 | T75: 16 | U75: -16 | V75: 16 | W75: -16 | X75: 16 | Y75: -64 | Z75: -16 | AA75: -64 | AB75: -16 | AC75: 16 | AD75: 16 | AE75: 16 | AF75: 16 | AG75: -16 | AH75: 64 | AI75: -16 | AJ75: 16 | AK75: 16 | AL75: 16 | AM75: 16 | AN75: -16 | AO75: 16 | AP75: -16 | AQ75: -16 | AR75: -16 | AS75: 16 | AT75: -16 | AU75: -16 | AV75: 16 | AW75: -16 | AX75: 16 | AY75: -16 | AZ75: -16 | BA75: -16 | BB75: 16 | BC75: -16 | BD75: 16 | BE75: 16 | BF75: 16 | BG75: 16 | BH75: -16 | BI75: -16 | BJ75: -16 | BK75: 16 | BL75: 16 | BM75: -64 | BN75: 16 | BO75: -16 | BP75: -16 | BQ75: -16 | BR75: 16 | BS75: -16 | BT75: -16 | BU75: 16 | BV75: -16 | BW75: -16 | BX75: 16 | BY75: 16 | BZ75: -16 | CA75: 16 | CB75: -16 | CC75: -16 | CD75: -16 | CE75: -16 | CF75: -16 | CG75: 16 | CH75: -16 | CI75: 16 | CJ75: 16 | CK75: 16 | CL75: -16 | CM75: 64 | CN75: 16 | CO75: 16 | CP75: 16 | CQ75: 16 | CR75: 64 | CS75: -16 | CT75: -16 | CU75: -16 | CV75: -16 | CW75: 16 | CX75: -16 | CY75: 16 | CZ75: 16 | DA75: 16 | DB75: 16 | DC75: 16 | DD75: 16 | DE75: -16 | DF75: 16 | DG75: 16 | DH75: 16 | DI75: 16 | DJ75: -16 | DK75: 16 | DL75: -16 | DM75: -16 | DN75: 16 | DO75: -64 | DP75: -16 | DQ75: 16 | DR75: -16 | DS75: -16 | DT75: -16 | DU75: -16 | DV75: -16 | DW75: -16 | DX75: 16
A76: 16 | B76: -16 | C76: 16 | D76: 16 | E76: -16 | F76: -16 | G76: -16 | H76: -16 | I76: -16 | J76: -16 | K76: 16 | L76: 16 | M76: 16 | N76: 16 | O76: -16 | P76: -16 | Q76: 16 | R76: -16 | S76: -16 | T76: 16 | U76: 16 | V76: 16 | W76: 16 | X76: 16 | Y76: -16 | Z76: -16 | AA76: -16 | AB76: 16 | AC76: 16 | AD76: 16 | AE76: -16 | AF76: -16 | AG76: 16 | AH76: -16 | AI76: -16 | AJ76: -16 | AK76: -16 | AL76: 16 | AM76: -16 | AN76: 16 | AO76: 16 | AP76: 16 | AQ76: 16 | AR76: 16 | AS76: -16 | AT76: -16 | AU76: 16 | AV76: -16 | AW76: 16 | AX76: 16 | AY76: 16 | AZ76: 16 | BA76: 16 | BB76: 16 | BC76: -16 | BD76: -16 | BE76: -16 | BF76: 16 | BG76: 16 | BH76: 16 | BI76: 16 | BJ76: 16 | BK76: -16 | BL76: 16 | BM76: 16 | BN76: 16 | BO76: 16 | BP76: 16 | BQ76: -16 | BR76: 16 | BS76: 16 | BT76: 16 | BU76: -16 | BV76: -16 | BW76: 16 | BX76: -16 | BY76: 16 | BZ76: 16 | CA76: 16 | CB76: 16 | CC76: 16 | CD76: -16 | CE76: 16 | CF76: 16 | CG76: 16 | CH76: 16 | CI76: 16 | CJ76: 16 | CK76: -16 | CL76: -16 | CM76: 16 | CN76: -16 | CO76: -16 | CP76: 16 | CQ76: 16 | CR76: 16 | CS76: -16 | CT76: 16 | CU76: 16 | CV76: 16 | CW76: -16 | CX76: 16 | CY76: 16 | CZ76: -16 | DA76: 16 | DB76: -16 | DC76: 16 | DD76: 16 | DE76: 16 | DF76: 16 | DG76: -16 | DH76: 16 | DI76: 16 | DJ76: 16 | DK76: -16 | DL76: 16 | DM76: 16 | DN76: -16 | DO76: 16 | DP76: -16 | DQ76: 16 | DR76: 16 | DS76: 16 | DT76: -16 | DU76: 16 | DV76: -16 | DW76: 16 | DX76: 16
A77: -16 | B77: 16 | C77: 16 | D77: -16 | E77: 16 | F77: 16 | G77: 16 | H77: -16 | I77: 16 | J77: 16 | K77: -16 | L77: -16 | M77: 16 | N77: 64 | O77: 16 | P77: 16 | Q77: 16 | R77: -16 | S77: -16 | T77: -16 | U77: 64 | V77: 16 | W77: 16 | X77: -64 | Y77: 64 | Z77: 16 | AA77: 64 | AB77: -16 | AC77: -16 | AD77: 16 | AE77: 16 | AF77: 16 | AG77: 16 | AH77: 16 | AI77: 16 | AJ77: -16 | AK77: -16 | AL77: 16 | AM77: 16 | AN77: 16 | AO77: -16 | AP77: -16 | AQ77: 16 | AR77: 16 | AS77: 16 | AT77: -16 | AU77: -16 | AV77: -16 | AW77: -16 | AX77: 16 | AY77: -16 | AZ77: 16 | BA77: 16 | BB77: -16 | BC77: 16 | BD77: -16 | BE77: 16 | BF77: -16 | BG77: 16 | BH77: 16 | BI77: 16 | BJ77: -16 | BK77: 16 | BL77: -16 | BM77: -16 | BN77: 16 | BO77: 16 | BP77: -16 | BQ77: 16 | BR77: -16 | BS77: 16 | BT77: -16 | BU77: 16 | BV77: 16 | BW77: -16 | BX77: -16 | BY77: 16 | BZ77: -16 | CA77: -16 | CB77: 16 | CC77: 64 | CD77: -16 | CE77: -16 | CF77: -16 | CG77: -16 | CH77: 16 | CI77: 16 | CJ77: 16 | CK77: -16 | CL77: 64 | CM77: 16 | CN77: -16 | CO77: -16 | CP77: -16 | CQ77: -16 | CR77: -16 | CS77: -16 | CT77: 16 | CU77: -16 | CV77: 16 | CW77: 16 | CX77: 16 | CY77: -16 | CZ77: 16 | DA77: -16 | DB77: 16 | DC77: 16 | DD77: -16 | DE77: -16 | DF77: -16 | DG77: 16 | DH77: 16 | DI77: -16 | DJ77: -16 | DK77: 16 | DL77: -16 | DM77: -16 | DN77: 16 | DO77: -16 | DP77: -16 | DQ77: -16 | DR77: 16 | DS77: 16 | DT77: 64 | DU77: -16 | DV77: -16 | DW77: 16 | DX77: -16
A78: 16 | B78: -16 | C78: -16 | D78: -16 | E78: -64 | F78: -64 | G78: -16 | H78: -16 | I78: -16 | J78: 16 | K78: 16 | L78: -16 | M78: -16 | N78: -16 | O78: -16 | P78: 16 | Q78: -64 | R78: -16 | S78: 16 | T78: -64 | U78: 16 | V78: 16 | W78: 16 | X78: -16 | Y78: 16 | Z78: -16 | AA78: 16 | AB78: -16 | AC78: -16 | AD78: -16 | AE78: -16 | AF78: 16 | AG78: -16 | AH78: -16 | AI78: 16 | AJ78: -16 | AK78: -16 | AL78: -16 | AM78: -16 | AN78: 16 | AO78: -16 | AP78: -16 | AQ78: 16 | AR78: 16 | AS78: -16 | AT78: -16 | AU78: 16 | AV78: 16 | AW78: 16 | AX78: 16 | AY78: -16 | AZ78: 16 | BA78: 16 | BB78: 16 | BC78: 16 | BD78: -16 | BE78: 16 | BF78: -16 | BG78: 16 | BH78: 16 | BI78: 16 | BJ78: 16 | BK78: -16 | BL78: -16 | BM78: 16 | BN78: -16 | BO78: -16 | BP78: 16 | BQ78: 16 | BR78: -16 | BS78: 16 | BT78: 16 | BU78: -16 | BV78: -16 | BW78: 16 | BX78: 16 | BY78: 16 | BZ78: 16 | CA78: -16 | CB78: -16 | CC78: -16 | CD78: -16 | CE78: -16 | CF78: 16 | CG78: -16 | CH78: 16 | CI78: -16 | CJ78: -16 | CK78: -16 | CL78: 16 | CM78: -64 | CN78: -16 | CO78: -16 | CP78: -16 | CQ78: -16 | CR78: -16 | CS78: 16 | CT78: 16 | CU78: 16 | CV78: 16 | CW78: -16 | CX78: 16 | CY78: 16 | CZ78: 16 | DA78: -16 | DB78: -64 | DC78: -16 | DD78: -16 | DE78: -16 | DF78: 16 | DG78: -16 | DH78: -16 | DI78: -16 | DJ78: 16 | DK78: -16 | DL78: -16 | DM78: 16 | DN78: -16 | DO78: -16 | DP78: -16 | DQ78: 16 | DR78: 16 | DS78: 16 | DT78: -16 | DU78: -16 | DV78: -16 | DW78: 16 | DX78: -16
A79: 16 | B79: -16 | C79: -16 | D79: -16 | E79: 16 | F79: 16 | G79: 16 | H79: 16 | I79: 16 | J79: 16 | K79: 16 | L79: -16 | M79: -16 | N79: 16 | O79: 16 | P79: 16 | Q79: -16 | R79: 16 | S79: 16 | T79: -16 | U79: -16 | V79: -16 | W79: 16 | X79: -16 | Y79: -16 | Z79: 16 | AA79: -16 | AB79: 16 | AC79: 16 | AD79: -16 | AE79: 16 | AF79: 16 | AG79: -16 | AH79: -16 | AI79: -16 | AJ79: 16 | AK79: -16 | AL79: -16 | AM79: -16 | AN79: -16 | AO79: -16 | AP79: 16 | AQ79: 16 | AR79: -16 | AS79: 16 | AT79: 16 | AU79: 16 | AV79: 16 | AW79: -16 | AX79: 16 | AY79: -16 | AZ79: -16 | BA79: 16 | BB79: -16 | BC79: -16 | BD79: 16 | BE79: 16 | BF79: 16 | BG79: -16 | BH79: 16 | BI79: -16 | BJ79: 16 | BK79: -16 | BL79: -16 | BM79: -16 | BN79: -16 | BO79: 16 | BP79: 16 | BQ79: 16 | BR79: 16 | BS79: 16 | BT79: -16 | BU79: -16 | BV79: -16 | BW79: 16 | BX79: 16 | BY79: 16 | BZ79: -16 | CA79: -16 | CB79: 16 | CC79: -16 | CD79: 16 | CE79: -16 | CF79: 16 | CG79: 16 | CH79: 16 | CI79: -16 | CJ79: -16 | CK79: 16 | CL79: 16 | CM79: 16 | CN79: -16 | CO79: -16 | CP79: -16 | CQ79: 16 | CR79: -16 | CS79: 16 | CT79: -16 | CU79: 16 | CV79: 16 | CW79: 16 | CX79: 16 | CY79: 16 | CZ79: -16 | DA79: 16 | DB79: -16 | DC79: 16 | DD79: 16 | DE79: -16 | DF79: -16 | DG79: -16 | DH79: -16 | DI79: -16 | DJ79: 16 | DK79: 16 | DL79: 16 | DM79: 16 | DN79: -16 | DO79: -16 | DP79: 16 | DQ79: 16 | DR79: -16 | DS79: 16 | DT79: -16 | DU79: 16 | DV79: -16 | DW79: -16 | DX79: 16
A80: -16 | B80: -16 | C80: -64 | D80: 16 | E80: -16 | F80: -16 | G80: -64 | H80: 16 | I80: -16 | J80: 16 | K80: -16 | L80: 64 | M80: -64 | N80: -16 | O80: -64 | P80: -16 | Q80: -64 | R80: -16 | S80: 64 | T80: -16 | U80: -16 | V80: -16 | W80: -16 | X80: 16 | Y80: -16 | Z80: -16 | AA80: -16 | AB80: -64 | AC80: -16 | AD80: -64 | AE80: -64 | AF80: -16 | AG80: -16 | AH80: 16 | AI80: -16 | AJ80: -64 | AK80: -16 | AL80: 16 | AM80: -64 | AN80: -16 | AO80: 16 | AP80: -16 | AQ80: -16 | AR80: -16 | AS80: -16 | AT80: -16 | AU80: -64 | AV80: -64 | AW80: -16 | AX80: -64 | AY80: -16 | AZ80: -16 | BA80: 16 | BB80: 16 | BC80: -16 | BD80: 64 | BE80: -16 | BF80: 16 | BG80: -16 | BH80: -16 | BI80: 16 | BJ80: 16 | BK80: -64 | BL80: 64 | BM80: -16 | BN80: -64 | BO80: 64 | BP80: -16 | BQ80: -16 | BR80: 16 | BS80: -16 | BT80: -16 | BU80: -16 | BV80: -16 | BW80: 64 | BX80: 16 | BY80: -64 | BZ80: -16 | CA80: 16 | CB80: -16 | CC80: -16 | CD80: 16 | CE80: 64 | CF80: -16 | CG80: -64 | CH80: -16 | CI80: -64 | CJ80: -64 | CK80: 16 | CL80: -16 | CM80: -16 | CN80: 16 | CO80: 16 | CP80: -16 | CQ80: 16 | CR80: 16 | CS80: 64 | CT80: -64 | CU80: -16 | CV80: -16 | CW80: 16 | CX80: -16 | CY80: -16 | CZ80: -16 | DA80: -16 | DB80: 16 | DC80: -16 | DD80: 16 | DE80: -16 | DF80: 16 | DG80: -16 | DH80: -64 | DI80: 64 | DJ80: -16 | DK80: -64 | DL80: -16 | DM80: 64 | DN80: -16 | DO80: -16 | DP80: -16 | DQ80: 64 | DR80: -64 | DS80: -16 | DT80: -16 | DU80: 16 | DV80: -16 | DW80: -16 | DX80: 16
A81: -16 | B81: -16 | C81: -16 | D81: -16 | E81: -16 | F81: 16 | G81: -16 | H81: 16 | I81: -16 | J81: 16 | K81: 64 | L81: 64 | M81: 16 | N81: 64 | O81: 16 | P81: 16 | Q81: -16 | R81: -16 | S81: 16 | T81: 16 | U81: -16 | V81: 16 | W81: 16 | X81: -16 | Y81: 16 | Z81: 16 | AA81: 16 | AB81: -16 | AC81: -16 | AD81: -64 | AE81: -16 | AF81: 16 | AG81: 16 | AH81: -64 | AI81: -16 | AJ81: 16 | AK81: 16 | AL81: 16 | AM81: -16 | AN81: -16 | AO81: -16 | AP81: -16 | AQ81: -16 | AR81: -16 | AS81: -16 | AT81: -16 | AU81: 16 | AV81: -64 | AW81: -16 | AX81: 16 | AY81: -16 | AZ81: -16 | BA81: 16 | BB81: -16 | BC81: 64 | BD81: 16 | BE81: 16 | BF81: 16 | BG81: 16 | BH81: -16 | BI81: 16 | BJ81: 64 | BK81: -16 | BL81: 16 | BM81: -64 | BN81: -16 | BO81: 16 | BP81: 16 | BQ81: 16 | BR81: 16 | BS81: -16 | BT81: -16 | BU81: 16 | BV81: -16 | BW81: 16 | BX81: -16 | BY81: -64 | BZ81: -16 | CA81: -16 | CB81: 16 | CC81: 64 | CD81: -16 | CE81: 16 | CF81: 16 | CG81: -16 | CH81: -16 | CI81: -16 | CJ81: 16 | CK81: -64 | CL81: 16 | CM81: -16 | CN81: 16 | CO81: -16 | CP81: 16 | CQ81: 16 | CR81: -16 | CS81: 16 | CT81: 16 | CU81: -16 | CV81: 16 | CW81: -16 | CX81: -16 | CY81: 16 | CZ81: -64 | DA81: -16 | DB81: 16 | DC81: -16 | DD81: 16 | DE81: 16 | DF81: 16 | DG81: 16 | DH81: -16 | DI81: 16 | DJ81: -16 | DK81: -64 | DL81: 16 | DM81: 16 | DN81: 16 | DO81: -16 | DP81: -16 | DQ81: 16 | DR81: -16 | DS81: -16 | DT81: 64 | DU81: 64 | DV81: -16 | DW81: 16 | DX81: 16
A82: 16 | B82: -16 | C82: 16 | D82: -16 | E82: -16 | F82: -16 | G82: 16 | H82: -16 | I82: 16 | J82: 16 | K82: -16 | L82: -16 | M82: 16 | N82: 16 | O82: -16 | P82: -16 | Q82: 16 | R82: -16 | S82: 16 | T82: -16 | U82: 16 | V82: 16 | W82: 16 | X82: 16 | Y82: 16 | Z82: -16 | AA82: -16 | AB82: 16 | AC82: -16 | AD82: 16 | AE82: 16 | AF82: 16 | AG82: 16 | AH82: 16 | AI82: -16 | AJ82: -16 | AK82: 16 | AL82: -16 | AM82: -16 | AN82: 16 | AO82: 16 | AP82: -16 | AQ82: -16 | AR82: 16 | AS82: 16 | AT82: 16 | AU82: -16 | AV82: 16 | AW82: -16 | AX82: -16 | AY82: -16 | AZ82: -16 | BA82: 16 | BB82: -16 | BC82: 16 | BD82: 16 | BE82: 16 | BF82: -16 | BG82: 16 | BH82: 16 | BI82: 16 | BJ82: 16 | BK82: 16 | BL82: -16 | BM82: 16 | BN82: 16 | BO82: 16 | BP82: 16 | BQ82: 16 | BR82: 16 | BS82: -16 | BT82: 16 | BU82: 16 | BV82: 16 | BW82: -16 | BX82: -16 | BY82: 16 | BZ82: -16 | CA82: 16 | CB82: -16 | CC82: 16 | CD82: 16 | CE82: -16 | CF82: 16 | CG82: 16 | CH82: 16 | CI82: 16 | CJ82: 16 | CK82: -16 | CL82: 16 | CM82: 16 | CN82: 16 | CO82: 16 | CP82: 16 | CQ82: -16 | CR82: -16 | CS82: 16 | CT82: 16 | CU82: 16 | CV82: -16 | CW82: 16 | CX82: 16 | CY82: -16 | CZ82: 16 | DA82: 16 | DB82: 16 | DC82: 16 | DD82: -16 | DE82: -16 | DF82: -16 | DG82: 16 | DH82: 16 | DI82: 16 | DJ82: 16 | DK82: 16 | DL82: 16 | DM82: 16 | DN82: 16 | DO82: 16 | DP82: 16 | DQ82: 16 | DR82: 16 | DS82: 16 | DT82: 16 | DU82: -16 | DV82: 16 | DW82: 16 | DX82: 16
A83: 16 | B83: 16 | C83: -64 | D83: -16 | E83: -16 | F83: -16 | G83: -16 | H83: 16 | I83: -16 | J83: 16 | K83: 16 | L83: 16 | M83: 16 | N83: 16 | O83: -16 | P83: -16 | Q83: -64 | R83: -16 | S83: 16 | T83: -16 | U83: 16 | V83: 16 | W83: 16 | X83: -16 | Y83: 64 | Z83: 16 | AA83: 16 | AB83: -16 | AC83: -16 | AD83: -16 | AE83: -64 | AF83: 64 | AG83: -16 | AH83: -16 | AI83: 16 | AJ83: -16 | AK83: 16 | AL83: -16 | AM83: -64 | AN83: -16 | AO83: -16 | AP83: -16 | AQ83: -16 | AR83: 16 | AS83: -64 | AT83: -16 | AU83: -16 | AV83: -16 | AW83: -16 | AX83: 16 | AY83: -16 | AZ83: -16 | BA83: 16 | BB83: -16 | BC83: 16 | BD83: 16 | BE83: -16 | BF83: -16 | BG83: 64 | BH83: -16 | BI83: 16 | BJ83: 16 | BK83: -16 | BL83: -16 | BM83: -16 | BN83: -16 | BO83: 16 | BP83: 16 | BQ83: -16 | BR83: 16 | BS83: 16 | BT83: -16 | BU83: -16 | BV83: -16 | BW83: 16 | BX83: 16 | BY83: -16 | BZ83: 16 | CA83: -16 | CB83: -16 | CC83: 16 | CD83: 16 | CE83: 16 | CF83: -16 | CG83: -64 | CH83: 16 | CI83: -16 | CJ83: -16 | CK83: -16 | CL83: -16 | CM83: -16 | CN83: -16 | CO83: -16 | CP83: -16 | CQ83: -16 | CR83: -16 | CS83: 16 | CT83: 16 | CU83: 16 | CV83: -16 | CW83: -16 | CX83: 16 | CY83: 16 | CZ83: -16 | DA83: 16 | DB83: -16 | DC83: -16 | DD83: 16 | DE83: -16 | DF83: 16 | DG83: -16 | DH83: -16 | DI83: -16 | DJ83: 16 | DK83: -16 | DL83: 16 | DM83: 16 | DN83: 16 | DO83: -16 | DP83: -16 | DQ83: 64 | DR83: 16 | DS83: 16 | DT83: 16 | DU83: -16 | DV83: -16 | DW83: -16 | DX83: -16
A84: 16 | B84: 16 | C84: 16 | D84: 16 | E84: -16 | F84: -16 | G84: 64 | H84: -16 | I84: -16 | J84: -16 | K84: 16 | L84: 16 | M84: 16 | N84: -16 | O84: 16 | P84: 16 | Q84: 16 | R84: 16 | S84: -16 | T84: -16 | U84: 16 | V84: 16 | W84: -16 | X84: -16 | Y84: -16 | Z84: -16 | AA84: -16 | AB84: 16 | AC84: 16 | AD84: 16 | AE84: 16 | AF84: 16 | AG84: 16 | AH84: -16 | AI84: 16 | AJ84: 64 | AK84: -16 | AL84: -16 | AM84: 64 | AN84: -16 | AO84: -16 | AP84: -16 | AQ84: -16 | AR84: -16 | AS84: 16 | AT84: -16 | AU84: 64 | AV84: 16 | AW84: 16 | AX84: 16 | AY84: -16 | AZ84: 16 | BA84: -16 | BB84: 16 | BC84: 16 | BD84: 16 | BE84: -16 | BF84: -16 | BG84: 16 | BH84: 16 | BI84: 16 | BJ84: -16 | BK84: 16 | BL84: -16 | BM84: -16 | BN84: 16 | BO84: -16 | BP84: -16 | BQ84: 16 | BR84: -64 | BS84: 64 | BT84: -16 | BU84: 16 | BV84: 16 | BW84: -16 | BX84: -16 | BY84: 16 | BZ84: -16 | CA84: -16 | CB84: 16 | CC84: 16 | CD84: -16 | CE84: 16 | CF84: 16 | CG84: 16 | CH84: -16 | CI84: 16 | CJ84: 16 | CK84: 16 | CL84: 16 | CM84: 16 | CN84: 16 | CO84: -16 | CP84: -16 | CQ84: -16 | CR84: 16 | CS84: -16 | CT84: 16 | CU84: -16 | CV84: -16 | CW84: -16 | CX84: 16 | CY84: -16 | CZ84: 64 | DA84: -16 | DB84: 16 | DC84: 16 | DD84: 16 | DE84: 16 | DF84: -16 | DG84: 16 | DH84: 16 | DI84: -16 | DJ84: 16 | DK84: 16 | DL84: 16 | DM84: 16 | DN84: 16 | DO84: -16 | DP84: 16 | DQ84: -16 | DR84: 16 | DS84: -16 | DT84: 16 | DU84: -16 | DV84: -16 | DW84: 16 | DX84: -16
A85: 16 | B85: -16 | C85: -16 | D85: -16 | E85: -16 | F85: -16 | G85: 16 | H85: 16 | I85: 16 | J85: -16 | K85: 16 | L85: 16 | M85: 16 | N85: 16 | O85: 16 | P85: 16 | Q85: -16 | R85: 16 | S85: 16 | T85: 16 | U85: 16 | V85: 16 | W85: 16 | X85: -16 | Y85: 16 | Z85: -16 | AA85: 16 | AB85: -16 | AC85: 16 | AD85: 16 | AE85: -16 | AF85: 16 | AG85: 16 | AH85: -16 | AI85: -16 | AJ85: 64 | AK85: -16 | AL85: 16 | AM85: 16 | AN85: -16 | AO85: -16 | AP85: 16 | AQ85: 16 | AR85: -16 | AS85: -16 | AT85: -16 | AU85: 16 | AV85: 16 | AW85: -16 | AX85: 16 | AY85: 16 | AZ85: -16 | BA85: 16 | BB85: 16 | BC85: 16 | BD85: 16 | BE85: -16 | BF85: -16 | BG85: 16 | BH85: -16 | BI85: 16 | BJ85: 16 | BK85: -16 | BL85: 16 | BM85: -16 | BN85: 16 | BO85: 16 | BP85: -16 | BQ85: 16 | BR85: -64 | BS85: 16 | BT85: -16 | BU85: 16 | BV85: -16 | BW85: 16 | BX85: 16 | BY85: -16 | BZ85: -16 | CA85: -16 | CB85: 16 | CC85: 16 | CD85: -16 | CE85: 16 | CF85: 16 | CG85: 16 | CH85: -16 | CI85: -16 | CJ85: -16 | CK85: 16 | CL85: 16 | CM85: 16 | CN85: 16 | CO85: -16 | CP85: 16 | CQ85: -16 | CR85: 16 | CS85: -16 | CT85: 16 | CU85: -16 | CV85: -16 | CW85: -16 | CX85: 16 | CY85: -16 | CZ85: -16 | DA85: 16 | DB85: -16 | DC85: -16 | DD85: -16 | DE85: 16 | DF85: 16 | DG85: -16 | DH85: 16 | DI85: 16 | DJ85: 16 | DK85: 16 | DL85: 16 | DM85: 16 | DN85: 16 | DO85: 16 | DP85: 16 | DQ85: -16 | DR85: 16 | DS85: -16 | DT85: 16 | DU85: 16 | DV85: 16 | DW85: 16 | DX85: -64
A86: -16 | B86: 16 | C86: -16 | D86: 16 | E86: 16 | F86: 16 | G86: 64 | H86: 16 | I86: 16 | J86: 16 | K86: 16 | L86: -16 | M86: 16 | N86: 16 | O86: 16 | P86: 16 | Q86: 16 | R86: -16 | S86: -16 | T86: 16 | U86: -16 | V86: 16 | W86: 16 | X86: -16 | Y86: -16 | Z86: 16 | AA86: -16 | AB86: 16 | AC86: -16 | AD86: -16 | AE86: 16 | AF86: 16 | AG86: -16 | AH86: -16 | AI86: 16 | AJ86: -16 | AK86: 16 | AL86: -16 | AM86: 16 | AN86: 16 | AO86: -16 | AP86: 16 | AQ86: 16 | AR86: -16 | AS86: -16 | AT86: 16 | AU86: -16 | AV86: 16 | AW86: 16 | AX86: 16 | AY86: -16 | AZ86: -16 | BA86: -16 | BB86: 16 | BC86: -64 | BD86: -16 | BE86: -16 | BF86: -16 | BG86: 16 | BH86: 16 | BI86: 16 | BJ86: 16 | BK86: -16 | BL86: -16 | BM86: 16 | BN86: 64 | BO86: 16 | BP86: -16 | BQ86: -16 | BR86: 16 | BS86: 16 | BT86: 16 | BU86: 16 | BV86: 16 | BW86: -16 | BX86: -16 | BY86: 16 | BZ86: -16 | CA86: 16 | CB86: -16 | CC86: -16 | CD86: -16 | CE86: -16 | CF86: 16 | CG86: 16 | CH86: 16 | CI86: 16 | CJ86: 16 | CK86: -16 | CL86: 16 | CM86: -16 | CN86: 16 | CO86: -16 | CP86: 16 | CQ86: 16 | CR86: -16 | CS86: -16 | CT86: 16 | CU86: 16 | CV86: -16 | CW86: -16 | CX86: 16 | CY86: 16 | CZ86: 16 | DA86: -16 | DB86: 16 | DC86: 16 | DD86: 16 | DE86: -16 | DF86: 16 | DG86: 16 | DH86: 16 | DI86: -16 | DJ86: 16 | DK86: 16 | DL86: -16 | DM86: 16 | DN86: -16 | DO86: 16 | DP86: 16 | DQ86: -16 | DR86: 64 | DS86: 16 | DT86: -16 | DU86: -16 | DV86: -16 | DW86: 16 | DX86: -16
A87: 16 | B87: -16 | C87: 64 | D87: 16 | E87: 16 | F87: 16 | G87: 64 | H87: -16 | I87: 16 | J87: -16 | K87: 16 | L87: 16 | M87: 16 | N87: 16 | O87: 16 | P87: 16 | Q87: 64 | R87: 16 | S87: -16 | T87: 16 | U87: 16 | V87: 16 | W87: -16 | X87: -64 | Y87: -16 | Z87: -16 | AA87: 16 | AB87: 16 | AC87: 16 | AD87: 64 | AE87: 64 | AF87: -16 | AG87: 64 | AH87: -16 | AI87: -16 | AJ87: 16 | AK87: -16 | AL87: -16 | AM87: 64 | AN87: 16 | AO87: -16 | AP87: 16 | AQ87: 16 | AR87: -16 | AS87: 16 | AT87: -16 | AU87: 16 | AV87: 16 | AW87: 16 | AX87: 16 | AY87: -16 | AZ87: -16 | BA87: -16 | BB87: -16 | BC87: 64 | BD87: -16 | BE87: -64 | BF87: -16 | BG87: 16 | BH87: 16 | BI87: 16 | BJ87: -16 | BK87: 16 | BL87: -16 | BM87: -16 | BN87: 16 | BO87: -16 | BP87: 16 | BQ87: -16 | BR87: -64 | BS87: 16 | BT87: -64 | BU87: 16 | BV87: 16 | BW87: -16 | BX87: 16 | BY87: 64 | BZ87: -16 | CA87: 16 | CB87: 16 | CC87: 64 | CD87: 16 | CE87: -16 | CF87: -16 | CG87: 16 | CH87: -16 | CI87: 64 | CJ87: 16 | CK87: 16 | CL87: -16 | CM87: 64 | CN87: -16 | CO87: -16 | CP87: 16 | CQ87: -16 | CR87: 16 | CS87: -16 | CT87: 16 | CU87: -16 | CV87: 16 | CW87: 16 | CX87: 16 | CY87: 16 | CZ87: 64 | DA87: 16 | DB87: 16 | DC87: 64 | DD87: 16 | DE87: -16 | DF87: 16 | DG87: 16 | DH87: 64 | DI87: -16 | DJ87: -16 | DK87: 64 | DL87: 16 | DM87: -16 | DN87: -16 | DO87: -16 | DP87: -16 | DQ87: -16 | DR87: 16 | DS87: -16 | DT87: 16 | DU87: -16 | DV87: 16 | DW87: 64 | DX87: -16
A88: 16 | B88: -16 | C88: -64 | D88: -16 | E88: -16 | F88: -16 | G88: -16 | H88: -16 | I88: -16 | J88: 16 | K88: 16 | L88: -16 | M88: -16 | N88: 16 | O88: -16 | P88: 16 | Q88: -16 | R88: -16 | S88: 16 | T88: -64 | U88: 64 | V88: -16 | W88: 16 | X88: -16 | Y88: 16 | Z88: -16 | AA88: 16 | AB88: -16 | AC88: -16 | AD88: -16 | AE88: -16 | AF88: 16 | AG88: 16 | AH88: -16 | AI88: -16 | AJ88: 16 | AK88: -16 | AL88: 16 | AM88: -16 | AN88: -16 | AO88: -16 | AP88: -16 | AQ88: -16 | AR88: 16 | AS88: -16 | AT88: 16 | AU88: -16 | AV88: 16 | AW88: -16 | AX88: 16 | AY88: 16 | AZ88: -16 | BA88: 16 | BB88: 16 | BC88: 16 | BD88: -16 | BE88: -16 | BF88: -16 | BG88: 16 | BH88: -16 | BI88: 16 | BJ88: 16 | BK88: 16 | BL88: 16 | BM88: -16 | BN88: 16 | BO88: 16 | BP88: -16 | BQ88: -16 | BR88: -16 | BS88: 16 | BT88: -16 | BU88: -16 | BV88: 16 | BW88: 16 | BX88: 16 | BY88: -16 | BZ88: -16 | CA88: -64 | CB88: 16 | CC88: 16 | CD88: -16 | CE88: 16 | CF88: 16 | CG88: -16 | CH88: 16 | CI88: 16 | CJ88: 16 | CK88: -16 | CL88: 16 | CM88: -16 | CN88: -16 | CO88: -64 | CP88: -16 | CQ88: -16 | CR88: -16 | CS88: -16 | CT88: 16 | CU88: -16 | CV88: 16 | CW88: -16 | CX88: 16 | CY88: 16 | CZ88: -16 | DA88: 16 | DB88: -16 | DC88: -16 | DD88: 16 | DE88: 16 | DF88: -16 | DG88: 16 | DH88: 16 | DI88: 16 | DJ88: -16 | DK88: 16 | DL88: 16 | DM88: 16 | DN88: -16 | DO88: -16 | DP88: 16 | DQ88: -16 | DR88: 16 | DS88: -16 | DT88: 16 | DU88: 16 | DV88: -16 | DW88: 16 | DX88: -64
A89: -16 | B89: -16 | C89: 16 | D89: 16 | E89: -16 | F89: -16 | G89: -16 | H89: -16 | I89: -16 | J89: 16 | K89: 16 | L89: 16 | M89: 16 | N89: 16 | O89: 16 | P89: 16 | Q89: -16 | R89: 16 | S89: 16 | T89: 16 | U89: 16 | V89: -16 | W89: 16 | X89: 16 | Y89: 16 | Z89: 16 | AA89: -16 | AB89: 16 | AC89: -16 | AD89: 16 | AE89: -16 | AF89: 16 | AG89: 16 | AH89: 16 | AI89: -16 | AJ89: 16 | AK89: 16 | AL89: 16 | AM89: -16 | AN89: 16 | AO89: 16 | AP89: 16 | AQ89: 16 | AR89: 16 | AS89: 16 | AT89: -16 | AU89: 16 | AV89: -16 | AW89: 16 | AX89: 16 | AY89: 16 | AZ89: -16 | BA89: 16 | BB89: -16 | BC89: -16 | BD89: 16 | BE89: 16 | BF89: 16 | BG89: -16 | BH89: -16 | BI89: -16 | BJ89: 16 | BK89: 16 | BL89: 16 | BM89: 16 | BN89: 16 | BO89: 16 | BP89: -16 | BQ89: 16 | BR89: -16 | BS89: -16 | BT89: -16 | BU89: -16 | BV89: -16 | BW89: 16 | BX89: -16 | BY89: -16 | BZ89: 16 | CA89: -16 | CB89: 16 | CC89: 16 | CD89: -16 | CE89: 16 | CF89: 16 | CG89: -16 | CH89: -16 | CI89: 16 | CJ89: -16 | CK89: -16 | CL89: -16 | CM89: 16 | CN89: 16 | CO89: 16 | CP89: 16 | CQ89: 16 | CR89: -16 | CS89: 16 | CT89: 16 | CU89: 16 | CV89: -16 | CW89: 16 | CX89: 16 | CY89: -16 | CZ89: -16 | DA89: -16 | DB89: 16 | DC89: -16 | DD89: -16 | DE89: 16 | DF89: -16 | DG89: -16 | DH89: 16 | DI89: 16 | DJ89: 16 | DK89: -16 | DL89: -16 | DM89: 16 | DN89: -16 | DO89: 16 | DP89: 16 | DQ89: 16 | DR89: -16 | DS89: 16 | DT89: 16 | DU89: -16 | DV89: 16 | DW89: 16 | DX89: 16
A90: 16 | B90: -16 | C90: -16 | D90: 16 | E90: -16 | F90: -16 | G90: -16 | H90: 16 | I90: -16 | J90: 16 | K90: -16 | L90: -16 | M90: 16 | N90: -16 | O90: 16 | P90: -16 | Q90: -16 | R90: 16 | S90: -16 | T90: 16 | U90: -16 | V90: 16 | W90: -16 | X90: -16 | Y90: -16 | Z90: 16 | AA90: 16 | AB90: 16 | AC90: 16 | AD90: 16 | AE90: -16 | AF90: -16 | AG90: -16 | AH90: 16 | AI90: -16 | AJ90: -16 | AK90: -16 | AL90: -16 | AM90: -16 | AN90: 16 | AO90: -16 | AP90: -16 | AQ90: 16 | AR90: -16 | AS90: 16 | AT90: -16 | AU90: -16 | AV90: 16 | AW90: 16 | AX90: 16 | AY90: 16 | AZ90: 16 | BA90: -16 | BB90: -16 | BC90: -16 | BD90: 16 | BE90: -16 | BF90: -16 | BG90: 16 | BH90: -16 | BI90: 16 | BJ90: -16 | BK90: -16 | BL90: -16 | BM90: -16 | BN90: -16 | BO90: 16 | BP90: -16 | BQ90: -16 | BR90: -16 | BS90: 16 | BT90: -16 | BU90: -16 | BV90: -16 | BW90: 16 | BX90: -16 | BY90: 16 | BZ90: -16 | CA90: 16 | CB90: 16 | CC90: -16 | CD90: 16 | CE90: -16 | CF90: -16 | CG90: 16 | CH90: -16 | CI90: 16 | CJ90: 16 | CK90: -16 | CL90: -16 | CM90: 16 | CN90: 16 | CO90: 16 | CP90: 16 | CQ90: -16 | CR90: -16 | CS90: -16 | CT90: -16 | CU90: -16 | CV90: -16 | CW90: 16 | CX90: 16 | CY90: 16 | CZ90: -16 | DA90: -16 | DB90: 16 | DC90: -16 | DD90: 16 | DE90: -16 | DF90: -16 | DG90: 16 | DH90: -16 | DI90: -16 | DJ90: 16 | DK90: -16 | DL90: -16 | DM90: -16 | DN90: 16 | DO90: 16 | DP90: 16 | DQ90: -16 | DR90: -16 | DS90: -16 | DT90: 16 | DU90: 16 | DV90: -16 | DW90: -16 | DX90: -16
A91: -16 | B91: 16 | C91: 64 | D91: 16 | E91: 16 | F91: 16 | G91: 16 | H91: 16 | I91: 16 | J91: 16 | K91: 16 | L91: -16 | M91: 16 | N91: 16 | O91: 16 | P91: 16 | Q91: 64 | R91: 64 | S91: -16 | T91: -64 | U91: -16 | V91: -16 | W91: 16 | X91: -16 | Y91: 16 | Z91: -16 | AA91: -16 | AB91: 16 | AC91: -16 | AD91: 16 | AE91: 64 | AF91: -16 | AG91: -16 | AH91: -16 | AI91: -16 | AJ91: 16 | AK91: -64 | AL91: -16 | AM91: 64 | AN91: 16 | AO91: -16 | AP91: 16 | AQ91: 16 | AR91: -16 | AS91: 64 | AT91: 16 | AU91: 16 | AV91: 16 | AW91: -16 | AX91: 16 | AY91: 16 | AZ91: -16 | BA91: -16 | BB91: -16 | BC91: -16 | BD91: 16 | BE91: 16 | BF91: -16 | BG91: -16 | BH91: -16 | BI91: 16 | BJ91: -16 | BK91: 64 | BL91: -16 | BM91: -16 | BN91: 64 | BO91: -16 | BP91: 16 | BQ91: -16 | BR91: -16 | BS91: 16 | BT91: -16 | BU91: 16 | BV91: 16 | BW91: -16 | BX91: 16 | BY91: 16 | BZ91: -16 | CA91: 16 | CB91: 16 | CC91: -16 | CD91: 16 | CE91: -16 | CF91: -16 | CG91: 16 | CH91: -16 | CI91: 16 | CJ91: 16 | CK91: 16 | CL91: -16 | CM91: 16 | CN91: 16 | CO91: -16 | CP91: -16 | CQ91: 16 | CR91: -16 | CS91: -16 | CT91: 16 | CU91: 16 | CV91: 16 | CW91: 16 | CX91: 16 | CY91: -16 | CZ91: 16 | DA91: 16 | DB91: 16 | DC91: 16 | DD91: 16 | DE91: 16 | DF91: -16 | DG91: 16 | DH91: 16 | DI91: -16 | DJ91: -16 | DK91: 64 | DL91: 16 | DM91: -16 | DN91: 16 | DO91: 16 | DP91: -16 | DQ91: -16 | DR91: -16 | DS91: 16 | DT91: 16 | DU91: -16 | DV91: 16 | DW91: -16 | DX91: -16
A92: 16 | B92: 16 | C92: -16 | D92: -16 | E92: 16 | F92: 16 | G92: 64 | H92: -16 | I92: -16 | J92: -16 | K92: 64 | L92: -16 | M92: 16 | N92: 16 | O92: 16 | P92: 16 | Q92: 16 | R92: -16 | S92: -16 | T92: 16 | U92: 16 | V92: 16 | W92: 16 | X92: -16 | Y92: 16 | Z92: -16 | AA92: 16 | AB92: 16 | AC92: 16 | AD92: 16 | AE92: 16 | AF92: -16 | AG92: 64 | AH92: -16 | AI92: -16 | AJ92: 64 | AK92: -64 | AL92: -16 | AM92: -16 | AN92: -16 | AO92: -16 | AP92: 16 | AQ92: 16 | AR92: 16 | AS92: 16 | AT92: 16 | AU92: -16 | AV92: 16 | AW92: -16 | AX92: 64 | AY92: -16 | AZ92: 16 | BA92: -16 | BB92: 16 | BC92: 16 | BD92: 16 | BE92: -16 | BF92: -16 | BG92: 16 | BH92: -16 | BI92: 16 | BJ92: -16 | BK92: -16 | BL92: -16 | BM92: -16 | BN92: -16 | BO92: 16 | BP92: 16 | BQ92: -16 | BR92: -64 | BS92: 16 | BT92: -16 | BU92: 16 | BV92: -16 | BW92: -16 | BX92: -16 | BY92: -16 | BZ92: -16 | CA92: -16 | CB92: 16 | CC92: 64 | CD92: -16 | CE92: -16 | CF92: 16 | CG92: -16 | CH92: -16 | CI92: 16 | CJ92: 16 | CK92: -16 | CL92: -16 | CM92: -16 | CN92: 16 | CO92: -16 | CP92: 16 | CQ92: -16 | CR92: -16 | CS92: 16 | CT92: 16 | CU92: 16 | CV92: 16 | CW92: -16 | CX92: 64 | CY92: 16 | CZ92: 16 | DA92: -16 | DB92: -16 | DC92: -16 | DD92: 16 | DE92: 16 | DF92: 16 | DG92: 64 | DH92: 16 | DI92: -16 | DJ92: 16 | DK92: 16 | DL92: 16 | DM92: -16 | DN92: 16 | DO92: -16 | DP92: 16 | DQ92: -16 | DR92: 16 | DS92: 16 | DT92: 16 | DU92: -16 | DV92: -16 | DW92: 16 | DX92: -16
A93: 16 | B93: 16 | C93: 16 | D93: -16 | E93: -16 | F93: 16 | G93: 64 | H93: 16 | I93: 16 | J93: -16 | K93: 64 | L93: -16 | M93: 16 | N93: 16 | O93: 16 | P93: -16 | Q93: 16 | R93: -16 | S93: -16 | T93: 16 | U93: 16 | V93: 64 | W93: -16 | X93: -64 | Y93: -16 | Z93: 16 | AA93: 16 | AB93: 16 | AC93: 16 | AD93: 16 | AE93: -16 | AF93: 16 | AG93: 64 | AH93: -16 | AI93: -16 | AJ93: 64 | AK93: -64 | AL93: -16 | AM93: 16 | AN93: -16 | AO93: 16 | AP93: -16 | AQ93: 16 | AR93: 16 | AS93: -16 | AT93: -16 | AU93: 16 | AV93: 16 | AW93: -16 | AX93: 64 | AY93: 16 | AZ93: 16 | BA93: -16 | BB93: 16 | BC93: 16 | BD93: -16 | BE93: -16 | BF93: 16 | BG93: 64 | BH93: 16 | BI93: 16 | BJ93: 16 | BK93: 16 | BL93: -16 | BM93: -16 | BN93: 16 | BO93: -16 | BP93: -16 | BQ93: 16 | BR93: -64 | BS93: 64 | BT93: -16 | BU93: 16 | BV93: -16 | BW93: -16 | BX93: 16 | BY93: -16 | BZ93: -16 | CA93: -16 | CB93: -16 | CC93: 16 | CD93: 16 | CE93: -16 | CF93: 16 | CG93: -16 | CH93: -16 | CI93: 16 | CJ93: 64 | CK93: -16 | CL93: -16 | CM93: -16 | CN93: -16 | CO93: -64 | CP93: 16 | CQ93: -16 | CR93: -16 | CS93: -16 | CT93: 64 | CU93: -16 | CV93: 16 | CW93: -16 | CX93: 16 | CY93: -16 | CZ93: 16 | DA93: 16 | DB93: -16 | DC93: 16 | DD93: 16 | DE93: -16 | DF93: 16 | DG93: 16 | DH93: 16 | DI93: -16 | DJ93: -16 | DK93: 16 | DL93: 16 | DM93: -16 | DN93: -16 | DO93: 16 | DP93: 16 | DQ93: -16 | DR93: 16 | DS93: -16 | DT93: 16 | DU93: 16 | DV93: 16 | DW93: 64 | DX93: -64
A94: 16 | B94: -16 | C94: 16 | D94: -16 | E94: -16 | F94: 16 | G94: 64 | H94: 16 | I94: -16 | J94: -16 | K94: 64 | L94: -16 | M94: 16 | N94: -16 | O94: 16 | P94: 16 | Q94: 16 | R94: 16 | S94: -16 | T94: 16 | U94: 16 | V94: 64 | W94: -16 | X94: -64 | Y94: -16 | Z94: -16 | AA94: 16 | AB94: 16 | AC94: 16 | AD94: 16 | AE94: 16 | AF94: 16 | AG94: 64 | AH94: -16 | AI94: 16 | AJ94: 64 | AK94: -64 | AL94: -16 | AM94: 16 | AN94: -16 | AO94: 16 | AP94: 16 | AQ94: 16 | AR94: 16 | AS94: 16 | AT94: -16 | AU94: 16 | AV94: 16 | AW94: -16 | AX94: 16 | AY94: 16 | AZ94: -16 | BA94: -16 | BB94: 16 | BC94: 16 | BD94: -16 | BE94: -16 | BF94: -16 | BG94: 64 | BH94: 16 | BI94: -16 | BJ94: 16 | BK94: 16 | BL94: 16 | BM94: -16 | BN94: 16 | BO94: -16 | BP94: 16 | BQ94: 16 | BR94: -64 | BS94: 64 | BT94: -16 | BU94: 16 | BV94: -16 | BW94: -16 | BX94: -16 | BY94: -16 | BZ94: 16 | CA94: -16 | CB94: 16 | CC94: 64 | CD94: -16 | CE94: 16 | CF94: 16 | CG94: 16 | CH94: -16 | CI94: -16 | CJ94: 64 | CK94: -16 | CL94: -16 | CM94: 16 | CN94: -16 | CO94: -64 | CP94: 16 | CQ94: -64 | CR94: -16 | CS94: -16 | CT94: 64 | CU94: 16 | CV94: -16 | CW94: -16 | CX94: 64 | CY94: -16 | CZ94: 16 | DA94: -16 | DB94: -16 | DC94: 16 | DD94: 16 | DE94: -16 | DF94: 16 | DG94: 16 | DH94: 16 | DI94: -16 | DJ94: -16 | DK94: 16 | DL94: 16 | DM94: -16 | DN94: -16 | DO94: -16 | DP94: -16 | DQ94: -16 | DR94: 16 | DS94: 16 | DT94: 16 | DU94: -16 | DV94: -16 | DW94: 16 | DX94: -64
A95: 16 | B95: -16 | C95: 16 | D95: 16 | E95: -16 | F95: 16 | G95: 64 | H95: -16 | I95: 16 | J95: 64 | K95: 16 | L95: 16 | M95: 16 | N95: 16 | O95: -16 | P95: 16 | Q95: -16 | R95: -16 | S95: 16 | T95: 16 | U95: 16 | V95: 16 | W95: 16 | X95: 16 | Y95: 16 | Z95: 64 | AA95: -16 | AB95: 16 | AC95: -16 | AD95: -16 | AE95: 16 | AF95: 16 | AG95: -16 | AH95: 16 | AI95: -16 | AJ95: 16 | AK95: -16 | AL95: 16 | AM95: 16 | AN95: 16 | AO95: 16 | AP95: 16 | AQ95: 16 | AR95: 16 | AS95: -16 | AT95: -16 | AU95: 16 | AV95: 16 | AW95: -16 | AX95: 16 | AY95: -16 | AZ95: -16 | BA95: 16 | BB95: 16 | BC95: 16 | BD95: 16 | BE95: -16 | BF95: -16 | BG95: 16 | BH95: 16 | BI95: 16 | BJ95: -16 | BK95: -16 | BL95: 16 | BM95: 16 | BN95: 16 | BO95: 16 | BP95: -16 | BQ95: 16 | BR95: 16 | BS95: 16 | BT95: -16 | BU95: 16 | BV95: 16 | BW95: 16 | BX95: -16 | BY95: 16 | BZ95: -16 | CA95: 16 | CB95: 16 | CC95: 16 | CD95: 16 | CE95: -16 | CF95: 64 | CG95: 16 | CH95: 16 | CI95: 16 | CJ95: 16 | CK95: 16 | CL95: 64 | CM95: 16 | CN95: -16 | CO95: 16 | CP95: -16 | CQ95: 16 | CR95: -16 | CS95: -16 | CT95: 16 | CU95: 16 | CV95: 16 | CW95: -16 | CX95: 64 | CY95: -16 | CZ95: 16 | DA95: -16 | DB95: -16 | DC95: 16 | DD95: 16 | DE95: 16 | DF95: 16 | DG95: 16 | DH95: -16 | DI95: 16 | DJ95: 16 | DK95: 16 | DL95: 16 | DM95: 16 | DN95: -16 | DO95: 16 | DP95: 16 | DQ95: 16 | DR95: 16 | DS95: 16 | DT95: 16 | DU95: 16 | DV95: 16 | DW95: 16 | DX95: 16
A96: -16 | B96: 16 | C96: -16 | D96: 16 | E96: -16 | F96: 16 | G96: -16 | H96: 16 | I96: -16 | J96: 16 | K96: 16 | L96: -16 | M96: 16 | N96: -16 | O96: 16 | P96: -16 | Q96: 16 | R96: -16 | S96: 16 | T96: 16 | U96: -16 | V96: -16 | W96: 16 | X96: -16 | Y96: -16 | Z96: -16 | AA96: -16 | AB96: -16 | AC96: 16 | AD96: 16 | AE96: -16 | AF96: 16 | AG96: -16 | AH96: 16 | AI96: -16 | AJ96: 16 | AK96: -16 | AL96: 16 | AM96: -16 | AN96: 16 | AO96: -16 | AP96: -16 | AQ96: 16 | AR96: 16 | AS96: 16 | AT96: -16 | AU96: 16 | AV96: -16 | AW96: -16 | AX96: 16 | AY96: 16 | AZ96: -16 | BA96: -16 | BB96: -16 | BC96: -16 | BD96: -16 | BE96: 16 | BF96: 16 | BG96: 16 | BH96: 16 | BI96: -16 | BJ96: -16 | BK96: 16 | BL96: 16 | BM96: 16 | BN96: -16 | BO96: 16 | BP96: 16 | BQ96: 16 | BR96: 16 | BS96: 16 | BT96: -16 | BU96: -16 | BV96: -16 | BW96: -16 | BX96: -16 | BY96: -16 | BZ96: 16 | CA96: 16 | CB96: -16 | CC96: -16 | CD96: 16 | CE96: -16 | CF96: 16 | CG96: -16 | CH96: -16 | CI96: -16 | CJ96: 16 | CK96: 16 | CL96: -16 | CM96: 16 | CN96: 16 | CO96: 16 | CP96: 16 | CQ96: -16 | CR96: -16 | CS96: 16 | CT96: 16 | CU96: -16 | CV96: 16 | CW96: 16 | CX96: 16 | CY96: -16 | CZ96: -16 | DA96: 16 | DB96: -16 | DC96: 16 | DD96: 16 | DE96: -16 | DF96: -16 | DG96: -16 | DH96: 16 | DI96: 16 | DJ96: -16 | DK96: 16 | DL96: -16 | DM96: -16 | DN96: -16 | DO96: 16 | DP96: -16 | DQ96: 16 | DR96: -16 | DS96: -16 | DT96: 16 | DU96: 16 | DV96: -16 | DW96: 16 | DX96: 16
A97: -16 | B97: -16 | C97: 16 | D97: 64 | E97: 64 | F97: -16 | G97: -16 | H97: 16 | I97: 16 | J97: -16 | K97: -64 | L97: 16 | M97: -16 | N97: -16 | O97: -16 | P97: -16 | Q97: 16 | R97: 64 | S97: 16 | T97: -16 | U97: -64 | V97: -16 | W97: -16 | X97: 16 | Y97: -64 | Z97: -16 | AA97: -64 | AB97: 16 | AC97: -16 | AD97: -16 | AE97: 16 | AF97: -16 | AG97: -64 | AH97: 64 | AI97: 16 | AJ97: -16 | AK97: 16 | AL97: 16 | AM97: 16 | AN97: -16 | AO97: -16 | AP97: -16 | AQ97: -16 | AR97: -16 | AS97: 64 | AT97: 16 | AU97: 16 | AV97: 16 | AW97: -16 | AX97: -16 | AY97: 16 | AZ97: 16 | BA97: 16 | BB97: -16 | BC97: -16 | BD97: 16 | BE97: -16 | BF97: -16 | BG97: -16 | BH97: 16 | BI97: -16 | BJ97: -16 | BK97: 16 | BL97: 16 | BM97: -64 | BN97: 16 | BO97: -16 | BP97: 16 | BQ97: 16 | BR97: 16 | BS97: -64 | BT97: -16 | BU97: 16 | BV97: -16 | BW97: 16 | BX97: -16 | BY97: 16 | BZ97: -16 | CA97: 16 | CB97: -16 | CC97: -64 | CD97: 16 | CE97: 16 | CF97: -16 | CG97: 16 | CH97: -16 | CI97: -16 | CJ97: -16 | CK97: 16 | CL97: -16 | CM97: 16 | CN97: -16 | CO97: 16 | CP97: 16 | CQ97: 64 | CR97: 64 | CS97: 16 | CT97: -64 | CU97: -16 | CV97: -16 | CW97: -16 | CX97: -16 | CY97: -16 | CZ97: 16 | DA97: 16 | DB97: 16 | DC97: 64 | DD97: 16 | DE97: 16 | DF97: -16 | DG97: -16 | DH97: 16 | DI97: -16 | DJ97: -16 | DK97: 16 | DL97: -16 | DM97: -16 | DN97: 16 | DO97: -16 | DP97: -16 | DQ97: 16 | DR97: -64 | DS97: -16 | DT97: -16 | DU97: -16 | DV97: -16 | DW97: -64 | DX97: 16
A98: -16 | B98: 16 | C98: 16 | D98: -16 | E98: -16 | F98: -16 | G98: 16 | H98: -16 | I98: -16 | J98: 16 | K98: -16 | L98: -16 | M98: 16 | N98: 16 | O98: 16 | P98: 16 | Q98: 16 | R98: 16 | S98: -64 | T98: -16 | U98: 16 | V98: 16 | W98: 16 | X98: -64 | Y98: -16 | Z98: -16 | AA98: 16 | AB98: 16 | AC98: -16 | AD98: 64 | AE98: 16 | AF98: -16 | AG98: 16 | AH98: 16 | AI98: -16 | AJ98: 16 | AK98: -64 | AL98: -16 | AM98: 16 | AN98: -16 | AO98: 16 | AP98: 16 | AQ98: 16 | AR98: -16 | AS98: 16 | AT98: 16 | AU98: 16 | AV98: 16 | AW98: -16 | AX98: 16 | AY98: 16 | AZ98: 16 | BA98: 16 | BB98: 16 | BC98: 16 | BD98: -16 | BE98: 16 | BF98: -16 | BG98: -16 | BH98: -16 | BI98: 16 | BJ98: -16 | BK98: 16 | BL98: 16 | BM98: -16 | BN98: 64 | BO98: 16 | BP98: 16 | BQ98: -16 | BR98: -64 | BS98: 16 | BT98: -16 | BU98: 64 | BV98: -16 | BW98: -16 | BX98: -16 | BY98: 16 | BZ98: -16 | CA98: -16 | CB98: 16 | CC98: -16 | CD98: 16 | CE98: -16 | CF98: 16 | CG98: 16 | CH98: 16 | CI98: 16 | CJ98: 16 | CK98: 16 | CL98: 16 | CM98: 16 | CN98: 16 | CO98: -64 | CP98: 16 | CQ98: -16 | CR98: -16 | CS98: -16 | CT98: 16 | CU98: -16 | CV98: -16 | CW98: 16 | CX98: 16 | CY98: -16 | CZ98: 16 | DA98: -16 | DB98: 16 | DC98: 64 | DD98: 16 | DE98: -16 | DF98: 16 | DG98: 16 | DH98: 64 | DI98: 16 | DJ98: 16 | DK98: 16 | DL98: -16 | DM98: -16 | DN98: -16 | DO98: -16 | DP98: -16 | DQ98: -16 | DR98: -16 | DS98: 16 | DT98: 64 | DU98: -16 | DV98: 16 | DW98: 16 | DX98: -16
A99: 16 | B99: 16 | C99: -16 | D99: -16 | E99: -16 | F99: 16 | G99: 64 | H99: -16 | I99: 16 | J99: 16 | K99: 16 | L99: 16 | M99: 16 | N99: 16 | O99: 16 | P99: 16 | Q99: -16 | R99: -16 | S99: -16 | T99: 16 | U99: -16 | V99: 16 | W99: 16 | X99: -16 | Y99: 16 | Z99: 16 | AA99: 16 | AB99: 16 | AC99: 16 | AD99: -16 | AE99: -16 | AF99: 16 | AG99: 64 | AH99: -16 | AI99: -16 | AJ99: 64 | AK99: -64 | AL99: 16 | AM99: -16 | AN99: 16 | AO99: 16 | AP99: -16 | AQ99: 16 | AR99: 16 | AS99: -16 | AT99: -16 | AU99: -16 | AV99: -16 | AW99: -16 | AX99: 64 | AY99: -16 | AZ99: -16 | BA99: -16 | BB99: 16 | BC99: 16 | BD99: 16 | BE99: -16 | BF99: 16 | BG99: 64 | BH99: -16 | BI99: -16 | BJ99: 16 | BK99: -16 | BL99: 16 | BM99: -16 | BN99: 16 | BO99: 16 | BP99: -16 | BQ99: -16 | BR99: -64 | BS99: 64 | BT99: -16 | BU99: 16 | BV99: 16 | BW99: 16 | BX99: 16 | BY99: -16 | BZ99: 16 | CA99: -16 | CB99: 16 | CC99: 16 | CD99: -16 | CE99: 16 | CF99: 16 | CG99: 16 | CH99: -16 | CI99: -16 | CJ99: 64 | CK99: -16 | CL99: 16 | CM99: -16 | CN99: -16 | CO99: -16 | CP99: -16 | CQ99: -16 | CR99: -16 | CS99: 16 | CT99: 64 | CU99: -16 | CV99: -16 | CW99: -16 | CX99: 64 | CY99: -16 | CZ99: -16 | DA99: -16 | DB99: -16 | DC99: -16 | DD99: -16 | DE99: -16 | DF99: -16 | DG99: 16 | DH99: -16 | DI99: 16 | DJ99: -16 | DK99: -16 | DL99: 16 | DM99: 16 | DN99: -16 | DO99: -16 | DP99: 16 | DQ99: -16 | DR99: 16 | DS99: 16 | DT99: 16 | DU99: 16 | DV99: 16 | DW99: 16 | DX99: -16
A100: 16 | B100: 16 | C100: -16 | D100: -16 | E100: -16 | F100: 16 | G100: 16 | H100: -16 | I100: 16 | J100: 16 | K100: -16 | L100: 16 | M100: 16 | N100: 16 | O100: -16 | P100: 16 | Q100: -16 | R100: -16 | S100: -16 | T100: -16 | U100: 16 | V100: 16 | W100: 16 | X100: -16 | Y100: 16 | Z100: 64 | AA100: 16 | AB100: -16 | AC100: -16 | AD100: -16 | AE100: 16 | AF100: 16 | AG100: 16 | AH100: -16 | AI100: -16 | AJ100: 16 | AK100: -16 | AL100: 16 | AM100: 16 | AN100: -16 | AO100: 16 | AP100: -16 | AQ100: -16 | AR100: 16 | AS100: -16 | AT100: 16 | AU100: -16 | AV100: -16 | AW100: -16 | AX100: 16 | AY100: 16 | AZ100: -16 | BA100: 16 | BB100: 16 | BC100: 16 | BD100: -16 | BE100: 16 | BF100: -16 | BG100: 16 | BH100: -16 | BI100: 64 | BJ100: 64 | BK100: -16 | BL100: 16 | BM100: -16 | BN100: -16 | BO100: 16 | BP100: -16 | BQ100: 16 | BR100: -16 | BS100: 16 | BT100: -16 | BU100: -16 | BV100: -16 | BW100: 16 | BX100: -16 | BY100: -16 | BZ100: -16 | CA100: -16 | CB100: -16 | CC100: 16 | CD100: -16 | CE100: 16 | CF100: -16 | CG100: -16 | CH100: 16 | CI100: -16 | CJ100: 16 | CK100: -16 | CL100: 64 | CM100: -16 | CN100: -16 | CO100: -16 | CP100: 16 | CQ100: -16 | CR100: -16 | CS100: 16 | CT100: 16 | CU100: -16 | CV100: -16 | CW100: -16 | CX100: 16 | CY100: 16 | CZ100: -16 | DA100: 16 | DB100: -16 | DC100: -16 | DD100: -16 | DE100: 16 | DF100: -16 | DG100: 16 | DH100: 16 | DI100: 64 | DJ100: -16 | DK100: 16 | DL100: 16 | DM100: 16 | DN100: -16 | DO100: -16 | DP100: 16 | DQ100: 16 | DR100: -16 | DS100: -16 | DT100: 64 | DU100: 16 | DV100: 16 | DW100: 16 | DX100: -16
A101: 16 | B101: 16 | C101: 16 | D101: 16 | E101: 16 | F101: -16 | G101: 64 | H101: -16 | I101: 16 | J101: -16 | K101: 64 | L101: 16 | M101: 16 | N101: -16 | O101: -16 | P101: 16 | Q101: 16 | R101: 16 | S101: -16 | T101: 16 | U101: 16 | V101: 16 | W101: -16 | X101: -16 | Y101: 16 | Z101: -16 | AA101: -16 | AB101: -16 | AC101: -16 | AD101: 16 | AE101: 16 | AF101: -16 | AG101: 64 | AH101: -16 | AI101: 16 | AJ101: 64 | AK101: -16 | AL101: -16 | AM101: 16 | AN101: 16 | AO101: -16 | AP101: -16 | AQ101: -16 | AR101: -16 | AS101: 16 | AT101: -16 | AU101: 16 | AV101: 16 | AW101: 16 | AX101: 16 | AY101: -16 | AZ101: -16 | BA101: -16 | BB101: 16 | BC101: 16 | BD101: 16 | BE101: -16 | BF101: 16 | BG101: 64 | BH101: -16 | BI101: 16 | BJ101: 16 | BK101: 16 | BL101: -16 | BM101: 16 | BN101: 16 | BO101: -16 | BP101: -16 | BQ101: 16 | BR101: -16 | BS101: 64 | BT101: -16 | BU101: 16 | BV101: -16 | BW101: -16 | BX101: 16 | BY101: 16 | BZ101: -16 | CA101: -16 | CB101: -16 | CC101: 64 | CD101: -16 | CE101: -16 | CF101: -16 | CG101: 16 | CH101: -16 | CI101: 16 | CJ101: 16 | CK101: -16 | CL101: -16 | CM101: -16 | CN101: -16 | CO101: -64 | CP101: -16 | CQ101: -16 | CR101: -16 | CS101: -16 | CT101: 64 | CU101: 16 | CV101: -16 | CW101: -16 | CX101: 64 | CY101: 16 | CZ101: 16 | DA101: -16 | DB101: -16 | DC101: 16 | DD101: -16 | DE101: -16 | DF101: -16 | DG101: 16 | DH101: 16 | DI101: 16 | DJ101: -16 | DK101: 16 | DL101: 64 | DM101: -16 | DN101: -16 | DO101: -16 | DP101: 16 | DQ101: -16 | DR101: 64 | DS101: -16 | DT101: 16 | DU101: -16 | DV101: 16 | DW101: 16 | DX101: -64
A102: 16 | B102: -16 | C102: 16 | D102: 16 | E102: 16 | F102: 16 | G102: 16 | H102: 16 | I102: -16 | J102: -16 | K102: -16 | L102: -16 | M102: 16 | N102: 16 | O102: 16 | P102: 16 | Q102: -16 | R102: -16 | S102: -16 | T102: 16 | U102: -16 | V102: -16 | W102: -16 | X102: -16 | Y102: -16 | Z102: 16 | AA102: 64 | AB102: 16 | AC102: -16 | AD102: 16 | AE102: 64 | AF102: -16 | AG102: -64 | AH102: 16 | AI102: 16 | AJ102: -16 | AK102: 16 | AL102: 16 | AM102: 16 | AN102: 16 | AO102: 16 | AP102: -16 | AQ102: 16 | AR102: -16 | AS102: 16 | AT102: -16 | AU102: 16 | AV102: 16 | AW102: 16 | AX102: -16 | AY102: -16 | AZ102: -16 | BA102: 64 | BB102: -16 | BC102: -16 | BD102: -16 | BE102: -16 | BF102: -16 | BG102: -16 | BH102: 16 | BI102: -16 | BJ102: -16 | BK102: -16 | BL102: -16 | BM102: 16 | BN102: 16 | BO102: -16 | BP102: 16 | BQ102: -16 | BR102: 16 | BS102: -16 | BT102: -16 | BU102: -16 | BV102: -16 | BW102: -16 | BX102: 16 | BY102: 16 | BZ102: 16 | CA102: 64 | CB102: 16 | CC102: 16 | CD102: 16 | CE102: -16 | CF102: 16 | CG102: 16 | CH102: 16 | CI102: 16 | CJ102: -16 | CK102: 16 | CL102: -16 | CM102: -16 | CN102: -16 | CO102: -16 | CP102: 16 | CQ102: 16 | CR102: -16 | CS102: -16 | CT102: -16 | CU102: 16 | CV102: -16 | CW102: -16 | CX102: -64 | CY102: 16 | CZ102: 16 | DA102: -16 | DB102: 16 | DC102: 16 | DD102: -16 | DE102: -16 | DF102: -16 | DG102: 16 | DH102: -16 | DI102: -16 | DJ102: -16 | DK102: 16 | DL102: -16 | DM102: 16 | DN102: -16 | DO102: 16 | DP102: -16 | DQ102: -16 | DR102: 16 | DS102: 16 | DT102: -16 | DU102: 64 | DV102: -16 | DW102: 16 | DX102: 16
A103: 16 | B103: 16 | C103: 16 | D103: -16 | E103: -16 | F103: 16 | G103: 16 | H103: -16 | I103: 16 | J103: 16 | K103: 16 | L103: -16 | M103: -16 | N103: 16 | O103: -16 | P103: 16 | Q103: 16 | R103: -16 | S103: -16 | T103: 16 | U103: 64 | V103: 16 | W103: 16 | X103: -16 | Y103: 16 | Z103: 16 | AA103: 16 | AB103: 16 | AC103: 16 | AD103: -16 | AE103: 16 | AF103: 64 | AG103: 16 | AH103: 16 | AI103: 16 | AJ103: 16 | AK103: 16 | AL103: 16 | AM103: 16 | AN103: -16 | AO103: 16 | AP103: 16 | AQ103: 16 | AR103: 16 | AS103: -16 | AT103: -16 | AU103: 16 | AV103: 16 | AW103: 16 | AX103: 16 | AY103: -16 | AZ103: 16 | BA103: -16 | BB103: 16 | BC103: 16 | BD103: 16 | BE103: 16 | BF103: 16 | BG103: 64 | BH103: 16 | BI103: 64 | BJ103: 16 | BK103: 16 | BL103: 16 | BM103: 16 | BN103: 16 | BO103: -16 | BP103: -16 | BQ103: 16 | BR103: -16 | BS103: 16 | BT103: 16 | BU103: 16 | BV103: -16 | BW103: -16 | BX103: 16 | BY103: -16 | BZ103: 16 | CA103: -16 | CB103: -16 | CC103: 16 | CD103: 16 | CE103: -16 | CF103: 16 | CG103: 16 | CH103: 16 | CI103: -16 | CJ103: 16 | CK103: -16 | CL103: 16 | CM103: 16 | CN103: -16 | CO103: 16 | CP103: 16 | CQ103: 16 | CR103: -16 | CS103: 16 | CT103: 16 | CU103: 16 | CV103: -16 | CW103: -16 | CX103: 16 | CY103: 16 | CZ103: 16 | DA103: -16 | DB103: 16 | DC103: -16 | DD103: -16 | DE103: 16 | DF103: -16 | DG103: 16 | DH103: 64 | DI103: -16 | DJ103: -16 | DK103: -16 | DL103: 64 | DM103: -16 | DN103: 16 | DO103: 16 | DP103: 16 | DQ103: -16 | DR103: 16 | DS103: 16 | DT103: 16 | DU103: 16 | DV103: -16 | DW103: 16 | DX103: 16
A104: 16 | B104: -16 | C104: 16 | D104: -16 | E104: -16 | F104: 16 | G104: 64 | H104: -16 | I104: 16 | J104: -16 | K104: 64 | L104: -16 | M104: 16 | N104: 16 | O104: 16 | P104: 16 | Q104: 16 | R104: 16 | S104: 16 | T104: 16 | U104: 16 | V104: 16 | W104: -16 | X104: -64 | Y104: -16 | Z104: 16 | AA104: 16 | AB104: 16 | AC104: -16 | AD104: 16 | AE104: 16 | AF104: -16 | AG104: 16 | AH104: -16 | AI104: -16 | AJ104: 16 | AK104: -16 | AL104: -16 | AM104: -16 | AN104: -16 | AO104: -16 | AP104: -16 | AQ104: 16 | AR104: 16 | AS104: 16 | AT104: -16 | AU104: 16 | AV104: 16 | AW104: 16 | AX104: 64 | AY104: 16 | AZ104: 16 | BA104: -16 | BB104: 16 | BC104: 16 | BD104: -16 | BE104: -16 | BF104: -16 | BG104: 16 | BH104: -16 | BI104: -16 | BJ104: -16 | BK104: 16 | BL104: 16 | BM104: -16 | BN104: 16 | BO104: -16 | BP104: -16 | BQ104: -16 | BR104: -64 | BS104: 64 | BT104: -16 | BU104: 16 | BV104: 16 | BW104: 16 | BX104: -16 | BY104: -16 | BZ104: -16 | CA104: -16 | CB104: 16 | CC104: 16 | CD104: 16 | CE104: 16 | CF104: -16 | CG104: 16 | CH104: -16 | CI104: 16 | CJ104: 16 | CK104: -16 | CL104: 16 | CM104: -16 | CN104: -16 | CO104: -64 | CP104: 16 | CQ104: -16 | CR104: -16 | CS104: 16 | CT104: 16 | CU104: -16 | CV104: -16 | CW104: -16 | CX104: 16 | CY104: 16 | CZ104: 16 | DA104: -16 | DB104: 16 | DC104: 16 | DD104: -16 | DE104: -16 | DF104: 16 | DG104: 16 | DH104: 16 | DI104: -16 | DJ104: -16 | DK104: 16 | DL104: 16 | DM104: 16 | DN104: -16 | DO104: -16 | DP104: 16 | DQ104: -16 | DR104: 16 | DS104: -16 | DT104: 16 | DU104: 16 | DV104: 16 | DW104: 16 | DX104: -64
A105: -16 | B105: 16 | C105: 16 | D105: 16 | E105: 16 | F105: 16 | G105: -16 | H105: 16 | I105: -16 | J105: 16 | K105: -16 | L105: -16 | M105: 16 | N105: -16 | O105: 16 | P105: 16 | Q105: 16 | R105: 16 | S105: 16 | T105: 16 | U105: 16 | V105: -16 | W105: 16 | X105: 16 | Y105: -16 | Z105: -16 | AA105: 16 | AB105: -16 | AC105: -16 | AD105: -16 | AE105: 16 | AF105: -16 | AG105: -16 | AH105: 16 | AI105: 16 | AJ105: 16 | AK105: -16 | AL105: 16 | AM105: 16 | AN105: 16 | AO105: 16 | AP105: -16 | AQ105: -16 | AR105: -16 | AS105: 16 | AT105: 16 | AU105: 16 | AV105: 16 | AW105: -16 | AX105: -16 | AY105: 16 | AZ105: 16 | BA105: 16 | BB105: 16 | BC105: -16 | BD105: -16 | BE105: -16 | BF105: 16 | BG105: -16 | BH105: 16 | BI105: -16 | BJ105: 16 | BK105: -16 | BL105: -16 | BM105: 16 | BN105: -16 | BO105: 16 | BP105: -16 | BQ105: 16 | BR105: -16 | BS105: -16 | BT105: -16 | BU105: 16 | BV105: 16 | BW105: 16 | BX105: 16 | BY105: 16 | BZ105: -16 | CA105: -16 | CB105: 16 | CC105: -16 | CD105: -16 | CE105: -16 | CF105: 16 | CG105: 16 | CH105: -16 | CI105: 16 | CJ105: 16 | CK105: -16 | CL105: -16 | CM105: 16 | CN105: -16 | CO105: -16 | CP105: -16 | CQ105: -16 | CR105: 16 | CS105: -16 | CT105: -16 | CU105: 16 | CV105: 16 | CW105: 16 | CX105: -16 | CY105: -16 | CZ105: -16 | DA105: -16 | DB105: 16 | DC105: 16 | DD105: 16 | DE105: -16 | DF105: 16 | DG105: -16 | DH105: 16 | DI105: -16 | DJ105: 16 | DK105: 16 | DL105: 16 | DM105: 16 | DN105: 16 | DO105: 16 | DP105: 16 | DQ105: 16 | DR105: 16 | DS105: -16 | DT105: 16 | DU105: 16 | DV105: -16 | DW105: 16 | DX105: -16
A106: 16 | B106: -16 | C106: 16 | D106: 16 | E106: 16 | F106: -16 | G106: 16 | H106: -16 | I106: -16 | J106: 16 | K106: 16 | L106: 16 | M106: 16 | N106: -16 | O106: 16 | P106: 16 | Q106: 16 | R106: -16 | S106: -16 | T106: -16 | U106: 16 | V106: -16 | W106: -16 | X106: -16 | Y106: 16 | Z106: 16 | AA106: -16 | AB106: 64 | AC106: -16 | AD106: 16 | AE106: 16 | AF106: -16 | AG106: 16 | AH106: -16 | AI106: -16 | AJ106: 16 | AK106: 16 | AL106: -16 | AM106: 16 | AN106: 16 | AO106: -16 | AP106: 16 | AQ106: 16 | AR106: 16 | AS106: 16 | AT106: -16 | AU106: 64 | AV106: 16 | AW106: 16 | AX106: 16 | AY106: -16 | AZ106: -16 | BA106: -16 | BB106: -16 | BC106: -16 | BD106: 16 | BE106: 16 | BF106: -16 | BG106: 16 | BH106: 16 | BI106: 16 | BJ106: 16 | BK106: 16 | BL106: 16 | BM106: 16 | BN106: 16 | BO106: -16 | BP106: 16 | BQ106: -16 | BR106: 16 | BS106: 16 | BT106: 16 | BU106: -16 | BV106: 16 | BW106: 16 | BX106: -16 | BY106: 16 | BZ106: 16 | CA106: 16 | CB106: 16 | CC106: 16 | CD106: -16 | CE106: -16 | CF106: 16 | CG106: 16 | CH106: 16 | CI106: 16 | CJ106: 16 | CK106: 16 | CL106: 16 | CM106: 16 | CN106: 16 | CO106: 16 | CP106: -16 | CQ106: 16 | CR106: -16 | CS106: -16 | CT106: 16 | CU106: -16 | CV106: -16 | CW106: -16 | CX106: 16 | CY106: 16 | CZ106: 16 | DA106: 16 | DB106: 64 | DC106: 16 | DD106: 16 | DE106: -16 | DF106: 16 | DG106: 16 | DH106: -16 | DI106: 16 | DJ106: 16 | DK106: 16 | DL106: 16 | DM106: 16 | DN106: -16 | DO106: -16 | DP106: 16 | DQ106: -16 | DR106: 16 | DS106: 16 | DT106: 16 | DU106: 16 | DV106: 16 | DW106: -16 | DX106: -16
A107: 16 | B107: -16 | C107: -16 | D107: -16 | E107: 16 | F107: 16 | G107: 16 | H107: -16 | I107: 16 | J107: -16 | K107: -16 | L107: 16 | M107: 16 | N107: 16 | O107: 16 | P107: 16 | Q107: -16 | R107: -16 | S107: 16 | T107: 16 | U107: 16 | V107: -16 | W107: 16 | X107: -16 | Y107: -16 | Z107: 16 | AA107: -16 | AB107: 16 | AC107: -16 | AD107: -16 | AE107: 16 | AF107: 16 | AG107: 16 | AH107: -16 | AI107: -16 | AJ107: -16 | AK107: -16 | AL107: 16 | AM107: 16 | AN107: 16 | AO107: -16 | AP107: 16 | AQ107: 16 | AR107: 16 | AS107: 16 | AT107: -16 | AU107: -16 | AV107: 16 | AW107: -16 | AX107: 16 | AY107: 16 | AZ107: -16 | BA107: 16 | BB107: -16 | BC107: 16 | BD107: -16 | BE107: 16 | BF107: -16 | BG107: -16 | BH107: 16 | BI107: -16 | BJ107: 16 | BK107: 16 | BL107: 16 | BM107: -16 | BN107: 16 | BO107: 16 | BP107: 16 | BQ107: -16 | BR107: -16 | BS107: 16 | BT107: 16 | BU107: 16 | BV107: -16 | BW107: -16 | BX107: -16 | BY107: -16 | BZ107: 16 | CA107: 16 | CB107: 16 | CC107: 16 | CD107: -16 | CE107: 16 | CF107: -16 | CG107: -16 | CH107: 16 | CI107: -16 | CJ107: 16 | CK107: 16 | CL107: -16 | CM107: -16 | CN107: -16 | CO107: 16 | CP107: -16 | CQ107: 16 | CR107: 16 | CS107: -16 | CT107: 16 | CU107: -16 | CV107: -16 | CW107: 16 | CX107: 16 | CY107: -16 | CZ107: 16 | DA107: -16 | DB107: 16 | DC107: -16 | DD107: -16 | DE107: 16 | DF107: 16 | DG107: 16 | DH107: 16 | DI107: -16 | DJ107: -16 | DK107: 16 | DL107: 16 | DM107: 16 | DN107: -16 | DO107: -16 | DP107: -16 | DQ107: 16 | DR107: 16 | DS107: 16 | DT107: 16 | DU107: 16 | DV107: -16 | DW107: 16 | DX107: 16
A108: 16 | B108: 16 | C108: 16 | D108: -16 | E108: 16 | F108: -16 | G108: 64 | H108: 16 | I108: 16 | J108: -16 | K108: 16 | L108: 16 | M108: 16 | N108: 16 | O108: -16 | P108: -16 | Q108: -16 | R108: 16 | S108: -16 | T108: -16 | U108: -16 | V108: 16 | W108: -16 | X108: -16 | Y108: 16 | Z108: -16 | AA108: -16 | AB108: -16 | AC108: 16 | AD108: 16 | AE108: 16 | AF108: 16 | AG108: 16 | AH108: -16 | AI108: -16 | AJ108: 16 | AK108: -16 | AL108: -16 | AM108: -16 | AN108: 16 | AO108: -16 | AP108: -16 | AQ108: -16 | AR108: 16 | AS108: 16 | AT108: 16 | AU108: 16 | AV108: 16 | AW108: 16 | AX108: 16 | AY108: -16 | AZ108: -16 | BA108: 16 | BB108: 16 | BC108: 16 | BD108: -16 | BE108: -16 | BF108: -16 | BG108: 16 | BH108: 16 | BI108: 16 | BJ108: -16 | BK108: -16 | BL108: 16 | BM108: 16 | BN108: -16 | BO108: -16 | BP108: 16 | BQ108: 16 | BR108: -16 | BS108: 16 | BT108: -16 | BU108: 16 | BV108: 16 | BW108: -16 | BX108: -16 | BY108: -16 | BZ108: -16 | CA108: -16 | CB108: -16 | CC108: 64 | CD108: -16 | CE108: -16 | CF108: -16 | CG108: 16 | CH108: -16 | CI108: 16 | CJ108: -16 | CK108: 16 | CL108: 16 | CM108: 16 | CN108: 16 | CO108: -16 | CP108: 16 | CQ108: -16 | CR108: 16 | CS108: -16 | CT108: 16 | CU108: -16 | CV108: 16 | CW108: 16 | CX108: 16 | CY108: 16 | CZ108: 16 | DA108: 16 | DB108: 16 | DC108: 16 | DD108: -16 | DE108: -16 | DF108: -16 | DG108: 16 | DH108: 16 | DI108: -16 | DJ108: -16 | DK108: 16 | DL108: 16 | DM108: -16 | DN108: 16 | DO108: -16 | DP108: 16 | DQ108: -16 | DR108: 16 | DS108: -16 | DT108: 16 | DU108: -16 | DV108: 16 | DW108: 16 | DX108: -16
A109: 64 | B109: 16 | C109: -64 | D109: -64 | E109: -16 | F109: -16 | G109: 16 | H109: 16 | I109: 16 | J109: 16 | K109: 16 | L109: 16 | M109: -16 | N109: 16 | O109: -16 | P109: 16 | Q109: -16 | R109: -16 | S109: 64 | T109: -16 | U109: 16 | V109: 16 | W109: 16 | X109: -16 | Y109: 64 | Z109: 16 | AA109: 16 | AB109: -16 | AC109: -16 | AD109: -64 | AE109: -64 | AF109: 16 | AG109: 16 | AH109: -16 | AI109: -16 | AJ109: -16 | AK109: -16 | AL109: 16 | AM109: -64 | AN109: -16 | AO109: -16 | AP109: -16 | AQ109: -16 | AR109: 16 | AS109: -16 | AT109: 16 | AU109: -16 | AV109: -16 | AW109: -16 | AX109: 16 | AY109: -16 | AZ109: -16 | BA109: 16 | BB109: -16 | BC109: 16 | BD109: 16 | BE109: 16 | BF109: -16 | BG109: 64 | BH109: -16 | BI109: 64 | BJ109: 16 | BK109: -64 | BL109: 16 | BM109: -16 | BN109: -16 | BO109: 64 | BP109: 16 | BQ109: -16 | BR109: -16 | BS109: 16 | BT109: -16 | BU109: -16 | BV109: 16 | BW109: 64 | BX109: 16 | BY109: -64 | BZ109: -16 | CA109: -64 | CB109: 16 | CC109: 16 | CD109: 16 | CE109: 64 | CF109: 16 | CG109: -64 | CH109: 64 | CI109: -16 | CJ109: 16 | CK109: 16 | CL109: -16 | CM109: -16 | CN109: 16 | CO109: -16 | CP109: -16 | CQ109: -16 | CR109: -16 | CS109: 64 | CT109: 16 | CU109: -16 | CV109: 16 | CW109: -16 | CX109: 16 | CY109: -16 | CZ109: -16 | DA109: -16 | DB109: -16 | DC109: -64 | DD109: 16 | DE109: 16 | DF109: 16 | DG109: 16 | DH109: -16 | DI109: 64 | DJ109: -16 | DK109: -64 | DL109: 64 | DM109: 16 | DN109: 16 | DO109: -64 | DP109: 16 | DQ109: 64 | DR109: 64 | DS109: -16 | DT109: 16 | DU109: 64 | DV109: -16 | DW109: -16 | DX109: -16
A110: -16 | B110: 16 | C110: -16 | D110: -16 | E110: 16 | F110: -16 | G110: 16 | H110: -16 | I110: 16 | J110: 16 | K110: 16 | L110: 16 | M110: 16 | N110: -16 | O110: -16 | P110: -16 | Q110: 16 | R110: 16 | S110: 16 | T110: 16 | U110: -16 | V110: -16 | W110: -16 | X110: -16 | Y110: 16 | Z110: -16 | AA110: -16 | AB110: -16 | AC110: 16 | AD110: 16 | AE110: 16 | AF110: -16 | AG110: -16 | AH110: 16 | AI110: -16 | AJ110: -16 | AK110: 16 | AL110: 16 | AM110: -16 | AN110: -16 | AO110: -16 | AP110: -16 | AQ110: -16 | AR110: -16 | AS110: -16 | AT110: -16 | AU110: 16 | AV110: 16 | AW110: -16 | AX110: 16 | AY110: -16 | AZ110: 16 | BA110: 16 | BB110: -16 | BC110: -16 | BD110: -16 | BE110: 16 | BF110: 16 | BG110: -16 | BH110: 16 | BI110: -16 | BJ110: 16 | BK110: 16 | BL110: -16 | BM110: 16 | BN110: 16 | BO110: 16 | BP110: 16 | BQ110: 16 | BR110: 16 | BS110: -16 | BT110: 16 | BU110: -16 | BV110: 16 | BW110: 16 | BX110: 16 | BY110: -16 | BZ110: 16 | CA110: 16 | CB110: -16 | CC110: -16 | CD110: -16 | CE110: 16 | CF110: -16 | CG110: -16 | CH110: -16 | CI110: 16 | CJ110: -16 | CK110: 16 | CL110: 16 | CM110: 16 | CN110: 16 | CO110: -16 | CP110: -16 | CQ110: -16 | CR110: 16 | CS110: -16 | CT110: -16 | CU110: -16 | CV110: -16 | CW110: -16 | CX110: -16 | CY110: -16 | CZ110: 16 | DA110: 16 | DB110: -16 | DC110: 16 | DD110: 16 | DE110: 16 | DF110: -16 | DG110: 16 | DH110: 16 | DI110: 16 | DJ110: -16 | DK110: -16 | DL110: 16 | DM110: 16 | DN110: 16 | DO110: -16 | DP110: -16 | DQ110: -16 | DR110: 16 | DS110: -16 | DT110: -16 | DU110: 16 | DV110: -16 | DW110: 16 | DX110: 16
A111: 16 | B111: 16 | C111: -16 | D111: -16 | E111: -64 | F111: -64 | G111: -16 | H111: -16 | I111: 16 | J111: 64 | K111: 16 | L111: 16 | M111: -16 | N111: 16 | O111: -16 | P111: -16 | Q111: -16 | R111: -16 | S111: 16 | T111: -64 | U111: 16 | V111: -16 | W111: 16 | X111: -16 | Y111: 16 | Z111: -16 | AA111: 16 | AB111: -16 | AC111: 16 | AD111: -16 | AE111: -64 | AF111: 16 | AG111: 16 | AH111: -16 | AI111: 16 | AJ111: -16 | AK111: -16 | AL111: 16 | AM111: -16 | AN111: 16 | AO111: 16 | AP111: -16 | AQ111: -16 | AR111: 64 | AS111: -16 | AT111: -16 | AU111: -16 | AV111: 16 | AW111: -16 | AX111: 16 | AY111: 16 | AZ111: 16 | BA111: 16 | BB111: -16 | BC111: 16 | BD111: 16 | BE111: -16 | BF111: 16 | BG111: 16 | BH111: -16 | BI111: 16 | BJ111: 16 | BK111: 16 | BL111: 16 | BM111: -16 | BN111: -16 | BO111: 16 | BP111: -16 | BQ111: -16 | BR111: -64 | BS111: 16 | BT111: -16 | BU111: -16 | BV111: -16 | BW111: 16 | BX111: 16 | BY111: -16 | BZ111: -16 | CA111: -16 | CB111: 16 | CC111: 16 | CD111: -16 | CE111: 16 | CF111: -16 | CG111: -16 | CH111: 16 | CI111: -16 | CJ111: -16 | CK111: -64 | CL111: 16 | CM111: -16 | CN111: 16 | CO111: -64 | CP111: -16 | CQ111: -16 | CR111: -16 | CS111: 16 | CT111: 16 | CU111: -16 | CV111: -16 | CW111: 16 | CX111: 16 | CY111: -16 | CZ111: -16 | DA111: -16 | DB111: -16 | DC111: -16 | DD111: 16 | DE111: -16 | DF111: -16 | DG111: 16 | DH111: -16 | DI111: 16 | DJ111: 16 | DK111: -16 | DL111: 16 | DM111: 16 | DN111: -16 | DO111: -16 | DP111: -16 | DQ111: 16 | DR111: 16 | DS111: -16 | DT111: 16 | DU111: 16 | DV111: -16 | DW111: 16 | DX111: -64
A112: -16 | B112: -16 | C112: -16 | D112: 16 | E112: 16 | F112: -16 | G112: -16 | H112: -16 | I112: -16 | J112: 16 | K112: -16 | L112: 16 | M112: -16 | N112: -64 | O112: -64 | P112: -16 | Q112: -16 | R112: -16 | S112: 16 | T112: -16 | U112: -16 | V112: -16 | W112: -16 | X112: 16 | Y112: -16 | Z112: -16 | AA112: -16 | AB112: -16 | AC112: 16 | AD112: -16 | AE112: -16 | AF112: -16 | AG112: -16 | AH112: 16 | AI112: -16 | AJ112: -64 | AK112: -16 | AL112: 16 | AM112: -16 | AN112: 16 | AO112: 16 | AP112: -16 | AQ112: -16 | AR112: 16 | AS112: -16 | AT112: 16 | AU112: -16 | AV112: -16 | AW112: -16 | AX112: -64 | AY112: -16 | AZ112: -16 | BA112: 16 | BB112: 16 | BC112: -16 | BD112: 16 | BE112: 16 | BF112: 16 | BG112: -16 | BH112: 16 | BI112: 16 | BJ112: 16 | BK112: -16 | BL112: 16 | BM112: -16 | BN112: -16 | BO112: 16 | BP112: 16 | BQ112: 16 | BR112: -16 | BS112: -16 | BT112: -16 | BU112: -16 | BV112: -16 | BW112: 16 | BX112: 16 | BY112: -16 | BZ112: -16 | CA112: 16 | CB112: -16 | CC112: -16 | CD112: -16 | CE112: 16 | CF112: -64 | CG112: -16 | CH112: 16 | CI112: -16 | CJ112: -16 | CK112: 16 | CL112: -16 | CM112: -16 | CN112: -16 | CO112: 16 | CP112: -16 | CQ112: -16 | CR112: 16 | CS112: 16 | CT112: -16 | CU112: -16 | CV112: 16 | CW112: 16 | CX112: -16 | CY112: 16 | CZ112: -16 | DA112: -16 | DB112: 16 | DC112: -16 | DD112: 16 | DE112: -16 | DF112: 16 | DG112: -16 | DH112: -64 | DI112: 16 | DJ112: 16 | DK112: -16 | DL112: -16 | DM112: 16 | DN112: -16 | DO112: -16 | DP112: -16 | DQ112: 16 | DR112: -16 | DS112: 16 | DT112: -16 | DU112: -16 | DV112: 16 | DW112: -16 | DX112: -16
A113: 16 | B113: 16 | C113: -16 | D113: -16 | E113: 16 | F113: 16 | G113: 16 | H113: 16 | I113: -16 | J113: 16 | K113: 16 | L113: 16 | M113: 16 | N113: 16 | O113: 16 | P113: 16 | Q113: -16 | R113: -16 | S113: 16 | T113: 16 | U113: 16 | V113: -16 | W113: 16 | X113: -16 | Y113: 16 | Z113: 16 | AA113: 16 | AB113: 16 | AC113: 16 | AD113: -16 | AE113: -16 | AF113: 16 | AG113: 16 | AH113: -16 | AI113: 16 | AJ113: 16 | AK113: -16 | AL113: 16 | AM113: -16 | AN113: 16 | AO113: -16 | AP113: -16 | AQ113: 16 | AR113: 16 | AS113: 16 | AT113: 16 | AU113: -16 | AV113: -16 | AW113: 16 | AX113: 64 | AY113: -16 | AZ113: 16 | BA113: -16 | BB113: -16 | BC113: 16 | BD113: 16 | BE113: -16 | BF113: 16 | BG113: 16 | BH113: 16 | BI113: 16 | BJ113: 16 | BK113: -16 | BL113: 16 | BM113: -16 | BN113: 16 | BO113: 16 | BP113: 16 | BQ113: 16 | BR113: -64 | BS113: 16 | BT113: 16 | BU113: -16 | BV113: -16 | BW113: 16 | BX113: -16 | BY113: 16 | BZ113: 16 | CA113: -16 | CB113: 16 | CC113: 16 | CD113: -16 | CE113: 16 | CF113: 16 | CG113: 16 | CH113: -16 | CI113: -16 | CJ113: 64 | CK113: -64 | CL113: -16 | CM113: -16 | CN113: -16 | CO113: -16 | CP113: -16 | CQ113: -16 | CR113: 16 | CS113: 16 | CT113: 16 | CU113: 16 | CV113: -16 | CW113: -16 | CX113: 16 | CY113: -16 | CZ113: -16 | DA113: -16 | DB113: -16 | DC113: -16 | DD113: 16 | DE113: -16 | DF113: -16 | DG113: 16 | DH113: 16 | DI113: 16 | DJ113: -16 | DK113: -16 | DL113: 16 | DM113: 16 | DN113: 16 | DO113: 16 | DP113: -16 | DQ113: 16 | DR113: 16 | DS113: -16 | DT113: 16 | DU113: 16 | DV113: 16 | DW113: 16 | DX113: -16
A114: -16 | B114: 16 | C114: -16 | D114: -16 | E114: -16 | F114: -64 | G114: -16 | H114: -16 | I114: -16 | J114: 16 | K114: 16 | L114: 16 | M114: -16 | N114: -16 | O114: -16 | P114: -16 | Q114: -16 | R114: 16 | S114: 64 | T114: -16 | U114: -16 | V114: 16 | W114: -16 | X114: 16 | Y114: -16 | Z114: -16 | AA114: 16 | AB114: -16 | AC114: 16 | AD114: -16 | AE114: -16 | AF114: 16 | AG114: -16 | AH114: 16 | AI114: -16 | AJ114: -64 | AK114: 16 | AL114: 64 | AM114: -16 | AN114: -16 | AO114: -16 | AP114: -16 | AQ114: -16 | AR114: 16 | AS114: 16 | AT114: -16 | AU114: -64 | AV114: -16 | AW114: -16 | AX114: -16 | AY114: -16 | AZ114: -16 | BA114: 64 | BB114: -16 | BC114: -16 | BD114: 16 | BE114: 16 | BF114: 16 | BG114: -16 | BH114: -16 | BI114: 16 | BJ114: 64 | BK114: -16 | BL114: 64 | BM114: -64 | BN114: 16 | BO114: 64 | BP114: 16 | BQ114: -16 | BR114: -16 | BS114: -16 | BT114: -16 | BU114: -16 | BV114: 16 | BW114: 16 | BX114: -16 | BY114: -16 | BZ114: -16 | CA114: 16 | CB114: 16 | CC114: -16 | CD114: -16 | CE114: 64 | CF114: -16 | CG114: -16 | CH114: 16 | CI114: -16 | CJ114: 16 | CK114: 16 | CL114: 16 | CM114: -16 | CN114: 16 | CO114: -16 | CP114: -16 | CQ114: 16 | CR114: 16 | CS114: 64 | CT114: -64 | CU114: -16 | CV114: 16 | CW114: -16 | CX114: -16 | CY114: -16 | CZ114: -16 | DA114: -16 | DB114: 16 | DC114: -16 | DD114: -16 | DE114: -16 | DF114: 16 | DG114: -16 | DH114: -64 | DI114: 64 | DJ114: 16 | DK114: -16 | DL114: -16 | DM114: 64 | DN114: 16 | DO114: -64 | DP114: 16 | DQ114: 16 | DR114: -64 | DS114: -16 | DT114: -16 | DU114: 16 | DV114: -16 | DW114: 16 | DX114: 16
A115: -16 | B115: 16 | C115: 16 | D115: 16 | E115: 16 | F115: 16 | G115: 16 | H115: 16 | I115: 16 | J115: -64 | K115: -16 | L115: -16 | M115: -16 | N115: -16 | O115: -16 | P115: -16 | Q115: 16 | R115: 16 | S115: -16 | T115: 16 | U115: -16 | V115: -16 | W115: -64 | X115: -16 | Y115: -64 | Z115: -16 | AA115: -16 | AB115: 16 | AC115: -16 | AD115: 16 | AE115: 16 | AF115: -16 | AG115: -16 | AH115: 16 | AI115: 16 | AJ115: 16 | AK115: -16 | AL115: -16 | AM115: 16 | AN115: -16 | AO115: -16 | AP115: 16 | AQ115: -16 | AR115: 16 | AS115: 16 | AT115: 16 | AU115: 16 | AV115: 16 | AW115: -16 | AX115: 16 | AY115: -16 | AZ115: -16 | BA115: -16 | BB115: -16 | BC115: -16 | BD115: -16 | BE115: -16 | BF115: -16 | BG115: -16 | BH115: 16 | BI115: -16 | BJ115: -16 | BK115: 16 | BL115: -16 | BM115: -16 | BN115: 16 | BO115: -16 | BP115: 16 | BQ115: -16 | BR115: 16 | BS115: -16 | BT115: -16 | BU115: 16 | BV115: -16 | BW115: -16 | BX115: -16 | BY115: 16 | BZ115: 16 | CA115: 16 | CB115: -16 | CC115: -16 | CD115: 16 | CE115: -16 | CF115: -16 | CG115: 16 | CH115: -16 | CI115: 16 | CJ115: 16 | CK115: 16 | CL115: -16 | CM115: 16 | CN115: -16 | CO115: 16 | CP115: -16 | CQ115: 16 | CR115: 16 | CS115: -16 | CT115: -16 | CU115: -16 | CV115: -16 | CW115: -16 | CX115: 16 | CY115: -16 | CZ115: 16 | DA115: -16 | DB115: 16 | DC115: 16 | DD115: 16 | DE115: 16 | DF115: -16 | DG115: 16 | DH115: 16 | DI115: -16 | DJ115: -16 | DK115: 16 | DL115: 16 | DM115: -16 | DN115: -16 | DO115: -16 | DP115: -16 | DQ115: -16 | DR115: -16 | DS115: -16 | DT115: 16 | DU115: -16 | DV115: 16 | DW115: -16 | DX115: 16
A116: 16 | B116: 16 | C116: -16 | D116: 16 | E116: 16 | F116: 16 | G116: 16 | H116: 16 | I116: 16 | J116: 16 | K116: 16 | L116: 16 | M116: -16 | N116: 16 | O116: 64 | P116: 16 | Q116: 16 | R116: -16 | S116: 16 | T116: 16 | U116: 16 | V116: 16 | W116: 64 | X116: 16 | Y116: 16 | Z116: 16 | AA116: -16 | AB116: -16 | AC116: 16 | AD116: -16 | AE116: -16 | AF116: 16 | AG116: 16 | AH116: -16 | AI116: -16 | AJ116: 16 | AK116: -16 | AL116: 16 | AM116: -16 | AN116: -16 | AO116: -16 | AP116: -16 | AQ116: -16 | AR116: 16 | AS116: -16 | AT116: 16 | AU116: -16 | AV116: -16 | AW116: -16 | AX116: 16 | AY116: -16 | AZ116: 16 | BA116: 16 | BB116: -16 | BC116: 16 | BD116: 64 | BE116: -16 | BF116: 16 | BG116: -16 | BH116: -16 | BI116: 16 | BJ116: 16 | BK116: -16 | BL116: 16 | BM116: -16 | BN116: 16 | BO116: 16 | BP116: 16 | BQ116: -16 | BR116: -16 | BS116: -16 | BT116: -16 | BU116: 16 | BV116: 16 | BW116: 16 | BX116: -16 | BY116: -16 | BZ116: -16 | CA116: -16 | CB116: -16 | CC116: 64 | CD116: -16 | CE116: 16 | CF116: 16 | CG116: -16 | CH116: 16 | CI116: -16 | CJ116: 16 | CK116: -16 | CL116: -16 | CM116: -16 | CN116: 16 | CO116: -16 | CP116: 16 | CQ116: -16 | CR116: -16 | CS116: 16 | CT116: 16 | CU116: -16 | CV116: 16 | CW116: 16 | CX116: -16 | CY116: 16 | CZ116: -64 | DA116: 16 | DB116: 16 | DC116: 16 | DD116: 16 | DE116: -16 | DF116: -16 | DG116: 16 | DH116: -16 | DI116: 16 | DJ116: -16 | DK116: -16 | DL116: 16 | DM116: 16 | DN116: -16 | DO116: -16 | DP116: -16 | DQ116: 16 | DR116: 16 | DS116: -16 | DT116: 16 | DU116: 16 | DV116: -16 | DW116: 16 | DX116: 16
A117: 16 | B117: -16 | C117: 16 | D117: -16 | E117: -16 | F117: 16 | G117: 16 | H117: -16 | I117: 16 | J117: -16 | K117: 16 | L117: 16 | M117: 16 | N117: -16 | O117: 16 | P117: 16 | Q117: 16 | R117: 16 | S117: -16 | T117: 16 | U117: 16 | V117: -16 | W117: 16 | X117: -16 | Y117: 16 | Z117: -16 | AA117: 16 | AB117: 16 | AC117: 16 | AD117: 16 | AE117: 16 | AF117: -16 | AG117: 64 | AH117: -16 | AI117: -16 | AJ117: 16 | AK117: -16 | AL117: 16 | AM117: 16 | AN117: -16 | AO117: -16 | AP117: -16 | AQ117: 16 | AR117: 16 | AS117: -16 | AT117: 16 | AU117: 16 | AV117: 16 | AW117: -16 | AX117: 16 | AY117: -16 | AZ117: -16 | BA117: -16 | BB117: -16 | BC117: 16 | BD117: 16 | BE117: 16 | BF117: -16 | BG117: 16 | BH117: 16 | BI117: 16 | BJ117: -16 | BK117: 16 | BL117: 16 | BM117: 16 | BN117: -16 | BO117: 16 | BP117: -16 | BQ117: 16 | BR117: -16 | BS117: 16 | BT117: -16 | BU117: 16 | BV117: -16 | BW117: 16 | BX117: -16 | BY117: 16 | BZ117: 16 | CA117: 16 | CB117: 16 | CC117: 16 | CD117: 16 | CE117: -16 | CF117: 16 | CG117: 16 | CH117: 16 | CI117: 16 | CJ117: 16 | CK117: -16 | CL117: 16 | CM117: 16 | CN117: 16 | CO117: -16 | CP117: -16 | CQ117: -16 | CR117: 16 | CS117: -16 | CT117: 64 | CU117: -16 | CV117: -16 | CW117: 16 | CX117: 16 | CY117: -16 | CZ117: 16 | DA117: -16 | DB117: 16 | DC117: -16 | DD117: 16 | DE117: -16 | DF117: -16 | DG117: -16 | DH117: 16 | DI117: 16 | DJ117: 16 | DK117: 16 | DL117: 16 | DM117: -16 | DN117: 16 | DO117: 16 | DP117: 16 | DQ117: 16 | DR117: -16 | DS117: -16 | DT117: 16 | DU117: 16 | DV117: 16 | DW117: 16 | DX117: -16
A118: 16 | B118: 16 | C118: 16 | D118: -16 | E118: -16 | F118: 16 | G118: 64 | H118: -16 | I118: 16 | J118: -16 | K118: 64 | L118: -16 | M118: 64 | N118: 16 | O118: 16 | P118: 16 | Q118: -16 | R118: -16 | S118: 16 | T118: 16 | U118: 16 | V118: 16 | W118: 16 | X118: -64 | Y118: -16 | Z118: -16 | AA118: 16 | AB118: 16 | AC118: -16 | AD118: 16 | AE118: -16 | AF118: 16 | AG118: 64 | AH118: -16 | AI118: 16 | AJ118: 64 | AK118: -64 | AL118: 16 | AM118: -16 | AN118: 16 | AO118: 16 | AP118: 16 | AQ118: 16 | AR118: 16 | AS118: -16 | AT118: -16 | AU118: 16 | AV118: -16 | AW118: -16 | AX118: 64 | AY118: -16 | AZ118: -16 | BA118: -16 | BB118: 16 | BC118: 16 | BD118: 16 | BE118: -16 | BF118: -16 | BG118: 64 | BH118: -16 | BI118: 16 | BJ118: 16 | BK118: 16 | BL118: -16 | BM118: 16 | BN118: 16 | BO118: -16 | BP118: -16 | BQ118: -16 | BR118: -64 | BS118: 64 | BT118: 16 | BU118: 16 | BV118: 16 | BW118: 16 | BX118: -16 | BY118: 16 | BZ118: -16 | CA118: -16 | CB118: 16 | CC118: 16 | CD118: 16 | CE118: 16 | CF118: 16 | CG118: 16 | CH118: -16 | CI118: -16 | CJ118: 64 | CK118: -16 | CL118: -16 | CM118: 16 | CN118: -16 | CO118: -64 | CP118: -16 | CQ118: -64 | CR118: -16 | CS118: 16 | CT118: 64 | CU118: 16 | CV118: 16 | CW118: -16 | CX118: 16 | CY118: -16 | CZ118: -16 | DA118: -16 | DB118: -16 | DC118: -16 | DD118: -16 | DE118: -16 | DF118: 16 | DG118: 64 | DH118: 16 | DI118: -16 | DJ118: -16 | DK118: -16 | DL118: 16 | DM118: -16 | DN118: -16 | DO118: -16 | DP118: -16 | DQ118: 16 | DR118: 16 | DS118: 16 | DT118: 16 | DU118: 16 | DV118: 16 | DW118: 16 | DX118: -64
A119: 16 | B119: 16 | C119: 16 | D119: -16 | E119: -16 | F119: -16 | G119: 16 | H119: -16 | I119: -16 | J119: -16 | K119: 64 | L119: -16 | M119: 64 | N119: 16 | O119: 16 | P119: 16 | Q119: 16 | R119: -16 | S119: -16 | T119: 16 | U119: -16 | V119: 16 | W119: 16 | X119: -16 | Y119: -16 | Z119: 16 | AA119: 16 | AB119: 16 | AC119: 16 | AD119: 16 | AE119: 16 | AF119: 16 | AG119: 64 | AH119: -16 | AI119: 16 | AJ119: 16 | AK119: -16 | AL119: 16 | AM119: -16 | AN119: 16 | AO119: -16 | AP119: 16 | AQ119: 16 | AR119: 16 | AS119: -16 | AT119: 16 | AU119: 16 | AV119: -16 | AW119: -16 | AX119: 16 | AY119: 16 | AZ119: -16 | BA119: 16 | BB119: -16 | BC119: 16 | BD119: 16 | BE119: -16 | BF119: -16 | BG119: 64 | BH119: -16 | BI119: 16 | BJ119: -16 | BK119: -16 | BL119: -16 | BM119: 16 | BN119: -16 | BO119: -16 | BP119: -16 | BQ119: -16 | BR119: -64 | BS119: 16 | BT119: -16 | BU119: 16 | BV119: -16 | BW119: -16 | BX119: 16 | BY119: 16 | BZ119: -16 | CA119: -16 | CB119: -16 | CC119: 16 | CD119: -16 | CE119: -16 | CF119: 16 | CG119: 16 | CH119: -16 | CI119: -16 | CJ119: 16 | CK119: -16 | CL119: 16 | CM119: 16 | CN119: -16 | CO119: -16 | CP119: 16 | CQ119: -16 | CR119: 16 | CS119: -16 | CT119: 16 | CU119: -16 | CV119: -16 | CW119: 16 | CX119: 64 | CY119: -16 | CZ119: -16 | DA119: 16 | DB119: -16 | DC119: 16 | DD119: -16 | DE119: 16 | DF119: 16 | DG119: 16 | DH119: 16 | DI119: -16 | DJ119: 16 | DK119: 16 | DL119: 16 | DM119: -16 | DN119: -16 | DO119: -16 | DP119: -16 | DQ119: -16 | DR119: 16 | DS119: -16 | DT119: 16 | DU119: 16 | DV119: 16 | DW119: 16 | DX119: -64
A120: -16 | B120: -16 | C120: 16 | D120: 16 | E120: 64 | F120: 16 | G120: 16 | H120: 16 | I120: -16 | J120: -16 | K120: -16 | L120: -16 | M120: -16 | N120: -16 | O120: -16 | P120: -16 | Q120: 16 | R120: 64 | S120: -16 | T120: -16 | U120: -16 | V120: -16 | W120: -64 | X120: 16 | Y120: -16 | Z120: -16 | AA120: -64 | AB120: -16 | AC120: -16 | AD120: 16 | AE120: 16 | AF120: -16 | AG120: -16 | AH120: 64 | AI120: -16 | AJ120: -16 | AK120: 16 | AL120: -16 | AM120: 16 | AN120: -16 | AO120: -16 | AP120: -16 | AQ120: -16 | AR120: -16 | AS120: 64 | AT120: 16 | AU120: 16 | AV120: 16 | AW120: 16 | AX120: -16 | AY120: -16 | AZ120: 16 | BA120: 16 | BB120: -16 | BC120: -16 | BD120: -16 | BE120: -16 | BF120: 16 | BG120: -16 | BH120: -16 | BI120: -16 | BJ120: -16 | BK120: 64 | BL120: -16 | BM120: -16 | BN120: 16 | BO120: -16 | BP120: -16 | BQ120: -16 | BR120: 16 | BS120: -16 | BT120: -16 | BU120: 16 | BV120: -16 | BW120: -16 | BX120: -16 | BY120: 16 | BZ120: -16 | CA120: 64 | CB120: -16 | CC120: -16 | CD120: -16 | CE120: -16 | CF120: -16 | CG120: 16 | CH120: -16 | CI120: 16 | CJ120: 16 | CK120: 64 | CL120: -16 | CM120: 64 | CN120: 16 | CO120: 16 | CP120: -16 | CQ120: 16 | CR120: 16 | CS120: -16 | CT120: -16 | CU120: -16 | CV120: 16 | CW120: -16 | CX120: -16 | CY120: 16 | CZ120: 16 | DA120: 16 | DB120: 16 | DC120: 64 | DD120: 16 | DE120: -16 | DF120: -16 | DG120: -16 | DH120: 16 | DI120: -16 | DJ120: 16 | DK120: 16 | DL120: 16 | DM120: -16 | DN120: 16 | DO120: -16 | DP120: 16 | DQ120: -16 | DR120: -16 | DS120: -16 | DT120: -16 | DU120: -16 | DV120: -16 | DW120: -16 | DX120: 16
A121: 16 | B121: -16 | C121: 16 | D121: 16 | E121: 16 | F121: 16 | G121: -16 | H121: -16 | I121: -16 | J121: -16 | K121: 16 | L121: 16 | M121: -16 | N121: -16 | O121: 16 | P121: -16 | Q121: -16 | R121: 16 | S121: -16 | T121: -16 | U121: 16 | V121: 16 | W121: -16 | X121: 16 | Y121: 16 | Z121: 16 | AA121: 16 | AB121: -16 | AC121: -16 | AD121: -16 | AE121: 16 | AF121: 16 | AG121: 16 | AH121: -16 | AI121: 16 | AJ121: -16 | AK121: 16 | AL121: -16 | AM121: -16 | AN121: -16 | AO121: -16 | AP121: 16 | AQ121: 16 | AR121: -16 | AS121: 16 | AT121: 16 | AU121: 16 | AV121: 16 | AW121: -16 | AX121: 16 | AY121: 16 | AZ121: -16 | BA121: 16 | BB121: -16 | BC121: 16 | BD121: -16 | BE121: -16 | BF121: 16 | BG121: 16 | BH121: 16 | BI121: 16 | BJ121: 16 | BK121: 16 | BL121: 16 | BM121: 16 | BN121: 16 | BO121: -16 | BP121: 16 | BQ121: 16 | BR121: -16 | BS121: -16 | BT121: 16 | BU121: -16 | BV121: -16 | BW121: -16 | BX121: 16 | BY121: 16 | BZ121: 16 | CA121: -16 | CB121: -16 | CC121: 16 | CD121: 16 | CE121: 16 | CF121: -16 | CG121: -16 | CH121: 16 | CI121: 16 | CJ121: 16 | CK121: -16 | CL121: -16 | CM121: 16 | CN121: -16 | CO121: -16 | CP121: -16 | CQ121: 16 | CR121: 16 | CS121: -16 | CT121: 16 | CU121: -16 | CV121: -16 | CW121: 16 | CX121: 16 | CY121: -16 | CZ121: -16 | DA121: -16 | DB121: -16 | DC121: 16 | DD121: 16 | DE121: -16 | DF121: 16 | DG121: 16 | DH121: -16 | DI121: 16 | DJ121: 16 | DK121: 16 | DL121: 16 | DM121: 16 | DN121: -16 | DO121: -16 | DP121: 16 | DQ121: -16 | DR121: 16 | DS121: 16 | DT121: 16 | DU121: 16 | DV121: -16 | DW121: 16 | DX121: -16
A122: -16 | B122: 16 | C122: -16 | D122: 16 | E122: 16 | F122: -16 | G122: 16 | H122: -16 | I122: 16 | J122: -16 | K122: 16 | L122: -16 | M122: -16 | N122: -16 | O122: -16 | P122: -16 | Q122: 16 | R122: 16 | S122: -16 | T122: 16 | U122: 16 | V122: 16 | W122: -16 | X122: 16 | Y122: -16 | Z122: 16 | AA122: -16 | AB122: 16 | AC122: -16 | AD122: -16 | AE122: -16 | AF122: 16 | AG122: 16 | AH122: -16 | AI122: -16 | AJ122: 16 | AK122: -16 | AL122: 16 | AM122: -16 | AN122: -16 | AO122: -16 | AP122: -16 | AQ122: -16 | AR122: 16 | AS122: 16 | AT122: -16 | AU122: -16 | AV122: 16 | AW122: -16 | AX122: 16 | AY122: -16 | AZ122: -16 | BA122: 16 | BB122: -16 | BC122: -16 | BD122: 16 | BE122: 16 | BF122: 16 | BG122: 16 | BH122: -16 | BI122: 16 | BJ122: -16 | BK122: -16 | BL122: -16 | BM122: 16 | BN122: 16 | BO122: -16 | BP122: -16 | BQ122: -16 | BR122: 16 | BS122: -16 | BT122: -16 | BU122: -16 | BV122: -16 | BW122: 16 | BX122: 16 | BY122: 16 | BZ122: -16 | CA122: -16 | CB122: -16 | CC122: -16 | CD122: 16 | CE122: -16 | CF122: -16 | CG122: -16 | CH122: -16 | CI122: 16 | CJ122: -16 | CK122: -16 | CL122: 16 | CM122: -16 | CN122: 16 | CO122: -16 | CP122: 16 | CQ122: -16 | CR122: -16 | CS122: -16 | CT122: -16 | CU122: -16 | CV122: -16 | CW122: -16 | CX122: 16 | CY122: 16 | CZ122: 16 | DA122: 16 | DB122: 16 | DC122: -16 | DD122: -16 | DE122: 16 | DF122: -16 | DG122: -16 | DH122: -16 | DI122: 16 | DJ122: -16 | DK122: -16 | DL122: 16 | DM122: -16 | DN122: -16 | DO122: 16 | DP122: -16 | DQ122: -16 | DR122: 16 | DS122: -16 | DT122: -16 | DU122: -16 | DV122: 16 | DW122: -16 | DX122: 16
A123: -16 | B123: -16 | C123: 16 | D123: 16 | E123: 16 | F123: 16 | G123: 16 | H123: 16 | I123: 16 | J123: 16 | K123: 16 | L123: -16 | M123: -16 | N123: -16 | O123: 16 | P123: -16 | Q123: 16 | R123: 16 | S123: -16 | T123: -16 | U123: -16 | V123: 16 | W123: 16 | X123: 16 | Y123: 16 | Z123: -16 | AA123: -16 | AB123: -16 | AC123: 16 | AD123: 16 | AE123: 16 | AF123: -16 | AG123: 16 | AH123: 16 | AI123: -16 | AJ123: 16 | AK123: 16 | AL123: -16 | AM123: -16 | AN123: -16 | AO123: 16 | AP123: 16 | AQ123: 16 | AR123: 16 | AS123: 16 | AT123: -16 | AU123: 16 | AV123: -16 | AW123: 16 | AX123: 16 | AY123: -16 | AZ123: 16 | BA123: 16 | BB123: 16 | BC123: -16 | BD123: -16 | BE123: 16 | BF123: 16 | BG123: 16 | BH123: -16 | BI123: -16 | BJ123: -16 | BK123: 16 | BL123: 16 | BM123: 16 | BN123: 16 | BO123: 16 | BP123: -16 | BQ123: 16 | BR123: 16 | BS123: -16 | BT123: -16 | BU123: -16 | BV123: 16 | BW123: 16 | BX123: -16 | BY123: 16 | BZ123: -16 | CA123: 16 | CB123: -16 | CC123: -16 | CD123: -16 | CE123: -16 | CF123: 16 | CG123: 16 | CH123: 16 | CI123: 16 | CJ123: 16 | CK123: 16 | CL123: 16 | CM123: 16 | CN123: -16 | CO123: 16 | CP123: 16 | CQ123: 16 | CR123: 16 | CS123: -16 | CT123: 16 | CU123: 16 | CV123: -16 | CW123: 16 | CX123: 16 | CY123: 16 | CZ123: 16 | DA123: -16 | DB123: 16 | DC123: 16 | DD123: -16 | DE123: -16 | DF123: 16 | DG123: 16 | DH123: 16 | DI123: -16 | DJ123: 16 | DK123: 16 | DL123: 16 | DM123: -16 | DN123: -16 | DO123: -16 | DP123: 16 | DQ123: -16 | DR123: -16 | DS123: -16 | DT123: 16 | DU123: -16 | DV123: -16 | DW123: 16 | DX123: 16
A124: 16 | B124: 16 | C124: 16 | D124: -16 | E124: 16 | F124: -16 | G124: 16 | H124: 16 | I124: -16 | J124: -16 | K124: 16 | L124: -16 | M124: 16 | N124: -16 | O124: -16 | P124: -16 | Q124: 16 | R124: -16 | S124: -16 | T124: -16 | U124: -16 | V124: 16 | W124: 16 | X124: -16 | Y124: 16 | Z124: 16 | AA124: 16 | AB124: -16 | AC124: -16 | AD124: -16 | AE124: 16 | AF124: -16 | AG124: 16 | AH124: -16 | AI124: -16 | AJ124: -16 | AK124: -16 | AL124: -16 | AM124: 16 | AN124: 16 | AO124: -16 | AP124: 16 | AQ124: 16 | AR124: 16 | AS124: -16 | AT124: -16 | AU124: 16 | AV124: 16 | AW124: -16 | AX124: 16 | AY124: 16 | AZ124: 16 | BA124: -16 | BB124: 16 | BC124: 16 | BD124: -16 | BE124: 16 | BF124: 16 | BG124: 16 | BH124: -16 | BI124: 16 | BJ124: -16 | BK124: 16 | BL124: -16 | BM124: 16 | BN124: 16 | BO124: 16 | BP124: 16 | BQ124: 16 | BR124: 16 | BS124: -16 | BT124: -16 | BU124: 16 | BV124: -16 | BW124: -16 | BX124: -16 | BY124: -16 | BZ124: 16 | CA124: -16 | CB124: -16 | CC124: 16 | CD124: -16 | CE124: -16 | CF124: -16 | CG124: -16 | CH124: 16 | CI124: 16 | CJ124: -16 | CK124: -16 | CL124: -16 | CM124: -16 | CN124: -16 | CO124: -16 | CP124: -16 | CQ124: -16 | CR124: 16 | CS124: -16 | CT124: 16 | CU124: -16 | CV124: -16 | CW124: -16 | CX124: 16 | CY124: 16 | CZ124: -16 | DA124: 16 | DB124: -16 | DC124: -16 | DD124: -16 | DE124: 16 | DF124: -16 | DG124: 16 | DH124: 16 | DI124: 16 | DJ124: 16 | DK124: 16 | DL124: 16 | DM124: -16 | DN124: 16 | DO124: -16 | DP124: 16 | DQ124: 16 | DR124: 16 | DS124: 16 | DT124: 16 | DU124: 16 | DV124: -16 | DW124: -16 | DX124: 16
A125: -16 | B125: -16 | C125: -16 | D125: 16 | E125: 16 | F125: 16 | G125: -16 | H125: 16 | I125: 16 | J125: -16 | K125: -16 | L125: 16 | M125: -16 | N125: -16 | O125: -16 | P125: -16 | Q125: -16 | R125: 16 | S125: 16 | T125: -16 | U125: -16 | V125: -16 | W125: 16 | X125: 16 | Y125: -16 | Z125: -16 | AA125: -16 | AB125: -16 | AC125: -16 | AD125: -16 | AE125: 16 | AF125: -16 | AG125: -16 | AH125: 16 | AI125: 16 | AJ125: -16 | AK125: -16 | AL125: 16 | AM125: 16 | AN125: -16 | AO125: 16 | AP125: -16 | AQ125: -16 | AR125: -16 | AS125: 16 | AT125: 16 | AU125: 16 | AV125: -16 | AW125: -16 | AX125: -16 | AY125: -16 | AZ125: 16 | BA125: 16 | BB125: 16 | BC125: -16 | BD125: 16 | BE125: -16 | BF125: 16 | BG125: -16 | BH125: 16 | BI125: -16 | BJ125: 16 | BK125: -16 | BL125: 16 | BM125: -16 | BN125: 16 | BO125: 16 | BP125: 16 | BQ125: 16 | BR125: 16 | BS125: -16 | BT125: -16 | BU125: -16 | BV125: -16 | BW125: 16 | BX125: 16 | BY125: 16 | BZ125: -16 | CA125: 16 | CB125: -16 | CC125: -16 | CD125: 16 | CE125: 64 | CF125: -16 | CG125: -16 | CH125: 16 | CI125: -16 | CJ125: -16 | CK125: 16 | CL125: 16 | CM125: 16 | CN125: 16 | CO125: 16 | CP125: -16 | CQ125: 16 | CR125: 16 | CS125: 16 | CT125: -16 | CU125: -16 | CV125: 16 | CW125: -16 | CX125: -16 | CY125: -16 | CZ125: -16 | DA125: 16 | DB125: 16 | DC125: 16 | DD125: -16 | DE125: -16 | DF125: -16 | DG125: -16 | DH125: -16 | DI125: 16 | DJ125: -16 | DK125: 16 | DL125: -16 | DM125: 16 | DN125: -16 | DO125: -64 | DP125: -16 | DQ125: 16 | DR125: -16 | DS125: -16 | DT125: 16 | DU125: 16 | DV125: -16 | DW125: -16 | DX125: 16
A126: -16 | B126: -16 | C126: -16 | D126: -16 | E126: 16 | F126: -16 | G126: 16 | H126: -16 | I126: 16 | J126: 16 | K126: -16 | L126: 16 | M126: 16 | N126: -16 | O126: -16 | P126: -16 | Q126: -16 | R126: 16 | S126: 16 | T126: -16 | U126: -16 | V126: 16 | W126: 16 | X126: 16 | Y126: -16 | Z126: 16 | AA126: -16 | AB126: 16 | AC126: 16 | AD126: -16 | AE126: -16 | AF126: -16 | AG126: -16 | AH126: 16 | AI126: 16 | AJ126: 16 | AK126: -16 | AL126: 16 | AM126: 16 | AN126: -16 | AO126: -16 | AP126: -16 | AQ126: -16 | AR126: 16 | AS126: 16 | AT126: 16 | AU126: -16 | AV126: 16 | AW126: -16 | AX126: 16 | AY126: -16 | AZ126: -16 | BA126: 16 | BB126: -16 | BC126: -16 | BD126: 16 | BE126: 16 | BF126: 16 | BG126: -16 | BH126: 16 | BI126: 16 | BJ126: -16 | BK126: 16 | BL126: 16 | BM126: -64 | BN126: 16 | BO126: 16 | BP126: -16 | BQ126: -16 | BR126: 16 | BS126: -16 | BT126: -16 | BU126: 16 | BV126: 16 | BW126: 16 | BX126: 16 | BY126: -16 | BZ126: -16 | CA126: 16 | CB126: 16 | CC126: -16 | CD126: -16 | CE126: 16 | CF126: -16 | CG126: -16 | CH126: -16 | CI126: -16 | CJ126: -16 | CK126: 16 | CL126: -16 | CM126: 16 | CN126: -16 | CO126: -16 | CP126: 16 | CQ126: 16 | CR126: 16 | CS126: 16 | CT126: -16 | CU126: -16 | CV126: 16 | CW126: -16 | CX126: -16 | CY126: -16 | CZ126: 16 | DA126: 16 | DB126: 16 | DC126: -16 | DD126: -16 | DE126: -16 | DF126: 16 | DG126: -16 | DH126: 16 | DI126: 16 | DJ126: -16 | DK126: 16 | DL126: -16 | DM126: 16 | DN126: -16 | DO126: -16 | DP126: 16 | DQ126: 16 | DR126: -16 | DS126: 16 | DT126: 16 | DU126: 16 | DV126: -16 | DW126: -16 | DX126: 16
A127: 16 | B127: -16 | C127: -16 | D127: -16 | E127: -16 | F127: 16 | G127: 16 | H127: 16 | I127: 16 | J127: -16 | K127: 16 | L127: -16 | M127: -16 | N127: 16 | O127: -16 | P127: 16 | Q127: -16 | R127: 16 | S127: 16 | T127: 16 | U127: 16 | V127: -16 | W127: -16 | X127: 16 | Y127: 16 | Z127: 16 | AA127: -16 | AB127: 16 | AC127: -16 | AD127: -16 | AE127: -16 | AF127: 16 | AG127: 64 | AH127: -16 | AI127: 16 | AJ127: 16 | AK127: 16 | AL127: -16 | AM127: -16 | AN127: 16 | AO127: 16 | AP127: 16 | AQ127: 16 | AR127: 16 | AS127: -16 | AT127: -16 | AU127: 16 | AV127: -16 | AW127: 16 | AX127: 16 | AY127: -16 | AZ127: -16 | BA127: 16 | BB127: 16 | BC127: 64 | BD127: 16 | BE127: -16 | BF127: 16 | BG127: 16 | BH127: -16 | BI127: -16 | BJ127: 16 | BK127: -16 | BL127: 16 | BM127: -16 | BN127: -16 | BO127: 16 | BP127: -16 | BQ127: -16 | BR127: -16 | BS127: 16 | BT127: -16 | BU127: 16 | BV127: -16 | BW127: 16 | BX127: 16 | BY127: 16 | BZ127: -16 | CA127: -16 | CB127: -16 | CC127: 16 | CD127: -16 | CE127: -16 | CF127: 16 | CG127: 16 | CH127: 16 | CI127: -16 | CJ127: 16 | CK127: -64 | CL127: 16 | CM127: -16 | CN127: 16 | CO127: -16 | CP127: -16 | CQ127: -16 | CR127: -16 | CS127: -16 | CT127: 16 | CU127: 16 | CV127: -16 | CW127: -16 | CX127: 16 | CY127: 16 | CZ127: -16 | DA127: 16 | DB127: 16 | DC127: 16 | DD127: -16 | DE127: -16 | DF127: -16 | DG127: 16 | DH127: 16 | DI127: 16 | DJ127: -16 | DK127: -16 | DL127: 16 | DM127: 16 | DN127: 16 | DO127: -16 | DP127: -16 | DQ127: 16 | DR127: 16 | DS127: -16 | DT127: 16 | DU127: 16 | DV127: 16 | DW127: 16 | DX127: 16
A128: 16 | B128: -16 | C128: 16 | D128: -16 | E128: 16 | F128: 16 | G128: 64 | H128: -16 | I128: -16 | J128: -16 | K128: -16 | L128: 16 | M128: 16 | N128: 16 | O128: 16 | P128: 16 | Q128: 16 | R128: 16 | S128: -16 | T128: 16 | U128: 16 | V128: 16 | W128: -16 | X128: -64 | Y128: 16 | Z128: 16 | AA128: 16 | AB128: 16 | AC128: 16 | AD128: 16 | AE128: 16 | AF128: 16 | AG128: 16 | AH128: -16 | AI128: 16 | AJ128: 64 | AK128: -64 | AL128: -16 | AM128: 16 | AN128: -16 | AO128: -16 | AP128: -16 | AQ128: -16 | AR128: -16 | AS128: 16 | AT128: -16 | AU128: -16 | AV128: 16 | AW128: 16 | AX128: 64 | AY128: 16 | AZ128: -16 | BA128: -16 | BB128: -16 | BC128: 64 | BD128: -16 | BE128: 16 | BF128: -16 | BG128: -16 | BH128: 16 | BI128: 16 | BJ128: 16 | BK128: 16 | BL128: 16 | BM128: -64 | BN128: 16 | BO128: 16 | BP128: -16 | BQ128: -16 | BR128: -16 | BS128: 16 | BT128: -16 | BU128: 16 | BV128: 16 | BW128: -16 | BX128: 16 | BY128: 16 | BZ128: -16 | CA128: 16 | CB128: 16 | CC128: 16 | CD128: 16 | CE128: -16 | CF128: -16 | CG128: 16 | CH128: -16 | CI128: -16 | CJ128: 16 | CK128: -16 | CL128: 64 | CM128: 16 | CN128: -16 | CO128: -16 | CP128: 16 | CQ128: -16 | CR128: -16 | CS128: -16 | CT128: 16 | CU128: -16 | CV128: -16 | CW128: -16 | CX128: 16 | CY128: -16 | CZ128: 16 | DA128: 16 | DB128: 16 | DC128: 16 | DD128: 16 | DE128: -16 | DF128: 16 | DG128: 16 | DH128: 16 | DI128: 16 | DJ128: -16 | DK128: 16 | DL128: 16 | DM128: -16 | DN128: -16 | DO128: -16 | DP128: 16 | DQ128: -16 | DR128: -16 | DS128: -16 | DT128: 64 | DU128: 16 | DV128: 16 | DW128: 16 | DX128: -16
A129: 16 | B129: -16 | C129: -16 | D129: 16 | E129: 16 | F129: -16 | G129: -16 | H129: -16 | I129: -16 | J129: 16 | K129: 16 | L129: -16 | M129: 16 | N129: -16 | O129: -16 | P129: 16 | Q129: 16 | R129: -16 | S129: 16 | T129: -16 | U129: 16 | V129: 16 | W129: -16 | X129: -16 | Y129: -16 | Z129: 16 | AA129: -16 | AB129: 16 | AC129: 16 | AD129: 16 | AE129: 16 | AF129: -16 | AG129: 16 | AH129: -16 | AI129: 16 | AJ129: -16 | AK129: 16 | AL129: 16 | AM129: 16 | AN129: -16 | AO129: -16 | AP129: -16 | AQ129: -16 | AR129: 16 | AS129: 16 | AT129: -16 | AU129: 16 | AV129: 16 | AW129: -16 | AX129: 16 | AY129: 16 | AZ129: -16 | BA129: 16 | BB129: -16 | BC129: -16 | BD129: 16 | BE129: 16 | BF129: -16 | BG129: 16 | BH129: 16 | BI129: -16 | BJ129: 16 | BK129: -16 | BL129: 16 | BM129: 16 | BN129: 64 | BO129: 16 | BP129: -16 | BQ129: -16 | BR129: 16 | BS129: 16 | BT129: 16 | BU129: 16 | BV129: -16 | BW129: 16 | BX129: 16 | BY129: 16 | BZ129: 16 | CA129: 16 | CB129: 16 | CC129: 16 | CD129: -16 | CE129: -16 | CF129: 16 | CG129: 16 | CH129: 16 | CI129: 16 | CJ129: 16 | CK129: 16 | CL129: 16 | CM129: 16 | CN129: 16 | CO129: -16 | CP129: -16 | CQ129: 16 | CR129: 16 | CS129: 16 | CT129: -16 | CU129: 16 | CV129: -16 | CW129: -16 | CX129: 16 | CY129: -16 | CZ129: 16 | DA129: -16 | DB129: 16 | DC129: 16 | DD129: -16 | DE129: 16 | DF129: -16 | DG129: -16 | DH129: 16 | DI129: 16 | DJ129: -16 | DK129: 16 | DL129: -16 | DM129: -16 | DN129: 16 | DO129: 16 | DP129: -16 | DQ129: -16 | DR129: 16 | DS129: -16 | DT129: 16 | DU129: 16 | DV129: 16 | DW129: 16 | DX129: 16
A130: 16 | B130: 16 | C130: -16 | D130: -16 | E130: 16 | F130: -16 | G130: -16 | H130: 16 | I130: -16 | J130: 16 | K130: 16 | L130: 16 | M130: -16 | N130: -16 | O130: -16 | P130: -16 | Q130: -16 | R130: 16 | S130: 16 | T130: -16 | U130: -16 | V130: -16 | W130: 16 | X130: 16 | Y130: 16 | Z130: -16 | AA130: -16 | AB130: -16 | AC130: -16 | AD130: -16 | AE130: 16 | AF130: 16 | AG130: 16 | AH130: 16 | AI130: -16 | AJ130: -16 | AK130: 16 | AL130: -16 | AM130: 16 | AN130: -16 | AO130: -16 | AP130: 16 | AQ130: -64 | AR130: 16 | AS130: 16 | AT130: -16 | AU130: -16 | AV130: -16 | AW130: 16 | AX130: 16 | AY130: -16 | AZ130: -16 | BA130: -16 | BB130: -16 | BC130: 16 | BD130: 16 | BE130: 16 | BF130: -16 | BG130: 16 | BH130: -16 | BI130: 16 | BJ130: 16 | BK130: 16 | BL130: -16 | BM130: -16 | BN130: 16 | BO130: 16 | BP130: -16 | BQ130: -16 | BR130: -16 | BS130: 16 | BT130: -16 | BU130: -16 | BV130: -16 | BW130: 16 | BX130: 16 | BY130: -16 | BZ130: -16 | CA130: 16 | CB130: 16 | CC130: -16 | CD130: -16 | CE130: 16 | CF130: -16 | CG130: 16 | CH130: 16 | CI130: -16 | CJ130: 16 | CK130: 16 | CL130: -16 | CM130: 16 | CN130: 16 | CO130: -16 | CP130: 16 | CQ130: 16 | CR130: 16 | CS130: 16 | CT130: -16 | CU130: -16 | CV130: -16 | CW130: 16 | CX130: -16 | CY130: -16 | CZ130: 16 | DA130: 16 | DB130: 16 | DC130: 16 | DD130: 16 | DE130: -16 | DF130: -16 | DG130: 16 | DH130: 16 | DI130: -16 | DJ130: -16 | DK130: 16 | DL130: 16 | DM130: -16 | DN130: -16 | DO130: -16 | DP130: 16 | DQ130: -16 | DR130: 16 | DS130: -16 | DT130: -16 | DU130: -16 | DV130: -16 | DW130: -16 | DX130: -16
A131: -16 | B131: -16 | C131: -16 | D131: -16 | E131: -16 | F131: 16 | G131: 64 | H131: -16 | I131: 16 | J131: -16 | K131: 16 | L131: 16 | M131: 16 | N131: -16 | O131: 16 | P131: 16 | Q131: -16 | R131: -16 | S131: 16 | T131: -16 | U131: 16 | V131: 16 | W131: 16 | X131: -16 | Y131: -16 | Z131: -16 | AA131: -16 | AB131: 16 | AC131: -16 | AD131: 16 | AE131: -16 | AF131: -16 | AG131: 16 | AH131: -16 | AI131: 16 | AJ131: 16 | AK131: -64 | AL131: -16 | AM131: -16 | AN131: -16 | AO131: -16 | AP131: -16 | AQ131: -16 | AR131: 16 | AS131: 16 | AT131: -16 | AU131: -16 | AV131: 16 | AW131: -16 | AX131: 16 | AY131: -16 | AZ131: -16 | BA131: -16 | BB131: 16 | BC131: 16 | BD131: -16 | BE131: -16 | BF131: 16 | BG131: 16 | BH131: 16 | BI131: -16 | BJ131: 16 | BK131: -16 | BL131: -16 | BM131: -16 | BN131: 16 | BO131: -16 | BP131: -16 | BQ131: -16 | BR131: -16 | BS131: 16 | BT131: -16 | BU131: -16 | BV131: -16 | BW131: 16 | BX131: 16 | BY131: -16 | BZ131: -16 | CA131: -16 | CB131: -16 | CC131: 16 | CD131: 16 | CE131: 16 | CF131: 16 | CG131: -16 | CH131: -16 | CI131: -16 | CJ131: 16 | CK131: -16 | CL131: 16 | CM131: -16 | CN131: -16 | CO131: -64 | CP131: 16 | CQ131: -16 | CR131: 16 | CS131: -16 | CT131: 64 | CU131: -16 | CV131: -16 | CW131: 16 | CX131: 16 | CY131: -16 | CZ131: 16 | DA131: 16 | DB131: -16 | DC131: -16 | DD131: -16 | DE131: -16 | DF131: 16 | DG131: 16 | DH131: -16 | DI131: -16 | DJ131: -16 | DK131: -16 | DL131: -16 | DM131: 16 | DN131: -16 | DO131: -16 | DP131: 16 | DQ131: 16 | DR131: 16 | DS131: -16 | DT131: 16 | DU131: -16 | DV131: -16 | DW131: 16 | DX131: -16
A132: 16 | B132: 16 | C132: 16 | D132: 16 | E132: -16 | F132: 16 | G132: 16 | H132: 16 | I132: 16 | J132: 16 | K132: 16 | L132: 16 | M132: 16 | N132: 64 | O132: 16 | P132: 16 | Q132: -16 | R132: 16 | S132: 16 | T132: -16 | U132: 16 | V132: -16 | W132: -16 | X132: 16 | Y132: 16 | Z132: 16 | AA132: -16 | AB132: -16 | AC132: 16 | AD132: -16 | AE132: 16 | AF132: -16 | AG132: 16 | AH132: -16 | AI132: -16 | AJ132: 16 | AK132: -16 | AL132: 16 | AM132: 16 | AN132: -16 | AO132: -16 | AP132: -16 | AQ132: -16 | AR132: 16 | AS132: 16 | AT132: -16 | AU132: 16 | AV132: 16 | AW132: -16 | AX132: 16 | AY132: -16 | AZ132: -16 | BA132: 64 | BB132: 16 | BC132: 16 | BD132: 64 | BE132: 16 | BF132: -16 | BG132: -16 | BH132: 16 | BI132: -16 | BJ132: 16 | BK132: 16 | BL132: 16 | BM132: -16 | BN132: 16 | BO132: 16 | BP132: -16 | BQ132: -16 | BR132: 16 | BS132: 16 | BT132: -16 | BU132: -16 | BV132: -16 | BW132: 16 | BX132: 16 | BY132: 16 | BZ132: -16 | CA132: 16 | CB132: -16 | CC132: 16 | CD132: -16 | CE132: 16 | CF132: 16 | CG132: -16 | CH132: 16 | CI132: -16 | CJ132: 16 | CK132: 16 | CL132: 16 | CM132: -16 | CN132: 16 | CO132: -16 | CP132: -16 | CQ132: 16 | CR132: 16 | CS132: 16 | CT132: 16 | CU132: 16 | CV132: 16 | CW132: -16 | CX132: 16 | CY132: -16 | CZ132: -16 | DA132: -16 | DB132: -16 | DC132: 64 | DD132: 16 | DE132: -16 | DF132: 16 | DG132: 16 | DH132: 16 | DI132: 16 | DJ132: -16 | DK132: 16 | DL132: 16 | DM132: 16 | DN132: 16 | DO132: 16 | DP132: -16 | DQ132: 16 | DR132: 16 | DS132: -16 | DT132: 64 | DU132: 16 | DV132: 16 | DW132: 16 | DX132: -16
A133: 16 | B133: -16 | C133: 16 | D133: -16 | E133: -16 | F133: -16 | G133: 16 | H133: 16 | I133: -16 | J133: 16 | K133: 16 | L133: -16 | M133: 16 | N133: -16 | O133: 16 | P133: 16 | Q133: 16 | R133: 16 | S133: -16 | T133: -16 | U133: -16 | V133: -16 | W133: -16 | X133: 16 | Y133: 16 | Z133: -16 | AA133: -16 | AB133: 16 | AC133: -16 | AD133: -16 | AE133: 16 | AF133: -16 | AG133: 16 | AH133: 16 | AI133: 16 | AJ133: 16 | AK133: 16 | AL133: 16 | AM133: -16 | AN133: -16 | AO133: -16 | AP133: -16 | AQ133: -64 | AR133: -16 | AS133: 16 | AT133: 16 | AU133: 16 | AV133: 16 | AW133: -16 | AX133: 16 | AY133: -16 | AZ133: 16 | BA133: -16 | BB133: -16 | BC133: 16 | BD133: 16 | BE133: -16 | BF133: 16 | BG133: 16 | BH133: -16 | BI133: -16 | BJ133: -16 | BK133: 16 | BL133: -16 | BM133: -16 | BN133: -16 | BO133: -16 | BP133: -16 | BQ133: -16 | BR133: 16 | BS133: 16 | BT133: -16 | BU133: 16 | BV133: 16 | BW133: -16 | BX133: -16 | BY133: -16 | BZ133: 16 | CA133: 16 | CB133: 16 | CC133: 16 | CD133: -16 | CE133: -16 | CF133: 16 | CG133: -16 | CH133: 16 | CI133: 16 | CJ133: 16 | CK133: 16 | CL133: -16 | CM133: 16 | CN133: -16 | CO133: -16 | CP133: -16 | CQ133: 16 | CR133: 16 | CS133: -16 | CT133: 16 | CU133: -16 | CV133: -16 | CW133: -16 | CX133: 16 | CY133: -16 | CZ133: 16 | DA133: -16 | DB133: 16 | DC133: 16 | DD133: -16 | DE133: -16 | DF133: 16 | DG133: 16 | DH133: 16 | DI133: -16 | DJ133: -16 | DK133: -16 | DL133: 16 | DM133: -16 | DN133: -16 | DO133: -16 | DP133: 16 | DQ133: 16 | DR133: 16 | DS133: -16 | DT133: -16 | DU133: -16 | DV133: 16 | DW133: -16 | DX133: 16
A134: 16 | B134: -16 | C134: -16 | D134: -16 | E134: -16 | F134: 16 | G134: 16 | H134: 16 | I134: -16 | J134: 64 | K134: 16 | L134: 16 | M134: -16 | N134: 64 | O134: 64 | P134: 16 | Q134: -64 | R134: -16 | S134: 16 | T134: 16 | U134: -16 | V134: 16 | W134: 16 | X134: 16 | Y134: 16 | Z134: 64 | AA134: 16 | AB134: 16 | AC134: -16 | AD134: -16 | AE134: -16 | AF134: 64 | AG134: 16 | AH134: 16 | AI134: -16 | AJ134: 64 | AK134: -16 | AL134: 64 | AM134: -16 | AN134: -16 | AO134: -16 | AP134: 16 | AQ134: -16 | AR134: 16 | AS134: -64 | AT134: -16 | AU134: -16 | AV134: -64 | AW134: 16 | AX134: 16 | AY134: -16 | AZ134: -16 | BA134: 16 | BB134: 16 | BC134: 64 | BD134: -16 | BE134: 16 | BF134: 16 | BG134: 64 | BH134: -16 | BI134: 16 | BJ134: 64 | BK134: -16 | BL134: 16 | BM134: -16 | BN134: -16 | BO134: 16 | BP134: -16 | BQ134: 16 | BR134: 64 | BS134: 16 | BT134: -16 | BU134: 16 | BV134: 16 | BW134: 64 | BX134: -16 | BY134: 16 | BZ134: 16 | CA134: -16 | CB134: -16 | CC134: 16 | CD134: -16 | CE134: 64 | CF134: -16 | CG134: -16 | CH134: -16 | CI134: -16 | CJ134: 64 | CK134: -16 | CL134: 64 | CM134: -16 | CN134: -16 | CO134: 16 | CP134: 16 | CQ134: 16 | CR134: -16 | CS134: 64 | CT134: 64 | CU134: 16 | CV134: 16 | CW134: -16 | CX134: 16 | CY134: 16 | CZ134: -16 | DA134: -16 | DB134: -16 | DC134: -64 | DD134: -16 | DE134: -16 | DF134: 16 | DG134: 16 | DH134: -16 | DI134: 16 | DJ134: 16 | DK134: -64 | DL134: 16 | DM134: 16 | DN134: -16 | DO134: 16 | DP134: 16 | DQ134: 64 | DR134: -16 | DS134: -16 | DT134: 64 | DU134: 16 | DV134: -16 | DW134: -16 | DX134: 16
A135: 16 | B135: -16 | C135: 16 | D135: -16 | E135: -16 | F135: -16 | G135: 16 | H135: -16 | I135: -16 | J135: 16 | K135: 16 | L135: 16 | M135: -16 | N135: -16 | O135: 16 | P135: -16 | Q135: 16 | R135: 16 | S135: 16 | T135: -16 | U135: 16 | V135: -16 | W135: 16 | X135: -16 | Y135: -16 | Z135: -16 | AA135: -16 | AB135: -16 | AC135: -16 | AD135: 16 | AE135: 16 | AF135: 16 | AG135: 16 | AH135: 16 | AI135: -16 | AJ135: 16 | AK135: 16 | AL135: 16 | AM135: -16 | AN135: 16 | AO135: 16 | AP135: -16 | AQ135: -16 | AR135: 16 | AS135: 16 | AT135: -16 | AU135: -16 | AV135: -16 | AW135: 16 | AX135: 16 | AY135: -16 | AZ135: -16 | BA135: 16 | BB135: 16 | BC135: 16 | BD135: 16 | BE135: -16 | BF135: -16 | BG135: 16 | BH135: 16 | BI135: -16 | BJ135: -16 | BK135: -16 | BL135: 16 | BM135: -16 | BN135: -16 | BO135: 16 | BP135: -16 | BQ135: -16 | BR135: -16 | BS135: 16 | BT135: -16 | BU135: 16 | BV135: -16 | BW135: -16 | BX135: 16 | BY135: -16 | BZ135: -16 | CA135: 16 | CB135: 16 | CC135: 16 | CD135: -16 | CE135: 16 | CF135: -16 | CG135: -16 | CH135: 16 | CI135: -16 | CJ135: 16 | CK135: 16 | CL135: 16 | CM135: -16 | CN135: -16 | CO135: 16 | CP135: 16 | CQ135: 16 | CR135: -16 | CS135: 16 | CT135: 16 | CU135: 16 | CV135: -16 | CW135: 16 | CX135: -16 | CY135: -16 | CZ135: 16 | DA135: 16 | DB135: -16 | DC135: -16 | DD135: -16 | DE135: -16 | DF135: -16 | DG135: 16 | DH135: -16 | DI135: 16 | DJ135: -16 | DK135: -16 | DL135: -16 | DM135: -16 | DN135: -16 | DO135: -16 | DP135: -16 | DQ135: -16 | DR135: 16 | DS135: 16 | DT135: 16 | DU135: 16 | DV135: -16 | DW135: 16 | DX135: -16
A136: 16 | B136: 16 | C136: 16 | D136: 16 | E136: 16 | F136: -16 | G136: 16 | H136: -16 | I136: 16 | J136: 16 | K136: -16 | L136: 16 | M136: 16 | N136: -16 | O136: 16 | P136: -16 | Q136: -16 | R136: -16 | S136: 16 | T136: -16 | U136: 16 | V136: 16 | W136: 16 | X136: -16 | Y136: -16 | Z136: -16 | AA136: -16 | AB136: 16 | AC136: -16 | AD136: -16 | AE136: 16 | AF136: -16 | AG136: 16 | AH136: -16 | AI136: 16 | AJ136: -16 | AK136: 16 | AL136: -16 | AM136: 16 | AN136: 16 | AO136: -16 | AP136: 16 | AQ136: 16 | AR136: 16 | AS136: 16 | AT136: 16 | AU136: 16 | AV136: 16 | AW136: 16 | AX136: 16 | AY136: -16 | AZ136: 16 | BA136: -16 | BB136: 16 | BC136: -16 | BD136: -16 | BE136: 16 | BF136: 16 | BG136: 16 | BH136: 16 | BI136: -16 | BJ136: 16 | BK136: -16 | BL136: 16 | BM136: -16 | BN136: 16 | BO136: -16 | BP136: 16 | BQ136: -16 | BR136: -16 | BS136: 16 | BT136: 16 | BU136: 16 | BV136: -16 | BW136: -16 | BX136: 16 | BY136: 16 | BZ136: 16 | CA136: -16 | CB136: 16 | CC136: 16 | CD136: -16 | CE136: -16 | CF136: 16 | CG136: -16 | CH136: -16 | CI136: 16 | CJ136: 16 | CK136: -16 | CL136: -16 | CM136: -16 | CN136: 16 | CO136: -16 | CP136: -16 | CQ136: -16 | CR136: -16 | CS136: 16 | CT136: -16 | CU136: -16 | CV136: -16 | CW136: 16 | CX136: -16 | CY136: -16 | CZ136: -16 | DA136: 16 | DB136: -16 | DC136: -16 | DD136: 16 | DE136: -16 | DF136: -16 | DG136: -16 | DH136: 16 | DI136: 16 | DJ136: -16 | DK136: 16 | DL136: -16 | DM136: 16 | DN136: -16 | DO136: 16 | DP136: 16 | DQ136: 16 | DR136: -16 | DS136: 16 | DT136: -16 | DU136: -16 | DV136: 16 | DW136: -16 | DX136: -16
A137: 16 | B137: -16 | C137: 16 | D137: -16 | E137: 16 | F137: 16 | G137: 16 | H137: 16 | I137: -16 | J137: 16 | K137: 64 | L137: -16 | M137: 16 | N137: 16 | O137: 16 | P137: -16 | Q137: 16 | R137: 16 | S137: -16 | T137: 16 | U137: -16 | V137: 16 | W137: 16 | X137: -16 | Y137: -16 | Z137: 16 | AA137: 16 | AB137: 16 | AC137: -16 | AD137: -16 | AE137: 16 | AF137: -16 | AG137: 16 | AH137: -16 | AI137: -16 | AJ137: 16 | AK137: -16 | AL137: 16 | AM137: 16 | AN137: 16 | AO137: -16 | AP137: -16 | AQ137: -16 | AR137: 16 | AS137: 16 | AT137: 16 | AU137: 64 | AV137: 16 | AW137: 16 | AX137: 16 | AY137: 16 | AZ137: -16 | BA137: -16 | BB137: 16 | BC137: 16 | BD137: 16 | BE137: -16 | BF137: 16 | BG137: 16 | BH137: 16 | BI137: -16 | BJ137: 16 | BK137: 16 | BL137: 16 | BM137: 16 | BN137: 16 | BO137: -16 | BP137: -16 | BQ137: -16 | BR137: 16 | BS137: 16 | BT137: -16 | BU137: 16 | BV137: 16 | BW137: -16 | BX137: -16 | BY137: 16 | BZ137: -16 | CA137: 16 | CB137: 16 | CC137: 16 | CD137: -16 | CE137: 16 | CF137: 16 | CG137: 16 | CH137: 16 | CI137: -16 | CJ137: 16 | CK137: 16 | CL137: 16 | CM137: -16 | CN137: -16 | CO137: -64 | CP137: 16 | CQ137: -16 | CR137: 16 | CS137: 16 | CT137: 16 | CU137: 16 | CV137: 16 | CW137: 16 | CX137: 16 | CY137: -16 | CZ137: 16 | DA137: 16 | DB137: -16 | DC137: -16 | DD137: -16 | DE137: 16 | DF137: -16 | DG137: 16 | DH137: 16 | DI137: 16 | DJ137: -16 | DK137: -16 | DL137: 16 | DM137: 16 | DN137: 16 | DO137: -16 | DP137: 16 | DQ137: 16 | DR137: 16 | DS137: -16 | DT137: -16 | DU137: -16 | DV137: 16 | DW137: -16 | DX137: -16
A138: -16 | B138: -16 | C138: 16 | D138: 16 | E138: 16 | F138: 16 | G138: 16 | H138: 16 | I138: -16 | J138: -16 | K138: 16 | L138: 16 | M138: -16 | N138: -16 | O138: 16 | P138: -16 | Q138: -16 | R138: 16 | S138: -16 | T138: 16 | U138: -16 | V138: 16 | W138: -16 | X138: 16 | Y138: -16 | Z138: -16 | AA138: 16 | AB138: 16 | AC138: -16 | AD138: 16 | AE138: 16 | AF138: -16 | AG138: -16 | AH138: 16 | AI138: 16 | AJ138: -16 | AK138: 16 | AL138: -16 | AM138: -16 | AN138: 16 | AO138: -16 | AP138: 16 | AQ138: 16 | AR138: -16 | AS138: 16 | AT138: 16 | AU138: 16 | AV138: 16 | AW138: -16 | AX138: -16 | AY138: 16 | AZ138: -16 | BA138: -16 | BB138: -16 | BC138: -16 | BD138: -16 | BE138: -16 | BF138: -16 | BG138: -16 | BH138: 16 | BI138: -16 | BJ138: -16 | BK138: 16 | BL138: -16 | BM138: -16 | BN138: 16 | BO138: 16 | BP138: 16 | BQ138: -16 | BR138: 16 | BS138: -16 | BT138: 16 | BU138: 16 | BV138: 16 | BW138: 16 | BX138: -16 | BY138: 16 | BZ138: 16 | CA138: -16 | CB138: 16 | CC138: 16 | CD138: -16 | CE138: -16 | CF138: -16 | CG138: -16 | CH138: -16 | CI138: 16 | CJ138: -16 | CK138: 16 | CL138: 16 | CM138: 16 | CN138: -16 | CO138: 16 | CP138: -16 | CQ138: -16 | CR138: 16 | CS138: -64 | CT138: -16 | CU138: -16 | CV138: -16 | CW138: -16 | CX138: -16 | CY138: -16 | CZ138: 16 | DA138: -16 | DB138: 16 | DC138: 16 | DD138: -16 | DE138: -16 | DF138: -16 | DG138: 16 | DH138: -16 | DI138: -16 | DJ138: -16 | DK138: 16 | DL138: -16 | DM138: 16 | DN138: 16 | DO138: 16 | DP138: -16 | DQ138: -16 | DR138: -16 | DS138: -16 | DT138: -16 | DU138: 16 | DV138: -16 | DW138: 16 | DX138: 16
A139: 16 | B139: 16 | C139: -16 | D139: -16 | E139: 16 | F139: 16 | G139: 64 | H139: 16 | I139: -16 | J139: 16 | K139: 16 | L139: -16 | M139: 16 | N139: 16 | O139: 16 | P139: 16 | Q139: -16 | R139: 16 | S139: 16 | T139: 16 | U139: 16 | V139: -16 | W139: 16 | X139: 16 | Y139: 16 | Z139: -16 | AA139: 16 | AB139: 16 | AC139: 16 | AD139: 16 | AE139: 16 | AF139: 16 | AG139: 64 | AH139: 16 | AI139: -16 | AJ139: 16 | AK139: -16 | AL139: 16 | AM139: 16 | AN139: 16 | AO139: 16 | AP139: 16 | AQ139: -16 | AR139: 16 | AS139: 16 | AT139: -16 | AU139: -16 | AV139: 16 | AW139: -16 | AX139: 16 | AY139: 16 | AZ139: 16 | BA139: -16 | BB139: 16 | BC139: 16 | BD139: 16 | BE139: -16 | BF139: -16 | BG139: 16 | BH139: 16 | BI139: -16 | BJ139: 16 | BK139: 16 | BL139: 16 | BM139: -16 | BN139: -16 | BO139: -16 | BP139: -16 | BQ139: 16 | BR139: 16 | BS139: 64 | BT139: -16 | BU139: 16 | BV139: -16 | BW139: -16 | BX139: 16 | BY139: 16 | BZ139: -16 | CA139: -16 | CB139: 16 | CC139: 16 | CD139: 16 | CE139: -16 | CF139: 16 | CG139: -16 | CH139: 16 | CI139: 16 | CJ139: 64 | CK139: -16 | CL139: 16 | CM139: -16 | CN139: 16 | CO139: 16 | CP139: -16 | CQ139: -16 | CR139: -16 | CS139: 16 | CT139: 64 | CU139: -16 | CV139: -16 | CW139: -16 | CX139: 16 | CY139: 16 | CZ139: 16 | DA139: 16 | DB139: -16 | DC139: 16 | DD139: 16 | DE139: -16 | DF139: 16 | DG139: 16 | DH139: 16 | DI139: 16 | DJ139: 16 | DK139: 16 | DL139: 16 | DM139: -16 | DN139: -16 | DO139: -16 | DP139: -16 | DQ139: 16 | DR139: 16 | DS139: -16 | DT139: 16 | DU139: 16 | DV139: 16 | DW139: 16 | DX139: 16
A140: 16 | B140: 16 | C140: 16 | D140: 16 | E140: 16 | F140: -16 | G140: 16 | H140: 16 | I140: -16 | J140: -16 | K140: -16 | L140: -16 | M140: 16 | N140: 16 | O140: -16 | P140: 16 | Q140: 16 | R140: 16 | S140: -16 | T140: -16 | U140: 16 | V140: -16 | W140: -16 | X140: 16 | Y140: -16 | Z140: 16 | AA140: -16 | AB140: 16 | AC140: -16 | AD140: 16 | AE140: 16 | AF140: -16 | AG140: 16 | AH140: 16 | AI140: -16 | AJ140: 16 | AK140: -16 | AL140: -16 | AM140: 16 | AN140: 16 | AO140: -16 | AP140: -16 | AQ140: 16 | AR140: -16 | AS140: 16 | AT140: -16 | AU140: -16 | AV140: 16 | AW140: 16 | AX140: 16 | AY140: -16 | AZ140: -16 | BA140: 16 | BB140: 16 | BC140: -16 | BD140: 16 | BE140: -16 | BF140: 16 | BG140: -16 | BH140: 16 | BI140: -16 | BJ140: -16 | BK140: 16 | BL140: -16 | BM140: -16 | BN140: 16 | BO140: -16 | BP140: 16 | BQ140: -16 | BR140: 16 | BS140: -16 | BT140: -16 | BU140: -16 | BV140: -16 | BW140: -16 | BX140: -16 | BY140: 16 | BZ140: -16 | CA140: 16 | CB140: -16 | CC140: 16 | CD140: 16 | CE140: -16 | CF140: 16 | CG140: -16 | CH140: 16 | CI140: -16 | CJ140: -16 | CK140: 16 | CL140: -16 | CM140: 16 | CN140: -16 | CO140: 16 | CP140: -16 | CQ140: 16 | CR140: 16 | CS140: -16 | CT140: 16 | CU140: -16 | CV140: 16 | CW140: -16 | CX140: 16 | CY140: -16 | CZ140: 16 | DA140: -16 | DB140: 16 | DC140: 16 | DD140: 16 | DE140: -16 | DF140: 16 | DG140: 16 | DH140: 16 | DI140: -16 | DJ140: -16 | DK140: 16 | DL140: 16 | DM140: -16 | DN140: 16 | DO140: -16 | DP140: -16 | DQ140: 16 | DR140: 16 | DS140: 16 | DT140: 16 | DU140: -16 | DV140: 16 | DW140: -16 | DX140: -16
A141: 16 | B141: 16 | C141: 16 | D141: -16 | E141: -16 | F141: 16 | G141: 16 | H141: 16 | I141: -16 | J141: 16 | K141: 16 | L141: 16 | M141: -16 | N141: 16 | O141: 16 | P141: 16 | Q141: 16 | R141: -16 | S141: -16 | T141: -16 | U141: 16 | V141: -16 | W141: -16 | X141: -16 | Y141: 16 | Z141: -16 | AA141: 16 | AB141: -16 | AC141: 16 | AD141: -16 | AE141: -16 | AF141: 16 | AG141: 16 | AH141: -16 | AI141: -16 | AJ141: 16 | AK141: -16 | AL141: 16 | AM141: -16 | AN141: -16 | AO141: 16 | AP141: -16 | AQ141: -16 | AR141: 16 | AS141: -16 | AT141: 16 | AU141: -16 | AV141: -16 | AW141: -16 | AX141: 16 | AY141: 16 | AZ141: -16 | BA141: -16 | BB141: 16 | BC141: -16 | BD141: 16 | BE141: 16 | BF141: -16 | BG141: 16 | BH141: -16 | BI141: 16 | BJ141: -16 | BK141: -16 | BL141: -16 | BM141: 16 | BN141: 16 | BO141: -16 | BP141: -16 | BQ141: -16 | BR141: -16 | BS141: 16 | BT141: -16 | BU141: 16 | BV141: -16 | BW141: -16 | BX141: -16 | BY141: -16 | BZ141: -16 | CA141: -16 | CB141: 16 | CC141: 16 | CD141: -16 | CE141: -16 | CF141: 16 | CG141: -16 | CH141: -16 | CI141: -16 | CJ141: 16 | CK141: -16 | CL141: 16 | CM141: 16 | CN141: 16 | CO141: -64 | CP141: 16 | CQ141: -16 | CR141: 16 | CS141: -16 | CT141: 16 | CU141: -16 | CV141: -16 | CW141: 16 | CX141: 16 | CY141: -16 | CZ141: -16 | DA141: -16 | DB141: -16 | DC141: -16 | DD141: -16 | DE141: -16 | DF141: 16 | DG141: -16 | DH141: -16 | DI141: 16 | DJ141: 16 | DK141: 16 | DL141: 16 | DM141: -16 | DN141: -16 | DO141: -16 | DP141: -16 | DQ141: 16 | DR141: 16 | DS141: -16 | DT141: 16 | DU141: 16 | DV141: -16 | DW141: -16 | DX141: -64
A142: 16 | B142: -16 | C142: -16 | D142: 16 | E142: 16 | F142: -16 | G142: -16 | H142: -16 | I142: 16 | J142: 16 | K142: 16 | L142: 16 | M142: -16 | N142: 16 | O142: 16 | P142: 16 | Q142: 16 | R142: 16 | S142: -16 | T142: 16 | U142: 16 | V142: -16 | W142: -16 | X142: 16 | Y142: 16 | Z142: -16 | AA142: -16 | AB142: 16 | AC142: 16 | AD142: -16 | AE142: -16 | AF142: -16 | AG142: -16 | AH142: 16 | AI142: -16 | AJ142: 16 | AK142: -16 | AL142: 16 | AM142: 16 | AN142: -16 | AO142: 16 | AP142: 16 | AQ142: -16 | AR142: -16 | AS142: -16 | AT142: -16 | AU142: 16 | AV142: 16 | AW142: 16 | AX142: -16 | AY142: -16 | AZ142: -16 | BA142: -16 | BB142: 16 | BC142: 16 | BD142: -16 | BE142: -16 | BF142: 16 | BG142: 16 | BH142: -16 | BI142: 16 | BJ142: -16 | BK142: 16 | BL142: -16 | BM142: 16 | BN142: 16 | BO142: -16 | BP142: -16 | BQ142: -16 | BR142: -16 | BS142: -16 | BT142: 16 | BU142: 16 | BV142: -16 | BW142: -16 | BX142: -16 | BY142: -16 | BZ142: 16 | CA142: 16 | CB142: 16 | CC142: 16 | CD142: -16 | CE142: -16 | CF142: 16 | CG142: 16 | CH142: 16 | CI142: -16 | CJ142: -16 | CK142: -16 | CL142: -16 | CM142: 16 | CN142: 16 | CO142: -16 | CP142: 16 | CQ142: 16 | CR142: -16 | CS142: 16 | CT142: 16 | CU142: -16 | CV142: -16 | CW142: -16 | CX142: 16 | CY142: 16 | CZ142: 16 | DA142: -16 | DB142: -16 | DC142: -16 | DD142: -16 | DE142: 16 | DF142: 16 | DG142: 16 | DH142: 16 | DI142: 16 | DJ142: 16 | DK142: 16 | DL142: -16 | DM142: -16 | DN142: 16 | DO142: 16 | DP142: -16 | DQ142: -16 | DR142: 16 | DS142: -16 | DT142: -16 | DU142: -16 | DV142: 16 | DW142: 16 | DX142: 16
A143: 16 | B143: -16 | C143: -16 | D143: -16 | E143: -64 | F143: 16 | G143: 16 | H143: -16 | I143: 16 | J143: 16 | K143: 16 | L143: 16 | M143: 16 | N143: 64 | O143: 16 | P143: 16 | Q143: -16 | R143: 16 | S143: 64 | T143: 16 | U143: -16 | V143: 16 | W143: 64 | X143: -16 | Y143: 16 | Z143: 16 | AA143: 16 | AB143: 16 | AC143: -16 | AD143: -16 | AE143: -16 | AF143: 64 | AG143: 64 | AH143: -16 | AI143: 16 | AJ143: 16 | AK143: -16 | AL143: 16 | AM143: -16 | AN143: -16 | AO143: 16 | AP143: -16 | AQ143: -16 | AR143: 16 | AS143: -64 | AT143: 16 | AU143: -16 | AV143: -16 | AW143: 16 | AX143: 16 | AY143: -16 | AZ143: 16 | BA143: 16 | BB143: -16 | BC143: 16 | BD143: 16 | BE143: -16 | BF143: -16 | BG143: 16 | BH143: -16 | BI143: 16 | BJ143: 64 | BK143: -16 | BL143: 16 | BM143: 16 | BN143: -16 | BO143: 16 | BP143: 16 | BQ143: -16 | BR143: 16 | BS143: 16 | BT143: -16 | BU143: -16 | BV143: -16 | BW143: 16 | BX143: -16 | BY143: -16 | BZ143: 16 | CA143: -64 | CB143: -16 | CC143: 16 | CD143: -16 | CE143: 64 | CF143: 16 | CG143: -16 | CH143: 16 | CI143: -16 | CJ143: 16 | CK143: -16 | CL143: 64 | CM143: -64 | CN143: 16 | CO143: -16 | CP143: 16 | CQ143: -16 | CR143: -16 | CS143: 16 | CT143: 64 | CU143: -16 | CV143: 16 | CW143: -16 | CX143: 16 | CY143: -16 | CZ143: -16 | DA143: -16 | DB143: -64 | DC143: -64 | DD143: -16 | DE143: 16 | DF143: -16 | DG143: 16 | DH143: -16 | DI143: 16 | DJ143: -16 | DK143: -16 | DL143: -16 | DM143: 64 | DN143: -16 | DO143: -16 | DP143: 16 | DQ143: 64 | DR143: -16 | DS143: -16 | DT143: 64 | DU143: 16 | DV143: -16 | DW143: -16 | DX143: -16
A144: 16 | B144: -16 | C144: 16 | D144: 16 | E144: 16 | F144: -16 | G144: -16 | H144: 16 | I144: 16 | J144: -16 | K144: 16 | L144: -16 | M144: -16 | N144: 16 | O144: 16 | P144: 16 | Q144: 16 | R144: 16 | S144: -16 | T144: 16 | U144: 16 | V144: 16 | W144: -16 | X144: 16 | Y144: 16 | Z144: -16 | AA144: 16 | AB144: -16 | AC144: 16 | AD144: 16 | AE144: 16 | AF144: 16 | AG144: -16 | AH144: 16 | AI144: 16 | AJ144: 16 | AK144: 16 | AL144: 16 | AM144: 16 | AN144: -16 | AO144: 16 | AP144: 16 | AQ144: 16 | AR144: 16 | AS144: 16 | AT144: 16 | AU144: 16 | AV144: 16 | AW144: 16 | AX144: -16 | AY144: -16 | AZ144: 16 | BA144: 16 | BB144: 16 | BC144: -16 | BD144: -16 | BE144: 16 | BF144: 16 | BG144: -16 | BH144: -16 | BI144: -16 | BJ144: 16 | BK144: -16 | BL144: -16 | BM144: -16 | BN144: 16 | BO144: 16 | BP144: 16 | BQ144: -16 | BR144: -16 | BS144: -16 | BT144: 16 | BU144: -16 | BV144: -16 | BW144: 16 | BX144: -16 | BY144: -16 | BZ144: 16 | CA144: -16 | CB144: -16 | CC144: 16 | CD144: 16 | CE144: 16 | CF144: -16 | CG144: 16 | CH144: -16 | CI144: -16 | CJ144: -16 | CK144: -16 | CL144: -16 | CM144: -16 | CN144: -16 | CO144: 16 | CP144: -16 | CQ144: 16 | CR144: 16 | CS144: 16 | CT144: -16 | CU144: -16 | CV144: -16 | CW144: 16 | CX144: -16 | CY144: 16 | CZ144: -16 | DA144: 16 | DB144: -16 | DC144: -16 | DD144: -16 | DE144: 16 | DF144: -16 | DG144: 16 | DH144: -16 | DI144: -16 | DJ144: -16 | DK144: 16 | DL144: -16 | DM144: 16 | DN144: -16 | DO144: 16 | DP144: 16 | DQ144: 16 | DR144: 16 | DS144: -16 | DT144: 16 | DU144: 16 | DV144: 16 | DW144: 16 | DX144: 16
A145: 16 | B145: 16 | C145: 16 | D145: -16 | E145: 16 | F145: -16 | G145: -16 | H145: -16 | I145: -16 | J145: -16 | K145: 16 | L145: -16 | M145: -16 | N145: 16 | O145: -16 | P145: -16 | Q145: 16 | R145: -16 | S145: -16 | T145: -16 | U145: 16 | V145: 16 | W145: -16 | X145: -16 | Y145: 16 | Z145: -16 | AA145: 16 | AB145: 16 | AC145: 16 | AD145: -16 | AE145: -16 | AF145: 16 | AG145: 16 | AH145: -16 | AI145: 16 | AJ145: 16 | AK145: -16 | AL145: 16 | AM145: -16 | AN145: -64 | AO145: -16 | AP145: -16 | AQ145: -16 | AR145: 16 | AS145: 16 | AT145: 16 | AU145: -16 | AV145: 16 | AW145: -16 | AX145: 16 | AY145: -16 | AZ145: -16 | BA145: -16 | BB145: 16 | BC145: 16 | BD145: -16 | BE145: 16 | BF145: 16 | BG145: -16 | BH145: 16 | BI145: 16 | BJ145: -16 | BK145: 16 | BL145: -16 | BM145: -16 | BN145: -16 | BO145: -16 | BP145: 16 | BQ145: -16 | BR145: -16 | BS145: 16 | BT145: -16 | BU145: 16 | BV145: 16 | BW145: -16 | BX145: -16 | BY145: -16 | BZ145: -16 | CA145: -16 | CB145: -16 | CC145: 16 | CD145: 16 | CE145: -16 | CF145: -16 | CG145: -16 | CH145: 16 | CI145: -16 | CJ145: -16 | CK145: 16 | CL145: -16 | CM145: 16 | CN145: 16 | CO145: -16 | CP145: 16 | CQ145: 16 | CR145: 16 | CS145: 16 | CT145: 16 | CU145: -16 | CV145: 16 | CW145: 16 | CX145: 16 | CY145: 16 | CZ145: -16 | DA145: -16 | DB145: 64 | DC145: 16 | DD145: 16 | DE145: -16 | DF145: -16 | DG145: 16 | DH145: 16 | DI145: -16 | DJ145: 16 | DK145: 16 | DL145: 16 | DM145: -16 | DN145: -16 | DO145: -16 | DP145: 16 | DQ145: 16 | DR145: -16 | DS145: -16 | DT145: -16 | DU145: 16 | DV145: -16 | DW145: 16 | DX145: -16
A146: 16 | B146: -16 | C146: -16 | D146: -64 | E146: -16 | F146: -64 | G146: 16 | H146: 16 | I146: -16 | J146: 16 | K146: 16 | L146: 16 | M146: -16 | N146: 16 | O146: -16 | P146: -16 | Q146: -16 | R146: 16 | S146: 16 | T146: -64 | U146: 16 | V146: 16 | W146: -16 | X146: -16 | Y146: 16 | Z146: -16 | AA146: 16 | AB146: -16 | AC146: 16 | AD146: -16 | AE146: -16 | AF146: 16 | AG146: 16 | AH146: -16 | AI146: -16 | AJ146: -16 | AK146: 16 | AL146: -16 | AM146: 16 | AN146: -16 | AO146: -16 | AP146: -16 | AQ146: -16 | AR146: 16 | AS146: -16 | AT146: -16 | AU146: 16 | AV146: -16 | AW146: 16 | AX146: 16 | AY146: -16 | AZ146: 16 | BA146: 16 | BB146: 16 | BC146: 16 | BD146: 16 | BE146: -16 | BF146: -16 | BG146: 16 | BH146: 16 | BI146: 16 | BJ146: -16 | BK146: -16 | BL146: -16 | BM146: 16 | BN146: -16 | BO146: -16 | BP146: -16 | BQ146: -16 | BR146: -16 | BS146: 16 | BT146: 16 | BU146: -16 | BV146: 16 | BW146: 16 | BX146: -16 | BY146: 16 | BZ146: -16 | CA146: -16 | CB146: -16 | CC146: 16 | CD146: -16 | CE146: 16 | CF146: 16 | CG146: -16 | CH146: -16 | CI146: -16 | CJ146: -16 | CK146: -16 | CL146: -16 | CM146: -64 | CN146: -16 | CO146: -16 | CP146: -16 | CQ146: -16 | CR146: -16 | CS146: 16 | CT146: -16 | CU146: -16 | CV146: 16 | CW146: 16 | CX146: 16 | CY146: 16 | CZ146: -16 | DA146: -16 | DB146: -16 | DC146: -16 | DD146: -16 | DE146: -16 | DF146: 16 | DG146: 16 | DH146: -16 | DI146: 16 | DJ146: 16 | DK146: -16 | DL146: -16 | DM146: -16 | DN146: -16 | DO146: -16 | DP146: 16 | DQ146: 16 | DR146: 16 | DS146: -16 | DT146: 16 | DU146: -16 | DV146: 16 | DW146: 16 | DX146: 16
A147: 16 | B147: -16 | C147: -16 | D147: -16 | E147: 16 | F147: 16 | G147: 16 | H147: -16 | I147: 16 | J147: 16 | K147: 16 | L147: 16 | M147: 16 | N147: 16 | O147: 16 | P147: -16 | Q147: 16 | R147: -16 | S147: -16 | T147: 16 | U147: 16 | V147: -16 | W147: 16 | X147: -16 | Y147: 16 | Z147: -16 | AA147: 16 | AB147: -16 | AC147: -16 | AD147: -16 | AE147: 16 | AF147: -16 | AG147: 16 | AH147: -16 | AI147: -16 | AJ147: 16 | AK147: -16 | AL147: -16 | AM147: -16 | AN147: -16 | AO147: -16 | AP147: -16 | AQ147: -16 | AR147: 16 | AS147: -16 | AT147: 16 | AU147: -16 | AV147: -16 | AW147: -16 | AX147: 64 | AY147: 16 | AZ147: -16 | BA147: -16 | BB147: 16 | BC147: 16 | BD147: 16 | BE147: -16 | BF147: 16 | BG147: 16 | BH147: 16 | BI147: -16 | BJ147: 16 | BK147: 16 | BL147: 16 | BM147: -16 | BN147: -16 | BO147: -16 | BP147: -16 | BQ147: -16 | BR147: -16 | BS147: 16 | BT147: -16 | BU147: -16 | BV147: 16 | BW147: 16 | BX147: -16 | BY147: 16 | BZ147: -16 | CA147: -16 | CB147: 16 | CC147: 16 | CD147: 16 | CE147: 16 | CF147: -16 | CG147: -16 | CH147: -16 | CI147: -16 | CJ147: 16 | CK147: -16 | CL147: -16 | CM147: 16 | CN147: -16 | CO147: -16 | CP147: -16 | CQ147: -16 | CR147: -16 | CS147: -16 | CT147: 16 | CU147: -16 | CV147: -16 | CW147: -16 | CX147: 16 | CY147: -16 | CZ147: 16 | DA147: -16 | DB147: 16 | DC147: -16 | DD147: 16 | DE147: -16 | DF147: 16 | DG147: -16 | DH147: 16 | DI147: 16 | DJ147: -16 | DK147: -16 | DL147: 16 | DM147: -16 | DN147: 16 | DO147: -16 | DP147: 16 | DQ147: 16 | DR147: 16 | DS147: -16 | DT147: 16 | DU147: -16 | DV147: 16 | DW147: 16 | DX147: -16
A148: 16 | B148: 16 | C148: -16 | D148: 16 | E148: 16 | F148: -16 | G148: -16 | H148: 16 | I148: 16 | J148: -16 | K148: -16 | L148: -16 | M148: 16 | N148: 16 | O148: -16 | P148: -16 | Q148: -16 | R148: -16 | S148: 16 | T148: -16 | U148: -16 | V148: -16 | W148: -16 | X148: -16 | Y148: 16 | Z148: -16 | AA148: -16 | AB148: -16 | AC148: 16 | AD148: -16 | AE148: -16 | AF148: -16 | AG148: 16 | AH148: 16 | AI148: -16 | AJ148: 16 | AK148: -16 | AL148: 16 | AM148: 16 | AN148: -16 | AO148: 16 | AP148: 16 | AQ148: -16 | AR148: 16 | AS148: -16 | AT148: 16 | AU148: 16 | AV148: -16 | AW148: 16 | AX148: -16 | AY148: 16 | AZ148: -16 | BA148: -16 | BB148: -16 | BC148: 16 | BD148: -16 | BE148: -16 | BF148: -16 | BG148: 16 | BH148: 16 | BI148: -16 | BJ148: 16 | BK148: 16 | BL148: 16 | BM148: -16 | BN148: 16 | BO148: -16 | BP148: -16 | BQ148: -16 | BR148: -16 | BS148: -16 | BT148: -16 | BU148: 16 | BV148: -16 | BW148: 16 | BX148: 16 | BY148: -16 | BZ148: -16 | CA148: -16 | CB148: -16 | CC148: 16 | CD148: -16 | CE148: -16 | CF148: -16 | CG148: -16 | CH148: 16 | CI148: -16 | CJ148: -16 | CK148: -16 | CL148: -16 | CM148: 16 | CN148: -16 | CO148: 16 | CP148: 16 | CQ148: -16 | CR148: 16 | CS148: 16 | CT148: 16 | CU148: 16 | CV148: -16 | CW148: -16 | CX148: 16 | CY148: 16 | CZ148: 16 | DA148: -16 | DB148: -16 | DC148: 16 | DD148: -16 | DE148: 16 | DF148: 16 | DG148: -16 | DH148: 16 | DI148: -16 | DJ148: -16 | DK148: -16 | DL148: -16 | DM148: -16 | DN148: -16 | DO148: -16 | DP148: 16 | DQ148: -16 | DR148: 16 | DS148: 16 | DT148: -16 | DU148: -16 | DV148: 16 | DW148: -16 | DX148: -16
A149: 16 | B149: -16 | C149: -16 | D149: -16 | E149: 16 | F149: -64 | G149: 16 | H149: -16 | I149: 16 | J149: -16 | K149: -16 | L149: 16 | M149: -64 | N149: -16 | O149: -16 | P149: -16 | Q149: -16 | R149: 16 | S149: 16 | T149: -64 | U149: 16 | V149: -16 | W149: -16 | X149: -16 | Y149: 16 | Z149: -16 | AA149: 16 | AB149: -16 | AC149: 16 | AD149: -16 | AE149: 16 | AF149: 16 | AG149: 16 | AH149: 16 | AI149: 16 | AJ149: -16 | AK149: 16 | AL149: 16 | AM149: -16 | AN149: -16 | AO149: -16 | AP149: 16 | AQ149: -16 | AR149: 16 | AS149: 16 | AT149: -16 | AU149: -16 | AV149: -16 | AW149: -16 | AX149: 16 | AY149: -16 | AZ149: -16 | BA149: 16 | BB149: 16 | BC149: 16 | BD149: 16 | BE149: -16 | BF149: 16 | BG149: 16 | BH149: -16 | BI149: 16 | BJ149: -16 | BK149: -16 | BL149: 16 | BM149: -16 | BN149: -16 | BO149: 16 | BP149: 16 | BQ149: 16 | BR149: -16 | BS149: -16 | BT149: -16 | BU149: -16 | BV149: 16 | BW149: 16 | BX149: -16 | BY149: -16 | BZ149: -16 | CA149: 16 | CB149: -16 | CC149: -16 | CD149: -16 | CE149: 16 | CF149: -16 | CG149: -16 | CH149: -16 | CI149: -16 | CJ149: -64 | CK149: -16 | CL149: -16 | CM149: -16 | CN149: -16 | CO149: 16 | CP149: -16 | CQ149: 16 | CR149: 16 | CS149: 16 | CT149: -16 | CU149: -16 | CV149: 16 | CW149: -16 | CX149: -16 | CY149: -16 | CZ149: -16 | DA149: 16 | DB149: 16 | DC149: 16 | DD149: -16 | DE149: 16 | DF149: -16 | DG149: -16 | DH149: -64 | DI149: 16 | DJ149: 16 | DK149: -16 | DL149: -16 | DM149: 16 | DN149: 16 | DO149: -16 | DP149: -16 | DQ149: 16 | DR149: 16 | DS149: -16 | DT149: -16 | DU149: 16 | DV149: -16 | DW149: -16 | DX149: 16
A150: 16 | B150: 16 | C150: -16 | D150: -16 | E150: 16 | F150: -64 | G150: 16 | H150: 16 | I150: -16 | J150: 16 | K150: 16 | L150: 16 | M150: -16 | N150: 16 | O150: 16 | P150: -16 | Q150: -16 | R150: -16 | S150: 16 | T150: -64 | U150: 16 | V150: -16 | W150: 16 | X150: -16 | Y150: 16 | Z150: -16 | AA150: 64 | AB150: -16 | AC150: -16 | AD150: 16 | AE150: 16 | AF150: 16 | AG150: 16 | AH150: 16 | AI150: 16 | AJ150: 16 | AK150: -16 | AL150: -16 | AM150: -16 | AN150: 16 | AO150: 16 | AP150: -16 | AQ150: 16 | AR150: 16 | AS150: -16 | AT150: -16 | AU150: -16 | AV150: -64 | AW150: -16 | AX150: 16 | AY150: -16 | AZ150: -16 | BA150: 16 | BB150: -16 | BC150: 64 | BD150: 64 | BE150: 16 | BF150: 16 | BG150: -16 | BH150: 16 | BI150: 64 | BJ150: 16 | BK150: -16 | BL150: 16 | BM150: -16 | BN150: -16 | BO150: -16 | BP150: -16 | BQ150: -16 | BR150: -16 | BS150: 16 | BT150: -16 | BU150: 16 | BV150: -16 | BW150: 16 | BX150: -16 | BY150: 16 | BZ150: -16 | CA150: -16 | CB150: -16 | CC150: 16 | CD150: 16 | CE150: 16 | CF150: 16 | CG150: -16 | CH150: -16 | CI150: -16 | CJ150: 16 | CK150: -16 | CL150: 16 | CM150: -16 | CN150: -16 | CO150: -16 | CP150: 16 | CQ150: -16 | CR150: -16 | CS150: 16 | CT150: -16 | CU150: -16 | CV150: -16 | CW150: -16 | CX150: 16 | CY150: 16 | CZ150: -16 | DA150: -16 | DB150: -16 | DC150: 16 | DD150: -16 | DE150: -16 | DF150: -16 | DG150: -16 | DH150: -16 | DI150: 64 | DJ150: 16 | DK150: -16 | DL150: -16 | DM150: 16 | DN150: -16 | DO150: -16 | DP150: 16 | DQ150: -16 | DR150: -16 | DS150: 16 | DT150: 64 | DU150: 16 | DV150: -16 | DW150: 16 | DX150: 16
A151: 16 | B151: -16 | C151: -16 | D151: 16 | E151: -16 | F151: -16 | G151: -16 | H151: -16 | I151: -16 | J151: -16 | K151: 16 | L151: -16 | M151: -16 | N151: -16 | O151: -16 | P151: -16 | Q151: -16 | R151: -16 | S151: -16 | T151: -16 | U151: -64 | V151: -16 | W151: -16 | X151: -16 | Y151: -16 | Z151: -16 | AA151: -16 | AB151: -16 | AC151: 16 | AD151: 16 | AE151: 16 | AF151: -16 | AG151: -16 | AH151: 16 | AI151: 16 | AJ151: -16 | AK151: 16 | AL151: -16 | AM151: -16 | AN151: 16 | AO151: -16 | AP151: -16 | AQ151: -16 | AR151: -16 | AS151: 16 | AT151: -16 | AU151: -16 | AV151: -16 | AW151: -16 | AX151: -16 | AY151: 16 | AZ151: -16 | BA151: -16 | BB151: -16 | BC151: -16 | BD151: -16 | BE151: -16 | BF151: 16 | BG151: 16 | BH151: -16 | BI151: 16 | BJ151: -16 | BK151: -16 | BL151: -16 | BM151: 16 | BN151: -16 | BO151: -16 | BP151: 16 | BQ151: 16 | BR151: 16 | BS151: 16 | BT151: -16 | BU151: 16 | BV151: -16 | BW151: -16 | BX151: -16 | BY151: -16 | BZ151: 16 | CA151: 16 | CB151: 16 | CC151: -16 | CD151: 16 | CE151: -16 | CF151: -16 | CG151: 16 | CH151: 16 | CI151: -16 | CJ151: -16 | CK151: 16 | CL151: -16 | CM151: -16 | CN151: -16 | CO151: 16 | CP151: -16 | CQ151: 16 | CR151: -16 | CS151: -16 | CT151: 16 | CU151: -16 | CV151: -16 | CW151: -16 | CX151: -16 | CY151: -16 | CZ151: -16 | DA151: 16 | DB151: 16 | DC151: 16 | DD151: -16 | DE151: -16 | DF151: 16 | DG151: -16 | DH151: 16 | DI151: -16 | DJ151: 16 | DK151: -16 | DL151: -16 | DM151: -16 | DN151: 16 | DO151: -16 | DP151: -16 | DQ151: -16 | DR151: 16 | DS151: -16 | DT151: -16 | DU151: -16 | DV151: -16 | DW151: 16 | DX151: 16
A152: 16 | B152: 16 | C152: -16 | D152: -16 | E152: 16 | F152: 16 | G152: 16 | H152: 16 | I152: -16 | J152: -16 | K152: 16 | L152: 16 | M152: 16 | N152: 16 | O152: 16 | P152: 16 | Q152: 16 | R152: 16 | S152: 16 | T152: -16 | U152: 16 | V152: 16 | W152: -16 | X152: -16 | Y152: -16 | Z152: -16 | AA152: 16 | AB152: 16 | AC152: -16 | AD152: 16 | AE152: 16 | AF152: 16 | AG152: 16 | AH152: -16 | AI152: -16 | AJ152: 16 | AK152: -16 | AL152: 16 | AM152: 16 | AN152: 16 | AO152: -16 | AP152: -16 | AQ152: 16 | AR152: 16 | AS152: 16 | AT152: 16 | AU152: 16 | AV152: -16 | AW152: -16 | AX152: 16 | AY152: -16 | AZ152: -16 | BA152: -16 | BB152: -16 | BC152: 16 | BD152: 16 | BE152: -16 | BF152: -16 | BG152: 16 | BH152: 16 | BI152: 16 | BJ152: 16 | BK152: -16 | BL152: 16 | BM152: -16 | BN152: -16 | BO152: 16 | BP152: 16 | BQ152: -16 | BR152: -16 | BS152: 16 | BT152: 16 | BU152: 16 | BV152: 16 | BW152: 16 | BX152: -16 | BY152: -16 | BZ152: -16 | CA152: -16 | CB152: 16 | CC152: 64 | CD152: -16 | CE152: 16 | CF152: 16 | CG152: 16 | CH152: -16 | CI152: -16 | CJ152: -16 | CK152: -16 | CL152: 16 | CM152: 16 | CN152: 16 | CO152: -16 | CP152: 16 | CQ152: -16 | CR152: 16 | CS152: 16 | CT152: 16 | CU152: -16 | CV152: 16 | CW152: -16 | CX152: 16 | CY152: 16 | CZ152: 16 | DA152: 16 | DB152: -16 | DC152: 16 | DD152: 16 | DE152: 16 | DF152: 16 | DG152: 16 | DH152: 16 | DI152: -16 | DJ152: 16 | DK152: -16 | DL152: -16 | DM152: 16 | DN152: -16 | DO152: -16 | DP152: -16 | DQ152: -16 | DR152: 16 | DS152: 16 | DT152: 16 | DU152: 16 | DV152: -16 | DW152: 16 | DX152: -16
A153: 16 | B153: -16 | C153: -16 | D153: 16 | E153: 16 | F153: -16 | G153: 16 | H153: -16 | I153: 16 | J153: 16 | K153: 16 | L153: -16 | M153: -16 | N153: 16 | O153: 16 | P153: 16 | Q153: -16 | R153: 16 | S153: 16 | T153: -16 | U153: 16 | V153: 16 | W153: 16 | X153: 16 | Y153: -16 | Z153: 16 | AA153: -16 | AB153: -16 | AC153: 16 | AD153: 16 | AE153: 16 | AF153: 16 | AG153: 64 | AH153: -16 | AI153: -16 | AJ153: 16 | AK153: -16 | AL153: 16 | AM153: 16 | AN153: -16 | AO153: -16 | AP153: -16 | AQ153: -16 | AR153: 16 | AS153: -16 | AT153: -16 | AU153: 16 | AV153: -16 | AW153: -16 | AX153: 16 | AY153: -16 | AZ153: 16 | BA153: 16 | BB153: 16 | BC153: 16 | BD153: 16 | BE153: 16 | BF153: 16 | BG153: 16 | BH153: -16 | BI153: 16 | BJ153: 16 | BK153: -16 | BL153: 16 | BM153: 16 | BN153: -16 | BO153: 16 | BP153: -16 | BQ153: 16 | BR153: 16 | BS153: 16 | BT153: 16 | BU153: 16 | BV153: 16 | BW153: 16 | BX153: 16 | BY153: -16 | BZ153: 16 | CA153: 16 | CB153: 16 | CC153: -16 | CD153: 16 | CE153: 16 | CF153: 16 | CG153: 16 | CH153: 16 | CI153: 16 | CJ153: 16 | CK153: 16 | CL153: 16 | CM153: 16 | CN153: -16 | CO153: -16 | CP153: -16 | CQ153: 16 | CR153: 16 | CS153: 16 | CT153: 64 | CU153: 16 | CV153: -16 | CW153: 16 | CX153: 16 | CY153: 16 | CZ153: -16 | DA153: -16 | DB153: 16 | DC153: 16 | DD153: 16 | DE153: 16 | DF153: -16 | DG153: 16 | DH153: -16 | DI153: 16 | DJ153: -16 | DK153: 16 | DL153: 16 | DM153: -16 | DN153: 16 | DO153: -16 | DP153: 16 | DQ153: -16 | DR153: 16 | DS153: 16 | DT153: 16 | DU153: 16 | DV153: 16 | DW153: 16 | DX153: 16
A154: 16 | B154: -16 | C154: -16 | D154: -16 | E154: -16 | F154: -16 | G154: 16 | H154: -16 | I154: 16 | J154: -16 | K154: 16 | L154: 16 | M154: -16 | N154: -16 | O154: -16 | P154: -16 | Q154: -16 | R154: 16 | S154: 16 | T154: -16 | U154: -16 | V154: -16 | W154: -16 | X154: 16 | Y154: 16 | Z154: -16 | AA154: -16 | AB154: -16 | AC154: -16 | AD154: -16 | AE154: -16 | AF154: 16 | AG154: 16 | AH154: 16 | AI154: 16 | AJ154: 16 | AK154: 16 | AL154: 16 | AM154: 16 | AN154: -16 | AO154: 16 | AP154: 16 | AQ154: -64 | AR154: 16 | AS154: 16 | AT154: 16 | AU154: -16 | AV154: -16 | AW154: -16 | AX154: -16 | AY154: 16 | AZ154: -16 | BA154: 16 | BB154: 16 | BC154: 16 | BD154: 16 | BE154: -16 | BF154: -16 | BG154: 16 | BH154: -16 | BI154: 16 | BJ154: 16 | BK154: 16 | BL154: 16 | BM154: -16 | BN154: -16 | BO154: 16 | BP154: -16 | BQ154: -16 | BR154: -16 | BS154: 16 | BT154: -16 | BU154: -16 | BV154: -16 | BW154: 16 | BX154: -16 | BY154: -16 | BZ154: -16 | CA154: 16 | CB154: -16 | CC154: -16 | CD154: 16 | CE154: 16 | CF154: -16 | CG154: -16 | CH154: 16 | CI154: -16 | CJ154: -16 | CK154: 16 | CL154: -16 | CM154: 16 | CN154: -16 | CO154: 16 | CP154: -16 | CQ154: 16 | CR154: 16 | CS154: 16 | CT154: 16 | CU154: -16 | CV154: 16 | CW154: -16 | CX154: 16 | CY154: -16 | CZ154: -16 | DA154: -16 | DB154: 16 | DC154: 16 | DD154: -16 | DE154: -16 | DF154: -16 | DG154: -16 | DH154: -16 | DI154: 16 | DJ154: 16 | DK154: -16 | DL154: -16 | DM154: 16 | DN154: 16 | DO154: -16 | DP154: 16 | DQ154: 16 | DR154: -16 | DS154: -16 | DT154: 16 | DU154: 16 | DV154: -16 | DW154: -16 | DX154: 16
A155: -16 | B155: 16 | C155: -16 | D155: -16 | E155: 16 | F155: -16 | G155: -16 | H155: 16 | I155: 16 | J155: -16 | K155: -16 | L155: -16 | M155: -16 | N155: 16 | O155: 16 | P155: -16 | Q155: 16 | R155: 16 | S155: -16 | T155: 16 | U155: 16 | V155: -16 | W155: -16 | X155: 16 | Y155: -16 | Z155: 16 | AA155: 16 | AB155: -16 | AC155: 16 | AD155: 16 | AE155: 16 | AF155: -16 | AG155: 16 | AH155: 16 | AI155: -16 | AJ155: -16 | AK155: 64 | AL155: -16 | AM155: 16 | AN155: 16 | AO155: 16 | AP155: -16 | AQ155: 16 | AR155: -16 | AS155: 16 | AT155: -16 | AU155: 16 | AV155: 16 | AW155: 16 | AX155: -16 | AY155: -16 | AZ155: -16 | BA155: -16 | BB155: -16 | BC155: 16 | BD155: -16 | BE155: 16 | BF155: -16 | BG155: -16 | BH155: 16 | BI155: -16 | BJ155: 16 | BK155: -16 | BL155: -16 | BM155: -16 | BN155: -16 | BO155: -16 | BP155: 16 | BQ155: -16 | BR155: 16 | BS155: -16 | BT155: 16 | BU155: 16 | BV155: 16 | BW155: -16 | BX155: -16 | BY155: 16 | BZ155: -16 | CA155: 16 | CB155: -16 | CC155: 16 | CD155: -16 | CE155: 16 | CF155: -16 | CG155: -16 | CH155: -16 | CI155: 16 | CJ155: 16 | CK155: 16 | CL155: 16 | CM155: 16 | CN155: -16 | CO155: 16 | CP155: -16 | CQ155: 16 | CR155: 16 | CS155: 16 | CT155: -16 | CU155: -16 | CV155: 16 | CW155: 16 | CX155: -16 | CY155: -16 | CZ155: -16 | DA155: -16 | DB155: 16 | DC155: 16 | DD155: 16 | DE155: 16 | DF155: 16 | DG155: -16 | DH155: -16 | DI155: -16 | DJ155: 16 | DK155: -16 | DL155: -16 | DM155: 16 | DN155: 16 | DO155: 16 | DP155: 16 | DQ155: -16 | DR155: -16 | DS155: 16 | DT155: -16 | DU155: -16 | DV155: -16 | DW155: 16 | DX155: 16
A156: 16 | B156: 16 | C156: -64 | D156: -16 | E156: -16 | F156: -16 | G156: -16 | H156: 16 | I156: -16 | J156: -16 | K156: 16 | L156: -16 | M156: -16 | N156: -16 | O156: -16 | P156: 16 | Q156: -64 | R156: 16 | S156: 16 | T156: -16 | U156: -16 | V156: 16 | W156: 16 | X156: 16 | Y156: 16 | Z156: 16 | AA156: -16 | AB156: -64 | AC156: 16 | AD156: -64 | AE156: -16 | AF156: 16 | AG156: 16 | AH156: -16 | AI156: 16 | AJ156: -16 | AK156: -16 | AL156: 16 | AM156: -16 | AN156: -16 | AO156: 16 | AP156: -16 | AQ156: -16 | AR156: -16 | AS156: -16 | AT156: -16 | AU156: -16 | AV156: -64 | AW156: -16 | AX156: -16 | AY156: -16 | AZ156: -16 | BA156: 16 | BB156: -16 | BC156: 16 | BD156: -16 | BE156: 16 | BF156: -16 | BG156: -16 | BH156: -16 | BI156: 16 | BJ156: 16 | BK156: -16 | BL156: 16 | BM156: -16 | BN156: -16 | BO156: 64 | BP156: -16 | BQ156: -16 | BR156: 16 | BS156: 16 | BT156: 16 | BU156: 16 | BV156: -16 | BW156: 16 | BX156: 16 | BY156: -16 | BZ156: -16 | CA156: 16 | CB156: -16 | CC156: -16 | CD156: -16 | CE156: 64 | CF156: -16 | CG156: -16 | CH156: 16 | CI156: -16 | CJ156: -16 | CK156: 16 | CL156: 16 | CM156: -16 | CN156: -16 | CO156: -16 | CP156: -16 | CQ156: 16 | CR156: -16 | CS156: 16 | CT156: 16 | CU156: 16 | CV156: 16 | CW156: 16 | CX156: 16 | CY156: -16 | CZ156: -16 | DA156: 16 | DB156: 16 | DC156: -16 | DD156: -16 | DE156: -16 | DF156: -16 | DG156: 16 | DH156: -16 | DI156: 16 | DJ156: -16 | DK156: -64 | DL156: 16 | DM156: 16 | DN156: 16 | DO156: -16 | DP156: -16 | DQ156: 64 | DR156: 16 | DS156: -16 | DT156: -16 | DU156: 16 | DV156: -16 | DW156: -16 | DX156: 16
A157: 16 | B157: -16 | C157: -16 | D157: -16 | E157: -16 | F157: -16 | G157: -16 | H157: -16 | I157: -16 | J157: 16 | K157: 16 | L157: 16 | M157: -16 | N157: 16 | O157: -16 | P157: 16 | Q157: 16 | R157: -16 | S157: 16 | T157: 16 | U157: 16 | V157: -16 | W157: 16 | X157: -16 | Y157: 16 | Z157: 16 | AA157: 16 | AB157: -16 | AC157: -16 | AD157: -64 | AE157: -16 | AF157: 16 | AG157: 16 | AH157: -16 | AI157: 16 | AJ157: 16 | AK157: -16 | AL157: -16 | AM157: -16 | AN157: -16 | AO157: 16 | AP157: -16 | AQ157: -16 | AR157: -16 | AS157: -16 | AT157: 16 | AU157: -16 | AV157: -16 | AW157: -16 | AX157: 16 | AY157: -16 | AZ157: 16 | BA157: -16 | BB157: -16 | BC157: 16 | BD157: -16 | BE157: 16 | BF157: -16 | BG157: -16 | BH157: -16 | BI157: 16 | BJ157: -16 | BK157: -16 | BL157: -16 | BM157: 16 | BN157: -16 | BO157: 16 | BP157: -16 | BQ157: -16 | BR157: 16 | BS157: 16 | BT157: 16 | BU157: 16 | BV157: 16 | BW157: 16 | BX157: -16 | BY157: -16 | BZ157: 16 | CA157: -16 | CB157: 16 | CC157: 16 | CD157: -16 | CE157: 16 | CF157: 16 | CG157: -16 | CH157: -16 | CI157: -16 | CJ157: 16 | CK157: -16 | CL157: 16 | CM157: -16 | CN157: 16 | CO157: -16 | CP157: -16 | CQ157: -16 | CR157: 16 | CS157: -16 | CT157: 16 | CU157: -16 | CV157: -16 | CW157: -16 | CX157: 16 | CY157: 16 | CZ157: -16 | DA157: -16 | DB157: 16 | DC157: -16 | DD157: -16 | DE157: 16 | DF157: -16 | DG157: 16 | DH157: 16 | DI157: -16 | DJ157: -16 | DK157: -16 | DL157: 16 | DM157: -16 | DN157: 16 | DO157: -16 | DP157: -16 | DQ157: 16 | DR157: 16 | DS157: -16 | DT157: 16 | DU157: -16 | DV157: -16 | DW157: 16 | DX157: 16
A158: 16 | B158: -16 | C158: 16 | D158: 16 | E158: 16 | F158: -16 | G158: 16 | H158: -16 | I158: -16 | J158: 16 | K158: 16 | L158: -16 | M158: -16 | N158: 16 | O158: -16 | P158: -16 | Q158: 16 | R158: -16 | S158: -16 | T158: -16 | U158: -16 | V158: 16 | W158: 16 | X158: -16 | Y158: 16 | Z158: -16 | AA158: 16 | AB158: -16 | AC158: -16 | AD158: -16 | AE158: -16 | AF158: 16 | AG158: 16 | AH158: -16 | AI158: -16 | AJ158: 16 | AK158: 16 | AL158: -16 | AM158: 16 | AN158: -16 | AO158: 16 | AP158: 16 | AQ158: -16 | AR158: 16 | AS158: 16 | AT158: -16 | AU158: -16 | AV158: -16 | AW158: 16 | AX158: 16 | AY158: 16 | AZ158: 16 | BA158: -16 | BB158: -16 | BC158: 16 | BD158: -16 | BE158: -16 | BF158: -16 | BG158: 16 | BH158: -16 | BI158: 16 | BJ158: -16 | BK158: -16 | BL158: -16 | BM158: 16 | BN158: -16 | BO158: -16 | BP158: -16 | BQ158: -16 | BR158: -16 | BS158: 16 | BT158: 16 | BU158: 16 | BV158: -16 | BW158: -16 | BX158: 16 | BY158: 16 | BZ158: -16 | CA158: 16 | CB158: -16 | CC158: -16 | CD158: 16 | CE158: 16 | CF158: 16 | CG158: -16 | CH158: 16 | CI158: 16 | CJ158: -16 | CK158: 16 | CL158: 16 | CM158: -16 | CN158: 16 | CO158: -16 | CP158: -16 | CQ158: 16 | CR158: 16 | CS158: -16 | CT158: 64 | CU158: 16 | CV158: 16 | CW158: 16 | CX158: 16 | CY158: -16 | CZ158: -16 | DA158: 16 | DB158: 16 | DC158: -16 | DD158: -16 | DE158: -16 | DF158: -16 | DG158: -16 | DH158: -16 | DI158: -16 | DJ158: -16 | DK158: -16 | DL158: 16 | DM158: -16 | DN158: 16 | DO158: -16 | DP158: 16 | DQ158: 16 | DR158: 16 | DS158: 16 | DT158: -16 | DU158: -16 | DV158: 16 | DW158: -16 | DX158: -16
A159: 16 | B159: 16 | C159: 16 | D159: -16 | E159: -16 | F159: -16 | G159: 16 | H159: 16 | I159: -16 | J159: 16 | K159: 16 | L159: 16 | M159: -16 | N159: 16 | O159: 16 | P159: 16 | Q159: -16 | R159: 16 | S159: 16 | T159: -16 | U159: 16 | V159: 16 | W159: 16 | X159: 16 | Y159: 16 | Z159: 16 | AA159: 16 | AB159: 16 | AC159: 16 | AD159: -16 | AE159: -16 | AF159: -16 | AG159: 16 | AH159: 16 | AI159: 16 | AJ159: 16 | AK159: -16 | AL159: 16 | AM159: 16 | AN159: -16 | AO159: 16 | AP159: -16 | AQ159: -16 | AR159: -16 | AS159: -16 | AT159: 16 | AU159: 16 | AV159: -16 | AW159: 16 | AX159: 16 | AY159: 16 | AZ159: -16 | BA159: -16 | BB159: -16 | BC159: 16 | BD159: 16 | BE159: 16 | BF159: -16 | BG159: 64 | BH159: 16 | BI159: 16 | BJ159: 16 | BK159: -16 | BL159: 16 | BM159: -16 | BN159: 16 | BO159: 16 | BP159: -16 | BQ159: -16 | BR159: -16 | BS159: 16 | BT159: 16 | BU159: -16 | BV159: -16 | BW159: 16 | BX159: -16 | BY159: -16 | BZ159: -16 | CA159: -16 | CB159: 16 | CC159: 16 | CD159: -16 | CE159: 16 | CF159: 16 | CG159: -16 | CH159: -16 | CI159: 16 | CJ159: 16 | CK159: -16 | CL159: 16 | CM159: -16 | CN159: -16 | CO159: -16 | CP159: 16 | CQ159: -16 | CR159: 16 | CS159: 16 | CT159: 16 | CU159: -16 | CV159: 16 | CW159: 16 | CX159: 16 | CY159: -16 | CZ159: 16 | DA159: 16 | DB159: 16 | DC159: -16 | DD159: -16 | DE159: -16 | DF159: -16 | DG159: 16 | DH159: -16 | DI159: 16 | DJ159: 16 | DK159: 16 | DL159: 16 | DM159: 16 | DN159: -16 | DO159: -16 | DP159: -16 | DQ159: 16 | DR159: 16 | DS159: -16 | DT159: 16 | DU159: 16 | DV159: -16 | DW159: 16 | DX159: -16
A160: -16 | B160: -16 | C160: 16 | D160: 16 | E160: 16 | F160: -16 | G160: 16 | H160: -16 | I160: -16 | J160: -16 | K160: 16 | L160: 16 | M160: -16 | N160: 16 | O160: 16 | P160: -16 | Q160: 16 | R160: 16 | S160: -16 | T160: -16 | U160: -16 | V160: -16 | W160: -16 | X160: 16 | Y160: -16 | Z160: -16 | AA160: -16 | AB160: -16 | AC160: -16 | AD160: 16 | AE160: 16 | AF160: 16 | AG160: -16 | AH160: 16 | AI160: 16 | AJ160: -16 | AK160: 16 | AL160: -16 | AM160: 16 | AN160: -16 | AO160: -16 | AP160: 16 | AQ160: -16 | AR160: -16 | AS160: 16 | AT160: 16 | AU160: -16 | AV160: -16 | AW160: -16 | AX160: -16 | AY160: 16 | AZ160: -16 | BA160: -16 | BB160: 16 | BC160: 16 | BD160: 16 | BE160: 16 | BF160: -16 | BG160: -16 | BH160: 16 | BI160: -16 | BJ160: -16 | BK160: 16 | BL160: -16 | BM160: -16 | BN160: 16 | BO160: -16 | BP160: 16 | BQ160: 16 | BR160: 16 | BS160: -16 | BT160: -16 | BU160: 16 | BV160: 16 | BW160: -16 | BX160: -16 | BY160: 16 | BZ160: -16 | CA160: 16 | CB160: 16 | CC160: 16 | CD160: -16 | CE160: -16 | CF160: -16 | CG160: 16 | CH160: 16 | CI160: 16 | CJ160: -16 | CK160: 16 | CL160: 16 | CM160: 16 | CN160: -16 | CO160: -16 | CP160: -16 | CQ160: 16 | CR160: 16 | CS160: -16 | CT160: -16 | CU160: -16 | CV160: -16 | CW160: -16 | CX160: 16 | CY160: 16 | CZ160: -16 | DA160: -16 | DB160: 16 | DC160: 16 | DD160: 16 | DE160: -16 | DF160: -16 | DG160: -16 | DH160: -16 | DI160: -16 | DJ160: 16 | DK160: -16 | DL160: 64 | DM160: -16 | DN160: -16 | DO160: -16 | DP160: 16 | DQ160: -16 | DR160: -16 | DS160: 16 | DT160: 16 | DU160: -16 | DV160: 16 | DW160: 16 | DX160: 16
A161: -16 | B161: -16 | C161: 16 | D161: -16 | E161: -16 | F161: -16 | G161: -16 | H161: -16 | I161: -16 | J161: 16 | K161: 16 | L161: 16 | M161: 16 | N161: 16 | O161: 16 | P161: -16 | Q161: -16 | R161: -16 | S161: -16 | T161: 16 | U161: -16 | V161: -16 | W161: -16 | X161: 16 | Y161: -16 | Z161: -16 | AA161: 16 | AB161: -16 | AC161: -16 | AD161: -16 | AE161: -16 | AF161: 16 | AG161: 16 | AH161: 16 | AI161: 16 | AJ161: 16 | AK161: 16 | AL161: -16 | AM161: 16 | AN161: -16 | AO161: 16 | AP161: 16 | AQ161: 16 | AR161: -16 | AS161: -16 | AT161: 16 | AU161: 16 | AV161: 16 | AW161: 16 | AX161: 16 | AY161: -16 | AZ161: 16 | BA161: -16 | BB161: -16 | BC161: -16 | BD161: 16 | BE161: 16 | BF161: -16 | BG161: 16 | BH161: 16 | BI161: 16 | BJ161: 16 | BK161: -16 | BL161: 16 | BM161: 16 | BN161: -16 | BO161: -16 | BP161: 16 | BQ161: 16 | BR161: -16 | BS161: 16 | BT161: -16 | BU161: 16 | BV161: -16 | BW161: -16 | BX161: -16 | BY161: 16 | BZ161: 16 | CA161: 16 | CB161: 16 | CC161: -16 | CD161: 16 | CE161: 16 | CF161: -16 | CG161: 16 | CH161: 16 | CI161: -16 | CJ161: 16 | CK161: 16 | CL161: 16 | CM161: -16 | CN161: 16 | CO161: -16 | CP161: -16 | CQ161: -16 | CR161: -16 | CS161: -16 | CT161: -16 | CU161: 16 | CV161: 16 | CW161: 16 | CX161: 16 | CY161: 16 | CZ161: 16 | DA161: 16 | DB161: -16 | DC161: 16 | DD161: 16 | DE161: -16 | DF161: -16 | DG161: 16 | DH161: -16 | DI161: 16 | DJ161: 16 | DK161: -16 | DL161: 16 | DM161: -16 | DN161: -16 | DO161: -16 | DP161: 16 | DQ161: 16 | DR161: -16 | DS161: -16 | DT161: 16 | DU161: -16 | DV161: -16 | DW161: -16 | DX161: 16
A162: 16 | B162: 16 | C162: 16 | D162: -16 | E162: 16 | F162: 16 | G162: 16 | H162: 16 | I162: -16 | J162: -16 | K162: 16 | L162: 16 | M162: 16 | N162: -16 | O162: 16 | P162: 16 | Q162: 16 | R162: 16 | S162: -16 | T162: 16 | U162: -16 | V162: 16 | W162: 16 | X162: -16 | Y162: 16 | Z162: -16 | AA162: 16 | AB162: -16 | AC162: -16 | AD162: 16 | AE162: 16 | AF162: -16 | AG162: 16 | AH162: 16 | AI162: -16 | AJ162: 16 | AK162: -64 | AL162: -16 | AM162: 16 | AN162: -16 | AO162: -16 | AP162: -16 | AQ162: -16 | AR162: 16 | AS162: 16 | AT162: 16 | AU162: 16 | AV162: 16 | AW162: -16 | AX162: -16 | AY162: -16 | AZ162: -16 | BA162: -16 | BB162: -16 | BC162: 16 | BD162: 16 | BE162: -16 | BF162: -16 | BG162: 16 | BH162: -16 | BI162: 16 | BJ162: -16 | BK162: 16 | BL162: -16 | BM162: -16 | BN162: -16 | BO162: -16 | BP162: 16 | BQ162: 16 | BR162: -16 | BS162: 16 | BT162: -16 | BU162: 16 | BV162: 16 | BW162: -16 | BX162: -16 | BY162: -16 | BZ162: -16 | CA162: -16 | CB162: 16 | CC162: 16 | CD162: -16 | CE162: -16 | CF162: -16 | CG162: -16 | CH162: -16 | CI162: -16 | CJ162: 16 | CK162: 16 | CL162: -16 | CM162: -16 | CN162: 16 | CO162: -16 | CP162: 16 | CQ162: -16 | CR162: -16 | CS162: 16 | CT162: 16 | CU162: 16 | CV162: -16 | CW162: -16 | CX162: 16 | CY162: -16 | CZ162: 16 | DA162: -16 | DB162: 16 | DC162: 16 | DD162: -16 | DE162: 16 | DF162: 16 | DG162: 16 | DH162: 16 | DI162: -16 | DJ162: 16 | DK162: 16 | DL162: 16 | DM162: 16 | DN162: -16 | DO162: -16 | DP162: 16 | DQ162: -16 | DR162: 16 | DS162: -16 | DT162: 16 | DU162: -16 | DV162: 16 | DW162: 16 | DX162: 16
A163: -16 | B163: -16 | C163: -16 | D163: -16 | E163: -16 | F163: -16 | G163: -16 | H163: 16 | I163: 16 | J163: 16 | K163: -16 | L163: -16 | M163: -16 | N163: 16 | O163: -16 | P163: -16 | Q163: -16 | R163: -16 | S163: 16 | T163: -64 | U163: -16 | V163: -16 | W163: 16 | X163: -16 | Y163: 16 | Z163: -16 | AA163: -16 | AB163: -16 | AC163: 16 | AD163: -16 | AE163: -16 | AF163: 16 | AG163: -16 | AH163: 16 | AI163: -16 | AJ163: -16 | AK163: 16 | AL163: 16 | AM163: 16 | AN163: -16 | AO163: -16 | AP163: 16 | AQ163: -16 | AR163: -16 | AS163: -16 | AT163: -16 | AU163: -16 | AV163: -16 | AW163: -16 | AX163: -16 | AY163: -16 | AZ163: -16 | BA163: 16 | BB163: -16 | BC163: 16 | BD163: 16 | BE163: 16 | BF163: -16 | BG163: -16 | BH163: -16 | BI163: 16 | BJ163: 16 | BK163: -16 | BL163: 16 | BM163: 16 | BN163: -16 | BO163: 64 | BP163: 16 | BQ163: -16 | BR163: 16 | BS163: -16 | BT163: -16 | BU163: -16 | BV163: -16 | BW163: 64 | BX163: -16 | BY163: 16 | BZ163: -16 | CA163: 16 | CB163: -16 | CC163: -64 | CD163: -16 | CE163: 64 | CF163: -16 | CG163: -16 | CH163: 16 | CI163: -16 | CJ163: -16 | CK163: 16 | CL163: 16 | CM163: 16 | CN163: -16 | CO163: -16 | CP163: 16 | CQ163: 16 | CR163: 16 | CS163: -16 | CT163: 16 | CU163: -16 | CV163: -16 | CW163: 16 | CX163: -16 | CY163: -16 | CZ163: 16 | DA163: 16 | DB163: 16 | DC163: -16 | DD163: 16 | DE163: -16 | DF163: -16 | DG163: -16 | DH163: -16 | DI163: 16 | DJ163: 16 | DK163: -16 | DL163: 16 | DM163: 16 | DN163: -16 | DO163: 16 | DP163: -16 | DQ163: 64 | DR163: -16 | DS163: -16 | DT163: -16 | DU163: 16 | DV163: -16 | DW163: -16 | DX163: 16
